Workbook

Sheet Actual Wellpath
A1: Minimum Curvature Survey Calculation, © Peter Clark, 2014
A2: Header Information
A3: Field | P3: North Reference
A4: Facility | P4: Convergence | AH4: °
A5: Slot | P5: Declination | AH5: °
A6: Well Name | N6: =AD10 -> ft | P6: Declination Source
A7: Wellbore | N7: =AD10 -> ft | P7: Total Az. Correction | AD7: feet | AE7: 10 | AF7: Grid | AG7: =IF(AF9=1,AG5-AG4,AG5) -> 0 | AH7: °
A8: Wellpath Name | AD8: metres | AE8: 30 | AF8: True
A9: Vertical Section Azimuth | I9: Length units | AD9: 1 | AE9: 100 | AF9: 1
A10: Section Origin - North | E10: =AD10 -> ft | I10: DLS units (per) | AD10: =IF(AD9=1,"ft","m") -> ft | AE10: 3
A11: Section Origin - East | E11: =AD10 -> ft | O11: Closure | AD11: 2 | AE11: =IF(AE10=1,"10",IF(AE10=2,"30","100")) -> 100
A12: # | B12: =CONCATENATE("MD (",AD10,")") -> MD (ft) | C12: Inc (°) | D12: Az (°) | E12: =CONCATENATE("TVD (",AD10,")") -> TVD (ft) | F12: =CONCATENATE("Section (",AD10,")") -> Section (ft) | G12: =CONCATENATE("N/S (",AD10,")") -> N/S (ft) | H12: =CONCATENATE("E/W (",AD10,")") -> E/W (ft) | I12: =CONCATENATE("DLS (°/",AE11,AD10,")") -> DLS (°/100ft) | J12: DL (°) | K12: =CONCATENATE("CL (",AD10,")") -> CL (ft) | L12: TF (°) | M12: =CONCATENATE("Build (°/",AE11,AD10,")") -> Build (°/100ft) | N12: =CONCATENATE("Turn (°/",AE11,AD10,")") -> Turn (°/100ft) | O12: =CONCATENATE("Distance (",AD10,")") -> Distance (ft) | P12: Direction (°) | Q12: "F" | R12: sectn | S12: secte | T12: sectl | U12: sectd | V12: sectd1 | W12: sectd2 | X12: sectd3 | Y12: Hk | Z12: Lk | AA12: TF | AB12: Delta N/S | AC12: Delta E/W | AE12: =VALUE(AE11) -> 100 | AG12: Comment
A13: TO | E13: 0 | F13: =IF(G13="","",T13*COS(X13)) -> 0 | G13: 0 | H13: 0 | R13: =G13-$D$10 -> 0 | S13: =H13-$D$11 -> 0 | T13: =SQRT((R13*R13)+(S13*S13)) -> 0 | U13: =IF(R13<>0,ATAN(S13/R13)*180/PI(),90) -> 90 | V13: =IF(R13<0,U13+180,U13) -> 90 | W13: =IF(V13<0,V13+360,V13) -> 90 | X13: =(W13-$D$9)*PI()/180 -> 1.570796327
A14: =2 -> 2 | E14: =IF(B14=0,"",(COS(C14*PI()/180)+COS(C13*PI()/180))*Q14*(B14-B13)/2+E13) ->  | G14: =IF(B14=0,"",(SIN(C14*PI()/180)*COS(D14*PI()/180)+SIN(C13*PI()/180)*COS(D13*PI()/180))*Q14*(B14-B13)/2+G13) ->  | H14: =IF(B14=0,"",(SIN(C14*PI()/180)*SIN(D14*PI()/180)+SIN(C13*PI()/180)*SIN(D13*PI()/180))*Q14*(B14-B13)/2+H13) ->  | I14: =IF(B14=0,"",(J14/((B14-B13)/$AE$12))) ->  | J14: =IF(B14=0,"",((180/PI())*ACOS(SIN(C13*PI()/180)*SIN(C14*PI()/180)*COS((D14-D13)*PI()/180)+COS(C13*PI()/180)*COS(C14*PI()/180)))) ->  | K14: =IF(B14="","",B14-B13) ->  | L14: =IF(B14="","",IF(AA14>180,AA14-360,AA14)) ->  | M14: =IF(B14="","",(C14-C13)*AE$12/(B14-B13)) ->  | N14: =IF(B14="","",(D14-D13)*AE$12/(B14-B13)) ->  | O14: =IF(B14="","",SQRT((G14-G$13)^2+(H14-H$13)^2)) ->  | P14: =IF(B14="","",IF(AC14=0,IF(AB14<0,180,0),IF(AC14<0,270-DEGREES(ATAN(AB14/AC14)),90-DEGREES(ATAN(AB14/AC14))))) ->  | Q14: =IF(J14>0,(2/J14)*(180/PI())*TAN(J14*PI()/360),1) ->  | Y14: =IF(B14=0,"",SIN(C14*PI()/180)*COS(C13*PI()/180)-SIN(C13*PI()/180)*COS(C14*PI()/180)*COS((D14-D13)*PI()/180)) ->  | Z14: =IF(B14=0,"",SIN(C13*PI()/180)*SIN((D14-D13)*PI()/180)) ->  | AA14: =IF(B14="","",IF(Y14>0,(180/PI())*ATAN(Z14/Y14),IF(Y14<0,(180/PI())*ATAN(Z14/Y14)+180,IF(Z14<0,270,IF(Z14>0,90,0))))) ->  | AB14: =IF(B14="","",G14-G$13) ->  | AC14: =IF(B14="","",H14-H$13) -> 
A15: =A14+1 -> 3 | J15: =IF(B15=0,"",((180/PI())*ACOS(SIN(C14*PI()/180)*SIN(C15*PI()/180)*COS((D15-D14)*PI()/180)+COS(C14*PI()/180)*COS(C15*PI()/180)))) ->  | Y15: =IF(B15=0,"",SIN(C15*PI()/180)*COS(C14*PI()/180)-SIN(C14*PI()/180)*COS(C15*PI()/180)*COS((D15-D14)*PI()/180)) ->  | Z15: =IF(B15=0,"",SIN(C14*PI()/180)*SIN((D15-D14)*PI()/180)) ->  | AB15: =IF(B15="","",G15-G$13) ->  | AC15: =IF(B15="","",H15-H$13) -> 
A16: 4
A17: 5
A18: 6
A19: 7
A20: 8
A21: 9
A22: 10
A23: 11
A24: 12
A25: 13
A26: 14
A27: 15
A28: 16
A29: 17
A30: 18
A31: 19
A32: 20
A33: 21
A34: 22
A35: 23
A36: 24
A37: 25
A38: 26
A39: 27
A40: 28
A41: 29
A42: 30
A43: 31
A44: 32
A45: 33
A46: 34
A47: 35
A48: 36
A49: 37
A50: 38
A51: 39
A52: 40
A53: 41
A54: 42
A55: 43
A56: 44
A57: 45
A58: 46
A59: 47
A60: 48
A61: 49
A62: 50
A63: 51
A64: 52
A65: 53
A66: 54
A67: 55
A68: 56
A69: 57
A70: 58
A71: 59
A72: 60
A73: 61
A74: 62
A75: 63
A76: 64
A77: 65 | F77: =IF(G77="","",T77*COS(X77)) ->  | R77: =G77-$D$10 ->  | S77: =H77-$D$11 ->  | T77: =SQRT((R77*R77)+(S77*S77)) ->  | U77: =IF(R77<>0,ATAN(S77/R77)*180/PI(),90) ->  | V77: =IF(R77<0,U77+180,U77) ->  | W77: =IF(V77<0,V77+360,V77) ->  | X77: =(W77-$D$9)*PI()/180 -> 
A78: 66 | E78: =IF(B78=0,"",(COS(C78*PI()/180)+COS(C77*PI()/180))*Q78*(B78-B77)/2+E77) ->  | G78: =IF(B78=0,"",(SIN(C78*PI()/180)*COS(D78*PI()/180)+SIN(C77*PI()/180)*COS(D77*PI()/180))*Q78*(B78-B77)/2+G77) ->  | H78: =IF(B78=0,"",(SIN(C78*PI()/180)*SIN(D78*PI()/180)+SIN(C77*PI()/180)*SIN(D77*PI()/180))*Q78*(B78-B77)/2+H77) ->  | I78: =IF(B78=0,"",(J78/((B78-B77)/$AE$12))) ->  | K78: =IF(B78="","",B78-B77) ->  | L78: =IF(B78="","",IF(AA78>180,AA78-360,AA78)) ->  | M78: =IF(B78="","",(C78-C77)*AE$12/(B78-B77)) ->  | N78: =IF(B78="","",(D78-D77)*AE$12/(B78-B77)) ->  | O78: =IF(B78="","",SQRT((G78-G$13)^2+(H78-H$13)^2)) ->  | P78: =IF(B78="","",IF(AC78=0,IF(AB78<0,180,0),IF(AC78<0,270-DEGREES(ATAN(AB78/AC78)),90-DEGREES(ATAN(AB78/AC78))))) ->  | Q78: =IF(J78>0,(2/J78)*(180/PI())*TAN(J78*PI()/360),1) ->  | AA78: =IF(B78="","",IF(Y78>0,(180/PI())*ATAN(Z78/Y78),IF(Y78<0,(180/PI())*ATAN(Z78/Y78)+180,IF(Z78<0,270,IF(Z78>0,90,0))))) -> 
A79: =A78+1 -> 67 | J79: =IF(B79=0,"",((180/PI())*ACOS(SIN(C78*PI()/180)*SIN(C79*PI()/180)*COS((D79-D78)*PI()/180)+COS(C78*PI()/180)*COS(C79*PI()/180)))) ->  | Y79: =IF(B79=0,"",SIN(C79*PI()/180)*COS(C78*PI()/180)-SIN(C78*PI()/180)*COS(C79*PI()/180)*COS((D79-D78)*PI()/180)) ->  | Z79: =IF(B79=0,"",SIN(C78*PI()/180)*SIN((D79-D78)*PI()/180)) ->  | AB79: =IF(B79="","",G79-G$13) ->  | AC79: =IF(B79="","",H79-H$13) -> 
A80: 68
A81: 69
A82: 70
A83: 71
A84: 72
A85: 73
A86: 74
A87: 75
A88: 76
A89: 77
A90: 78
A91: 79
A92: 80
A93: 81
A94: 82
A95: 83
A96: 84
A97: 85
A98: 86
A99: 87
A100: 88
A101: 89
A102: 90
A103: 91
A104: 92
A105: 93
A106: 94
A107: 95
A108: 96
A109: 97
A110: 98
A111: 99
A112: 100
A113: 101
A114: 102
A115: 103
A116: 104
A117: 105
A118: 106
A119: 107
A120: 108
A121: 109
A122: 110
A123: 111
A124: 112
A125: 113
A126: 114
A127: 115
A128: 116
A129: 117
A130: 118
A131: 119
A132: 120
A133: 121
A134: 122
A135: 123
A136: 124
A137: 125
A138: 126
A139: 127
A140: 128
A141: 129 | F141: =IF(G141="","",T141*COS(X141)) ->  | R141: =G141-$D$10 ->  | S141: =H141-$D$11 ->  | T141: =SQRT((R141*R141)+(S141*S141)) ->  | U141: =IF(R141<>0,ATAN(S141/R141)*180/PI(),90) ->  | V141: =IF(R141<0,U141+180,U141) ->  | W141: =IF(V141<0,V141+360,V141) ->  | X141: =(W141-$D$9)*PI()/180 -> 
A142: 130 | E142: =IF(B142=0,"",(COS(C142*PI()/180)+COS(C141*PI()/180))*Q142*(B142-B141)/2+E141) ->  | G142: =IF(B142=0,"",(SIN(C142*PI()/180)*COS(D142*PI()/180)+SIN(C141*PI()/180)*COS(D141*PI()/180))*Q142*(B142-B141)/2+G141) ->  | H142: =IF(B142=0,"",(SIN(C142*PI()/180)*SIN(D142*PI()/180)+SIN(C141*PI()/180)*SIN(D141*PI()/180))*Q142*(B142-B141)/2+H141) ->  | I142: =IF(B142=0,"",(J142/((B142-B141)/$AE$12))) ->  | K142: =IF(B142="","",B142-B141) ->  | L142: =IF(B142="","",IF(AA142>180,AA142-360,AA142)) ->  | M142: =IF(B142="","",(C142-C141)*AE$12/(B142-B141)) ->  | N142: =IF(B142="","",(D142-D141)*AE$12/(B142-B141)) ->  | O142: =IF(B142="","",SQRT((G142-G$13)^2+(H142-H$13)^2)) ->  | P142: =IF(B142="","",IF(AC142=0,IF(AB142<0,180,0),IF(AC142<0,270-DEGREES(ATAN(AB142/AC142)),90-DEGREES(ATAN(AB142/AC142))))) ->  | Q142: =IF(J142>0,(2/J142)*(180/PI())*TAN(J142*PI()/360),1) ->  | AA142: =IF(B142="","",IF(Y142>0,(180/PI())*ATAN(Z142/Y142),IF(Y142<0,(180/PI())*ATAN(Z142/Y142)+180,IF(Z142<0,270,IF(Z142>0,90,0))))) -> 
A143: =A142+1 -> 131 | J143: =IF(B143=0,"",((180/PI())*ACOS(SIN(C142*PI()/180)*SIN(C143*PI()/180)*COS((D143-D142)*PI()/180)+COS(C142*PI()/180)*COS(C143*PI()/180)))) ->  | Y143: =IF(B143=0,"",SIN(C143*PI()/180)*COS(C142*PI()/180)-SIN(C142*PI()/180)*COS(C143*PI()/180)*COS((D143-D142)*PI()/180)) ->  | Z143: =IF(B143=0,"",SIN(C142*PI()/180)*SIN((D143-D142)*PI()/180)) ->  | AB143: =IF(B143="","",G143-G$13) ->  | AC143: =IF(B143="","",H143-H$13) -> 
A144: 132
A145: 133
A146: 134
A147: 135
A148: 136
A149: 137
A150: 138
A151: 139
A152: 140
A153: 141
A154: 142
A155: 143
A156: 144
A157: 145
A158: 146
A159: 147
A160: 148
A161: 149
A162: 150
A163: 151
A164: 152
A165: 153
A166: 154
A167: 155
A168: 156
A169: 157
A170: 158
A171: 159
A172: 160
A173: 161
A174: 162
A175: 163
A176: 164
A177: 165
A178: 166
A179: 167
A180: 168
A181: 169
A182: 170
A183: 171
A184: 172
A185: 173
A186: 174
A187: 175
A188: 176
A189: 177
A190: 178
A191: 179
A192: 180
A193: 181
A194: 182
A195: 183
A196: 184
A197: 185
A198: 186
A199: 187
A200: 188
... 1812 more rows

Sheet Map & Section Plots
S1: Actual | W1: Plan | AG1: Plan - Manual Entry
S2: TVD | T2: Section | U2: North | V2: East | W2: TVD | X2: Section | Y2: North | Z2: East
S3: =IF('Actual Wellpath'!E13="",0,'Actual Wellpath'!E13) -> 0 | T3: =IF('Actual Wellpath'!F13="",0,'Actual Wellpath'!F13) -> 0 | U3: =IF('Actual Wellpath'!G13="",0,'Actual Wellpath'!G13) -> 0 | V3: =IF('Actual Wellpath'!H13="",0,'Actual Wellpath'!H13) -> 0 | W3: =IF(#REF!="",0,#REF!) ->  | X3: =IF(#REF!="",0,#REF!) ->  | Y3: =IF(#REF!="",0,#REF!) ->  | Z3: =IF(#REF!="",0,#REF!) -> 
S4: =IF('Actual Wellpath'!E14="",S3,'Actual Wellpath'!E14) -> 0 | T4: =IF('Actual Wellpath'!F14="",T3,'Actual Wellpath'!F14) -> 0 | U4: =IF('Actual Wellpath'!G14="",U3,'Actual Wellpath'!G14) -> 0 | V4: =IF('Actual Wellpath'!H14="",V3,'Actual Wellpath'!H14) -> 0 | W4: =IF(#REF!="",W3,#REF!) ->  | X4: =IF(#REF!="",X3,#REF!) ->  | Y4: =IF(#REF!="",Y3,#REF!) ->  | Z4: =IF(#REF!="",Z3,#REF!) -> 
S5: =IF('Actual Wellpath'!E15="",S4,'Actual Wellpath'!E15) -> 0 | T5: =IF('Actual Wellpath'!F15="",T4,'Actual Wellpath'!F15) -> 0 | U5: =IF('Actual Wellpath'!G15="",U4,'Actual Wellpath'!G15) -> 0 | V5: =IF('Actual Wellpath'!H15="",V4,'Actual Wellpath'!H15) -> 0 | W5: =IF(#REF!="",W4,#REF!) ->  | X5: =IF(#REF!="",X4,#REF!) ->  | Y5: =IF(#REF!="",Y4,#REF!) ->  | Z5: =IF(#REF!="",Z4,#REF!) -> 
S6: =IF('Actual Wellpath'!E16="",S5,'Actual Wellpath'!E16) -> 0 | T6: =IF('Actual Wellpath'!F16="",T5,'Actual Wellpath'!F16) -> 0 | U6: =IF('Actual Wellpath'!G16="",U5,'Actual Wellpath'!G16) -> 0 | V6: =IF('Actual Wellpath'!H16="",V5,'Actual Wellpath'!H16) -> 0 | W6: =IF(#REF!="",W5,#REF!) ->  | X6: =IF(#REF!="",X5,#REF!) ->  | Y6: =IF(#REF!="",Y5,#REF!) ->  | Z6: =IF(#REF!="",Z5,#REF!) -> 
S7: =IF('Actual Wellpath'!E17="",S6,'Actual Wellpath'!E17) -> 0 | T7: =IF('Actual Wellpath'!F17="",T6,'Actual Wellpath'!F17) -> 0 | U7: =IF('Actual Wellpath'!G17="",U6,'Actual Wellpath'!G17) -> 0 | V7: =IF('Actual Wellpath'!H17="",V6,'Actual Wellpath'!H17) -> 0 | W7: =IF(#REF!="",W6,#REF!) ->  | X7: =IF(#REF!="",X6,#REF!) ->  | Y7: =IF(#REF!="",Y6,#REF!) ->  | Z7: =IF(#REF!="",Z6,#REF!) -> 
S8: =IF('Actual Wellpath'!E18="",S7,'Actual Wellpath'!E18) -> 0 | T8: =IF('Actual Wellpath'!F18="",T7,'Actual Wellpath'!F18) -> 0 | U8: =IF('Actual Wellpath'!G18="",U7,'Actual Wellpath'!G18) -> 0 | V8: =IF('Actual Wellpath'!H18="",V7,'Actual Wellpath'!H18) -> 0 | W8: =IF(#REF!="",W7,#REF!) ->  | X8: =IF(#REF!="",X7,#REF!) ->  | Y8: =IF(#REF!="",Y7,#REF!) ->  | Z8: =IF(#REF!="",Z7,#REF!) -> 
S9: =IF('Actual Wellpath'!E19="",S8,'Actual Wellpath'!E19) -> 0 | T9: =IF('Actual Wellpath'!F19="",T8,'Actual Wellpath'!F19) -> 0 | U9: =IF('Actual Wellpath'!G19="",U8,'Actual Wellpath'!G19) -> 0 | V9: =IF('Actual Wellpath'!H19="",V8,'Actual Wellpath'!H19) -> 0 | W9: =IF(#REF!="",W8,#REF!) ->  | X9: =IF(#REF!="",X8,#REF!) ->  | Y9: =IF(#REF!="",Y8,#REF!) ->  | Z9: =IF(#REF!="",Z8,#REF!) -> 
S10: =IF('Actual Wellpath'!E20="",S9,'Actual Wellpath'!E20) -> 0 | T10: =IF('Actual Wellpath'!F20="",T9,'Actual Wellpath'!F20) -> 0 | U10: =IF('Actual Wellpath'!G20="",U9,'Actual Wellpath'!G20) -> 0 | V10: =IF('Actual Wellpath'!H20="",V9,'Actual Wellpath'!H20) -> 0 | W10: =IF(#REF!="",W9,#REF!) ->  | X10: =IF(#REF!="",X9,#REF!) ->  | Y10: =IF(#REF!="",Y9,#REF!) ->  | Z10: =IF(#REF!="",Z9,#REF!) -> 
S11: =IF('Actual Wellpath'!E21="",S10,'Actual Wellpath'!E21) -> 0 | T11: =IF('Actual Wellpath'!F21="",T10,'Actual Wellpath'!F21) -> 0 | U11: =IF('Actual Wellpath'!G21="",U10,'Actual Wellpath'!G21) -> 0 | V11: =IF('Actual Wellpath'!H21="",V10,'Actual Wellpath'!H21) -> 0 | W11: =IF(#REF!="",W10,#REF!) ->  | X11: =IF(#REF!="",X10,#REF!) ->  | Y11: =IF(#REF!="",Y10,#REF!) ->  | Z11: =IF(#REF!="",Z10,#REF!) -> 
S12: =IF('Actual Wellpath'!E22="",S11,'Actual Wellpath'!E22) -> 0 | T12: =IF('Actual Wellpath'!F22="",T11,'Actual Wellpath'!F22) -> 0 | U12: =IF('Actual Wellpath'!G22="",U11,'Actual Wellpath'!G22) -> 0 | V12: =IF('Actual Wellpath'!H22="",V11,'Actual Wellpath'!H22) -> 0 | W12: =IF(#REF!="",W11,#REF!) ->  | X12: =IF(#REF!="",X11,#REF!) ->  | Y12: =IF(#REF!="",Y11,#REF!) ->  | Z12: =IF(#REF!="",Z11,#REF!) -> 
S13: =IF('Actual Wellpath'!E23="",S12,'Actual Wellpath'!E23) -> 0 | T13: =IF('Actual Wellpath'!F23="",T12,'Actual Wellpath'!F23) -> 0 | U13: =IF('Actual Wellpath'!G23="",U12,'Actual Wellpath'!G23) -> 0 | V13: =IF('Actual Wellpath'!H23="",V12,'Actual Wellpath'!H23) -> 0 | W13: =IF(#REF!="",W12,#REF!) ->  | X13: =IF(#REF!="",X12,#REF!) ->  | Y13: =IF(#REF!="",Y12,#REF!) ->  | Z13: =IF(#REF!="",Z12,#REF!) -> 
S14: =IF('Actual Wellpath'!E24="",S13,'Actual Wellpath'!E24) -> 0 | T14: =IF('Actual Wellpath'!F24="",T13,'Actual Wellpath'!F24) -> 0 | U14: =IF('Actual Wellpath'!G24="",U13,'Actual Wellpath'!G24) -> 0 | V14: =IF('Actual Wellpath'!H24="",V13,'Actual Wellpath'!H24) -> 0 | W14: =IF(#REF!="",W13,#REF!) ->  | X14: =IF(#REF!="",X13,#REF!) ->  | Y14: =IF(#REF!="",Y13,#REF!) ->  | Z14: =IF(#REF!="",Z13,#REF!) -> 
S15: =IF('Actual Wellpath'!E25="",S14,'Actual Wellpath'!E25) -> 0 | T15: =IF('Actual Wellpath'!F25="",T14,'Actual Wellpath'!F25) -> 0 | U15: =IF('Actual Wellpath'!G25="",U14,'Actual Wellpath'!G25) -> 0 | V15: =IF('Actual Wellpath'!H25="",V14,'Actual Wellpath'!H25) -> 0 | W15: =IF(#REF!="",W14,#REF!) ->  | X15: =IF(#REF!="",X14,#REF!) ->  | Y15: =IF(#REF!="",Y14,#REF!) ->  | Z15: =IF(#REF!="",Z14,#REF!) -> 
S16: =IF('Actual Wellpath'!E26="",S15,'Actual Wellpath'!E26) -> 0 | T16: =IF('Actual Wellpath'!F26="",T15,'Actual Wellpath'!F26) -> 0 | U16: =IF('Actual Wellpath'!G26="",U15,'Actual Wellpath'!G26) -> 0 | V16: =IF('Actual Wellpath'!H26="",V15,'Actual Wellpath'!H26) -> 0 | W16: =IF(#REF!="",W15,#REF!) ->  | X16: =IF(#REF!="",X15,#REF!) ->  | Y16: =IF(#REF!="",Y15,#REF!) ->  | Z16: =IF(#REF!="",Z15,#REF!) -> 
S17: =IF('Actual Wellpath'!E27="",S16,'Actual Wellpath'!E27) -> 0 | T17: =IF('Actual Wellpath'!F27="",T16,'Actual Wellpath'!F27) -> 0 | U17: =IF('Actual Wellpath'!G27="",U16,'Actual Wellpath'!G27) -> 0 | V17: =IF('Actual Wellpath'!H27="",V16,'Actual Wellpath'!H27) -> 0 | W17: =IF(#REF!="",W16,#REF!) ->  | X17: =IF(#REF!="",X16,#REF!) ->  | Y17: =IF(#REF!="",Y16,#REF!) ->  | Z17: =IF(#REF!="",Z16,#REF!) -> 
S18: =IF('Actual Wellpath'!E28="",S17,'Actual Wellpath'!E28) -> 0 | T18: =IF('Actual Wellpath'!F28="",T17,'Actual Wellpath'!F28) -> 0 | U18: =IF('Actual Wellpath'!G28="",U17,'Actual Wellpath'!G28) -> 0 | V18: =IF('Actual Wellpath'!H28="",V17,'Actual Wellpath'!H28) -> 0 | W18: =IF(#REF!="",W17,#REF!) ->  | X18: =IF(#REF!="",X17,#REF!) ->  | Y18: =IF(#REF!="",Y17,#REF!) ->  | Z18: =IF(#REF!="",Z17,#REF!) -> 
S19: =IF('Actual Wellpath'!E29="",S18,'Actual Wellpath'!E29) -> 0 | T19: =IF('Actual Wellpath'!F29="",T18,'Actual Wellpath'!F29) -> 0 | U19: =IF('Actual Wellpath'!G29="",U18,'Actual Wellpath'!G29) -> 0 | V19: =IF('Actual Wellpath'!H29="",V18,'Actual Wellpath'!H29) -> 0 | W19: =IF(#REF!="",W18,#REF!) ->  | X19: =IF(#REF!="",X18,#REF!) ->  | Y19: =IF(#REF!="",Y18,#REF!) ->  | Z19: =IF(#REF!="",Z18,#REF!) -> 
S20: =IF('Actual Wellpath'!E30="",S19,'Actual Wellpath'!E30) -> 0 | T20: =IF('Actual Wellpath'!F30="",T19,'Actual Wellpath'!F30) -> 0 | U20: =IF('Actual Wellpath'!G30="",U19,'Actual Wellpath'!G30) -> 0 | V20: =IF('Actual Wellpath'!H30="",V19,'Actual Wellpath'!H30) -> 0 | W20: =IF(#REF!="",W19,#REF!) ->  | X20: =IF(#REF!="",X19,#REF!) ->  | Y20: =IF(#REF!="",Y19,#REF!) ->  | Z20: =IF(#REF!="",Z19,#REF!) -> 
S21: =IF('Actual Wellpath'!E31="",S20,'Actual Wellpath'!E31) -> 0 | T21: =IF('Actual Wellpath'!F31="",T20,'Actual Wellpath'!F31) -> 0 | U21: =IF('Actual Wellpath'!G31="",U20,'Actual Wellpath'!G31) -> 0 | V21: =IF('Actual Wellpath'!H31="",V20,'Actual Wellpath'!H31) -> 0 | W21: =IF(#REF!="",W20,#REF!) ->  | X21: =IF(#REF!="",X20,#REF!) ->  | Y21: =IF(#REF!="",Y20,#REF!) ->  | Z21: =IF(#REF!="",Z20,#REF!) -> 
S22: =IF('Actual Wellpath'!E32="",S21,'Actual Wellpath'!E32) -> 0 | T22: =IF('Actual Wellpath'!F32="",T21,'Actual Wellpath'!F32) -> 0 | U22: =IF('Actual Wellpath'!G32="",U21,'Actual Wellpath'!G32) -> 0 | V22: =IF('Actual Wellpath'!H32="",V21,'Actual Wellpath'!H32) -> 0 | W22: =IF(#REF!="",W21,#REF!) ->  | X22: =IF(#REF!="",X21,#REF!) ->  | Y22: =IF(#REF!="",Y21,#REF!) ->  | Z22: =IF(#REF!="",Z21,#REF!) -> 
S23: =IF('Actual Wellpath'!E33="",S22,'Actual Wellpath'!E33) -> 0 | T23: =IF('Actual Wellpath'!F33="",T22,'Actual Wellpath'!F33) -> 0 | U23: =IF('Actual Wellpath'!G33="",U22,'Actual Wellpath'!G33) -> 0 | V23: =IF('Actual Wellpath'!H33="",V22,'Actual Wellpath'!H33) -> 0 | W23: =IF(#REF!="",W22,#REF!) ->  | X23: =IF(#REF!="",X22,#REF!) ->  | Y23: =IF(#REF!="",Y22,#REF!) ->  | Z23: =IF(#REF!="",Z22,#REF!) -> 
S24: =IF('Actual Wellpath'!E34="",S23,'Actual Wellpath'!E34) -> 0 | T24: =IF('Actual Wellpath'!F34="",T23,'Actual Wellpath'!F34) -> 0 | U24: =IF('Actual Wellpath'!G34="",U23,'Actual Wellpath'!G34) -> 0 | V24: =IF('Actual Wellpath'!H34="",V23,'Actual Wellpath'!H34) -> 0 | W24: =IF(#REF!="",W23,#REF!) ->  | X24: =IF(#REF!="",X23,#REF!) ->  | Y24: =IF(#REF!="",Y23,#REF!) ->  | Z24: =IF(#REF!="",Z23,#REF!) -> 
S25: =IF('Actual Wellpath'!E35="",S24,'Actual Wellpath'!E35) -> 0 | T25: =IF('Actual Wellpath'!F35="",T24,'Actual Wellpath'!F35) -> 0 | U25: =IF('Actual Wellpath'!G35="",U24,'Actual Wellpath'!G35) -> 0 | V25: =IF('Actual Wellpath'!H35="",V24,'Actual Wellpath'!H35) -> 0 | W25: =IF(#REF!="",W24,#REF!) ->  | X25: =IF(#REF!="",X24,#REF!) ->  | Y25: =IF(#REF!="",Y24,#REF!) ->  | Z25: =IF(#REF!="",Z24,#REF!) -> 
S26: =IF('Actual Wellpath'!E36="",S25,'Actual Wellpath'!E36) -> 0 | T26: =IF('Actual Wellpath'!F36="",T25,'Actual Wellpath'!F36) -> 0 | U26: =IF('Actual Wellpath'!G36="",U25,'Actual Wellpath'!G36) -> 0 | V26: =IF('Actual Wellpath'!H36="",V25,'Actual Wellpath'!H36) -> 0 | W26: =IF(#REF!="",W25,#REF!) ->  | X26: =IF(#REF!="",X25,#REF!) ->  | Y26: =IF(#REF!="",Y25,#REF!) ->  | Z26: =IF(#REF!="",Z25,#REF!) -> 
S27: =IF('Actual Wellpath'!E37="",S26,'Actual Wellpath'!E37) -> 0 | T27: =IF('Actual Wellpath'!F37="",T26,'Actual Wellpath'!F37) -> 0 | U27: =IF('Actual Wellpath'!G37="",U26,'Actual Wellpath'!G37) -> 0 | V27: =IF('Actual Wellpath'!H37="",V26,'Actual Wellpath'!H37) -> 0 | W27: =IF(#REF!="",W26,#REF!) ->  | X27: =IF(#REF!="",X26,#REF!) ->  | Y27: =IF(#REF!="",Y26,#REF!) ->  | Z27: =IF(#REF!="",Z26,#REF!) -> 
S28: =IF('Actual Wellpath'!E38="",S27,'Actual Wellpath'!E38) -> 0 | T28: =IF('Actual Wellpath'!F38="",T27,'Actual Wellpath'!F38) -> 0 | U28: =IF('Actual Wellpath'!G38="",U27,'Actual Wellpath'!G38) -> 0 | V28: =IF('Actual Wellpath'!H38="",V27,'Actual Wellpath'!H38) -> 0 | W28: =IF(#REF!="",W27,#REF!) ->  | X28: =IF(#REF!="",X27,#REF!) ->  | Y28: =IF(#REF!="",Y27,#REF!) ->  | Z28: =IF(#REF!="",Z27,#REF!) -> 
S29: =IF('Actual Wellpath'!E39="",S28,'Actual Wellpath'!E39) -> 0 | T29: =IF('Actual Wellpath'!F39="",T28,'Actual Wellpath'!F39) -> 0 | U29: =IF('Actual Wellpath'!G39="",U28,'Actual Wellpath'!G39) -> 0 | V29: =IF('Actual Wellpath'!H39="",V28,'Actual Wellpath'!H39) -> 0 | W29: =IF(#REF!="",W28,#REF!) ->  | X29: =IF(#REF!="",X28,#REF!) ->  | Y29: =IF(#REF!="",Y28,#REF!) ->  | Z29: =IF(#REF!="",Z28,#REF!) -> 
S30: =IF('Actual Wellpath'!E40="",S29,'Actual Wellpath'!E40) -> 0 | T30: =IF('Actual Wellpath'!F40="",T29,'Actual Wellpath'!F40) -> 0 | U30: =IF('Actual Wellpath'!G40="",U29,'Actual Wellpath'!G40) -> 0 | V30: =IF('Actual Wellpath'!H40="",V29,'Actual Wellpath'!H40) -> 0 | W30: =IF(#REF!="",W29,#REF!) ->  | X30: =IF(#REF!="",X29,#REF!) ->  | Y30: =IF(#REF!="",Y29,#REF!) ->  | Z30: =IF(#REF!="",Z29,#REF!) -> 
S31: =IF('Actual Wellpath'!E41="",S30,'Actual Wellpath'!E41) -> 0 | T31: =IF('Actual Wellpath'!F41="",T30,'Actual Wellpath'!F41) -> 0 | U31: =IF('Actual Wellpath'!G41="",U30,'Actual Wellpath'!G41) -> 0 | V31: =IF('Actual Wellpath'!H41="",V30,'Actual Wellpath'!H41) -> 0 | W31: =IF(#REF!="",W30,#REF!) ->  | X31: =IF(#REF!="",X30,#REF!) ->  | Y31: =IF(#REF!="",Y30,#REF!) ->  | Z31: =IF(#REF!="",Z30,#REF!) -> 
S32: =IF('Actual Wellpath'!E42="",S31,'Actual Wellpath'!E42) -> 0 | T32: =IF('Actual Wellpath'!F42="",T31,'Actual Wellpath'!F42) -> 0 | U32: =IF('Actual Wellpath'!G42="",U31,'Actual Wellpath'!G42) -> 0 | V32: =IF('Actual Wellpath'!H42="",V31,'Actual Wellpath'!H42) -> 0 | W32: =IF(#REF!="",W31,#REF!) ->  | X32: =IF(#REF!="",X31,#REF!) ->  | Y32: =IF(#REF!="",Y31,#REF!) ->  | Z32: =IF(#REF!="",Z31,#REF!) -> 
S33: =IF('Actual Wellpath'!E43="",S32,'Actual Wellpath'!E43) -> 0 | T33: =IF('Actual Wellpath'!F43="",T32,'Actual Wellpath'!F43) -> 0 | U33: =IF('Actual Wellpath'!G43="",U32,'Actual Wellpath'!G43) -> 0 | V33: =IF('Actual Wellpath'!H43="",V32,'Actual Wellpath'!H43) -> 0 | W33: =IF(#REF!="",W32,#REF!) ->  | X33: =IF(#REF!="",X32,#REF!) ->  | Y33: =IF(#REF!="",Y32,#REF!) ->  | Z33: =IF(#REF!="",Z32,#REF!) -> 
S34: =IF('Actual Wellpath'!E44="",S33,'Actual Wellpath'!E44) -> 0 | T34: =IF('Actual Wellpath'!F44="",T33,'Actual Wellpath'!F44) -> 0 | U34: =IF('Actual Wellpath'!G44="",U33,'Actual Wellpath'!G44) -> 0 | V34: =IF('Actual Wellpath'!H44="",V33,'Actual Wellpath'!H44) -> 0 | W34: =IF(#REF!="",W33,#REF!) ->  | X34: =IF(#REF!="",X33,#REF!) ->  | Y34: =IF(#REF!="",Y33,#REF!) ->  | Z34: =IF(#REF!="",Z33,#REF!) -> 
S35: =IF('Actual Wellpath'!E45="",S34,'Actual Wellpath'!E45) -> 0 | T35: =IF('Actual Wellpath'!F45="",T34,'Actual Wellpath'!F45) -> 0 | U35: =IF('Actual Wellpath'!G45="",U34,'Actual Wellpath'!G45) -> 0 | V35: =IF('Actual Wellpath'!H45="",V34,'Actual Wellpath'!H45) -> 0 | W35: =IF(#REF!="",W34,#REF!) ->  | X35: =IF(#REF!="",X34,#REF!) ->  | Y35: =IF(#REF!="",Y34,#REF!) ->  | Z35: =IF(#REF!="",Z34,#REF!) -> 
S36: =IF('Actual Wellpath'!E46="",S35,'Actual Wellpath'!E46) -> 0 | T36: =IF('Actual Wellpath'!F46="",T35,'Actual Wellpath'!F46) -> 0 | U36: =IF('Actual Wellpath'!G46="",U35,'Actual Wellpath'!G46) -> 0 | V36: =IF('Actual Wellpath'!H46="",V35,'Actual Wellpath'!H46) -> 0 | W36: =IF(#REF!="",W35,#REF!) ->  | X36: =IF(#REF!="",X35,#REF!) ->  | Y36: =IF(#REF!="",Y35,#REF!) ->  | Z36: =IF(#REF!="",Z35,#REF!) -> 
S37: =IF('Actual Wellpath'!E47="",S36,'Actual Wellpath'!E47) -> 0 | T37: =IF('Actual Wellpath'!F47="",T36,'Actual Wellpath'!F47) -> 0 | U37: =IF('Actual Wellpath'!G47="",U36,'Actual Wellpath'!G47) -> 0 | V37: =IF('Actual Wellpath'!H47="",V36,'Actual Wellpath'!H47) -> 0 | W37: =IF(#REF!="",W36,#REF!) ->  | X37: =IF(#REF!="",X36,#REF!) ->  | Y37: =IF(#REF!="",Y36,#REF!) ->  | Z37: =IF(#REF!="",Z36,#REF!) -> 
S38: =IF('Actual Wellpath'!E48="",S37,'Actual Wellpath'!E48) -> 0 | T38: =IF('Actual Wellpath'!F48="",T37,'Actual Wellpath'!F48) -> 0 | U38: =IF('Actual Wellpath'!G48="",U37,'Actual Wellpath'!G48) -> 0 | V38: =IF('Actual Wellpath'!H48="",V37,'Actual Wellpath'!H48) -> 0 | W38: =IF(#REF!="",W37,#REF!) ->  | X38: =IF(#REF!="",X37,#REF!) ->  | Y38: =IF(#REF!="",Y37,#REF!) ->  | Z38: =IF(#REF!="",Z37,#REF!) -> 
S39: =IF('Actual Wellpath'!E49="",S38,'Actual Wellpath'!E49) -> 0 | T39: =IF('Actual Wellpath'!F49="",T38,'Actual Wellpath'!F49) -> 0 | U39: =IF('Actual Wellpath'!G49="",U38,'Actual Wellpath'!G49) -> 0 | V39: =IF('Actual Wellpath'!H49="",V38,'Actual Wellpath'!H49) -> 0 | W39: =IF(#REF!="",W38,#REF!) ->  | X39: =IF(#REF!="",X38,#REF!) ->  | Y39: =IF(#REF!="",Y38,#REF!) ->  | Z39: =IF(#REF!="",Z38,#REF!) -> 
S40: =IF('Actual Wellpath'!E50="",S39,'Actual Wellpath'!E50) -> 0 | T40: =IF('Actual Wellpath'!F50="",T39,'Actual Wellpath'!F50) -> 0 | U40: =IF('Actual Wellpath'!G50="",U39,'Actual Wellpath'!G50) -> 0 | V40: =IF('Actual Wellpath'!H50="",V39,'Actual Wellpath'!H50) -> 0 | W40: =IF(#REF!="",W39,#REF!) ->  | X40: =IF(#REF!="",X39,#REF!) ->  | Y40: =IF(#REF!="",Y39,#REF!) ->  | Z40: =IF(#REF!="",Z39,#REF!) -> 
S41: =IF('Actual Wellpath'!E51="",S40,'Actual Wellpath'!E51) -> 0 | T41: =IF('Actual Wellpath'!F51="",T40,'Actual Wellpath'!F51) -> 0 | U41: =IF('Actual Wellpath'!G51="",U40,'Actual Wellpath'!G51) -> 0 | V41: =IF('Actual Wellpath'!H51="",V40,'Actual Wellpath'!H51) -> 0 | W41: =IF(#REF!="",W40,#REF!) ->  | X41: =IF(#REF!="",X40,#REF!) ->  | Y41: =IF(#REF!="",Y40,#REF!) ->  | Z41: =IF(#REF!="",Z40,#REF!) -> 
S42: =IF('Actual Wellpath'!E52="",S41,'Actual Wellpath'!E52) -> 0 | T42: =IF('Actual Wellpath'!F52="",T41,'Actual Wellpath'!F52) -> 0 | U42: =IF('Actual Wellpath'!G52="",U41,'Actual Wellpath'!G52) -> 0 | V42: =IF('Actual Wellpath'!H52="",V41,'Actual Wellpath'!H52) -> 0 | W42: =IF(#REF!="",W41,#REF!) ->  | X42: =IF(#REF!="",X41,#REF!) ->  | Y42: =IF(#REF!="",Y41,#REF!) ->  | Z42: =IF(#REF!="",Z41,#REF!) -> 
S43: =IF('Actual Wellpath'!E53="",S42,'Actual Wellpath'!E53) -> 0 | T43: =IF('Actual Wellpath'!F53="",T42,'Actual Wellpath'!F53) -> 0 | U43: =IF('Actual Wellpath'!G53="",U42,'Actual Wellpath'!G53) -> 0 | V43: =IF('Actual Wellpath'!H53="",V42,'Actual Wellpath'!H53) -> 0 | W43: =IF(#REF!="",W42,#REF!) ->  | X43: =IF(#REF!="",X42,#REF!) ->  | Y43: =IF(#REF!="",Y42,#REF!) ->  | Z43: =IF(#REF!="",Z42,#REF!) -> 
S44: =IF('Actual Wellpath'!E54="",S43,'Actual Wellpath'!E54) -> 0 | T44: =IF('Actual Wellpath'!F54="",T43,'Actual Wellpath'!F54) -> 0 | U44: =IF('Actual Wellpath'!G54="",U43,'Actual Wellpath'!G54) -> 0 | V44: =IF('Actual Wellpath'!H54="",V43,'Actual Wellpath'!H54) -> 0 | W44: =IF(#REF!="",W43,#REF!) ->  | X44: =IF(#REF!="",X43,#REF!) ->  | Y44: =IF(#REF!="",Y43,#REF!) ->  | Z44: =IF(#REF!="",Z43,#REF!) -> 
S45: =IF('Actual Wellpath'!E55="",S44,'Actual Wellpath'!E55) -> 0 | T45: =IF('Actual Wellpath'!F55="",T44,'Actual Wellpath'!F55) -> 0 | U45: =IF('Actual Wellpath'!G55="",U44,'Actual Wellpath'!G55) -> 0 | V45: =IF('Actual Wellpath'!H55="",V44,'Actual Wellpath'!H55) -> 0 | W45: =IF(#REF!="",W44,#REF!) ->  | X45: =IF(#REF!="",X44,#REF!) ->  | Y45: =IF(#REF!="",Y44,#REF!) ->  | Z45: =IF(#REF!="",Z44,#REF!) -> 
S46: =IF('Actual Wellpath'!E56="",S45,'Actual Wellpath'!E56) -> 0 | T46: =IF('Actual Wellpath'!F56="",T45,'Actual Wellpath'!F56) -> 0 | U46: =IF('Actual Wellpath'!G56="",U45,'Actual Wellpath'!G56) -> 0 | V46: =IF('Actual Wellpath'!H56="",V45,'Actual Wellpath'!H56) -> 0 | W46: =IF(#REF!="",W45,#REF!) ->  | X46: =IF(#REF!="",X45,#REF!) ->  | Y46: =IF(#REF!="",Y45,#REF!) ->  | Z46: =IF(#REF!="",Z45,#REF!) -> 
S47: =IF('Actual Wellpath'!E57="",S46,'Actual Wellpath'!E57) -> 0 | T47: =IF('Actual Wellpath'!F57="",T46,'Actual Wellpath'!F57) -> 0 | U47: =IF('Actual Wellpath'!G57="",U46,'Actual Wellpath'!G57) -> 0 | V47: =IF('Actual Wellpath'!H57="",V46,'Actual Wellpath'!H57) -> 0 | W47: =IF(#REF!="",W46,#REF!) ->  | X47: =IF(#REF!="",X46,#REF!) ->  | Y47: =IF(#REF!="",Y46,#REF!) ->  | Z47: =IF(#REF!="",Z46,#REF!) -> 
S48: =IF('Actual Wellpath'!E58="",S47,'Actual Wellpath'!E58) -> 0 | T48: =IF('Actual Wellpath'!F58="",T47,'Actual Wellpath'!F58) -> 0 | U48: =IF('Actual Wellpath'!G58="",U47,'Actual Wellpath'!G58) -> 0 | V48: =IF('Actual Wellpath'!H58="",V47,'Actual Wellpath'!H58) -> 0 | W48: =IF(#REF!="",W47,#REF!) ->  | X48: =IF(#REF!="",X47,#REF!) ->  | Y48: =IF(#REF!="",Y47,#REF!) ->  | Z48: =IF(#REF!="",Z47,#REF!) -> 
S49: =IF('Actual Wellpath'!E59="",S48,'Actual Wellpath'!E59) -> 0 | T49: =IF('Actual Wellpath'!F59="",T48,'Actual Wellpath'!F59) -> 0 | U49: =IF('Actual Wellpath'!G59="",U48,'Actual Wellpath'!G59) -> 0 | V49: =IF('Actual Wellpath'!H59="",V48,'Actual Wellpath'!H59) -> 0 | W49: =IF(#REF!="",W48,#REF!) ->  | X49: =IF(#REF!="",X48,#REF!) ->  | Y49: =IF(#REF!="",Y48,#REF!) ->  | Z49: =IF(#REF!="",Z48,#REF!) -> 
S50: =IF('Actual Wellpath'!E60="",S49,'Actual Wellpath'!E60) -> 0 | T50: =IF('Actual Wellpath'!F60="",T49,'Actual Wellpath'!F60) -> 0 | U50: =IF('Actual Wellpath'!G60="",U49,'Actual Wellpath'!G60) -> 0 | V50: =IF('Actual Wellpath'!H60="",V49,'Actual Wellpath'!H60) -> 0 | W50: =IF(#REF!="",W49,#REF!) ->  | X50: =IF(#REF!="",X49,#REF!) ->  | Y50: =IF(#REF!="",Y49,#REF!) ->  | Z50: =IF(#REF!="",Z49,#REF!) -> 
S51: =IF('Actual Wellpath'!E61="",S50,'Actual Wellpath'!E61) -> 0 | T51: =IF('Actual Wellpath'!F61="",T50,'Actual Wellpath'!F61) -> 0 | U51: =IF('Actual Wellpath'!G61="",U50,'Actual Wellpath'!G61) -> 0 | V51: =IF('Actual Wellpath'!H61="",V50,'Actual Wellpath'!H61) -> 0 | W51: =IF(#REF!="",W50,#REF!) ->  | X51: =IF(#REF!="",X50,#REF!) ->  | Y51: =IF(#REF!="",Y50,#REF!) ->  | Z51: =IF(#REF!="",Z50,#REF!) -> 
S52: =IF('Actual Wellpath'!E62="",S51,'Actual Wellpath'!E62) -> 0 | T52: =IF('Actual Wellpath'!F62="",T51,'Actual Wellpath'!F62) -> 0 | U52: =IF('Actual Wellpath'!G62="",U51,'Actual Wellpath'!G62) -> 0 | V52: =IF('Actual Wellpath'!H62="",V51,'Actual Wellpath'!H62) -> 0 | W52: =IF(#REF!="",W51,#REF!) ->  | X52: =IF(#REF!="",X51,#REF!) ->  | Y52: =IF(#REF!="",Y51,#REF!) ->  | Z52: =IF(#REF!="",Z51,#REF!) -> 
S53: =IF('Actual Wellpath'!E63="",S52,'Actual Wellpath'!E63) -> 0 | T53: =IF('Actual Wellpath'!F63="",T52,'Actual Wellpath'!F63) -> 0 | U53: =IF('Actual Wellpath'!G63="",U52,'Actual Wellpath'!G63) -> 0 | V53: =IF('Actual Wellpath'!H63="",V52,'Actual Wellpath'!H63) -> 0 | W53: =IF(#REF!="",W52,#REF!) ->  | X53: =IF(#REF!="",X52,#REF!) ->  | Y53: =IF(#REF!="",Y52,#REF!) ->  | Z53: =IF(#REF!="",Z52,#REF!) -> 
S54: =IF('Actual Wellpath'!E64="",S53,'Actual Wellpath'!E64) -> 0 | T54: =IF('Actual Wellpath'!F64="",T53,'Actual Wellpath'!F64) -> 0 | U54: =IF('Actual Wellpath'!G64="",U53,'Actual Wellpath'!G64) -> 0 | V54: =IF('Actual Wellpath'!H64="",V53,'Actual Wellpath'!H64) -> 0 | W54: =IF(#REF!="",W53,#REF!) ->  | X54: =IF(#REF!="",X53,#REF!) ->  | Y54: =IF(#REF!="",Y53,#REF!) ->  | Z54: =IF(#REF!="",Z53,#REF!) -> 
S55: =IF('Actual Wellpath'!E65="",S54,'Actual Wellpath'!E65) -> 0 | T55: =IF('Actual Wellpath'!F65="",T54,'Actual Wellpath'!F65) -> 0 | U55: =IF('Actual Wellpath'!G65="",U54,'Actual Wellpath'!G65) -> 0 | V55: =IF('Actual Wellpath'!H65="",V54,'Actual Wellpath'!H65) -> 0 | W55: =IF(#REF!="",W54,#REF!) ->  | X55: =IF(#REF!="",X54,#REF!) ->  | Y55: =IF(#REF!="",Y54,#REF!) ->  | Z55: =IF(#REF!="",Z54,#REF!) -> 
S56: =IF('Actual Wellpath'!E66="",S55,'Actual Wellpath'!E66) -> 0 | T56: =IF('Actual Wellpath'!F66="",T55,'Actual Wellpath'!F66) -> 0 | U56: =IF('Actual Wellpath'!G66="",U55,'Actual Wellpath'!G66) -> 0 | V56: =IF('Actual Wellpath'!H66="",V55,'Actual Wellpath'!H66) -> 0 | W56: =IF(#REF!="",W55,#REF!) ->  | X56: =IF(#REF!="",X55,#REF!) ->  | Y56: =IF(#REF!="",Y55,#REF!) ->  | Z56: =IF(#REF!="",Z55,#REF!) -> 
S57: =IF('Actual Wellpath'!E67="",S56,'Actual Wellpath'!E67) -> 0 | T57: =IF('Actual Wellpath'!F67="",T56,'Actual Wellpath'!F67) -> 0 | U57: =IF('Actual Wellpath'!G67="",U56,'Actual Wellpath'!G67) -> 0 | V57: =IF('Actual Wellpath'!H67="",V56,'Actual Wellpath'!H67) -> 0 | W57: =IF(#REF!="",W56,#REF!) ->  | X57: =IF(#REF!="",X56,#REF!) ->  | Y57: =IF(#REF!="",Y56,#REF!) ->  | Z57: =IF(#REF!="",Z56,#REF!) -> 
S58: =IF('Actual Wellpath'!E68="",S57,'Actual Wellpath'!E68) -> 0 | T58: =IF('Actual Wellpath'!F68="",T57,'Actual Wellpath'!F68) -> 0 | U58: =IF('Actual Wellpath'!G68="",U57,'Actual Wellpath'!G68) -> 0 | V58: =IF('Actual Wellpath'!H68="",V57,'Actual Wellpath'!H68) -> 0 | W58: =IF(#REF!="",W57,#REF!) ->  | X58: =IF(#REF!="",X57,#REF!) ->  | Y58: =IF(#REF!="",Y57,#REF!) ->  | Z58: =IF(#REF!="",Z57,#REF!) -> 
S59: =IF('Actual Wellpath'!E69="",S58,'Actual Wellpath'!E69) -> 0 | T59: =IF('Actual Wellpath'!F69="",T58,'Actual Wellpath'!F69) -> 0 | U59: =IF('Actual Wellpath'!G69="",U58,'Actual Wellpath'!G69) -> 0 | V59: =IF('Actual Wellpath'!H69="",V58,'Actual Wellpath'!H69) -> 0 | W59: =IF(#REF!="",W58,#REF!) ->  | X59: =IF(#REF!="",X58,#REF!) ->  | Y59: =IF(#REF!="",Y58,#REF!) ->  | Z59: =IF(#REF!="",Z58,#REF!) -> 
S60: =IF('Actual Wellpath'!E70="",S59,'Actual Wellpath'!E70) -> 0 | T60: =IF('Actual Wellpath'!F70="",T59,'Actual Wellpath'!F70) -> 0 | U60: =IF('Actual Wellpath'!G70="",U59,'Actual Wellpath'!G70) -> 0 | V60: =IF('Actual Wellpath'!H70="",V59,'Actual Wellpath'!H70) -> 0 | W60: =IF(#REF!="",W59,#REF!) ->  | X60: =IF(#REF!="",X59,#REF!) ->  | Y60: =IF(#REF!="",Y59,#REF!) ->  | Z60: =IF(#REF!="",Z59,#REF!) -> 
S61: =IF('Actual Wellpath'!E71="",S60,'Actual Wellpath'!E71) -> 0 | T61: =IF('Actual Wellpath'!F71="",T60,'Actual Wellpath'!F71) -> 0 | U61: =IF('Actual Wellpath'!G71="",U60,'Actual Wellpath'!G71) -> 0 | V61: =IF('Actual Wellpath'!H71="",V60,'Actual Wellpath'!H71) -> 0 | W61: =IF(#REF!="",W60,#REF!) ->  | X61: =IF(#REF!="",X60,#REF!) ->  | Y61: =IF(#REF!="",Y60,#REF!) ->  | Z61: =IF(#REF!="",Z60,#REF!) -> 
S62: =IF('Actual Wellpath'!E72="",S61,'Actual Wellpath'!E72) -> 0 | T62: =IF('Actual Wellpath'!F72="",T61,'Actual Wellpath'!F72) -> 0 | U62: =IF('Actual Wellpath'!G72="",U61,'Actual Wellpath'!G72) -> 0 | V62: =IF('Actual Wellpath'!H72="",V61,'Actual Wellpath'!H72) -> 0 | W62: =IF(#REF!="",W61,#REF!) ->  | X62: =IF(#REF!="",X61,#REF!) ->  | Y62: =IF(#REF!="",Y61,#REF!) ->  | Z62: =IF(#REF!="",Z61,#REF!) -> 
S63: =IF('Actual Wellpath'!E73="",S62,'Actual Wellpath'!E73) -> 0 | T63: =IF('Actual Wellpath'!F73="",T62,'Actual Wellpath'!F73) -> 0 | U63: =IF('Actual Wellpath'!G73="",U62,'Actual Wellpath'!G73) -> 0 | V63: =IF('Actual Wellpath'!H73="",V62,'Actual Wellpath'!H73) -> 0 | W63: =IF(#REF!="",W62,#REF!) ->  | X63: =IF(#REF!="",X62,#REF!) ->  | Y63: =IF(#REF!="",Y62,#REF!) ->  | Z63: =IF(#REF!="",Z62,#REF!) -> 
S64: =IF('Actual Wellpath'!E74="",S63,'Actual Wellpath'!E74) -> 0 | T64: =IF('Actual Wellpath'!F74="",T63,'Actual Wellpath'!F74) -> 0 | U64: =IF('Actual Wellpath'!G74="",U63,'Actual Wellpath'!G74) -> 0 | V64: =IF('Actual Wellpath'!H74="",V63,'Actual Wellpath'!H74) -> 0 | W64: =IF(#REF!="",W63,#REF!) ->  | X64: =IF(#REF!="",X63,#REF!) ->  | Y64: =IF(#REF!="",Y63,#REF!) ->  | Z64: =IF(#REF!="",Z63,#REF!) -> 
S65: =IF('Actual Wellpath'!E75="",S64,'Actual Wellpath'!E75) -> 0 | T65: =IF('Actual Wellpath'!F75="",T64,'Actual Wellpath'!F75) -> 0 | U65: =IF('Actual Wellpath'!G75="",U64,'Actual Wellpath'!G75) -> 0 | V65: =IF('Actual Wellpath'!H75="",V64,'Actual Wellpath'!H75) -> 0 | W65: =IF(#REF!="",W64,#REF!) ->  | X65: =IF(#REF!="",X64,#REF!) ->  | Y65: =IF(#REF!="",Y64,#REF!) ->  | Z65: =IF(#REF!="",Z64,#REF!) -> 
S66: =IF('Actual Wellpath'!E76="",S65,'Actual Wellpath'!E76) -> 0 | T66: =IF('Actual Wellpath'!F76="",T65,'Actual Wellpath'!F76) -> 0 | U66: =IF('Actual Wellpath'!G76="",U65,'Actual Wellpath'!G76) -> 0 | V66: =IF('Actual Wellpath'!H76="",V65,'Actual Wellpath'!H76) -> 0 | W66: =IF(#REF!="",W65,#REF!) ->  | X66: =IF(#REF!="",X65,#REF!) ->  | Y66: =IF(#REF!="",Y65,#REF!) ->  | Z66: =IF(#REF!="",Z65,#REF!) -> 
S67: =IF('Actual Wellpath'!E77="",S66,'Actual Wellpath'!E77) -> 0 | T67: =IF('Actual Wellpath'!F77="",T66,'Actual Wellpath'!F77) -> 0 | U67: =IF('Actual Wellpath'!G77="",U66,'Actual Wellpath'!G77) -> 0 | V67: =IF('Actual Wellpath'!H77="",V66,'Actual Wellpath'!H77) -> 0 | W67: =IF(#REF!="",W66,#REF!) ->  | X67: =IF(#REF!="",X66,#REF!) ->  | Y67: =IF(#REF!="",Y66,#REF!) ->  | Z67: =IF(#REF!="",Z66,#REF!) -> 
S68: =IF('Actual Wellpath'!E78="",S67,'Actual Wellpath'!E78) -> 0 | T68: =IF('Actual Wellpath'!F78="",T67,'Actual Wellpath'!F78) -> 0 | U68: =IF('Actual Wellpath'!G78="",U67,'Actual Wellpath'!G78) -> 0 | V68: =IF('Actual Wellpath'!H78="",V67,'Actual Wellpath'!H78) -> 0 | W68: =IF(#REF!="",W67,#REF!) ->  | X68: =IF(#REF!="",X67,#REF!) ->  | Y68: =IF(#REF!="",Y67,#REF!) ->  | Z68: =IF(#REF!="",Z67,#REF!) -> 
S69: =IF('Actual Wellpath'!E79="",S68,'Actual Wellpath'!E79) -> 0 | T69: =IF('Actual Wellpath'!F79="",T68,'Actual Wellpath'!F79) -> 0 | U69: =IF('Actual Wellpath'!G79="",U68,'Actual Wellpath'!G79) -> 0 | V69: =IF('Actual Wellpath'!H79="",V68,'Actual Wellpath'!H79) -> 0 | W69: =IF(#REF!="",W68,#REF!) ->  | X69: =IF(#REF!="",X68,#REF!) ->  | Y69: =IF(#REF!="",Y68,#REF!) ->  | Z69: =IF(#REF!="",Z68,#REF!) -> 
S70: =IF('Actual Wellpath'!E80="",S69,'Actual Wellpath'!E80) -> 0 | T70: =IF('Actual Wellpath'!F80="",T69,'Actual Wellpath'!F80) -> 0 | U70: =IF('Actual Wellpath'!G80="",U69,'Actual Wellpath'!G80) -> 0 | V70: =IF('Actual Wellpath'!H80="",V69,'Actual Wellpath'!H80) -> 0 | W70: =IF(#REF!="",W69,#REF!) ->  | X70: =IF(#REF!="",X69,#REF!) ->  | Y70: =IF(#REF!="",Y69,#REF!) ->  | Z70: =IF(#REF!="",Z69,#REF!) -> 
S71: =IF('Actual Wellpath'!E81="",S70,'Actual Wellpath'!E81) -> 0 | T71: =IF('Actual Wellpath'!F81="",T70,'Actual Wellpath'!F81) -> 0 | U71: =IF('Actual Wellpath'!G81="",U70,'Actual Wellpath'!G81) -> 0 | V71: =IF('Actual Wellpath'!H81="",V70,'Actual Wellpath'!H81) -> 0 | W71: =IF(#REF!="",W70,#REF!) ->  | X71: =IF(#REF!="",X70,#REF!) ->  | Y71: =IF(#REF!="",Y70,#REF!) ->  | Z71: =IF(#REF!="",Z70,#REF!) -> 
S72: =IF('Actual Wellpath'!E82="",S71,'Actual Wellpath'!E82) -> 0 | T72: =IF('Actual Wellpath'!F82="",T71,'Actual Wellpath'!F82) -> 0 | U72: =IF('Actual Wellpath'!G82="",U71,'Actual Wellpath'!G82) -> 0 | V72: =IF('Actual Wellpath'!H82="",V71,'Actual Wellpath'!H82) -> 0 | W72: =IF(#REF!="",W71,#REF!) ->  | X72: =IF(#REF!="",X71,#REF!) ->  | Y72: =IF(#REF!="",Y71,#REF!) ->  | Z72: =IF(#REF!="",Z71,#REF!) -> 
S73: =IF('Actual Wellpath'!E83="",S72,'Actual Wellpath'!E83) -> 0 | T73: =IF('Actual Wellpath'!F83="",T72,'Actual Wellpath'!F83) -> 0 | U73: =IF('Actual Wellpath'!G83="",U72,'Actual Wellpath'!G83) -> 0 | V73: =IF('Actual Wellpath'!H83="",V72,'Actual Wellpath'!H83) -> 0 | W73: =IF(#REF!="",W72,#REF!) ->  | X73: =IF(#REF!="",X72,#REF!) ->  | Y73: =IF(#REF!="",Y72,#REF!) ->  | Z73: =IF(#REF!="",Z72,#REF!) -> 
S74: =IF('Actual Wellpath'!E84="",S73,'Actual Wellpath'!E84) -> 0 | T74: =IF('Actual Wellpath'!F84="",T73,'Actual Wellpath'!F84) -> 0 | U74: =IF('Actual Wellpath'!G84="",U73,'Actual Wellpath'!G84) -> 0 | V74: =IF('Actual Wellpath'!H84="",V73,'Actual Wellpath'!H84) -> 0 | W74: =IF(#REF!="",W73,#REF!) ->  | X74: =IF(#REF!="",X73,#REF!) ->  | Y74: =IF(#REF!="",Y73,#REF!) ->  | Z74: =IF(#REF!="",Z73,#REF!) -> 
S75: =IF('Actual Wellpath'!E85="",S74,'Actual Wellpath'!E85) -> 0 | T75: =IF('Actual Wellpath'!F85="",T74,'Actual Wellpath'!F85) -> 0 | U75: =IF('Actual Wellpath'!G85="",U74,'Actual Wellpath'!G85) -> 0 | V75: =IF('Actual Wellpath'!H85="",V74,'Actual Wellpath'!H85) -> 0 | W75: =IF(#REF!="",W74,#REF!) ->  | X75: =IF(#REF!="",X74,#REF!) ->  | Y75: =IF(#REF!="",Y74,#REF!) ->  | Z75: =IF(#REF!="",Z74,#REF!) -> 
S76: =IF('Actual Wellpath'!E86="",S75,'Actual Wellpath'!E86) -> 0 | T76: =IF('Actual Wellpath'!F86="",T75,'Actual Wellpath'!F86) -> 0 | U76: =IF('Actual Wellpath'!G86="",U75,'Actual Wellpath'!G86) -> 0 | V76: =IF('Actual Wellpath'!H86="",V75,'Actual Wellpath'!H86) -> 0 | W76: =IF(#REF!="",W75,#REF!) ->  | X76: =IF(#REF!="",X75,#REF!) ->  | Y76: =IF(#REF!="",Y75,#REF!) ->  | Z76: =IF(#REF!="",Z75,#REF!) -> 
S77: =IF('Actual Wellpath'!E87="",S76,'Actual Wellpath'!E87) -> 0 | T77: =IF('Actual Wellpath'!F87="",T76,'Actual Wellpath'!F87) -> 0 | U77: =IF('Actual Wellpath'!G87="",U76,'Actual Wellpath'!G87) -> 0 | V77: =IF('Actual Wellpath'!H87="",V76,'Actual Wellpath'!H87) -> 0 | W77: =IF(#REF!="",W76,#REF!) ->  | X77: =IF(#REF!="",X76,#REF!) ->  | Y77: =IF(#REF!="",Y76,#REF!) ->  | Z77: =IF(#REF!="",Z76,#REF!) -> 
S78: =IF('Actual Wellpath'!E88="",S77,'Actual Wellpath'!E88) -> 0 | T78: =IF('Actual Wellpath'!F88="",T77,'Actual Wellpath'!F88) -> 0 | U78: =IF('Actual Wellpath'!G88="",U77,'Actual Wellpath'!G88) -> 0 | V78: =IF('Actual Wellpath'!H88="",V77,'Actual Wellpath'!H88) -> 0 | W78: =IF(#REF!="",W77,#REF!) ->  | X78: =IF(#REF!="",X77,#REF!) ->  | Y78: =IF(#REF!="",Y77,#REF!) ->  | Z78: =IF(#REF!="",Z77,#REF!) -> 
S79: =IF('Actual Wellpath'!E89="",S78,'Actual Wellpath'!E89) -> 0 | T79: =IF('Actual Wellpath'!F89="",T78,'Actual Wellpath'!F89) -> 0 | U79: =IF('Actual Wellpath'!G89="",U78,'Actual Wellpath'!G89) -> 0 | V79: =IF('Actual Wellpath'!H89="",V78,'Actual Wellpath'!H89) -> 0 | W79: =IF(#REF!="",W78,#REF!) ->  | X79: =IF(#REF!="",X78,#REF!) ->  | Y79: =IF(#REF!="",Y78,#REF!) ->  | Z79: =IF(#REF!="",Z78,#REF!) -> 
S80: =IF('Actual Wellpath'!E90="",S79,'Actual Wellpath'!E90) -> 0 | T80: =IF('Actual Wellpath'!F90="",T79,'Actual Wellpath'!F90) -> 0 | U80: =IF('Actual Wellpath'!G90="",U79,'Actual Wellpath'!G90) -> 0 | V80: =IF('Actual Wellpath'!H90="",V79,'Actual Wellpath'!H90) -> 0 | W80: =IF(#REF!="",W79,#REF!) ->  | X80: =IF(#REF!="",X79,#REF!) ->  | Y80: =IF(#REF!="",Y79,#REF!) ->  | Z80: =IF(#REF!="",Z79,#REF!) -> 
S81: =IF('Actual Wellpath'!E91="",S80,'Actual Wellpath'!E91) -> 0 | T81: =IF('Actual Wellpath'!F91="",T80,'Actual Wellpath'!F91) -> 0 | U81: =IF('Actual Wellpath'!G91="",U80,'Actual Wellpath'!G91) -> 0 | V81: =IF('Actual Wellpath'!H91="",V80,'Actual Wellpath'!H91) -> 0 | W81: =IF(#REF!="",W80,#REF!) ->  | X81: =IF(#REF!="",X80,#REF!) ->  | Y81: =IF(#REF!="",Y80,#REF!) ->  | Z81: =IF(#REF!="",Z80,#REF!) -> 
S82: =IF('Actual Wellpath'!E92="",S81,'Actual Wellpath'!E92) -> 0 | T82: =IF('Actual Wellpath'!F92="",T81,'Actual Wellpath'!F92) -> 0 | U82: =IF('Actual Wellpath'!G92="",U81,'Actual Wellpath'!G92) -> 0 | V82: =IF('Actual Wellpath'!H92="",V81,'Actual Wellpath'!H92) -> 0 | W82: =IF(#REF!="",W81,#REF!) ->  | X82: =IF(#REF!="",X81,#REF!) ->  | Y82: =IF(#REF!="",Y81,#REF!) ->  | Z82: =IF(#REF!="",Z81,#REF!) -> 
S83: =IF('Actual Wellpath'!E93="",S82,'Actual Wellpath'!E93) -> 0 | T83: =IF('Actual Wellpath'!F93="",T82,'Actual Wellpath'!F93) -> 0 | U83: =IF('Actual Wellpath'!G93="",U82,'Actual Wellpath'!G93) -> 0 | V83: =IF('Actual Wellpath'!H93="",V82,'Actual Wellpath'!H93) -> 0 | W83: =IF(#REF!="",W82,#REF!) ->  | X83: =IF(#REF!="",X82,#REF!) ->  | Y83: =IF(#REF!="",Y82,#REF!) ->  | Z83: =IF(#REF!="",Z82,#REF!) -> 
S84: =IF('Actual Wellpath'!E94="",S83,'Actual Wellpath'!E94) -> 0 | T84: =IF('Actual Wellpath'!F94="",T83,'Actual Wellpath'!F94) -> 0 | U84: =IF('Actual Wellpath'!G94="",U83,'Actual Wellpath'!G94) -> 0 | V84: =IF('Actual Wellpath'!H94="",V83,'Actual Wellpath'!H94) -> 0 | W84: =IF(#REF!="",W83,#REF!) ->  | X84: =IF(#REF!="",X83,#REF!) ->  | Y84: =IF(#REF!="",Y83,#REF!) ->  | Z84: =IF(#REF!="",Z83,#REF!) -> 
S85: =IF('Actual Wellpath'!E95="",S84,'Actual Wellpath'!E95) -> 0 | T85: =IF('Actual Wellpath'!F95="",T84,'Actual Wellpath'!F95) -> 0 | U85: =IF('Actual Wellpath'!G95="",U84,'Actual Wellpath'!G95) -> 0 | V85: =IF('Actual Wellpath'!H95="",V84,'Actual Wellpath'!H95) -> 0 | W85: =IF(#REF!="",W84,#REF!) ->  | X85: =IF(#REF!="",X84,#REF!) ->  | Y85: =IF(#REF!="",Y84,#REF!) ->  | Z85: =IF(#REF!="",Z84,#REF!) -> 
S86: =IF('Actual Wellpath'!E96="",S85,'Actual Wellpath'!E96) -> 0 | T86: =IF('Actual Wellpath'!F96="",T85,'Actual Wellpath'!F96) -> 0 | U86: =IF('Actual Wellpath'!G96="",U85,'Actual Wellpath'!G96) -> 0 | V86: =IF('Actual Wellpath'!H96="",V85,'Actual Wellpath'!H96) -> 0 | W86: =IF(#REF!="",W85,#REF!) ->  | X86: =IF(#REF!="",X85,#REF!) ->  | Y86: =IF(#REF!="",Y85,#REF!) ->  | Z86: =IF(#REF!="",Z85,#REF!) -> 
S87: =IF('Actual Wellpath'!E97="",S86,'Actual Wellpath'!E97) -> 0 | T87: =IF('Actual Wellpath'!F97="",T86,'Actual Wellpath'!F97) -> 0 | U87: =IF('Actual Wellpath'!G97="",U86,'Actual Wellpath'!G97) -> 0 | V87: =IF('Actual Wellpath'!H97="",V86,'Actual Wellpath'!H97) -> 0 | W87: =IF(#REF!="",W86,#REF!) ->  | X87: =IF(#REF!="",X86,#REF!) ->  | Y87: =IF(#REF!="",Y86,#REF!) ->  | Z87: =IF(#REF!="",Z86,#REF!) -> 
S88: =IF('Actual Wellpath'!E98="",S87,'Actual Wellpath'!E98) -> 0 | T88: =IF('Actual Wellpath'!F98="",T87,'Actual Wellpath'!F98) -> 0 | U88: =IF('Actual Wellpath'!G98="",U87,'Actual Wellpath'!G98) -> 0 | V88: =IF('Actual Wellpath'!H98="",V87,'Actual Wellpath'!H98) -> 0 | W88: =IF(#REF!="",W87,#REF!) ->  | X88: =IF(#REF!="",X87,#REF!) ->  | Y88: =IF(#REF!="",Y87,#REF!) ->  | Z88: =IF(#REF!="",Z87,#REF!) -> 
S89: =IF('Actual Wellpath'!E99="",S88,'Actual Wellpath'!E99) -> 0 | T89: =IF('Actual Wellpath'!F99="",T88,'Actual Wellpath'!F99) -> 0 | U89: =IF('Actual Wellpath'!G99="",U88,'Actual Wellpath'!G99) -> 0 | V89: =IF('Actual Wellpath'!H99="",V88,'Actual Wellpath'!H99) -> 0 | W89: =IF(#REF!="",W88,#REF!) ->  | X89: =IF(#REF!="",X88,#REF!) ->  | Y89: =IF(#REF!="",Y88,#REF!) ->  | Z89: =IF(#REF!="",Z88,#REF!) -> 
S90: =IF('Actual Wellpath'!E100="",S89,'Actual Wellpath'!E100) -> 0 | T90: =IF('Actual Wellpath'!F100="",T89,'Actual Wellpath'!F100) -> 0 | U90: =IF('Actual Wellpath'!G100="",U89,'Actual Wellpath'!G100) -> 0 | V90: =IF('Actual Wellpath'!H100="",V89,'Actual Wellpath'!H100) -> 0 | W90: =IF(#REF!="",W89,#REF!) ->  | X90: =IF(#REF!="",X89,#REF!) ->  | Y90: =IF(#REF!="",Y89,#REF!) ->  | Z90: =IF(#REF!="",Z89,#REF!) -> 
S91: =IF('Actual Wellpath'!E101="",S90,'Actual Wellpath'!E101) -> 0 | T91: =IF('Actual Wellpath'!F101="",T90,'Actual Wellpath'!F101) -> 0 | U91: =IF('Actual Wellpath'!G101="",U90,'Actual Wellpath'!G101) -> 0 | V91: =IF('Actual Wellpath'!H101="",V90,'Actual Wellpath'!H101) -> 0 | W91: =IF(#REF!="",W90,#REF!) ->  | X91: =IF(#REF!="",X90,#REF!) ->  | Y91: =IF(#REF!="",Y90,#REF!) ->  | Z91: =IF(#REF!="",Z90,#REF!) -> 
S92: =IF('Actual Wellpath'!E102="",S91,'Actual Wellpath'!E102) -> 0 | T92: =IF('Actual Wellpath'!F102="",T91,'Actual Wellpath'!F102) -> 0 | U92: =IF('Actual Wellpath'!G102="",U91,'Actual Wellpath'!G102) -> 0 | V92: =IF('Actual Wellpath'!H102="",V91,'Actual Wellpath'!H102) -> 0 | W92: =IF(#REF!="",W91,#REF!) ->  | X92: =IF(#REF!="",X91,#REF!) ->  | Y92: =IF(#REF!="",Y91,#REF!) ->  | Z92: =IF(#REF!="",Z91,#REF!) -> 
S93: =IF('Actual Wellpath'!E103="",S92,'Actual Wellpath'!E103) -> 0 | T93: =IF('Actual Wellpath'!F103="",T92,'Actual Wellpath'!F103) -> 0 | U93: =IF('Actual Wellpath'!G103="",U92,'Actual Wellpath'!G103) -> 0 | V93: =IF('Actual Wellpath'!H103="",V92,'Actual Wellpath'!H103) -> 0 | W93: =IF(#REF!="",W92,#REF!) ->  | X93: =IF(#REF!="",X92,#REF!) ->  | Y93: =IF(#REF!="",Y92,#REF!) ->  | Z93: =IF(#REF!="",Z92,#REF!) -> 
S94: =IF('Actual Wellpath'!E104="",S93,'Actual Wellpath'!E104) -> 0 | T94: =IF('Actual Wellpath'!F104="",T93,'Actual Wellpath'!F104) -> 0 | U94: =IF('Actual Wellpath'!G104="",U93,'Actual Wellpath'!G104) -> 0 | V94: =IF('Actual Wellpath'!H104="",V93,'Actual Wellpath'!H104) -> 0 | W94: =IF(#REF!="",W93,#REF!) ->  | X94: =IF(#REF!="",X93,#REF!) ->  | Y94: =IF(#REF!="",Y93,#REF!) ->  | Z94: =IF(#REF!="",Z93,#REF!) -> 
S95: =IF('Actual Wellpath'!E105="",S94,'Actual Wellpath'!E105) -> 0 | T95: =IF('Actual Wellpath'!F105="",T94,'Actual Wellpath'!F105) -> 0 | U95: =IF('Actual Wellpath'!G105="",U94,'Actual Wellpath'!G105) -> 0 | V95: =IF('Actual Wellpath'!H105="",V94,'Actual Wellpath'!H105) -> 0 | W95: =IF(#REF!="",W94,#REF!) ->  | X95: =IF(#REF!="",X94,#REF!) ->  | Y95: =IF(#REF!="",Y94,#REF!) ->  | Z95: =IF(#REF!="",Z94,#REF!) -> 
S96: =IF('Actual Wellpath'!E106="",S95,'Actual Wellpath'!E106) -> 0 | T96: =IF('Actual Wellpath'!F106="",T95,'Actual Wellpath'!F106) -> 0 | U96: =IF('Actual Wellpath'!G106="",U95,'Actual Wellpath'!G106) -> 0 | V96: =IF('Actual Wellpath'!H106="",V95,'Actual Wellpath'!H106) -> 0 | W96: =IF(#REF!="",W95,#REF!) ->  | X96: =IF(#REF!="",X95,#REF!) ->  | Y96: =IF(#REF!="",Y95,#REF!) ->  | Z96: =IF(#REF!="",Z95,#REF!) -> 
S97: =IF('Actual Wellpath'!E107="",S96,'Actual Wellpath'!E107) -> 0 | T97: =IF('Actual Wellpath'!F107="",T96,'Actual Wellpath'!F107) -> 0 | U97: =IF('Actual Wellpath'!G107="",U96,'Actual Wellpath'!G107) -> 0 | V97: =IF('Actual Wellpath'!H107="",V96,'Actual Wellpath'!H107) -> 0 | W97: =IF(#REF!="",W96,#REF!) ->  | X97: =IF(#REF!="",X96,#REF!) ->  | Y97: =IF(#REF!="",Y96,#REF!) ->  | Z97: =IF(#REF!="",Z96,#REF!) -> 
S98: =IF('Actual Wellpath'!E108="",S97,'Actual Wellpath'!E108) -> 0 | T98: =IF('Actual Wellpath'!F108="",T97,'Actual Wellpath'!F108) -> 0 | U98: =IF('Actual Wellpath'!G108="",U97,'Actual Wellpath'!G108) -> 0 | V98: =IF('Actual Wellpath'!H108="",V97,'Actual Wellpath'!H108) -> 0 | W98: =IF(#REF!="",W97,#REF!) ->  | X98: =IF(#REF!="",X97,#REF!) ->  | Y98: =IF(#REF!="",Y97,#REF!) ->  | Z98: =IF(#REF!="",Z97,#REF!) -> 
S99: =IF('Actual Wellpath'!E109="",S98,'Actual Wellpath'!E109) -> 0 | T99: =IF('Actual Wellpath'!F109="",T98,'Actual Wellpath'!F109) -> 0 | U99: =IF('Actual Wellpath'!G109="",U98,'Actual Wellpath'!G109) -> 0 | V99: =IF('Actual Wellpath'!H109="",V98,'Actual Wellpath'!H109) -> 0 | W99: =IF(#REF!="",W98,#REF!) ->  | X99: =IF(#REF!="",X98,#REF!) ->  | Y99: =IF(#REF!="",Y98,#REF!) ->  | Z99: =IF(#REF!="",Z98,#REF!) -> 
S100: =IF('Actual Wellpath'!E110="",S99,'Actual Wellpath'!E110) -> 0 | T100: =IF('Actual Wellpath'!F110="",T99,'Actual Wellpath'!F110) -> 0 | U100: =IF('Actual Wellpath'!G110="",U99,'Actual Wellpath'!G110) -> 0 | V100: =IF('Actual Wellpath'!H110="",V99,'Actual Wellpath'!H110) -> 0 | W100: =IF(#REF!="",W99,#REF!) ->  | X100: =IF(#REF!="",X99,#REF!) ->  | Y100: =IF(#REF!="",Y99,#REF!) ->  | Z100: =IF(#REF!="",Z99,#REF!) -> 
S101: =IF('Actual Wellpath'!E111="",S100,'Actual Wellpath'!E111) -> 0 | T101: =IF('Actual Wellpath'!F111="",T100,'Actual Wellpath'!F111) -> 0 | U101: =IF('Actual Wellpath'!G111="",U100,'Actual Wellpath'!G111) -> 0 | V101: =IF('Actual Wellpath'!H111="",V100,'Actual Wellpath'!H111) -> 0 | W101: =IF(#REF!="",W100,#REF!) ->  | X101: =IF(#REF!="",X100,#REF!) ->  | Y101: =IF(#REF!="",Y100,#REF!) ->  | Z101: =IF(#REF!="",Z100,#REF!) -> 
S102: =IF('Actual Wellpath'!E112="",S101,'Actual Wellpath'!E112) -> 0 | T102: =IF('Actual Wellpath'!F112="",T101,'Actual Wellpath'!F112) -> 0 | U102: =IF('Actual Wellpath'!G112="",U101,'Actual Wellpath'!G112) -> 0 | V102: =IF('Actual Wellpath'!H112="",V101,'Actual Wellpath'!H112) -> 0 | W102: =IF(#REF!="",W101,#REF!) ->  | X102: =IF(#REF!="",X101,#REF!) ->  | Y102: =IF(#REF!="",Y101,#REF!) ->  | Z102: =IF(#REF!="",Z101,#REF!) -> 
S103: =IF('Actual Wellpath'!E113="",S102,'Actual Wellpath'!E113) -> 0 | T103: =IF('Actual Wellpath'!F113="",T102,'Actual Wellpath'!F113) -> 0 | U103: =IF('Actual Wellpath'!G113="",U102,'Actual Wellpath'!G113) -> 0 | V103: =IF('Actual Wellpath'!H113="",V102,'Actual Wellpath'!H113) -> 0 | W103: =IF(#REF!="",W102,#REF!) ->  | X103: =IF(#REF!="",X102,#REF!) ->  | Y103: =IF(#REF!="",Y102,#REF!) ->  | Z103: =IF(#REF!="",Z102,#REF!) -> 
S104: =IF('Actual Wellpath'!E114="",S103,'Actual Wellpath'!E114) -> 0 | T104: =IF('Actual Wellpath'!F114="",T103,'Actual Wellpath'!F114) -> 0 | U104: =IF('Actual Wellpath'!G114="",U103,'Actual Wellpath'!G114) -> 0 | V104: =IF('Actual Wellpath'!H114="",V103,'Actual Wellpath'!H114) -> 0 | W104: =IF(#REF!="",W103,#REF!) ->  | X104: =IF(#REF!="",X103,#REF!) ->  | Y104: =IF(#REF!="",Y103,#REF!) ->  | Z104: =IF(#REF!="",Z103,#REF!) -> 
S105: =IF('Actual Wellpath'!E115="",S104,'Actual Wellpath'!E115) -> 0 | T105: =IF('Actual Wellpath'!F115="",T104,'Actual Wellpath'!F115) -> 0 | U105: =IF('Actual Wellpath'!G115="",U104,'Actual Wellpath'!G115) -> 0 | V105: =IF('Actual Wellpath'!H115="",V104,'Actual Wellpath'!H115) -> 0 | W105: =IF(#REF!="",W104,#REF!) ->  | X105: =IF(#REF!="",X104,#REF!) ->  | Y105: =IF(#REF!="",Y104,#REF!) ->  | Z105: =IF(#REF!="",Z104,#REF!) -> 
S106: =IF('Actual Wellpath'!E116="",S105,'Actual Wellpath'!E116) -> 0 | T106: =IF('Actual Wellpath'!F116="",T105,'Actual Wellpath'!F116) -> 0 | U106: =IF('Actual Wellpath'!G116="",U105,'Actual Wellpath'!G116) -> 0 | V106: =IF('Actual Wellpath'!H116="",V105,'Actual Wellpath'!H116) -> 0 | W106: =IF(#REF!="",W105,#REF!) ->  | X106: =IF(#REF!="",X105,#REF!) ->  | Y106: =IF(#REF!="",Y105,#REF!) ->  | Z106: =IF(#REF!="",Z105,#REF!) -> 
S107: =IF('Actual Wellpath'!E117="",S106,'Actual Wellpath'!E117) -> 0 | T107: =IF('Actual Wellpath'!F117="",T106,'Actual Wellpath'!F117) -> 0 | U107: =IF('Actual Wellpath'!G117="",U106,'Actual Wellpath'!G117) -> 0 | V107: =IF('Actual Wellpath'!H117="",V106,'Actual Wellpath'!H117) -> 0 | W107: =IF(#REF!="",W106,#REF!) ->  | X107: =IF(#REF!="",X106,#REF!) ->  | Y107: =IF(#REF!="",Y106,#REF!) ->  | Z107: =IF(#REF!="",Z106,#REF!) -> 
S108: =IF('Actual Wellpath'!E118="",S107,'Actual Wellpath'!E118) -> 0 | T108: =IF('Actual Wellpath'!F118="",T107,'Actual Wellpath'!F118) -> 0 | U108: =IF('Actual Wellpath'!G118="",U107,'Actual Wellpath'!G118) -> 0 | V108: =IF('Actual Wellpath'!H118="",V107,'Actual Wellpath'!H118) -> 0 | W108: =IF(#REF!="",W107,#REF!) ->  | X108: =IF(#REF!="",X107,#REF!) ->  | Y108: =IF(#REF!="",Y107,#REF!) ->  | Z108: =IF(#REF!="",Z107,#REF!) -> 
S109: =IF('Actual Wellpath'!E119="",S108,'Actual Wellpath'!E119) -> 0 | T109: =IF('Actual Wellpath'!F119="",T108,'Actual Wellpath'!F119) -> 0 | U109: =IF('Actual Wellpath'!G119="",U108,'Actual Wellpath'!G119) -> 0 | V109: =IF('Actual Wellpath'!H119="",V108,'Actual Wellpath'!H119) -> 0 | W109: =IF(#REF!="",W108,#REF!) ->  | X109: =IF(#REF!="",X108,#REF!) ->  | Y109: =IF(#REF!="",Y108,#REF!) ->  | Z109: =IF(#REF!="",Z108,#REF!) -> 
S110: =IF('Actual Wellpath'!E120="",S109,'Actual Wellpath'!E120) -> 0 | T110: =IF('Actual Wellpath'!F120="",T109,'Actual Wellpath'!F120) -> 0 | U110: =IF('Actual Wellpath'!G120="",U109,'Actual Wellpath'!G120) -> 0 | V110: =IF('Actual Wellpath'!H120="",V109,'Actual Wellpath'!H120) -> 0 | W110: =IF(#REF!="",W109,#REF!) ->  | X110: =IF(#REF!="",X109,#REF!) ->  | Y110: =IF(#REF!="",Y109,#REF!) ->  | Z110: =IF(#REF!="",Z109,#REF!) -> 
S111: =IF('Actual Wellpath'!E121="",S110,'Actual Wellpath'!E121) -> 0 | T111: =IF('Actual Wellpath'!F121="",T110,'Actual Wellpath'!F121) -> 0 | U111: =IF('Actual Wellpath'!G121="",U110,'Actual Wellpath'!G121) -> 0 | V111: =IF('Actual Wellpath'!H121="",V110,'Actual Wellpath'!H121) -> 0 | W111: =IF(#REF!="",W110,#REF!) ->  | X111: =IF(#REF!="",X110,#REF!) ->  | Y111: =IF(#REF!="",Y110,#REF!) ->  | Z111: =IF(#REF!="",Z110,#REF!) -> 
S112: =IF('Actual Wellpath'!E122="",S111,'Actual Wellpath'!E122) -> 0 | T112: =IF('Actual Wellpath'!F122="",T111,'Actual Wellpath'!F122) -> 0 | U112: =IF('Actual Wellpath'!G122="",U111,'Actual Wellpath'!G122) -> 0 | V112: =IF('Actual Wellpath'!H122="",V111,'Actual Wellpath'!H122) -> 0 | W112: =IF(#REF!="",W111,#REF!) ->  | X112: =IF(#REF!="",X111,#REF!) ->  | Y112: =IF(#REF!="",Y111,#REF!) ->  | Z112: =IF(#REF!="",Z111,#REF!) -> 
S113: =IF('Actual Wellpath'!E123="",S112,'Actual Wellpath'!E123) -> 0 | T113: =IF('Actual Wellpath'!F123="",T112,'Actual Wellpath'!F123) -> 0 | U113: =IF('Actual Wellpath'!G123="",U112,'Actual Wellpath'!G123) -> 0 | V113: =IF('Actual Wellpath'!H123="",V112,'Actual Wellpath'!H123) -> 0 | W113: =IF(#REF!="",W112,#REF!) ->  | X113: =IF(#REF!="",X112,#REF!) ->  | Y113: =IF(#REF!="",Y112,#REF!) ->  | Z113: =IF(#REF!="",Z112,#REF!) -> 
S114: =IF('Actual Wellpath'!E124="",S113,'Actual Wellpath'!E124) -> 0 | T114: =IF('Actual Wellpath'!F124="",T113,'Actual Wellpath'!F124) -> 0 | U114: =IF('Actual Wellpath'!G124="",U113,'Actual Wellpath'!G124) -> 0 | V114: =IF('Actual Wellpath'!H124="",V113,'Actual Wellpath'!H124) -> 0 | W114: =IF(#REF!="",W113,#REF!) ->  | X114: =IF(#REF!="",X113,#REF!) ->  | Y114: =IF(#REF!="",Y113,#REF!) ->  | Z114: =IF(#REF!="",Z113,#REF!) -> 
S115: =IF('Actual Wellpath'!E125="",S114,'Actual Wellpath'!E125) -> 0 | T115: =IF('Actual Wellpath'!F125="",T114,'Actual Wellpath'!F125) -> 0 | U115: =IF('Actual Wellpath'!G125="",U114,'Actual Wellpath'!G125) -> 0 | V115: =IF('Actual Wellpath'!H125="",V114,'Actual Wellpath'!H125) -> 0 | W115: =IF(#REF!="",W114,#REF!) ->  | X115: =IF(#REF!="",X114,#REF!) ->  | Y115: =IF(#REF!="",Y114,#REF!) ->  | Z115: =IF(#REF!="",Z114,#REF!) -> 
S116: =IF('Actual Wellpath'!E126="",S115,'Actual Wellpath'!E126) -> 0 | T116: =IF('Actual Wellpath'!F126="",T115,'Actual Wellpath'!F126) -> 0 | U116: =IF('Actual Wellpath'!G126="",U115,'Actual Wellpath'!G126) -> 0 | V116: =IF('Actual Wellpath'!H126="",V115,'Actual Wellpath'!H126) -> 0 | W116: =IF(#REF!="",W115,#REF!) ->  | X116: =IF(#REF!="",X115,#REF!) ->  | Y116: =IF(#REF!="",Y115,#REF!) ->  | Z116: =IF(#REF!="",Z115,#REF!) -> 
S117: =IF('Actual Wellpath'!E127="",S116,'Actual Wellpath'!E127) -> 0 | T117: =IF('Actual Wellpath'!F127="",T116,'Actual Wellpath'!F127) -> 0 | U117: =IF('Actual Wellpath'!G127="",U116,'Actual Wellpath'!G127) -> 0 | V117: =IF('Actual Wellpath'!H127="",V116,'Actual Wellpath'!H127) -> 0 | W117: =IF(#REF!="",W116,#REF!) ->  | X117: =IF(#REF!="",X116,#REF!) ->  | Y117: =IF(#REF!="",Y116,#REF!) ->  | Z117: =IF(#REF!="",Z116,#REF!) -> 
S118: =IF('Actual Wellpath'!E128="",S117,'Actual Wellpath'!E128) -> 0 | T118: =IF('Actual Wellpath'!F128="",T117,'Actual Wellpath'!F128) -> 0 | U118: =IF('Actual Wellpath'!G128="",U117,'Actual Wellpath'!G128) -> 0 | V118: =IF('Actual Wellpath'!H128="",V117,'Actual Wellpath'!H128) -> 0 | W118: =IF(#REF!="",W117,#REF!) ->  | X118: =IF(#REF!="",X117,#REF!) ->  | Y118: =IF(#REF!="",Y117,#REF!) ->  | Z118: =IF(#REF!="",Z117,#REF!) -> 
S119: =IF('Actual Wellpath'!E129="",S118,'Actual Wellpath'!E129) -> 0 | T119: =IF('Actual Wellpath'!F129="",T118,'Actual Wellpath'!F129) -> 0 | U119: =IF('Actual Wellpath'!G129="",U118,'Actual Wellpath'!G129) -> 0 | V119: =IF('Actual Wellpath'!H129="",V118,'Actual Wellpath'!H129) -> 0 | W119: =IF(#REF!="",W118,#REF!) ->  | X119: =IF(#REF!="",X118,#REF!) ->  | Y119: =IF(#REF!="",Y118,#REF!) ->  | Z119: =IF(#REF!="",Z118,#REF!) -> 
S120: =IF('Actual Wellpath'!E130="",S119,'Actual Wellpath'!E130) -> 0 | T120: =IF('Actual Wellpath'!F130="",T119,'Actual Wellpath'!F130) -> 0 | U120: =IF('Actual Wellpath'!G130="",U119,'Actual Wellpath'!G130) -> 0 | V120: =IF('Actual Wellpath'!H130="",V119,'Actual Wellpath'!H130) -> 0 | W120: =IF(#REF!="",W119,#REF!) ->  | X120: =IF(#REF!="",X119,#REF!) ->  | Y120: =IF(#REF!="",Y119,#REF!) ->  | Z120: =IF(#REF!="",Z119,#REF!) -> 
S121: =IF('Actual Wellpath'!E131="",S120,'Actual Wellpath'!E131) -> 0 | T121: =IF('Actual Wellpath'!F131="",T120,'Actual Wellpath'!F131) -> 0 | U121: =IF('Actual Wellpath'!G131="",U120,'Actual Wellpath'!G131) -> 0 | V121: =IF('Actual Wellpath'!H131="",V120,'Actual Wellpath'!H131) -> 0 | W121: =IF(#REF!="",W120,#REF!) ->  | X121: =IF(#REF!="",X120,#REF!) ->  | Y121: =IF(#REF!="",Y120,#REF!) ->  | Z121: =IF(#REF!="",Z120,#REF!) -> 
S122: =IF('Actual Wellpath'!E132="",S121,'Actual Wellpath'!E132) -> 0 | T122: =IF('Actual Wellpath'!F132="",T121,'Actual Wellpath'!F132) -> 0 | U122: =IF('Actual Wellpath'!G132="",U121,'Actual Wellpath'!G132) -> 0 | V122: =IF('Actual Wellpath'!H132="",V121,'Actual Wellpath'!H132) -> 0 | W122: =IF(#REF!="",W121,#REF!) ->  | X122: =IF(#REF!="",X121,#REF!) ->  | Y122: =IF(#REF!="",Y121,#REF!) ->  | Z122: =IF(#REF!="",Z121,#REF!) -> 
S123: =IF('Actual Wellpath'!E133="",S122,'Actual Wellpath'!E133) -> 0 | T123: =IF('Actual Wellpath'!F133="",T122,'Actual Wellpath'!F133) -> 0 | U123: =IF('Actual Wellpath'!G133="",U122,'Actual Wellpath'!G133) -> 0 | V123: =IF('Actual Wellpath'!H133="",V122,'Actual Wellpath'!H133) -> 0 | W123: =IF(#REF!="",W122,#REF!) ->  | X123: =IF(#REF!="",X122,#REF!) ->  | Y123: =IF(#REF!="",Y122,#REF!) ->  | Z123: =IF(#REF!="",Z122,#REF!) -> 
S124: =IF('Actual Wellpath'!E134="",S123,'Actual Wellpath'!E134) -> 0 | T124: =IF('Actual Wellpath'!F134="",T123,'Actual Wellpath'!F134) -> 0 | U124: =IF('Actual Wellpath'!G134="",U123,'Actual Wellpath'!G134) -> 0 | V124: =IF('Actual Wellpath'!H134="",V123,'Actual Wellpath'!H134) -> 0 | W124: =IF(#REF!="",W123,#REF!) ->  | X124: =IF(#REF!="",X123,#REF!) ->  | Y124: =IF(#REF!="",Y123,#REF!) ->  | Z124: =IF(#REF!="",Z123,#REF!) -> 
S125: =IF('Actual Wellpath'!E135="",S124,'Actual Wellpath'!E135) -> 0 | T125: =IF('Actual Wellpath'!F135="",T124,'Actual Wellpath'!F135) -> 0 | U125: =IF('Actual Wellpath'!G135="",U124,'Actual Wellpath'!G135) -> 0 | V125: =IF('Actual Wellpath'!H135="",V124,'Actual Wellpath'!H135) -> 0 | W125: =IF(#REF!="",W124,#REF!) ->  | X125: =IF(#REF!="",X124,#REF!) ->  | Y125: =IF(#REF!="",Y124,#REF!) ->  | Z125: =IF(#REF!="",Z124,#REF!) -> 
S126: =IF('Actual Wellpath'!E136="",S125,'Actual Wellpath'!E136) -> 0 | T126: =IF('Actual Wellpath'!F136="",T125,'Actual Wellpath'!F136) -> 0 | U126: =IF('Actual Wellpath'!G136="",U125,'Actual Wellpath'!G136) -> 0 | V126: =IF('Actual Wellpath'!H136="",V125,'Actual Wellpath'!H136) -> 0 | W126: =IF(#REF!="",W125,#REF!) ->  | X126: =IF(#REF!="",X125,#REF!) ->  | Y126: =IF(#REF!="",Y125,#REF!) ->  | Z126: =IF(#REF!="",Z125,#REF!) -> 
S127: =IF('Actual Wellpath'!E137="",S126,'Actual Wellpath'!E137) -> 0 | T127: =IF('Actual Wellpath'!F137="",T126,'Actual Wellpath'!F137) -> 0 | U127: =IF('Actual Wellpath'!G137="",U126,'Actual Wellpath'!G137) -> 0 | V127: =IF('Actual Wellpath'!H137="",V126,'Actual Wellpath'!H137) -> 0 | W127: =IF(#REF!="",W126,#REF!) ->  | X127: =IF(#REF!="",X126,#REF!) ->  | Y127: =IF(#REF!="",Y126,#REF!) ->  | Z127: =IF(#REF!="",Z126,#REF!) -> 
S128: =IF('Actual Wellpath'!E138="",S127,'Actual Wellpath'!E138) -> 0 | T128: =IF('Actual Wellpath'!F138="",T127,'Actual Wellpath'!F138) -> 0 | U128: =IF('Actual Wellpath'!G138="",U127,'Actual Wellpath'!G138) -> 0 | V128: =IF('Actual Wellpath'!H138="",V127,'Actual Wellpath'!H138) -> 0 | W128: =IF(#REF!="",W127,#REF!) ->  | X128: =IF(#REF!="",X127,#REF!) ->  | Y128: =IF(#REF!="",Y127,#REF!) ->  | Z128: =IF(#REF!="",Z127,#REF!) -> 
S129: =IF('Actual Wellpath'!E139="",S128,'Actual Wellpath'!E139) -> 0 | T129: =IF('Actual Wellpath'!F139="",T128,'Actual Wellpath'!F139) -> 0 | U129: =IF('Actual Wellpath'!G139="",U128,'Actual Wellpath'!G139) -> 0 | V129: =IF('Actual Wellpath'!H139="",V128,'Actual Wellpath'!H139) -> 0 | W129: =IF(#REF!="",W128,#REF!) ->  | X129: =IF(#REF!="",X128,#REF!) ->  | Y129: =IF(#REF!="",Y128,#REF!) ->  | Z129: =IF(#REF!="",Z128,#REF!) -> 
S130: =IF('Actual Wellpath'!E140="",S129,'Actual Wellpath'!E140) -> 0 | T130: =IF('Actual Wellpath'!F140="",T129,'Actual Wellpath'!F140) -> 0 | U130: =IF('Actual Wellpath'!G140="",U129,'Actual Wellpath'!G140) -> 0 | V130: =IF('Actual Wellpath'!H140="",V129,'Actual Wellpath'!H140) -> 0 | W130: =IF(#REF!="",W129,#REF!) ->  | X130: =IF(#REF!="",X129,#REF!) ->  | Y130: =IF(#REF!="",Y129,#REF!) ->  | Z130: =IF(#REF!="",Z129,#REF!) -> 
S131: =IF('Actual Wellpath'!E141="",S130,'Actual Wellpath'!E141) -> 0 | T131: =IF('Actual Wellpath'!F141="",T130,'Actual Wellpath'!F141) -> 0 | U131: =IF('Actual Wellpath'!G141="",U130,'Actual Wellpath'!G141) -> 0 | V131: =IF('Actual Wellpath'!H141="",V130,'Actual Wellpath'!H141) -> 0 | W131: =IF(#REF!="",W130,#REF!) ->  | X131: =IF(#REF!="",X130,#REF!) ->  | Y131: =IF(#REF!="",Y130,#REF!) ->  | Z131: =IF(#REF!="",Z130,#REF!) -> 
S132: =IF('Actual Wellpath'!E142="",S131,'Actual Wellpath'!E142) -> 0 | T132: =IF('Actual Wellpath'!F142="",T131,'Actual Wellpath'!F142) -> 0 | U132: =IF('Actual Wellpath'!G142="",U131,'Actual Wellpath'!G142) -> 0 | V132: =IF('Actual Wellpath'!H142="",V131,'Actual Wellpath'!H142) -> 0 | W132: =IF(#REF!="",W131,#REF!) ->  | X132: =IF(#REF!="",X131,#REF!) ->  | Y132: =IF(#REF!="",Y131,#REF!) ->  | Z132: =IF(#REF!="",Z131,#REF!) -> 
S133: =IF('Actual Wellpath'!E143="",S132,'Actual Wellpath'!E143) -> 0 | T133: =IF('Actual Wellpath'!F143="",T132,'Actual Wellpath'!F143) -> 0 | U133: =IF('Actual Wellpath'!G143="",U132,'Actual Wellpath'!G143) -> 0 | V133: =IF('Actual Wellpath'!H143="",V132,'Actual Wellpath'!H143) -> 0 | W133: =IF(#REF!="",W132,#REF!) ->  | X133: =IF(#REF!="",X132,#REF!) ->  | Y133: =IF(#REF!="",Y132,#REF!) ->  | Z133: =IF(#REF!="",Z132,#REF!) -> 
S134: =IF('Actual Wellpath'!E144="",S133,'Actual Wellpath'!E144) -> 0 | T134: =IF('Actual Wellpath'!F144="",T133,'Actual Wellpath'!F144) -> 0 | U134: =IF('Actual Wellpath'!G144="",U133,'Actual Wellpath'!G144) -> 0 | V134: =IF('Actual Wellpath'!H144="",V133,'Actual Wellpath'!H144) -> 0 | W134: =IF(#REF!="",W133,#REF!) ->  | X134: =IF(#REF!="",X133,#REF!) ->  | Y134: =IF(#REF!="",Y133,#REF!) ->  | Z134: =IF(#REF!="",Z133,#REF!) -> 
S135: =IF('Actual Wellpath'!E145="",S134,'Actual Wellpath'!E145) -> 0 | T135: =IF('Actual Wellpath'!F145="",T134,'Actual Wellpath'!F145) -> 0 | U135: =IF('Actual Wellpath'!G145="",U134,'Actual Wellpath'!G145) -> 0 | V135: =IF('Actual Wellpath'!H145="",V134,'Actual Wellpath'!H145) -> 0 | W135: =IF(#REF!="",W134,#REF!) ->  | X135: =IF(#REF!="",X134,#REF!) ->  | Y135: =IF(#REF!="",Y134,#REF!) ->  | Z135: =IF(#REF!="",Z134,#REF!) -> 
S136: =IF('Actual Wellpath'!E146="",S135,'Actual Wellpath'!E146) -> 0 | T136: =IF('Actual Wellpath'!F146="",T135,'Actual Wellpath'!F146) -> 0 | U136: =IF('Actual Wellpath'!G146="",U135,'Actual Wellpath'!G146) -> 0 | V136: =IF('Actual Wellpath'!H146="",V135,'Actual Wellpath'!H146) -> 0 | W136: =IF(#REF!="",W135,#REF!) ->  | X136: =IF(#REF!="",X135,#REF!) ->  | Y136: =IF(#REF!="",Y135,#REF!) ->  | Z136: =IF(#REF!="",Z135,#REF!) -> 
S137: =IF('Actual Wellpath'!E147="",S136,'Actual Wellpath'!E147) -> 0 | T137: =IF('Actual Wellpath'!F147="",T136,'Actual Wellpath'!F147) -> 0 | U137: =IF('Actual Wellpath'!G147="",U136,'Actual Wellpath'!G147) -> 0 | V137: =IF('Actual Wellpath'!H147="",V136,'Actual Wellpath'!H147) -> 0 | W137: =IF(#REF!="",W136,#REF!) ->  | X137: =IF(#REF!="",X136,#REF!) ->  | Y137: =IF(#REF!="",Y136,#REF!) ->  | Z137: =IF(#REF!="",Z136,#REF!) -> 
S138: =IF('Actual Wellpath'!E148="",S137,'Actual Wellpath'!E148) -> 0 | T138: =IF('Actual Wellpath'!F148="",T137,'Actual Wellpath'!F148) -> 0 | U138: =IF('Actual Wellpath'!G148="",U137,'Actual Wellpath'!G148) -> 0 | V138: =IF('Actual Wellpath'!H148="",V137,'Actual Wellpath'!H148) -> 0 | W138: =IF(#REF!="",W137,#REF!) ->  | X138: =IF(#REF!="",X137,#REF!) ->  | Y138: =IF(#REF!="",Y137,#REF!) ->  | Z138: =IF(#REF!="",Z137,#REF!) -> 
S139: =IF('Actual Wellpath'!E149="",S138,'Actual Wellpath'!E149) -> 0 | T139: =IF('Actual Wellpath'!F149="",T138,'Actual Wellpath'!F149) -> 0 | U139: =IF('Actual Wellpath'!G149="",U138,'Actual Wellpath'!G149) -> 0 | V139: =IF('Actual Wellpath'!H149="",V138,'Actual Wellpath'!H149) -> 0 | W139: =IF(#REF!="",W138,#REF!) ->  | X139: =IF(#REF!="",X138,#REF!) ->  | Y139: =IF(#REF!="",Y138,#REF!) ->  | Z139: =IF(#REF!="",Z138,#REF!) -> 
S140: =IF('Actual Wellpath'!E150="",S139,'Actual Wellpath'!E150) -> 0 | T140: =IF('Actual Wellpath'!F150="",T139,'Actual Wellpath'!F150) -> 0 | U140: =IF('Actual Wellpath'!G150="",U139,'Actual Wellpath'!G150) -> 0 | V140: =IF('Actual Wellpath'!H150="",V139,'Actual Wellpath'!H150) -> 0 | W140: =IF(#REF!="",W139,#REF!) ->  | X140: =IF(#REF!="",X139,#REF!) ->  | Y140: =IF(#REF!="",Y139,#REF!) ->  | Z140: =IF(#REF!="",Z139,#REF!) -> 
S141: =IF('Actual Wellpath'!E151="",S140,'Actual Wellpath'!E151) -> 0 | T141: =IF('Actual Wellpath'!F151="",T140,'Actual Wellpath'!F151) -> 0 | U141: =IF('Actual Wellpath'!G151="",U140,'Actual Wellpath'!G151) -> 0 | V141: =IF('Actual Wellpath'!H151="",V140,'Actual Wellpath'!H151) -> 0 | W141: =IF(#REF!="",W140,#REF!) ->  | X141: =IF(#REF!="",X140,#REF!) ->  | Y141: =IF(#REF!="",Y140,#REF!) ->  | Z141: =IF(#REF!="",Z140,#REF!) -> 
S142: =IF('Actual Wellpath'!E152="",S141,'Actual Wellpath'!E152) -> 0 | T142: =IF('Actual Wellpath'!F152="",T141,'Actual Wellpath'!F152) -> 0 | U142: =IF('Actual Wellpath'!G152="",U141,'Actual Wellpath'!G152) -> 0 | V142: =IF('Actual Wellpath'!H152="",V141,'Actual Wellpath'!H152) -> 0 | W142: =IF(#REF!="",W141,#REF!) ->  | X142: =IF(#REF!="",X141,#REF!) ->  | Y142: =IF(#REF!="",Y141,#REF!) ->  | Z142: =IF(#REF!="",Z141,#REF!) -> 
S143: =IF('Actual Wellpath'!E153="",S142,'Actual Wellpath'!E153) -> 0 | T143: =IF('Actual Wellpath'!F153="",T142,'Actual Wellpath'!F153) -> 0 | U143: =IF('Actual Wellpath'!G153="",U142,'Actual Wellpath'!G153) -> 0 | V143: =IF('Actual Wellpath'!H153="",V142,'Actual Wellpath'!H153) -> 0 | W143: =IF(#REF!="",W142,#REF!) ->  | X143: =IF(#REF!="",X142,#REF!) ->  | Y143: =IF(#REF!="",Y142,#REF!) ->  | Z143: =IF(#REF!="",Z142,#REF!) -> 
S144: =IF('Actual Wellpath'!E154="",S143,'Actual Wellpath'!E154) -> 0 | T144: =IF('Actual Wellpath'!F154="",T143,'Actual Wellpath'!F154) -> 0 | U144: =IF('Actual Wellpath'!G154="",U143,'Actual Wellpath'!G154) -> 0 | V144: =IF('Actual Wellpath'!H154="",V143,'Actual Wellpath'!H154) -> 0 | W144: =IF(#REF!="",W143,#REF!) ->  | X144: =IF(#REF!="",X143,#REF!) ->  | Y144: =IF(#REF!="",Y143,#REF!) ->  | Z144: =IF(#REF!="",Z143,#REF!) -> 
S145: =IF('Actual Wellpath'!E155="",S144,'Actual Wellpath'!E155) -> 0 | T145: =IF('Actual Wellpath'!F155="",T144,'Actual Wellpath'!F155) -> 0 | U145: =IF('Actual Wellpath'!G155="",U144,'Actual Wellpath'!G155) -> 0 | V145: =IF('Actual Wellpath'!H155="",V144,'Actual Wellpath'!H155) -> 0 | W145: =IF(#REF!="",W144,#REF!) ->  | X145: =IF(#REF!="",X144,#REF!) ->  | Y145: =IF(#REF!="",Y144,#REF!) ->  | Z145: =IF(#REF!="",Z144,#REF!) -> 
S146: =IF('Actual Wellpath'!E156="",S145,'Actual Wellpath'!E156) -> 0 | T146: =IF('Actual Wellpath'!F156="",T145,'Actual Wellpath'!F156) -> 0 | U146: =IF('Actual Wellpath'!G156="",U145,'Actual Wellpath'!G156) -> 0 | V146: =IF('Actual Wellpath'!H156="",V145,'Actual Wellpath'!H156) -> 0 | W146: =IF(#REF!="",W145,#REF!) ->  | X146: =IF(#REF!="",X145,#REF!) ->  | Y146: =IF(#REF!="",Y145,#REF!) ->  | Z146: =IF(#REF!="",Z145,#REF!) -> 
S147: =IF('Actual Wellpath'!E157="",S146,'Actual Wellpath'!E157) -> 0 | T147: =IF('Actual Wellpath'!F157="",T146,'Actual Wellpath'!F157) -> 0 | U147: =IF('Actual Wellpath'!G157="",U146,'Actual Wellpath'!G157) -> 0 | V147: =IF('Actual Wellpath'!H157="",V146,'Actual Wellpath'!H157) -> 0 | W147: =IF(#REF!="",W146,#REF!) ->  | X147: =IF(#REF!="",X146,#REF!) ->  | Y147: =IF(#REF!="",Y146,#REF!) ->  | Z147: =IF(#REF!="",Z146,#REF!) -> 
S148: =IF('Actual Wellpath'!E158="",S147,'Actual Wellpath'!E158) -> 0 | T148: =IF('Actual Wellpath'!F158="",T147,'Actual Wellpath'!F158) -> 0 | U148: =IF('Actual Wellpath'!G158="",U147,'Actual Wellpath'!G158) -> 0 | V148: =IF('Actual Wellpath'!H158="",V147,'Actual Wellpath'!H158) -> 0 | W148: =IF(#REF!="",W147,#REF!) ->  | X148: =IF(#REF!="",X147,#REF!) ->  | Y148: =IF(#REF!="",Y147,#REF!) ->  | Z148: =IF(#REF!="",Z147,#REF!) -> 
S149: =IF('Actual Wellpath'!E159="",S148,'Actual Wellpath'!E159) -> 0 | T149: =IF('Actual Wellpath'!F159="",T148,'Actual Wellpath'!F159) -> 0 | U149: =IF('Actual Wellpath'!G159="",U148,'Actual Wellpath'!G159) -> 0 | V149: =IF('Actual Wellpath'!H159="",V148,'Actual Wellpath'!H159) -> 0 | W149: =IF(#REF!="",W148,#REF!) ->  | X149: =IF(#REF!="",X148,#REF!) ->  | Y149: =IF(#REF!="",Y148,#REF!) ->  | Z149: =IF(#REF!="",Z148,#REF!) -> 
S150: =IF('Actual Wellpath'!E160="",S149,'Actual Wellpath'!E160) -> 0 | T150: =IF('Actual Wellpath'!F160="",T149,'Actual Wellpath'!F160) -> 0 | U150: =IF('Actual Wellpath'!G160="",U149,'Actual Wellpath'!G160) -> 0 | V150: =IF('Actual Wellpath'!H160="",V149,'Actual Wellpath'!H160) -> 0 | W150: =IF(#REF!="",W149,#REF!) ->  | X150: =IF(#REF!="",X149,#REF!) ->  | Y150: =IF(#REF!="",Y149,#REF!) ->  | Z150: =IF(#REF!="",Z149,#REF!) -> 
S151: =IF('Actual Wellpath'!E161="",S150,'Actual Wellpath'!E161) -> 0 | T151: =IF('Actual Wellpath'!F161="",T150,'Actual Wellpath'!F161) -> 0 | U151: =IF('Actual Wellpath'!G161="",U150,'Actual Wellpath'!G161) -> 0 | V151: =IF('Actual Wellpath'!H161="",V150,'Actual Wellpath'!H161) -> 0 | W151: =IF(#REF!="",W150,#REF!) ->  | X151: =IF(#REF!="",X150,#REF!) ->  | Y151: =IF(#REF!="",Y150,#REF!) ->  | Z151: =IF(#REF!="",Z150,#REF!) -> 
S152: =IF('Actual Wellpath'!E162="",S151,'Actual Wellpath'!E162) -> 0 | T152: =IF('Actual Wellpath'!F162="",T151,'Actual Wellpath'!F162) -> 0 | U152: =IF('Actual Wellpath'!G162="",U151,'Actual Wellpath'!G162) -> 0 | V152: =IF('Actual Wellpath'!H162="",V151,'Actual Wellpath'!H162) -> 0 | W152: =IF(#REF!="",W151,#REF!) ->  | X152: =IF(#REF!="",X151,#REF!) ->  | Y152: =IF(#REF!="",Y151,#REF!) ->  | Z152: =IF(#REF!="",Z151,#REF!) -> 
S153: =IF('Actual Wellpath'!E163="",S152,'Actual Wellpath'!E163) -> 0 | T153: =IF('Actual Wellpath'!F163="",T152,'Actual Wellpath'!F163) -> 0 | U153: =IF('Actual Wellpath'!G163="",U152,'Actual Wellpath'!G163) -> 0 | V153: =IF('Actual Wellpath'!H163="",V152,'Actual Wellpath'!H163) -> 0 | W153: =IF(#REF!="",W152,#REF!) ->  | X153: =IF(#REF!="",X152,#REF!) ->  | Y153: =IF(#REF!="",Y152,#REF!) ->  | Z153: =IF(#REF!="",Z152,#REF!) -> 
S154: =IF('Actual Wellpath'!E164="",S153,'Actual Wellpath'!E164) -> 0 | T154: =IF('Actual Wellpath'!F164="",T153,'Actual Wellpath'!F164) -> 0 | U154: =IF('Actual Wellpath'!G164="",U153,'Actual Wellpath'!G164) -> 0 | V154: =IF('Actual Wellpath'!H164="",V153,'Actual Wellpath'!H164) -> 0 | W154: =IF(#REF!="",W153,#REF!) ->  | X154: =IF(#REF!="",X153,#REF!) ->  | Y154: =IF(#REF!="",Y153,#REF!) ->  | Z154: =IF(#REF!="",Z153,#REF!) -> 
S155: =IF('Actual Wellpath'!E165="",S154,'Actual Wellpath'!E165) -> 0 | T155: =IF('Actual Wellpath'!F165="",T154,'Actual Wellpath'!F165) -> 0 | U155: =IF('Actual Wellpath'!G165="",U154,'Actual Wellpath'!G165) -> 0 | V155: =IF('Actual Wellpath'!H165="",V154,'Actual Wellpath'!H165) -> 0 | W155: =IF(#REF!="",W154,#REF!) ->  | X155: =IF(#REF!="",X154,#REF!) ->  | Y155: =IF(#REF!="",Y154,#REF!) ->  | Z155: =IF(#REF!="",Z154,#REF!) -> 
S156: =IF('Actual Wellpath'!E166="",S155,'Actual Wellpath'!E166) -> 0 | T156: =IF('Actual Wellpath'!F166="",T155,'Actual Wellpath'!F166) -> 0 | U156: =IF('Actual Wellpath'!G166="",U155,'Actual Wellpath'!G166) -> 0 | V156: =IF('Actual Wellpath'!H166="",V155,'Actual Wellpath'!H166) -> 0 | W156: =IF(#REF!="",W155,#REF!) ->  | X156: =IF(#REF!="",X155,#REF!) ->  | Y156: =IF(#REF!="",Y155,#REF!) ->  | Z156: =IF(#REF!="",Z155,#REF!) -> 
S157: =IF('Actual Wellpath'!E167="",S156,'Actual Wellpath'!E167) -> 0 | T157: =IF('Actual Wellpath'!F167="",T156,'Actual Wellpath'!F167) -> 0 | U157: =IF('Actual Wellpath'!G167="",U156,'Actual Wellpath'!G167) -> 0 | V157: =IF('Actual Wellpath'!H167="",V156,'Actual Wellpath'!H167) -> 0 | W157: =IF(#REF!="",W156,#REF!) ->  | X157: =IF(#REF!="",X156,#REF!) ->  | Y157: =IF(#REF!="",Y156,#REF!) ->  | Z157: =IF(#REF!="",Z156,#REF!) -> 
S158: =IF('Actual Wellpath'!E168="",S157,'Actual Wellpath'!E168) -> 0 | T158: =IF('Actual Wellpath'!F168="",T157,'Actual Wellpath'!F168) -> 0 | U158: =IF('Actual Wellpath'!G168="",U157,'Actual Wellpath'!G168) -> 0 | V158: =IF('Actual Wellpath'!H168="",V157,'Actual Wellpath'!H168) -> 0 | W158: =IF(#REF!="",W157,#REF!) ->  | X158: =IF(#REF!="",X157,#REF!) ->  | Y158: =IF(#REF!="",Y157,#REF!) ->  | Z158: =IF(#REF!="",Z157,#REF!) -> 
S159: =IF('Actual Wellpath'!E169="",S158,'Actual Wellpath'!E169) -> 0 | T159: =IF('Actual Wellpath'!F169="",T158,'Actual Wellpath'!F169) -> 0 | U159: =IF('Actual Wellpath'!G169="",U158,'Actual Wellpath'!G169) -> 0 | V159: =IF('Actual Wellpath'!H169="",V158,'Actual Wellpath'!H169) -> 0 | W159: =IF(#REF!="",W158,#REF!) ->  | X159: =IF(#REF!="",X158,#REF!) ->  | Y159: =IF(#REF!="",Y158,#REF!) ->  | Z159: =IF(#REF!="",Z158,#REF!) -> 
S160: =IF('Actual Wellpath'!E170="",S159,'Actual Wellpath'!E170) -> 0 | T160: =IF('Actual Wellpath'!F170="",T159,'Actual Wellpath'!F170) -> 0 | U160: =IF('Actual Wellpath'!G170="",U159,'Actual Wellpath'!G170) -> 0 | V160: =IF('Actual Wellpath'!H170="",V159,'Actual Wellpath'!H170) -> 0 | W160: =IF(#REF!="",W159,#REF!) ->  | X160: =IF(#REF!="",X159,#REF!) ->  | Y160: =IF(#REF!="",Y159,#REF!) ->  | Z160: =IF(#REF!="",Z159,#REF!) -> 
S161: =IF('Actual Wellpath'!E171="",S160,'Actual Wellpath'!E171) -> 0 | T161: =IF('Actual Wellpath'!F171="",T160,'Actual Wellpath'!F171) -> 0 | U161: =IF('Actual Wellpath'!G171="",U160,'Actual Wellpath'!G171) -> 0 | V161: =IF('Actual Wellpath'!H171="",V160,'Actual Wellpath'!H171) -> 0 | W161: =IF(#REF!="",W160,#REF!) ->  | X161: =IF(#REF!="",X160,#REF!) ->  | Y161: =IF(#REF!="",Y160,#REF!) ->  | Z161: =IF(#REF!="",Z160,#REF!) -> 
S162: =IF('Actual Wellpath'!E172="",S161,'Actual Wellpath'!E172) -> 0 | T162: =IF('Actual Wellpath'!F172="",T161,'Actual Wellpath'!F172) -> 0 | U162: =IF('Actual Wellpath'!G172="",U161,'Actual Wellpath'!G172) -> 0 | V162: =IF('Actual Wellpath'!H172="",V161,'Actual Wellpath'!H172) -> 0 | W162: =IF(#REF!="",W161,#REF!) ->  | X162: =IF(#REF!="",X161,#REF!) ->  | Y162: =IF(#REF!="",Y161,#REF!) ->  | Z162: =IF(#REF!="",Z161,#REF!) -> 
S163: =IF('Actual Wellpath'!E173="",S162,'Actual Wellpath'!E173) -> 0 | T163: =IF('Actual Wellpath'!F173="",T162,'Actual Wellpath'!F173) -> 0 | U163: =IF('Actual Wellpath'!G173="",U162,'Actual Wellpath'!G173) -> 0 | V163: =IF('Actual Wellpath'!H173="",V162,'Actual Wellpath'!H173) -> 0 | W163: =IF(#REF!="",W162,#REF!) ->  | X163: =IF(#REF!="",X162,#REF!) ->  | Y163: =IF(#REF!="",Y162,#REF!) ->  | Z163: =IF(#REF!="",Z162,#REF!) -> 
S164: =IF('Actual Wellpath'!E174="",S163,'Actual Wellpath'!E174) -> 0 | T164: =IF('Actual Wellpath'!F174="",T163,'Actual Wellpath'!F174) -> 0 | U164: =IF('Actual Wellpath'!G174="",U163,'Actual Wellpath'!G174) -> 0 | V164: =IF('Actual Wellpath'!H174="",V163,'Actual Wellpath'!H174) -> 0 | W164: =IF(#REF!="",W163,#REF!) ->  | X164: =IF(#REF!="",X163,#REF!) ->  | Y164: =IF(#REF!="",Y163,#REF!) ->  | Z164: =IF(#REF!="",Z163,#REF!) -> 
S165: =IF('Actual Wellpath'!E175="",S164,'Actual Wellpath'!E175) -> 0 | T165: =IF('Actual Wellpath'!F175="",T164,'Actual Wellpath'!F175) -> 0 | U165: =IF('Actual Wellpath'!G175="",U164,'Actual Wellpath'!G175) -> 0 | V165: =IF('Actual Wellpath'!H175="",V164,'Actual Wellpath'!H175) -> 0 | W165: =IF(#REF!="",W164,#REF!) ->  | X165: =IF(#REF!="",X164,#REF!) ->  | Y165: =IF(#REF!="",Y164,#REF!) ->  | Z165: =IF(#REF!="",Z164,#REF!) -> 
S166: =IF('Actual Wellpath'!E176="",S165,'Actual Wellpath'!E176) -> 0 | T166: =IF('Actual Wellpath'!F176="",T165,'Actual Wellpath'!F176) -> 0 | U166: =IF('Actual Wellpath'!G176="",U165,'Actual Wellpath'!G176) -> 0 | V166: =IF('Actual Wellpath'!H176="",V165,'Actual Wellpath'!H176) -> 0 | W166: =IF(#REF!="",W165,#REF!) ->  | X166: =IF(#REF!="",X165,#REF!) ->  | Y166: =IF(#REF!="",Y165,#REF!) ->  | Z166: =IF(#REF!="",Z165,#REF!) -> 
S167: =IF('Actual Wellpath'!E177="",S166,'Actual Wellpath'!E177) -> 0 | T167: =IF('Actual Wellpath'!F177="",T166,'Actual Wellpath'!F177) -> 0 | U167: =IF('Actual Wellpath'!G177="",U166,'Actual Wellpath'!G177) -> 0 | V167: =IF('Actual Wellpath'!H177="",V166,'Actual Wellpath'!H177) -> 0 | W167: =IF(#REF!="",W166,#REF!) ->  | X167: =IF(#REF!="",X166,#REF!) ->  | Y167: =IF(#REF!="",Y166,#REF!) ->  | Z167: =IF(#REF!="",Z166,#REF!) -> 
S168: =IF('Actual Wellpath'!E178="",S167,'Actual Wellpath'!E178) -> 0 | T168: =IF('Actual Wellpath'!F178="",T167,'Actual Wellpath'!F178) -> 0 | U168: =IF('Actual Wellpath'!G178="",U167,'Actual Wellpath'!G178) -> 0 | V168: =IF('Actual Wellpath'!H178="",V167,'Actual Wellpath'!H178) -> 0 | W168: =IF(#REF!="",W167,#REF!) ->  | X168: =IF(#REF!="",X167,#REF!) ->  | Y168: =IF(#REF!="",Y167,#REF!) ->  | Z168: =IF(#REF!="",Z167,#REF!) -> 
S169: =IF('Actual Wellpath'!E179="",S168,'Actual Wellpath'!E179) -> 0 | T169: =IF('Actual Wellpath'!F179="",T168,'Actual Wellpath'!F179) -> 0 | U169: =IF('Actual Wellpath'!G179="",U168,'Actual Wellpath'!G179) -> 0 | V169: =IF('Actual Wellpath'!H179="",V168,'Actual Wellpath'!H179) -> 0 | W169: =IF(#REF!="",W168,#REF!) ->  | X169: =IF(#REF!="",X168,#REF!) ->  | Y169: =IF(#REF!="",Y168,#REF!) ->  | Z169: =IF(#REF!="",Z168,#REF!) -> 
S170: =IF('Actual Wellpath'!E180="",S169,'Actual Wellpath'!E180) -> 0 | T170: =IF('Actual Wellpath'!F180="",T169,'Actual Wellpath'!F180) -> 0 | U170: =IF('Actual Wellpath'!G180="",U169,'Actual Wellpath'!G180) -> 0 | V170: =IF('Actual Wellpath'!H180="",V169,'Actual Wellpath'!H180) -> 0 | W170: =IF(#REF!="",W169,#REF!) ->  | X170: =IF(#REF!="",X169,#REF!) ->  | Y170: =IF(#REF!="",Y169,#REF!) ->  | Z170: =IF(#REF!="",Z169,#REF!) -> 
S171: =IF('Actual Wellpath'!E181="",S170,'Actual Wellpath'!E181) -> 0 | T171: =IF('Actual Wellpath'!F181="",T170,'Actual Wellpath'!F181) -> 0 | U171: =IF('Actual Wellpath'!G181="",U170,'Actual Wellpath'!G181) -> 0 | V171: =IF('Actual Wellpath'!H181="",V170,'Actual Wellpath'!H181) -> 0 | W171: =IF(#REF!="",W170,#REF!) ->  | X171: =IF(#REF!="",X170,#REF!) ->  | Y171: =IF(#REF!="",Y170,#REF!) ->  | Z171: =IF(#REF!="",Z170,#REF!) -> 
S172: =IF('Actual Wellpath'!E182="",S171,'Actual Wellpath'!E182) -> 0 | T172: =IF('Actual Wellpath'!F182="",T171,'Actual Wellpath'!F182) -> 0 | U172: =IF('Actual Wellpath'!G182="",U171,'Actual Wellpath'!G182) -> 0 | V172: =IF('Actual Wellpath'!H182="",V171,'Actual Wellpath'!H182) -> 0 | W172: =IF(#REF!="",W171,#REF!) ->  | X172: =IF(#REF!="",X171,#REF!) ->  | Y172: =IF(#REF!="",Y171,#REF!) ->  | Z172: =IF(#REF!="",Z171,#REF!) -> 
S173: =IF('Actual Wellpath'!E183="",S172,'Actual Wellpath'!E183) -> 0 | T173: =IF('Actual Wellpath'!F183="",T172,'Actual Wellpath'!F183) -> 0 | U173: =IF('Actual Wellpath'!G183="",U172,'Actual Wellpath'!G183) -> 0 | V173: =IF('Actual Wellpath'!H183="",V172,'Actual Wellpath'!H183) -> 0 | W173: =IF(#REF!="",W172,#REF!) ->  | X173: =IF(#REF!="",X172,#REF!) ->  | Y173: =IF(#REF!="",Y172,#REF!) ->  | Z173: =IF(#REF!="",Z172,#REF!) -> 
S174: =IF('Actual Wellpath'!E184="",S173,'Actual Wellpath'!E184) -> 0 | T174: =IF('Actual Wellpath'!F184="",T173,'Actual Wellpath'!F184) -> 0 | U174: =IF('Actual Wellpath'!G184="",U173,'Actual Wellpath'!G184) -> 0 | V174: =IF('Actual Wellpath'!H184="",V173,'Actual Wellpath'!H184) -> 0 | W174: =IF(#REF!="",W173,#REF!) ->  | X174: =IF(#REF!="",X173,#REF!) ->  | Y174: =IF(#REF!="",Y173,#REF!) ->  | Z174: =IF(#REF!="",Z173,#REF!) -> 
S175: =IF('Actual Wellpath'!E185="",S174,'Actual Wellpath'!E185) -> 0 | T175: =IF('Actual Wellpath'!F185="",T174,'Actual Wellpath'!F185) -> 0 | U175: =IF('Actual Wellpath'!G185="",U174,'Actual Wellpath'!G185) -> 0 | V175: =IF('Actual Wellpath'!H185="",V174,'Actual Wellpath'!H185) -> 0 | W175: =IF(#REF!="",W174,#REF!) ->  | X175: =IF(#REF!="",X174,#REF!) ->  | Y175: =IF(#REF!="",Y174,#REF!) ->  | Z175: =IF(#REF!="",Z174,#REF!) -> 
S176: =IF('Actual Wellpath'!E186="",S175,'Actual Wellpath'!E186) -> 0 | T176: =IF('Actual Wellpath'!F186="",T175,'Actual Wellpath'!F186) -> 0 | U176: =IF('Actual Wellpath'!G186="",U175,'Actual Wellpath'!G186) -> 0 | V176: =IF('Actual Wellpath'!H186="",V175,'Actual Wellpath'!H186) -> 0 | W176: =IF(#REF!="",W175,#REF!) ->  | X176: =IF(#REF!="",X175,#REF!) ->  | Y176: =IF(#REF!="",Y175,#REF!) ->  | Z176: =IF(#REF!="",Z175,#REF!) -> 
S177: =IF('Actual Wellpath'!E187="",S176,'Actual Wellpath'!E187) -> 0 | T177: =IF('Actual Wellpath'!F187="",T176,'Actual Wellpath'!F187) -> 0 | U177: =IF('Actual Wellpath'!G187="",U176,'Actual Wellpath'!G187) -> 0 | V177: =IF('Actual Wellpath'!H187="",V176,'Actual Wellpath'!H187) -> 0 | W177: =IF(#REF!="",W176,#REF!) ->  | X177: =IF(#REF!="",X176,#REF!) ->  | Y177: =IF(#REF!="",Y176,#REF!) ->  | Z177: =IF(#REF!="",Z176,#REF!) -> 
S178: =IF('Actual Wellpath'!E188="",S177,'Actual Wellpath'!E188) -> 0 | T178: =IF('Actual Wellpath'!F188="",T177,'Actual Wellpath'!F188) -> 0 | U178: =IF('Actual Wellpath'!G188="",U177,'Actual Wellpath'!G188) -> 0 | V178: =IF('Actual Wellpath'!H188="",V177,'Actual Wellpath'!H188) -> 0 | W178: =IF(#REF!="",W177,#REF!) ->  | X178: =IF(#REF!="",X177,#REF!) ->  | Y178: =IF(#REF!="",Y177,#REF!) ->  | Z178: =IF(#REF!="",Z177,#REF!) -> 
S179: =IF('Actual Wellpath'!E189="",S178,'Actual Wellpath'!E189) -> 0 | T179: =IF('Actual Wellpath'!F189="",T178,'Actual Wellpath'!F189) -> 0 | U179: =IF('Actual Wellpath'!G189="",U178,'Actual Wellpath'!G189) -> 0 | V179: =IF('Actual Wellpath'!H189="",V178,'Actual Wellpath'!H189) -> 0 | W179: =IF(#REF!="",W178,#REF!) ->  | X179: =IF(#REF!="",X178,#REF!) ->  | Y179: =IF(#REF!="",Y178,#REF!) ->  | Z179: =IF(#REF!="",Z178,#REF!) -> 
S180: =IF('Actual Wellpath'!E190="",S179,'Actual Wellpath'!E190) -> 0 | T180: =IF('Actual Wellpath'!F190="",T179,'Actual Wellpath'!F190) -> 0 | U180: =IF('Actual Wellpath'!G190="",U179,'Actual Wellpath'!G190) -> 0 | V180: =IF('Actual Wellpath'!H190="",V179,'Actual Wellpath'!H190) -> 0 | W180: =IF(#REF!="",W179,#REF!) ->  | X180: =IF(#REF!="",X179,#REF!) ->  | Y180: =IF(#REF!="",Y179,#REF!) ->  | Z180: =IF(#REF!="",Z179,#REF!) -> 
S181: =IF('Actual Wellpath'!E191="",S180,'Actual Wellpath'!E191) -> 0 | T181: =IF('Actual Wellpath'!F191="",T180,'Actual Wellpath'!F191) -> 0 | U181: =IF('Actual Wellpath'!G191="",U180,'Actual Wellpath'!G191) -> 0 | V181: =IF('Actual Wellpath'!H191="",V180,'Actual Wellpath'!H191) -> 0 | W181: =IF(#REF!="",W180,#REF!) ->  | X181: =IF(#REF!="",X180,#REF!) ->  | Y181: =IF(#REF!="",Y180,#REF!) ->  | Z181: =IF(#REF!="",Z180,#REF!) -> 
S182: =IF('Actual Wellpath'!E192="",S181,'Actual Wellpath'!E192) -> 0 | T182: =IF('Actual Wellpath'!F192="",T181,'Actual Wellpath'!F192) -> 0 | U182: =IF('Actual Wellpath'!G192="",U181,'Actual Wellpath'!G192) -> 0 | V182: =IF('Actual Wellpath'!H192="",V181,'Actual Wellpath'!H192) -> 0 | W182: =IF(#REF!="",W181,#REF!) ->  | X182: =IF(#REF!="",X181,#REF!) ->  | Y182: =IF(#REF!="",Y181,#REF!) ->  | Z182: =IF(#REF!="",Z181,#REF!) -> 
S183: =IF('Actual Wellpath'!E193="",S182,'Actual Wellpath'!E193) -> 0 | T183: =IF('Actual Wellpath'!F193="",T182,'Actual Wellpath'!F193) -> 0 | U183: =IF('Actual Wellpath'!G193="",U182,'Actual Wellpath'!G193) -> 0 | V183: =IF('Actual Wellpath'!H193="",V182,'Actual Wellpath'!H193) -> 0 | W183: =IF(#REF!="",W182,#REF!) ->  | X183: =IF(#REF!="",X182,#REF!) ->  | Y183: =IF(#REF!="",Y182,#REF!) ->  | Z183: =IF(#REF!="",Z182,#REF!) -> 
S184: =IF('Actual Wellpath'!E194="",S183,'Actual Wellpath'!E194) -> 0 | T184: =IF('Actual Wellpath'!F194="",T183,'Actual Wellpath'!F194) -> 0 | U184: =IF('Actual Wellpath'!G194="",U183,'Actual Wellpath'!G194) -> 0 | V184: =IF('Actual Wellpath'!H194="",V183,'Actual Wellpath'!H194) -> 0 | W184: =IF(#REF!="",W183,#REF!) ->  | X184: =IF(#REF!="",X183,#REF!) ->  | Y184: =IF(#REF!="",Y183,#REF!) ->  | Z184: =IF(#REF!="",Z183,#REF!) -> 
S185: =IF('Actual Wellpath'!E195="",S184,'Actual Wellpath'!E195) -> 0 | T185: =IF('Actual Wellpath'!F195="",T184,'Actual Wellpath'!F195) -> 0 | U185: =IF('Actual Wellpath'!G195="",U184,'Actual Wellpath'!G195) -> 0 | V185: =IF('Actual Wellpath'!H195="",V184,'Actual Wellpath'!H195) -> 0 | W185: =IF(#REF!="",W184,#REF!) ->  | X185: =IF(#REF!="",X184,#REF!) ->  | Y185: =IF(#REF!="",Y184,#REF!) ->  | Z185: =IF(#REF!="",Z184,#REF!) -> 
S186: =IF('Actual Wellpath'!E196="",S185,'Actual Wellpath'!E196) -> 0 | T186: =IF('Actual Wellpath'!F196="",T185,'Actual Wellpath'!F196) -> 0 | U186: =IF('Actual Wellpath'!G196="",U185,'Actual Wellpath'!G196) -> 0 | V186: =IF('Actual Wellpath'!H196="",V185,'Actual Wellpath'!H196) -> 0 | W186: =IF(#REF!="",W185,#REF!) ->  | X186: =IF(#REF!="",X185,#REF!) ->  | Y186: =IF(#REF!="",Y185,#REF!) ->  | Z186: =IF(#REF!="",Z185,#REF!) -> 
S187: =IF('Actual Wellpath'!E197="",S186,'Actual Wellpath'!E197) -> 0 | T187: =IF('Actual Wellpath'!F197="",T186,'Actual Wellpath'!F197) -> 0 | U187: =IF('Actual Wellpath'!G197="",U186,'Actual Wellpath'!G197) -> 0 | V187: =IF('Actual Wellpath'!H197="",V186,'Actual Wellpath'!H197) -> 0 | W187: =IF(#REF!="",W186,#REF!) ->  | X187: =IF(#REF!="",X186,#REF!) ->  | Y187: =IF(#REF!="",Y186,#REF!) ->  | Z187: =IF(#REF!="",Z186,#REF!) -> 
S188: =IF('Actual Wellpath'!E198="",S187,'Actual Wellpath'!E198) -> 0 | T188: =IF('Actual Wellpath'!F198="",T187,'Actual Wellpath'!F198) -> 0 | U188: =IF('Actual Wellpath'!G198="",U187,'Actual Wellpath'!G198) -> 0 | V188: =IF('Actual Wellpath'!H198="",V187,'Actual Wellpath'!H198) -> 0 | W188: =IF(#REF!="",W187,#REF!) ->  | X188: =IF(#REF!="",X187,#REF!) ->  | Y188: =IF(#REF!="",Y187,#REF!) ->  | Z188: =IF(#REF!="",Z187,#REF!) -> 
S189: =IF('Actual Wellpath'!E199="",S188,'Actual Wellpath'!E199) -> 0 | T189: =IF('Actual Wellpath'!F199="",T188,'Actual Wellpath'!F199) -> 0 | U189: =IF('Actual Wellpath'!G199="",U188,'Actual Wellpath'!G199) -> 0 | V189: =IF('Actual Wellpath'!H199="",V188,'Actual Wellpath'!H199) -> 0 | W189: =IF(#REF!="",W188,#REF!) ->  | X189: =IF(#REF!="",X188,#REF!) ->  | Y189: =IF(#REF!="",Y188,#REF!) ->  | Z189: =IF(#REF!="",Z188,#REF!) -> 
S190: =IF('Actual Wellpath'!E200="",S189,'Actual Wellpath'!E200) -> 0 | T190: =IF('Actual Wellpath'!F200="",T189,'Actual Wellpath'!F200) -> 0 | U190: =IF('Actual Wellpath'!G200="",U189,'Actual Wellpath'!G200) -> 0 | V190: =IF('Actual Wellpath'!H200="",V189,'Actual Wellpath'!H200) -> 0 | W190: =IF(#REF!="",W189,#REF!) ->  | X190: =IF(#REF!="",X189,#REF!) ->  | Y190: =IF(#REF!="",Y189,#REF!) ->  | Z190: =IF(#REF!="",Z189,#REF!) -> 
S191: =IF('Actual Wellpath'!E201="",S190,'Actual Wellpath'!E201) -> 0 | T191: =IF('Actual Wellpath'!F201="",T190,'Actual Wellpath'!F201) -> 0 | U191: =IF('Actual Wellpath'!G201="",U190,'Actual Wellpath'!G201) -> 0 | V191: =IF('Actual Wellpath'!H201="",V190,'Actual Wellpath'!H201) -> 0 | W191: =IF(#REF!="",W190,#REF!) ->  | X191: =IF(#REF!="",X190,#REF!) ->  | Y191: =IF(#REF!="",Y190,#REF!) ->  | Z191: =IF(#REF!="",Z190,#REF!) -> 
S192: =IF('Actual Wellpath'!E202="",S191,'Actual Wellpath'!E202) -> 0 | T192: =IF('Actual Wellpath'!F202="",T191,'Actual Wellpath'!F202) -> 0 | U192: =IF('Actual Wellpath'!G202="",U191,'Actual Wellpath'!G202) -> 0 | V192: =IF('Actual Wellpath'!H202="",V191,'Actual Wellpath'!H202) -> 0 | W192: =IF(#REF!="",W191,#REF!) ->  | X192: =IF(#REF!="",X191,#REF!) ->  | Y192: =IF(#REF!="",Y191,#REF!) ->  | Z192: =IF(#REF!="",Z191,#REF!) -> 
S193: =IF('Actual Wellpath'!E203="",S192,'Actual Wellpath'!E203) -> 0 | T193: =IF('Actual Wellpath'!F203="",T192,'Actual Wellpath'!F203) -> 0 | U193: =IF('Actual Wellpath'!G203="",U192,'Actual Wellpath'!G203) -> 0 | V193: =IF('Actual Wellpath'!H203="",V192,'Actual Wellpath'!H203) -> 0 | W193: =IF(#REF!="",W192,#REF!) ->  | X193: =IF(#REF!="",X192,#REF!) ->  | Y193: =IF(#REF!="",Y192,#REF!) ->  | Z193: =IF(#REF!="",Z192,#REF!) -> 
S194: =IF('Actual Wellpath'!E204="",S193,'Actual Wellpath'!E204) -> 0 | T194: =IF('Actual Wellpath'!F204="",T193,'Actual Wellpath'!F204) -> 0 | U194: =IF('Actual Wellpath'!G204="",U193,'Actual Wellpath'!G204) -> 0 | V194: =IF('Actual Wellpath'!H204="",V193,'Actual Wellpath'!H204) -> 0 | W194: =IF(#REF!="",W193,#REF!) ->  | X194: =IF(#REF!="",X193,#REF!) ->  | Y194: =IF(#REF!="",Y193,#REF!) ->  | Z194: =IF(#REF!="",Z193,#REF!) -> 
S195: =IF('Actual Wellpath'!E205="",S194,'Actual Wellpath'!E205) -> 0 | T195: =IF('Actual Wellpath'!F205="",T194,'Actual Wellpath'!F205) -> 0 | U195: =IF('Actual Wellpath'!G205="",U194,'Actual Wellpath'!G205) -> 0 | V195: =IF('Actual Wellpath'!H205="",V194,'Actual Wellpath'!H205) -> 0 | W195: =IF(#REF!="",W194,#REF!) ->  | X195: =IF(#REF!="",X194,#REF!) ->  | Y195: =IF(#REF!="",Y194,#REF!) ->  | Z195: =IF(#REF!="",Z194,#REF!) -> 
S196: =IF('Actual Wellpath'!E206="",S195,'Actual Wellpath'!E206) -> 0 | T196: =IF('Actual Wellpath'!F206="",T195,'Actual Wellpath'!F206) -> 0 | U196: =IF('Actual Wellpath'!G206="",U195,'Actual Wellpath'!G206) -> 0 | V196: =IF('Actual Wellpath'!H206="",V195,'Actual Wellpath'!H206) -> 0 | W196: =IF(#REF!="",W195,#REF!) ->  | X196: =IF(#REF!="",X195,#REF!) ->  | Y196: =IF(#REF!="",Y195,#REF!) ->  | Z196: =IF(#REF!="",Z195,#REF!) -> 
S197: =IF('Actual Wellpath'!E207="",S196,'Actual Wellpath'!E207) -> 0 | T197: =IF('Actual Wellpath'!F207="",T196,'Actual Wellpath'!F207) -> 0 | U197: =IF('Actual Wellpath'!G207="",U196,'Actual Wellpath'!G207) -> 0 | V197: =IF('Actual Wellpath'!H207="",V196,'Actual Wellpath'!H207) -> 0 | W197: =IF(#REF!="",W196,#REF!) ->  | X197: =IF(#REF!="",X196,#REF!) ->  | Y197: =IF(#REF!="",Y196,#REF!) ->  | Z197: =IF(#REF!="",Z196,#REF!) -> 
S198: =IF('Actual Wellpath'!E208="",S197,'Actual Wellpath'!E208) -> 0 | T198: =IF('Actual Wellpath'!F208="",T197,'Actual Wellpath'!F208) -> 0 | U198: =IF('Actual Wellpath'!G208="",U197,'Actual Wellpath'!G208) -> 0 | V198: =IF('Actual Wellpath'!H208="",V197,'Actual Wellpath'!H208) -> 0 | W198: =IF(#REF!="",W197,#REF!) ->  | X198: =IF(#REF!="",X197,#REF!) ->  | Y198: =IF(#REF!="",Y197,#REF!) ->  | Z198: =IF(#REF!="",Z197,#REF!) -> 
S199: =IF('Actual Wellpath'!E209="",S198,'Actual Wellpath'!E209) -> 0 | T199: =IF('Actual Wellpath'!F209="",T198,'Actual Wellpath'!F209) -> 0 | U199: =IF('Actual Wellpath'!G209="",U198,'Actual Wellpath'!G209) -> 0 | V199: =IF('Actual Wellpath'!H209="",V198,'Actual Wellpath'!H209) -> 0 | W199: =IF(#REF!="",W198,#REF!) ->  | X199: =IF(#REF!="",X198,#REF!) ->  | Y199: =IF(#REF!="",Y198,#REF!) ->  | Z199: =IF(#REF!="",Z198,#REF!) -> 
S200: =IF('Actual Wellpath'!E210="",S199,'Actual Wellpath'!E210) -> 0 | T200: =IF('Actual Wellpath'!F210="",T199,'Actual Wellpath'!F210) -> 0 | U200: =IF('Actual Wellpath'!G210="",U199,'Actual Wellpath'!G210) -> 0 | V200: =IF('Actual Wellpath'!H210="",V199,'Actual Wellpath'!H210) -> 0 | W200: =IF(#REF!="",W199,#REF!) ->  | X200: =IF(#REF!="",X199,#REF!) ->  | Y200: =IF(#REF!="",Y199,#REF!) ->  | Z200: =IF(#REF!="",Z199,#REF!) -> 
... 602 more rows

Sheet T-plots
Z1: Actual | AD1: Plan | AG1: Plan - Manual Entry
Z2: MD | AA2: Inc | AB2: Az | AC2: DLS | AD2: MD | AE2: Inc | AF2: Az | AG2: MD | AH2: DLS
Z3: ='Actual Wellpath'!B13 -> 0 | AA3: ='Actual Wellpath'!C13 -> 0 | AB3: ='Actual Wellpath'!D13 -> 0 | AC3: 0 | AD3: =#REF! ->  | AE3: =#REF! ->  | AF3: =#REF! -> 
Z4: =IF('Actual Wellpath'!B14=0,Z3,'Actual Wellpath'!B14) -> 0 | AA4: =IF('Actual Wellpath'!B14=0,AA3,'Actual Wellpath'!C14) -> 0 | AB4: =IF('Actual Wellpath'!B14=0,AB3,'Actual Wellpath'!D14) -> 0 | AC4: =IF('Actual Wellpath'!I14="",AC3,'Actual Wellpath'!I14) -> 0 | AD4: =IF(#REF!=0,AD3,#REF!) ->  | AE4: =IF(#REF!=0,AE3,#REF!) ->  | AF4: =IF(#REF!=0,AF3,#REF!) -> 
Z5: =IF('Actual Wellpath'!B15=0,Z4,'Actual Wellpath'!B15) -> 0 | AA5: =IF('Actual Wellpath'!B15=0,AA4,'Actual Wellpath'!C15) -> 0 | AB5: =IF('Actual Wellpath'!B15=0,AB4,'Actual Wellpath'!D15) -> 0 | AC5: =IF('Actual Wellpath'!I15="",AC4,'Actual Wellpath'!I15) -> 0 | AD5: =IF(#REF!=0,AD4,#REF!) ->  | AE5: =IF(#REF!=0,AE4,#REF!) ->  | AF5: =IF(#REF!=0,AF4,#REF!) -> 
Z6: =IF('Actual Wellpath'!B16=0,Z5,'Actual Wellpath'!B16) -> 0 | AA6: =IF('Actual Wellpath'!B16=0,AA5,'Actual Wellpath'!C16) -> 0 | AB6: =IF('Actual Wellpath'!B16=0,AB5,'Actual Wellpath'!D16) -> 0 | AC6: =IF('Actual Wellpath'!I16="",AC5,'Actual Wellpath'!I16) -> 0 | AD6: =IF(#REF!=0,AD5,#REF!) ->  | AE6: =IF(#REF!=0,AE5,#REF!) ->  | AF6: =IF(#REF!=0,AF5,#REF!) -> 
Z7: =IF('Actual Wellpath'!B17=0,Z6,'Actual Wellpath'!B17) -> 0 | AA7: =IF('Actual Wellpath'!B17=0,AA6,'Actual Wellpath'!C17) -> 0 | AB7: =IF('Actual Wellpath'!B17=0,AB6,'Actual Wellpath'!D17) -> 0 | AC7: =IF('Actual Wellpath'!I17="",AC6,'Actual Wellpath'!I17) -> 0 | AD7: =IF(#REF!=0,AD6,#REF!) ->  | AE7: =IF(#REF!=0,AE6,#REF!) ->  | AF7: =IF(#REF!=0,AF6,#REF!) -> 
Z8: =IF('Actual Wellpath'!B18=0,Z7,'Actual Wellpath'!B18) -> 0 | AA8: =IF('Actual Wellpath'!B18=0,AA7,'Actual Wellpath'!C18) -> 0 | AB8: =IF('Actual Wellpath'!B18=0,AB7,'Actual Wellpath'!D18) -> 0 | AC8: =IF('Actual Wellpath'!I18="",AC7,'Actual Wellpath'!I18) -> 0 | AD8: =IF(#REF!=0,AD7,#REF!) ->  | AE8: =IF(#REF!=0,AE7,#REF!) ->  | AF8: =IF(#REF!=0,AF7,#REF!) -> 
Z9: =IF('Actual Wellpath'!B19=0,Z8,'Actual Wellpath'!B19) -> 0 | AA9: =IF('Actual Wellpath'!B19=0,AA8,'Actual Wellpath'!C19) -> 0 | AB9: =IF('Actual Wellpath'!B19=0,AB8,'Actual Wellpath'!D19) -> 0 | AC9: =IF('Actual Wellpath'!I19="",AC8,'Actual Wellpath'!I19) -> 0 | AD9: =IF(#REF!=0,AD8,#REF!) ->  | AE9: =IF(#REF!=0,AE8,#REF!) ->  | AF9: =IF(#REF!=0,AF8,#REF!) -> 
Z10: =IF('Actual Wellpath'!B20=0,Z9,'Actual Wellpath'!B20) -> 0 | AA10: =IF('Actual Wellpath'!B20=0,AA9,'Actual Wellpath'!C20) -> 0 | AB10: =IF('Actual Wellpath'!B20=0,AB9,'Actual Wellpath'!D20) -> 0 | AC10: =IF('Actual Wellpath'!I20="",AC9,'Actual Wellpath'!I20) -> 0 | AD10: =IF(#REF!=0,AD9,#REF!) ->  | AE10: =IF(#REF!=0,AE9,#REF!) ->  | AF10: =IF(#REF!=0,AF9,#REF!) -> 
Z11: =IF('Actual Wellpath'!B21=0,Z10,'Actual Wellpath'!B21) -> 0 | AA11: =IF('Actual Wellpath'!B21=0,AA10,'Actual Wellpath'!C21) -> 0 | AB11: =IF('Actual Wellpath'!B21=0,AB10,'Actual Wellpath'!D21) -> 0 | AC11: =IF('Actual Wellpath'!I21="",AC10,'Actual Wellpath'!I21) -> 0 | AD11: =IF(#REF!=0,AD10,#REF!) ->  | AE11: =IF(#REF!=0,AE10,#REF!) ->  | AF11: =IF(#REF!=0,AF10,#REF!) -> 
Z12: =IF('Actual Wellpath'!B22=0,Z11,'Actual Wellpath'!B22) -> 0 | AA12: =IF('Actual Wellpath'!B22=0,AA11,'Actual Wellpath'!C22) -> 0 | AB12: =IF('Actual Wellpath'!B22=0,AB11,'Actual Wellpath'!D22) -> 0 | AC12: =IF('Actual Wellpath'!I22="",AC11,'Actual Wellpath'!I22) -> 0 | AD12: =IF(#REF!=0,AD11,#REF!) ->  | AE12: =IF(#REF!=0,AE11,#REF!) ->  | AF12: =IF(#REF!=0,AF11,#REF!) -> 
Z13: =IF('Actual Wellpath'!B23=0,Z12,'Actual Wellpath'!B23) -> 0 | AA13: =IF('Actual Wellpath'!B23=0,AA12,'Actual Wellpath'!C23) -> 0 | AB13: =IF('Actual Wellpath'!B23=0,AB12,'Actual Wellpath'!D23) -> 0 | AC13: =IF('Actual Wellpath'!I23="",AC12,'Actual Wellpath'!I23) -> 0 | AD13: =IF(#REF!=0,AD12,#REF!) ->  | AE13: =IF(#REF!=0,AE12,#REF!) ->  | AF13: =IF(#REF!=0,AF12,#REF!) -> 
Z14: =IF('Actual Wellpath'!B24=0,Z13,'Actual Wellpath'!B24) -> 0 | AA14: =IF('Actual Wellpath'!B24=0,AA13,'Actual Wellpath'!C24) -> 0 | AB14: =IF('Actual Wellpath'!B24=0,AB13,'Actual Wellpath'!D24) -> 0 | AC14: =IF('Actual Wellpath'!I24="",AC13,'Actual Wellpath'!I24) -> 0 | AD14: =IF(#REF!=0,AD13,#REF!) ->  | AE14: =IF(#REF!=0,AE13,#REF!) ->  | AF14: =IF(#REF!=0,AF13,#REF!) -> 
Z15: =IF('Actual Wellpath'!B25=0,Z14,'Actual Wellpath'!B25) -> 0 | AA15: =IF('Actual Wellpath'!B25=0,AA14,'Actual Wellpath'!C25) -> 0 | AB15: =IF('Actual Wellpath'!B25=0,AB14,'Actual Wellpath'!D25) -> 0 | AC15: =IF('Actual Wellpath'!I25="",AC14,'Actual Wellpath'!I25) -> 0 | AD15: =IF(#REF!=0,AD14,#REF!) ->  | AE15: =IF(#REF!=0,AE14,#REF!) ->  | AF15: =IF(#REF!=0,AF14,#REF!) -> 
Z16: =IF('Actual Wellpath'!B26=0,Z15,'Actual Wellpath'!B26) -> 0 | AA16: =IF('Actual Wellpath'!B26=0,AA15,'Actual Wellpath'!C26) -> 0 | AB16: =IF('Actual Wellpath'!B26=0,AB15,'Actual Wellpath'!D26) -> 0 | AC16: =IF('Actual Wellpath'!I26="",AC15,'Actual Wellpath'!I26) -> 0 | AD16: =IF(#REF!=0,AD15,#REF!) ->  | AE16: =IF(#REF!=0,AE15,#REF!) ->  | AF16: =IF(#REF!=0,AF15,#REF!) -> 
Z17: =IF('Actual Wellpath'!B27=0,Z16,'Actual Wellpath'!B27) -> 0 | AA17: =IF('Actual Wellpath'!B27=0,AA16,'Actual Wellpath'!C27) -> 0 | AB17: =IF('Actual Wellpath'!B27=0,AB16,'Actual Wellpath'!D27) -> 0 | AC17: =IF('Actual Wellpath'!I27="",AC16,'Actual Wellpath'!I27) -> 0 | AD17: =IF(#REF!=0,AD16,#REF!) ->  | AE17: =IF(#REF!=0,AE16,#REF!) ->  | AF17: =IF(#REF!=0,AF16,#REF!) -> 
Z18: =IF('Actual Wellpath'!B28=0,Z17,'Actual Wellpath'!B28) -> 0 | AA18: =IF('Actual Wellpath'!B28=0,AA17,'Actual Wellpath'!C28) -> 0 | AB18: =IF('Actual Wellpath'!B28=0,AB17,'Actual Wellpath'!D28) -> 0 | AC18: =IF('Actual Wellpath'!I28="",AC17,'Actual Wellpath'!I28) -> 0 | AD18: =IF(#REF!=0,AD17,#REF!) ->  | AE18: =IF(#REF!=0,AE17,#REF!) ->  | AF18: =IF(#REF!=0,AF17,#REF!) -> 
Z19: =IF('Actual Wellpath'!B29=0,Z18,'Actual Wellpath'!B29) -> 0 | AA19: =IF('Actual Wellpath'!B29=0,AA18,'Actual Wellpath'!C29) -> 0 | AB19: =IF('Actual Wellpath'!B29=0,AB18,'Actual Wellpath'!D29) -> 0 | AC19: =IF('Actual Wellpath'!I29="",AC18,'Actual Wellpath'!I29) -> 0 | AD19: =IF(#REF!=0,AD18,#REF!) ->  | AE19: =IF(#REF!=0,AE18,#REF!) ->  | AF19: =IF(#REF!=0,AF18,#REF!) -> 
Z20: =IF('Actual Wellpath'!B30=0,Z19,'Actual Wellpath'!B30) -> 0 | AA20: =IF('Actual Wellpath'!B30=0,AA19,'Actual Wellpath'!C30) -> 0 | AB20: =IF('Actual Wellpath'!B30=0,AB19,'Actual Wellpath'!D30) -> 0 | AC20: =IF('Actual Wellpath'!I30="",AC19,'Actual Wellpath'!I30) -> 0 | AD20: =IF(#REF!=0,AD19,#REF!) ->  | AE20: =IF(#REF!=0,AE19,#REF!) ->  | AF20: =IF(#REF!=0,AF19,#REF!) -> 
Z21: =IF('Actual Wellpath'!B31=0,Z20,'Actual Wellpath'!B31) -> 0 | AA21: =IF('Actual Wellpath'!B31=0,AA20,'Actual Wellpath'!C31) -> 0 | AB21: =IF('Actual Wellpath'!B31=0,AB20,'Actual Wellpath'!D31) -> 0 | AC21: =IF('Actual Wellpath'!I31="",AC20,'Actual Wellpath'!I31) -> 0 | AD21: =IF(#REF!=0,AD20,#REF!) ->  | AE21: =IF(#REF!=0,AE20,#REF!) ->  | AF21: =IF(#REF!=0,AF20,#REF!) -> 
Z22: =IF('Actual Wellpath'!B32=0,Z21,'Actual Wellpath'!B32) -> 0 | AA22: =IF('Actual Wellpath'!B32=0,AA21,'Actual Wellpath'!C32) -> 0 | AB22: =IF('Actual Wellpath'!B32=0,AB21,'Actual Wellpath'!D32) -> 0 | AC22: =IF('Actual Wellpath'!I32="",AC21,'Actual Wellpath'!I32) -> 0 | AD22: =IF(#REF!=0,AD21,#REF!) ->  | AE22: =IF(#REF!=0,AE21,#REF!) ->  | AF22: =IF(#REF!=0,AF21,#REF!) -> 
Z23: =IF('Actual Wellpath'!B33=0,Z22,'Actual Wellpath'!B33) -> 0 | AA23: =IF('Actual Wellpath'!B33=0,AA22,'Actual Wellpath'!C33) -> 0 | AB23: =IF('Actual Wellpath'!B33=0,AB22,'Actual Wellpath'!D33) -> 0 | AC23: =IF('Actual Wellpath'!I33="",AC22,'Actual Wellpath'!I33) -> 0 | AD23: =IF(#REF!=0,AD22,#REF!) ->  | AE23: =IF(#REF!=0,AE22,#REF!) ->  | AF23: =IF(#REF!=0,AF22,#REF!) -> 
Z24: =IF('Actual Wellpath'!B34=0,Z23,'Actual Wellpath'!B34) -> 0 | AA24: =IF('Actual Wellpath'!B34=0,AA23,'Actual Wellpath'!C34) -> 0 | AB24: =IF('Actual Wellpath'!B34=0,AB23,'Actual Wellpath'!D34) -> 0 | AC24: =IF('Actual Wellpath'!I34="",AC23,'Actual Wellpath'!I34) -> 0 | AD24: =IF(#REF!=0,AD23,#REF!) ->  | AE24: =IF(#REF!=0,AE23,#REF!) ->  | AF24: =IF(#REF!=0,AF23,#REF!) -> 
Z25: =IF('Actual Wellpath'!B35=0,Z24,'Actual Wellpath'!B35) -> 0 | AA25: =IF('Actual Wellpath'!B35=0,AA24,'Actual Wellpath'!C35) -> 0 | AB25: =IF('Actual Wellpath'!B35=0,AB24,'Actual Wellpath'!D35) -> 0 | AC25: =IF('Actual Wellpath'!I35="",AC24,'Actual Wellpath'!I35) -> 0 | AD25: =IF(#REF!=0,AD24,#REF!) ->  | AE25: =IF(#REF!=0,AE24,#REF!) ->  | AF25: =IF(#REF!=0,AF24,#REF!) -> 
Z26: =IF('Actual Wellpath'!B36=0,Z25,'Actual Wellpath'!B36) -> 0 | AA26: =IF('Actual Wellpath'!B36=0,AA25,'Actual Wellpath'!C36) -> 0 | AB26: =IF('Actual Wellpath'!B36=0,AB25,'Actual Wellpath'!D36) -> 0 | AC26: =IF('Actual Wellpath'!I36="",AC25,'Actual Wellpath'!I36) -> 0 | AD26: =IF(#REF!=0,AD25,#REF!) ->  | AE26: =IF(#REF!=0,AE25,#REF!) ->  | AF26: =IF(#REF!=0,AF25,#REF!) -> 
Z27: =IF('Actual Wellpath'!B37=0,Z26,'Actual Wellpath'!B37) -> 0 | AA27: =IF('Actual Wellpath'!B37=0,AA26,'Actual Wellpath'!C37) -> 0 | AB27: =IF('Actual Wellpath'!B37=0,AB26,'Actual Wellpath'!D37) -> 0 | AC27: =IF('Actual Wellpath'!I37="",AC26,'Actual Wellpath'!I37) -> 0 | AD27: =IF(#REF!=0,AD26,#REF!) ->  | AE27: =IF(#REF!=0,AE26,#REF!) ->  | AF27: =IF(#REF!=0,AF26,#REF!) -> 
Z28: =IF('Actual Wellpath'!B38=0,Z27,'Actual Wellpath'!B38) -> 0 | AA28: =IF('Actual Wellpath'!B38=0,AA27,'Actual Wellpath'!C38) -> 0 | AB28: =IF('Actual Wellpath'!B38=0,AB27,'Actual Wellpath'!D38) -> 0 | AC28: =IF('Actual Wellpath'!I38="",AC27,'Actual Wellpath'!I38) -> 0 | AD28: =IF(#REF!=0,AD27,#REF!) ->  | AE28: =IF(#REF!=0,AE27,#REF!) ->  | AF28: =IF(#REF!=0,AF27,#REF!) -> 
Z29: =IF('Actual Wellpath'!B39=0,Z28,'Actual Wellpath'!B39) -> 0 | AA29: =IF('Actual Wellpath'!B39=0,AA28,'Actual Wellpath'!C39) -> 0 | AB29: =IF('Actual Wellpath'!B39=0,AB28,'Actual Wellpath'!D39) -> 0 | AC29: =IF('Actual Wellpath'!I39="",AC28,'Actual Wellpath'!I39) -> 0 | AD29: =IF(#REF!=0,AD28,#REF!) ->  | AE29: =IF(#REF!=0,AE28,#REF!) ->  | AF29: =IF(#REF!=0,AF28,#REF!) -> 
Z30: =IF('Actual Wellpath'!B40=0,Z29,'Actual Wellpath'!B40) -> 0 | AA30: =IF('Actual Wellpath'!B40=0,AA29,'Actual Wellpath'!C40) -> 0 | AB30: =IF('Actual Wellpath'!B40=0,AB29,'Actual Wellpath'!D40) -> 0 | AC30: =IF('Actual Wellpath'!I40="",AC29,'Actual Wellpath'!I40) -> 0 | AD30: =IF(#REF!=0,AD29,#REF!) ->  | AE30: =IF(#REF!=0,AE29,#REF!) ->  | AF30: =IF(#REF!=0,AF29,#REF!) -> 
Z31: =IF('Actual Wellpath'!B41=0,Z30,'Actual Wellpath'!B41) -> 0 | AA31: =IF('Actual Wellpath'!B41=0,AA30,'Actual Wellpath'!C41) -> 0 | AB31: =IF('Actual Wellpath'!B41=0,AB30,'Actual Wellpath'!D41) -> 0 | AC31: =IF('Actual Wellpath'!I41="",AC30,'Actual Wellpath'!I41) -> 0 | AD31: =IF(#REF!=0,AD30,#REF!) ->  | AE31: =IF(#REF!=0,AE30,#REF!) ->  | AF31: =IF(#REF!=0,AF30,#REF!) -> 
Z32: =IF('Actual Wellpath'!B42=0,Z31,'Actual Wellpath'!B42) -> 0 | AA32: =IF('Actual Wellpath'!B42=0,AA31,'Actual Wellpath'!C42) -> 0 | AB32: =IF('Actual Wellpath'!B42=0,AB31,'Actual Wellpath'!D42) -> 0 | AC32: =IF('Actual Wellpath'!I42="",AC31,'Actual Wellpath'!I42) -> 0 | AD32: =IF(#REF!=0,AD31,#REF!) ->  | AE32: =IF(#REF!=0,AE31,#REF!) ->  | AF32: =IF(#REF!=0,AF31,#REF!) -> 
Z33: =IF('Actual Wellpath'!B43=0,Z32,'Actual Wellpath'!B43) -> 0 | AA33: =IF('Actual Wellpath'!B43=0,AA32,'Actual Wellpath'!C43) -> 0 | AB33: =IF('Actual Wellpath'!B43=0,AB32,'Actual Wellpath'!D43) -> 0 | AC33: =IF('Actual Wellpath'!I43="",AC32,'Actual Wellpath'!I43) -> 0 | AD33: =IF(#REF!=0,AD32,#REF!) ->  | AE33: =IF(#REF!=0,AE32,#REF!) ->  | AF33: =IF(#REF!=0,AF32,#REF!) -> 
Z34: =IF('Actual Wellpath'!B44=0,Z33,'Actual Wellpath'!B44) -> 0 | AA34: =IF('Actual Wellpath'!B44=0,AA33,'Actual Wellpath'!C44) -> 0 | AB34: =IF('Actual Wellpath'!B44=0,AB33,'Actual Wellpath'!D44) -> 0 | AC34: =IF('Actual Wellpath'!I44="",AC33,'Actual Wellpath'!I44) -> 0 | AD34: =IF(#REF!=0,AD33,#REF!) ->  | AE34: =IF(#REF!=0,AE33,#REF!) ->  | AF34: =IF(#REF!=0,AF33,#REF!) -> 
Z35: =IF('Actual Wellpath'!B45=0,Z34,'Actual Wellpath'!B45) -> 0 | AA35: =IF('Actual Wellpath'!B45=0,AA34,'Actual Wellpath'!C45) -> 0 | AB35: =IF('Actual Wellpath'!B45=0,AB34,'Actual Wellpath'!D45) -> 0 | AC35: =IF('Actual Wellpath'!I45="",AC34,'Actual Wellpath'!I45) -> 0 | AD35: =IF(#REF!=0,AD34,#REF!) ->  | AE35: =IF(#REF!=0,AE34,#REF!) ->  | AF35: =IF(#REF!=0,AF34,#REF!) -> 
Z36: =IF('Actual Wellpath'!B46=0,Z35,'Actual Wellpath'!B46) -> 0 | AA36: =IF('Actual Wellpath'!B46=0,AA35,'Actual Wellpath'!C46) -> 0 | AB36: =IF('Actual Wellpath'!B46=0,AB35,'Actual Wellpath'!D46) -> 0 | AC36: =IF('Actual Wellpath'!I46="",AC35,'Actual Wellpath'!I46) -> 0 | AD36: =IF(#REF!=0,AD35,#REF!) ->  | AE36: =IF(#REF!=0,AE35,#REF!) ->  | AF36: =IF(#REF!=0,AF35,#REF!) -> 
Z37: =IF('Actual Wellpath'!B47=0,Z36,'Actual Wellpath'!B47) -> 0 | AA37: =IF('Actual Wellpath'!B47=0,AA36,'Actual Wellpath'!C47) -> 0 | AB37: =IF('Actual Wellpath'!B47=0,AB36,'Actual Wellpath'!D47) -> 0 | AC37: =IF('Actual Wellpath'!I47="",AC36,'Actual Wellpath'!I47) -> 0 | AD37: =IF(#REF!=0,AD36,#REF!) ->  | AE37: =IF(#REF!=0,AE36,#REF!) ->  | AF37: =IF(#REF!=0,AF36,#REF!) -> 
Z38: =IF('Actual Wellpath'!B48=0,Z37,'Actual Wellpath'!B48) -> 0 | AA38: =IF('Actual Wellpath'!B48=0,AA37,'Actual Wellpath'!C48) -> 0 | AB38: =IF('Actual Wellpath'!B48=0,AB37,'Actual Wellpath'!D48) -> 0 | AC38: =IF('Actual Wellpath'!I48="",AC37,'Actual Wellpath'!I48) -> 0 | AD38: =IF(#REF!=0,AD37,#REF!) ->  | AE38: =IF(#REF!=0,AE37,#REF!) ->  | AF38: =IF(#REF!=0,AF37,#REF!) -> 
Z39: =IF('Actual Wellpath'!B49=0,Z38,'Actual Wellpath'!B49) -> 0 | AA39: =IF('Actual Wellpath'!B49=0,AA38,'Actual Wellpath'!C49) -> 0 | AB39: =IF('Actual Wellpath'!B49=0,AB38,'Actual Wellpath'!D49) -> 0 | AC39: =IF('Actual Wellpath'!I49="",AC38,'Actual Wellpath'!I49) -> 0 | AD39: =IF(#REF!=0,AD38,#REF!) ->  | AE39: =IF(#REF!=0,AE38,#REF!) ->  | AF39: =IF(#REF!=0,AF38,#REF!) -> 
Z40: =IF('Actual Wellpath'!B50=0,Z39,'Actual Wellpath'!B50) -> 0 | AA40: =IF('Actual Wellpath'!B50=0,AA39,'Actual Wellpath'!C50) -> 0 | AB40: =IF('Actual Wellpath'!B50=0,AB39,'Actual Wellpath'!D50) -> 0 | AC40: =IF('Actual Wellpath'!I50="",AC39,'Actual Wellpath'!I50) -> 0 | AD40: =IF(#REF!=0,AD39,#REF!) ->  | AE40: =IF(#REF!=0,AE39,#REF!) ->  | AF40: =IF(#REF!=0,AF39,#REF!) -> 
Z41: =IF('Actual Wellpath'!B51=0,Z40,'Actual Wellpath'!B51) -> 0 | AA41: =IF('Actual Wellpath'!B51=0,AA40,'Actual Wellpath'!C51) -> 0 | AB41: =IF('Actual Wellpath'!B51=0,AB40,'Actual Wellpath'!D51) -> 0 | AC41: =IF('Actual Wellpath'!I51="",AC40,'Actual Wellpath'!I51) -> 0 | AD41: =IF(#REF!=0,AD40,#REF!) ->  | AE41: =IF(#REF!=0,AE40,#REF!) ->  | AF41: =IF(#REF!=0,AF40,#REF!) -> 
Z42: =IF('Actual Wellpath'!B52=0,Z41,'Actual Wellpath'!B52) -> 0 | AA42: =IF('Actual Wellpath'!B52=0,AA41,'Actual Wellpath'!C52) -> 0 | AB42: =IF('Actual Wellpath'!B52=0,AB41,'Actual Wellpath'!D52) -> 0 | AC42: =IF('Actual Wellpath'!I52="",AC41,'Actual Wellpath'!I52) -> 0 | AD42: =IF(#REF!=0,AD41,#REF!) ->  | AE42: =IF(#REF!=0,AE41,#REF!) ->  | AF42: =IF(#REF!=0,AF41,#REF!) -> 
Z43: =IF('Actual Wellpath'!B53=0,Z42,'Actual Wellpath'!B53) -> 0 | AA43: =IF('Actual Wellpath'!B53=0,AA42,'Actual Wellpath'!C53) -> 0 | AB43: =IF('Actual Wellpath'!B53=0,AB42,'Actual Wellpath'!D53) -> 0 | AC43: =IF('Actual Wellpath'!I53="",AC42,'Actual Wellpath'!I53) -> 0 | AD43: =IF(#REF!=0,AD42,#REF!) ->  | AE43: =IF(#REF!=0,AE42,#REF!) ->  | AF43: =IF(#REF!=0,AF42,#REF!) -> 
Z44: =IF('Actual Wellpath'!B54=0,Z43,'Actual Wellpath'!B54) -> 0 | AA44: =IF('Actual Wellpath'!B54=0,AA43,'Actual Wellpath'!C54) -> 0 | AB44: =IF('Actual Wellpath'!B54=0,AB43,'Actual Wellpath'!D54) -> 0 | AC44: =IF('Actual Wellpath'!I54="",AC43,'Actual Wellpath'!I54) -> 0 | AD44: =IF(#REF!=0,AD43,#REF!) ->  | AE44: =IF(#REF!=0,AE43,#REF!) ->  | AF44: =IF(#REF!=0,AF43,#REF!) -> 
Z45: =IF('Actual Wellpath'!B55=0,Z44,'Actual Wellpath'!B55) -> 0 | AA45: =IF('Actual Wellpath'!B55=0,AA44,'Actual Wellpath'!C55) -> 0 | AB45: =IF('Actual Wellpath'!B55=0,AB44,'Actual Wellpath'!D55) -> 0 | AC45: =IF('Actual Wellpath'!I55="",AC44,'Actual Wellpath'!I55) -> 0 | AD45: =IF(#REF!=0,AD44,#REF!) ->  | AE45: =IF(#REF!=0,AE44,#REF!) ->  | AF45: =IF(#REF!=0,AF44,#REF!) -> 
Z46: =IF('Actual Wellpath'!B56=0,Z45,'Actual Wellpath'!B56) -> 0 | AA46: =IF('Actual Wellpath'!B56=0,AA45,'Actual Wellpath'!C56) -> 0 | AB46: =IF('Actual Wellpath'!B56=0,AB45,'Actual Wellpath'!D56) -> 0 | AC46: =IF('Actual Wellpath'!I56="",AC45,'Actual Wellpath'!I56) -> 0 | AD46: =IF(#REF!=0,AD45,#REF!) ->  | AE46: =IF(#REF!=0,AE45,#REF!) ->  | AF46: =IF(#REF!=0,AF45,#REF!) -> 
Z47: =IF('Actual Wellpath'!B57=0,Z46,'Actual Wellpath'!B57) -> 0 | AA47: =IF('Actual Wellpath'!B57=0,AA46,'Actual Wellpath'!C57) -> 0 | AB47: =IF('Actual Wellpath'!B57=0,AB46,'Actual Wellpath'!D57) -> 0 | AC47: =IF('Actual Wellpath'!I57="",AC46,'Actual Wellpath'!I57) -> 0 | AD47: =IF(#REF!=0,AD46,#REF!) ->  | AE47: =IF(#REF!=0,AE46,#REF!) ->  | AF47: =IF(#REF!=0,AF46,#REF!) -> 
Z48: =IF('Actual Wellpath'!B58=0,Z47,'Actual Wellpath'!B58) -> 0 | AA48: =IF('Actual Wellpath'!B58=0,AA47,'Actual Wellpath'!C58) -> 0 | AB48: =IF('Actual Wellpath'!B58=0,AB47,'Actual Wellpath'!D58) -> 0 | AC48: =IF('Actual Wellpath'!I58="",AC47,'Actual Wellpath'!I58) -> 0 | AD48: =IF(#REF!=0,AD47,#REF!) ->  | AE48: =IF(#REF!=0,AE47,#REF!) ->  | AF48: =IF(#REF!=0,AF47,#REF!) -> 
Z49: =IF('Actual Wellpath'!B59=0,Z48,'Actual Wellpath'!B59) -> 0 | AA49: =IF('Actual Wellpath'!B59=0,AA48,'Actual Wellpath'!C59) -> 0 | AB49: =IF('Actual Wellpath'!B59=0,AB48,'Actual Wellpath'!D59) -> 0 | AC49: =IF('Actual Wellpath'!I59="",AC48,'Actual Wellpath'!I59) -> 0 | AD49: =IF(#REF!=0,AD48,#REF!) ->  | AE49: =IF(#REF!=0,AE48,#REF!) ->  | AF49: =IF(#REF!=0,AF48,#REF!) -> 
Z50: =IF('Actual Wellpath'!B60=0,Z49,'Actual Wellpath'!B60) -> 0 | AA50: =IF('Actual Wellpath'!B60=0,AA49,'Actual Wellpath'!C60) -> 0 | AB50: =IF('Actual Wellpath'!B60=0,AB49,'Actual Wellpath'!D60) -> 0 | AC50: =IF('Actual Wellpath'!I60="",AC49,'Actual Wellpath'!I60) -> 0 | AD50: =IF(#REF!=0,AD49,#REF!) ->  | AE50: =IF(#REF!=0,AE49,#REF!) ->  | AF50: =IF(#REF!=0,AF49,#REF!) -> 
Z51: =IF('Actual Wellpath'!B61=0,Z50,'Actual Wellpath'!B61) -> 0 | AA51: =IF('Actual Wellpath'!B61=0,AA50,'Actual Wellpath'!C61) -> 0 | AB51: =IF('Actual Wellpath'!B61=0,AB50,'Actual Wellpath'!D61) -> 0 | AC51: =IF('Actual Wellpath'!I61="",AC50,'Actual Wellpath'!I61) -> 0 | AD51: =IF(#REF!=0,AD50,#REF!) ->  | AE51: =IF(#REF!=0,AE50,#REF!) ->  | AF51: =IF(#REF!=0,AF50,#REF!) -> 
Z52: =IF('Actual Wellpath'!B62=0,Z51,'Actual Wellpath'!B62) -> 0 | AA52: =IF('Actual Wellpath'!B62=0,AA51,'Actual Wellpath'!C62) -> 0 | AB52: =IF('Actual Wellpath'!B62=0,AB51,'Actual Wellpath'!D62) -> 0 | AC52: =IF('Actual Wellpath'!I62="",AC51,'Actual Wellpath'!I62) -> 0 | AD52: =IF(#REF!=0,AD51,#REF!) ->  | AE52: =IF(#REF!=0,AE51,#REF!) ->  | AF52: =IF(#REF!=0,AF51,#REF!) -> 
Z53: =IF('Actual Wellpath'!B63=0,Z52,'Actual Wellpath'!B63) -> 0 | AA53: =IF('Actual Wellpath'!B63=0,AA52,'Actual Wellpath'!C63) -> 0 | AB53: =IF('Actual Wellpath'!B63=0,AB52,'Actual Wellpath'!D63) -> 0 | AC53: =IF('Actual Wellpath'!I63="",AC52,'Actual Wellpath'!I63) -> 0 | AD53: =IF(#REF!=0,AD52,#REF!) ->  | AE53: =IF(#REF!=0,AE52,#REF!) ->  | AF53: =IF(#REF!=0,AF52,#REF!) -> 
Z54: =IF('Actual Wellpath'!B64=0,Z53,'Actual Wellpath'!B64) -> 0 | AA54: =IF('Actual Wellpath'!B64=0,AA53,'Actual Wellpath'!C64) -> 0 | AB54: =IF('Actual Wellpath'!B64=0,AB53,'Actual Wellpath'!D64) -> 0 | AC54: =IF('Actual Wellpath'!I64="",AC53,'Actual Wellpath'!I64) -> 0 | AD54: =IF(#REF!=0,AD53,#REF!) ->  | AE54: =IF(#REF!=0,AE53,#REF!) ->  | AF54: =IF(#REF!=0,AF53,#REF!) -> 
Z55: =IF('Actual Wellpath'!B65=0,Z54,'Actual Wellpath'!B65) -> 0 | AA55: =IF('Actual Wellpath'!B65=0,AA54,'Actual Wellpath'!C65) -> 0 | AB55: =IF('Actual Wellpath'!B65=0,AB54,'Actual Wellpath'!D65) -> 0 | AC55: =IF('Actual Wellpath'!I65="",AC54,'Actual Wellpath'!I65) -> 0 | AD55: =IF(#REF!=0,AD54,#REF!) ->  | AE55: =IF(#REF!=0,AE54,#REF!) ->  | AF55: =IF(#REF!=0,AF54,#REF!) -> 
Z56: =IF('Actual Wellpath'!B66=0,Z55,'Actual Wellpath'!B66) -> 0 | AA56: =IF('Actual Wellpath'!B66=0,AA55,'Actual Wellpath'!C66) -> 0 | AB56: =IF('Actual Wellpath'!B66=0,AB55,'Actual Wellpath'!D66) -> 0 | AC56: =IF('Actual Wellpath'!I66="",AC55,'Actual Wellpath'!I66) -> 0 | AD56: =IF(#REF!=0,AD55,#REF!) ->  | AE56: =IF(#REF!=0,AE55,#REF!) ->  | AF56: =IF(#REF!=0,AF55,#REF!) -> 
Z57: =IF('Actual Wellpath'!B67=0,Z56,'Actual Wellpath'!B67) -> 0 | AA57: =IF('Actual Wellpath'!B67=0,AA56,'Actual Wellpath'!C67) -> 0 | AB57: =IF('Actual Wellpath'!B67=0,AB56,'Actual Wellpath'!D67) -> 0 | AC57: =IF('Actual Wellpath'!I67="",AC56,'Actual Wellpath'!I67) -> 0 | AD57: =IF(#REF!=0,AD56,#REF!) ->  | AE57: =IF(#REF!=0,AE56,#REF!) ->  | AF57: =IF(#REF!=0,AF56,#REF!) -> 
Z58: =IF('Actual Wellpath'!B68=0,Z57,'Actual Wellpath'!B68) -> 0 | AA58: =IF('Actual Wellpath'!B68=0,AA57,'Actual Wellpath'!C68) -> 0 | AB58: =IF('Actual Wellpath'!B68=0,AB57,'Actual Wellpath'!D68) -> 0 | AC58: =IF('Actual Wellpath'!I68="",AC57,'Actual Wellpath'!I68) -> 0 | AD58: =IF(#REF!=0,AD57,#REF!) ->  | AE58: =IF(#REF!=0,AE57,#REF!) ->  | AF58: =IF(#REF!=0,AF57,#REF!) -> 
Z59: =IF('Actual Wellpath'!B69=0,Z58,'Actual Wellpath'!B69) -> 0 | AA59: =IF('Actual Wellpath'!B69=0,AA58,'Actual Wellpath'!C69) -> 0 | AB59: =IF('Actual Wellpath'!B69=0,AB58,'Actual Wellpath'!D69) -> 0 | AC59: =IF('Actual Wellpath'!I69="",AC58,'Actual Wellpath'!I69) -> 0 | AD59: =IF(#REF!=0,AD58,#REF!) ->  | AE59: =IF(#REF!=0,AE58,#REF!) ->  | AF59: =IF(#REF!=0,AF58,#REF!) -> 
Z60: =IF('Actual Wellpath'!B70=0,Z59,'Actual Wellpath'!B70) -> 0 | AA60: =IF('Actual Wellpath'!B70=0,AA59,'Actual Wellpath'!C70) -> 0 | AB60: =IF('Actual Wellpath'!B70=0,AB59,'Actual Wellpath'!D70) -> 0 | AC60: =IF('Actual Wellpath'!I70="",AC59,'Actual Wellpath'!I70) -> 0 | AD60: =IF(#REF!=0,AD59,#REF!) ->  | AE60: =IF(#REF!=0,AE59,#REF!) ->  | AF60: =IF(#REF!=0,AF59,#REF!) -> 
Z61: =IF('Actual Wellpath'!B71=0,Z60,'Actual Wellpath'!B71) -> 0 | AA61: =IF('Actual Wellpath'!B71=0,AA60,'Actual Wellpath'!C71) -> 0 | AB61: =IF('Actual Wellpath'!B71=0,AB60,'Actual Wellpath'!D71) -> 0 | AC61: =IF('Actual Wellpath'!I71="",AC60,'Actual Wellpath'!I71) -> 0 | AD61: =IF(#REF!=0,AD60,#REF!) ->  | AE61: =IF(#REF!=0,AE60,#REF!) ->  | AF61: =IF(#REF!=0,AF60,#REF!) -> 
Z62: =IF('Actual Wellpath'!B72=0,Z61,'Actual Wellpath'!B72) -> 0 | AA62: =IF('Actual Wellpath'!B72=0,AA61,'Actual Wellpath'!C72) -> 0 | AB62: =IF('Actual Wellpath'!B72=0,AB61,'Actual Wellpath'!D72) -> 0 | AC62: =IF('Actual Wellpath'!I72="",AC61,'Actual Wellpath'!I72) -> 0 | AD62: =IF(#REF!=0,AD61,#REF!) ->  | AE62: =IF(#REF!=0,AE61,#REF!) ->  | AF62: =IF(#REF!=0,AF61,#REF!) -> 
Z63: =IF('Actual Wellpath'!B73=0,Z62,'Actual Wellpath'!B73) -> 0 | AA63: =IF('Actual Wellpath'!B73=0,AA62,'Actual Wellpath'!C73) -> 0 | AB63: =IF('Actual Wellpath'!B73=0,AB62,'Actual Wellpath'!D73) -> 0 | AC63: =IF('Actual Wellpath'!I73="",AC62,'Actual Wellpath'!I73) -> 0 | AD63: =IF(#REF!=0,AD62,#REF!) ->  | AE63: =IF(#REF!=0,AE62,#REF!) ->  | AF63: =IF(#REF!=0,AF62,#REF!) -> 
Z64: =IF('Actual Wellpath'!B74=0,Z63,'Actual Wellpath'!B74) -> 0 | AA64: =IF('Actual Wellpath'!B74=0,AA63,'Actual Wellpath'!C74) -> 0 | AB64: =IF('Actual Wellpath'!B74=0,AB63,'Actual Wellpath'!D74) -> 0 | AC64: =IF('Actual Wellpath'!I74="",AC63,'Actual Wellpath'!I74) -> 0 | AD64: =IF(#REF!=0,AD63,#REF!) ->  | AE64: =IF(#REF!=0,AE63,#REF!) ->  | AF64: =IF(#REF!=0,AF63,#REF!) -> 
Z65: =IF('Actual Wellpath'!B75=0,Z64,'Actual Wellpath'!B75) -> 0 | AA65: =IF('Actual Wellpath'!B75=0,AA64,'Actual Wellpath'!C75) -> 0 | AB65: =IF('Actual Wellpath'!B75=0,AB64,'Actual Wellpath'!D75) -> 0 | AC65: =IF('Actual Wellpath'!I75="",AC64,'Actual Wellpath'!I75) -> 0 | AD65: =IF(#REF!=0,AD64,#REF!) ->  | AE65: =IF(#REF!=0,AE64,#REF!) ->  | AF65: =IF(#REF!=0,AF64,#REF!) -> 
Z66: =IF('Actual Wellpath'!B76=0,Z65,'Actual Wellpath'!B76) -> 0 | AA66: =IF('Actual Wellpath'!B76=0,AA65,'Actual Wellpath'!C76) -> 0 | AB66: =IF('Actual Wellpath'!B76=0,AB65,'Actual Wellpath'!D76) -> 0 | AC66: =IF('Actual Wellpath'!I76="",AC65,'Actual Wellpath'!I76) -> 0 | AD66: =IF(#REF!=0,AD65,#REF!) ->  | AE66: =IF(#REF!=0,AE65,#REF!) ->  | AF66: =IF(#REF!=0,AF65,#REF!) -> 
Z67: =IF('Actual Wellpath'!B77=0,Z66,'Actual Wellpath'!B77) -> 0 | AA67: =IF('Actual Wellpath'!B77=0,AA66,'Actual Wellpath'!C77) -> 0 | AB67: =IF('Actual Wellpath'!B77=0,AB66,'Actual Wellpath'!D77) -> 0 | AC67: =IF('Actual Wellpath'!I77="",AC66,'Actual Wellpath'!I77) -> 0 | AD67: =IF(#REF!=0,AD66,#REF!) ->  | AE67: =IF(#REF!=0,AE66,#REF!) ->  | AF67: =IF(#REF!=0,AF66,#REF!) -> 
Z68: =IF('Actual Wellpath'!B78=0,Z67,'Actual Wellpath'!B78) -> 0 | AA68: =IF('Actual Wellpath'!B78=0,AA67,'Actual Wellpath'!C78) -> 0 | AB68: =IF('Actual Wellpath'!B78=0,AB67,'Actual Wellpath'!D78) -> 0 | AC68: =IF('Actual Wellpath'!I78="",AC67,'Actual Wellpath'!I78) -> 0 | AD68: =IF(#REF!=0,AD67,#REF!) ->  | AE68: =IF(#REF!=0,AE67,#REF!) ->  | AF68: =IF(#REF!=0,AF67,#REF!) -> 
Z69: =IF('Actual Wellpath'!B79=0,Z68,'Actual Wellpath'!B79) -> 0 | AA69: =IF('Actual Wellpath'!B79=0,AA68,'Actual Wellpath'!C79) -> 0 | AB69: =IF('Actual Wellpath'!B79=0,AB68,'Actual Wellpath'!D79) -> 0 | AC69: =IF('Actual Wellpath'!I79="",AC68,'Actual Wellpath'!I79) -> 0 | AD69: =IF(#REF!=0,AD68,#REF!) ->  | AE69: =IF(#REF!=0,AE68,#REF!) ->  | AF69: =IF(#REF!=0,AF68,#REF!) -> 
Z70: =IF('Actual Wellpath'!B80=0,Z69,'Actual Wellpath'!B80) -> 0 | AA70: =IF('Actual Wellpath'!B80=0,AA69,'Actual Wellpath'!C80) -> 0 | AB70: =IF('Actual Wellpath'!B80=0,AB69,'Actual Wellpath'!D80) -> 0 | AC70: =IF('Actual Wellpath'!I80="",AC69,'Actual Wellpath'!I80) -> 0 | AD70: =IF(#REF!=0,AD69,#REF!) ->  | AE70: =IF(#REF!=0,AE69,#REF!) ->  | AF70: =IF(#REF!=0,AF69,#REF!) -> 
Z71: =IF('Actual Wellpath'!B81=0,Z70,'Actual Wellpath'!B81) -> 0 | AA71: =IF('Actual Wellpath'!B81=0,AA70,'Actual Wellpath'!C81) -> 0 | AB71: =IF('Actual Wellpath'!B81=0,AB70,'Actual Wellpath'!D81) -> 0 | AC71: =IF('Actual Wellpath'!I81="",AC70,'Actual Wellpath'!I81) -> 0 | AD71: =IF(#REF!=0,AD70,#REF!) ->  | AE71: =IF(#REF!=0,AE70,#REF!) ->  | AF71: =IF(#REF!=0,AF70,#REF!) -> 
Z72: =IF('Actual Wellpath'!B82=0,Z71,'Actual Wellpath'!B82) -> 0 | AA72: =IF('Actual Wellpath'!B82=0,AA71,'Actual Wellpath'!C82) -> 0 | AB72: =IF('Actual Wellpath'!B82=0,AB71,'Actual Wellpath'!D82) -> 0 | AC72: =IF('Actual Wellpath'!I82="",AC71,'Actual Wellpath'!I82) -> 0 | AD72: =IF(#REF!=0,AD71,#REF!) ->  | AE72: =IF(#REF!=0,AE71,#REF!) ->  | AF72: =IF(#REF!=0,AF71,#REF!) -> 
Z73: =IF('Actual Wellpath'!B83=0,Z72,'Actual Wellpath'!B83) -> 0 | AA73: =IF('Actual Wellpath'!B83=0,AA72,'Actual Wellpath'!C83) -> 0 | AB73: =IF('Actual Wellpath'!B83=0,AB72,'Actual Wellpath'!D83) -> 0 | AC73: =IF('Actual Wellpath'!I83="",AC72,'Actual Wellpath'!I83) -> 0 | AD73: =IF(#REF!=0,AD72,#REF!) ->  | AE73: =IF(#REF!=0,AE72,#REF!) ->  | AF73: =IF(#REF!=0,AF72,#REF!) -> 
Z74: =IF('Actual Wellpath'!B84=0,Z73,'Actual Wellpath'!B84) -> 0 | AA74: =IF('Actual Wellpath'!B84=0,AA73,'Actual Wellpath'!C84) -> 0 | AB74: =IF('Actual Wellpath'!B84=0,AB73,'Actual Wellpath'!D84) -> 0 | AC74: =IF('Actual Wellpath'!I84="",AC73,'Actual Wellpath'!I84) -> 0 | AD74: =IF(#REF!=0,AD73,#REF!) ->  | AE74: =IF(#REF!=0,AE73,#REF!) ->  | AF74: =IF(#REF!=0,AF73,#REF!) -> 
Z75: =IF('Actual Wellpath'!B85=0,Z74,'Actual Wellpath'!B85) -> 0 | AA75: =IF('Actual Wellpath'!B85=0,AA74,'Actual Wellpath'!C85) -> 0 | AB75: =IF('Actual Wellpath'!B85=0,AB74,'Actual Wellpath'!D85) -> 0 | AC75: =IF('Actual Wellpath'!I85="",AC74,'Actual Wellpath'!I85) -> 0 | AD75: =IF(#REF!=0,AD74,#REF!) ->  | AE75: =IF(#REF!=0,AE74,#REF!) ->  | AF75: =IF(#REF!=0,AF74,#REF!) -> 
Z76: =IF('Actual Wellpath'!B86=0,Z75,'Actual Wellpath'!B86) -> 0 | AA76: =IF('Actual Wellpath'!B86=0,AA75,'Actual Wellpath'!C86) -> 0 | AB76: =IF('Actual Wellpath'!B86=0,AB75,'Actual Wellpath'!D86) -> 0 | AC76: =IF('Actual Wellpath'!I86="",AC75,'Actual Wellpath'!I86) -> 0 | AD76: =IF(#REF!=0,AD75,#REF!) ->  | AE76: =IF(#REF!=0,AE75,#REF!) ->  | AF76: =IF(#REF!=0,AF75,#REF!) -> 
Z77: =IF('Actual Wellpath'!B87=0,Z76,'Actual Wellpath'!B87) -> 0 | AA77: =IF('Actual Wellpath'!B87=0,AA76,'Actual Wellpath'!C87) -> 0 | AB77: =IF('Actual Wellpath'!B87=0,AB76,'Actual Wellpath'!D87) -> 0 | AC77: =IF('Actual Wellpath'!I87="",AC76,'Actual Wellpath'!I87) -> 0 | AD77: =IF(#REF!=0,AD76,#REF!) ->  | AE77: =IF(#REF!=0,AE76,#REF!) ->  | AF77: =IF(#REF!=0,AF76,#REF!) -> 
Z78: =IF('Actual Wellpath'!B88=0,Z77,'Actual Wellpath'!B88) -> 0 | AA78: =IF('Actual Wellpath'!B88=0,AA77,'Actual Wellpath'!C88) -> 0 | AB78: =IF('Actual Wellpath'!B88=0,AB77,'Actual Wellpath'!D88) -> 0 | AC78: =IF('Actual Wellpath'!I88="",AC77,'Actual Wellpath'!I88) -> 0 | AD78: =IF(#REF!=0,AD77,#REF!) ->  | AE78: =IF(#REF!=0,AE77,#REF!) ->  | AF78: =IF(#REF!=0,AF77,#REF!) -> 
Z79: =IF('Actual Wellpath'!B89=0,Z78,'Actual Wellpath'!B89) -> 0 | AA79: =IF('Actual Wellpath'!B89=0,AA78,'Actual Wellpath'!C89) -> 0 | AB79: =IF('Actual Wellpath'!B89=0,AB78,'Actual Wellpath'!D89) -> 0 | AC79: =IF('Actual Wellpath'!I89="",AC78,'Actual Wellpath'!I89) -> 0 | AD79: =IF(#REF!=0,AD78,#REF!) ->  | AE79: =IF(#REF!=0,AE78,#REF!) ->  | AF79: =IF(#REF!=0,AF78,#REF!) -> 
Z80: =IF('Actual Wellpath'!B90=0,Z79,'Actual Wellpath'!B90) -> 0 | AA80: =IF('Actual Wellpath'!B90=0,AA79,'Actual Wellpath'!C90) -> 0 | AB80: =IF('Actual Wellpath'!B90=0,AB79,'Actual Wellpath'!D90) -> 0 | AC80: =IF('Actual Wellpath'!I90="",AC79,'Actual Wellpath'!I90) -> 0 | AD80: =IF(#REF!=0,AD79,#REF!) ->  | AE80: =IF(#REF!=0,AE79,#REF!) ->  | AF80: =IF(#REF!=0,AF79,#REF!) -> 
Z81: =IF('Actual Wellpath'!B91=0,Z80,'Actual Wellpath'!B91) -> 0 | AA81: =IF('Actual Wellpath'!B91=0,AA80,'Actual Wellpath'!C91) -> 0 | AB81: =IF('Actual Wellpath'!B91=0,AB80,'Actual Wellpath'!D91) -> 0 | AC81: =IF('Actual Wellpath'!I91="",AC80,'Actual Wellpath'!I91) -> 0 | AD81: =IF(#REF!=0,AD80,#REF!) ->  | AE81: =IF(#REF!=0,AE80,#REF!) ->  | AF81: =IF(#REF!=0,AF80,#REF!) -> 
Z82: =IF('Actual Wellpath'!B92=0,Z81,'Actual Wellpath'!B92) -> 0 | AA82: =IF('Actual Wellpath'!B92=0,AA81,'Actual Wellpath'!C92) -> 0 | AB82: =IF('Actual Wellpath'!B92=0,AB81,'Actual Wellpath'!D92) -> 0 | AC82: =IF('Actual Wellpath'!I92="",AC81,'Actual Wellpath'!I92) -> 0 | AD82: =IF(#REF!=0,AD81,#REF!) ->  | AE82: =IF(#REF!=0,AE81,#REF!) ->  | AF82: =IF(#REF!=0,AF81,#REF!) -> 
Z83: =IF('Actual Wellpath'!B93=0,Z82,'Actual Wellpath'!B93) -> 0 | AA83: =IF('Actual Wellpath'!B93=0,AA82,'Actual Wellpath'!C93) -> 0 | AB83: =IF('Actual Wellpath'!B93=0,AB82,'Actual Wellpath'!D93) -> 0 | AC83: =IF('Actual Wellpath'!I93="",AC82,'Actual Wellpath'!I93) -> 0 | AD83: =IF(#REF!=0,AD82,#REF!) ->  | AE83: =IF(#REF!=0,AE82,#REF!) ->  | AF83: =IF(#REF!=0,AF82,#REF!) -> 
Z84: =IF('Actual Wellpath'!B94=0,Z83,'Actual Wellpath'!B94) -> 0 | AA84: =IF('Actual Wellpath'!B94=0,AA83,'Actual Wellpath'!C94) -> 0 | AB84: =IF('Actual Wellpath'!B94=0,AB83,'Actual Wellpath'!D94) -> 0 | AC84: =IF('Actual Wellpath'!I94="",AC83,'Actual Wellpath'!I94) -> 0 | AD84: =IF(#REF!=0,AD83,#REF!) ->  | AE84: =IF(#REF!=0,AE83,#REF!) ->  | AF84: =IF(#REF!=0,AF83,#REF!) -> 
Z85: =IF('Actual Wellpath'!B95=0,Z84,'Actual Wellpath'!B95) -> 0 | AA85: =IF('Actual Wellpath'!B95=0,AA84,'Actual Wellpath'!C95) -> 0 | AB85: =IF('Actual Wellpath'!B95=0,AB84,'Actual Wellpath'!D95) -> 0 | AC85: =IF('Actual Wellpath'!I95="",AC84,'Actual Wellpath'!I95) -> 0 | AD85: =IF(#REF!=0,AD84,#REF!) ->  | AE85: =IF(#REF!=0,AE84,#REF!) ->  | AF85: =IF(#REF!=0,AF84,#REF!) -> 
Z86: =IF('Actual Wellpath'!B96=0,Z85,'Actual Wellpath'!B96) -> 0 | AA86: =IF('Actual Wellpath'!B96=0,AA85,'Actual Wellpath'!C96) -> 0 | AB86: =IF('Actual Wellpath'!B96=0,AB85,'Actual Wellpath'!D96) -> 0 | AC86: =IF('Actual Wellpath'!I96="",AC85,'Actual Wellpath'!I96) -> 0 | AD86: =IF(#REF!=0,AD85,#REF!) ->  | AE86: =IF(#REF!=0,AE85,#REF!) ->  | AF86: =IF(#REF!=0,AF85,#REF!) -> 
Z87: =IF('Actual Wellpath'!B97=0,Z86,'Actual Wellpath'!B97) -> 0 | AA87: =IF('Actual Wellpath'!B97=0,AA86,'Actual Wellpath'!C97) -> 0 | AB87: =IF('Actual Wellpath'!B97=0,AB86,'Actual Wellpath'!D97) -> 0 | AC87: =IF('Actual Wellpath'!I97="",AC86,'Actual Wellpath'!I97) -> 0 | AD87: =IF(#REF!=0,AD86,#REF!) ->  | AE87: =IF(#REF!=0,AE86,#REF!) ->  | AF87: =IF(#REF!=0,AF86,#REF!) -> 
Z88: =IF('Actual Wellpath'!B98=0,Z87,'Actual Wellpath'!B98) -> 0 | AA88: =IF('Actual Wellpath'!B98=0,AA87,'Actual Wellpath'!C98) -> 0 | AB88: =IF('Actual Wellpath'!B98=0,AB87,'Actual Wellpath'!D98) -> 0 | AC88: =IF('Actual Wellpath'!I98="",AC87,'Actual Wellpath'!I98) -> 0 | AD88: =IF(#REF!=0,AD87,#REF!) ->  | AE88: =IF(#REF!=0,AE87,#REF!) ->  | AF88: =IF(#REF!=0,AF87,#REF!) -> 
Z89: =IF('Actual Wellpath'!B99=0,Z88,'Actual Wellpath'!B99) -> 0 | AA89: =IF('Actual Wellpath'!B99=0,AA88,'Actual Wellpath'!C99) -> 0 | AB89: =IF('Actual Wellpath'!B99=0,AB88,'Actual Wellpath'!D99) -> 0 | AC89: =IF('Actual Wellpath'!I99="",AC88,'Actual Wellpath'!I99) -> 0 | AD89: =IF(#REF!=0,AD88,#REF!) ->  | AE89: =IF(#REF!=0,AE88,#REF!) ->  | AF89: =IF(#REF!=0,AF88,#REF!) -> 
Z90: =IF('Actual Wellpath'!B100=0,Z89,'Actual Wellpath'!B100) -> 0 | AA90: =IF('Actual Wellpath'!B100=0,AA89,'Actual Wellpath'!C100) -> 0 | AB90: =IF('Actual Wellpath'!B100=0,AB89,'Actual Wellpath'!D100) -> 0 | AC90: =IF('Actual Wellpath'!I100="",AC89,'Actual Wellpath'!I100) -> 0 | AD90: =IF(#REF!=0,AD89,#REF!) ->  | AE90: =IF(#REF!=0,AE89,#REF!) ->  | AF90: =IF(#REF!=0,AF89,#REF!) -> 
Z91: =IF('Actual Wellpath'!B101=0,Z90,'Actual Wellpath'!B101) -> 0 | AA91: =IF('Actual Wellpath'!B101=0,AA90,'Actual Wellpath'!C101) -> 0 | AB91: =IF('Actual Wellpath'!B101=0,AB90,'Actual Wellpath'!D101) -> 0 | AC91: =IF('Actual Wellpath'!I101="",AC90,'Actual Wellpath'!I101) -> 0 | AD91: =IF(#REF!=0,AD90,#REF!) ->  | AE91: =IF(#REF!=0,AE90,#REF!) ->  | AF91: =IF(#REF!=0,AF90,#REF!) -> 
Z92: =IF('Actual Wellpath'!B102=0,Z91,'Actual Wellpath'!B102) -> 0 | AA92: =IF('Actual Wellpath'!B102=0,AA91,'Actual Wellpath'!C102) -> 0 | AB92: =IF('Actual Wellpath'!B102=0,AB91,'Actual Wellpath'!D102) -> 0 | AC92: =IF('Actual Wellpath'!I102="",AC91,'Actual Wellpath'!I102) -> 0 | AD92: =IF(#REF!=0,AD91,#REF!) ->  | AE92: =IF(#REF!=0,AE91,#REF!) ->  | AF92: =IF(#REF!=0,AF91,#REF!) -> 
Z93: =IF('Actual Wellpath'!B103=0,Z92,'Actual Wellpath'!B103) -> 0 | AA93: =IF('Actual Wellpath'!B103=0,AA92,'Actual Wellpath'!C103) -> 0 | AB93: =IF('Actual Wellpath'!B103=0,AB92,'Actual Wellpath'!D103) -> 0 | AC93: =IF('Actual Wellpath'!I103="",AC92,'Actual Wellpath'!I103) -> 0 | AD93: =IF(#REF!=0,AD92,#REF!) ->  | AE93: =IF(#REF!=0,AE92,#REF!) ->  | AF93: =IF(#REF!=0,AF92,#REF!) -> 
Z94: =IF('Actual Wellpath'!B104=0,Z93,'Actual Wellpath'!B104) -> 0 | AA94: =IF('Actual Wellpath'!B104=0,AA93,'Actual Wellpath'!C104) -> 0 | AB94: =IF('Actual Wellpath'!B104=0,AB93,'Actual Wellpath'!D104) -> 0 | AC94: =IF('Actual Wellpath'!I104="",AC93,'Actual Wellpath'!I104) -> 0 | AD94: =IF(#REF!=0,AD93,#REF!) ->  | AE94: =IF(#REF!=0,AE93,#REF!) ->  | AF94: =IF(#REF!=0,AF93,#REF!) -> 
Z95: =IF('Actual Wellpath'!B105=0,Z94,'Actual Wellpath'!B105) -> 0 | AA95: =IF('Actual Wellpath'!B105=0,AA94,'Actual Wellpath'!C105) -> 0 | AB95: =IF('Actual Wellpath'!B105=0,AB94,'Actual Wellpath'!D105) -> 0 | AC95: =IF('Actual Wellpath'!I105="",AC94,'Actual Wellpath'!I105) -> 0 | AD95: =IF(#REF!=0,AD94,#REF!) ->  | AE95: =IF(#REF!=0,AE94,#REF!) ->  | AF95: =IF(#REF!=0,AF94,#REF!) -> 
Z96: =IF('Actual Wellpath'!B106=0,Z95,'Actual Wellpath'!B106) -> 0 | AA96: =IF('Actual Wellpath'!B106=0,AA95,'Actual Wellpath'!C106) -> 0 | AB96: =IF('Actual Wellpath'!B106=0,AB95,'Actual Wellpath'!D106) -> 0 | AC96: =IF('Actual Wellpath'!I106="",AC95,'Actual Wellpath'!I106) -> 0 | AD96: =IF(#REF!=0,AD95,#REF!) ->  | AE96: =IF(#REF!=0,AE95,#REF!) ->  | AF96: =IF(#REF!=0,AF95,#REF!) -> 
Z97: =IF('Actual Wellpath'!B107=0,Z96,'Actual Wellpath'!B107) -> 0 | AA97: =IF('Actual Wellpath'!B107=0,AA96,'Actual Wellpath'!C107) -> 0 | AB97: =IF('Actual Wellpath'!B107=0,AB96,'Actual Wellpath'!D107) -> 0 | AC97: =IF('Actual Wellpath'!I107="",AC96,'Actual Wellpath'!I107) -> 0 | AD97: =IF(#REF!=0,AD96,#REF!) ->  | AE97: =IF(#REF!=0,AE96,#REF!) ->  | AF97: =IF(#REF!=0,AF96,#REF!) -> 
Z98: =IF('Actual Wellpath'!B108=0,Z97,'Actual Wellpath'!B108) -> 0 | AA98: =IF('Actual Wellpath'!B108=0,AA97,'Actual Wellpath'!C108) -> 0 | AB98: =IF('Actual Wellpath'!B108=0,AB97,'Actual Wellpath'!D108) -> 0 | AC98: =IF('Actual Wellpath'!I108="",AC97,'Actual Wellpath'!I108) -> 0 | AD98: =IF(#REF!=0,AD97,#REF!) ->  | AE98: =IF(#REF!=0,AE97,#REF!) ->  | AF98: =IF(#REF!=0,AF97,#REF!) -> 
Z99: =IF('Actual Wellpath'!B109=0,Z98,'Actual Wellpath'!B109) -> 0 | AA99: =IF('Actual Wellpath'!B109=0,AA98,'Actual Wellpath'!C109) -> 0 | AB99: =IF('Actual Wellpath'!B109=0,AB98,'Actual Wellpath'!D109) -> 0 | AC99: =IF('Actual Wellpath'!I109="",AC98,'Actual Wellpath'!I109) -> 0 | AD99: =IF(#REF!=0,AD98,#REF!) ->  | AE99: =IF(#REF!=0,AE98,#REF!) ->  | AF99: =IF(#REF!=0,AF98,#REF!) -> 
Z100: =IF('Actual Wellpath'!B110=0,Z99,'Actual Wellpath'!B110) -> 0 | AA100: =IF('Actual Wellpath'!B110=0,AA99,'Actual Wellpath'!C110) -> 0 | AB100: =IF('Actual Wellpath'!B110=0,AB99,'Actual Wellpath'!D110) -> 0 | AC100: =IF('Actual Wellpath'!I110="",AC99,'Actual Wellpath'!I110) -> 0 | AD100: =IF(#REF!=0,AD99,#REF!) ->  | AE100: =IF(#REF!=0,AE99,#REF!) ->  | AF100: =IF(#REF!=0,AF99,#REF!) -> 
Z101: =IF('Actual Wellpath'!B111=0,Z100,'Actual Wellpath'!B111) -> 0 | AA101: =IF('Actual Wellpath'!B111=0,AA100,'Actual Wellpath'!C111) -> 0 | AB101: =IF('Actual Wellpath'!B111=0,AB100,'Actual Wellpath'!D111) -> 0 | AC101: =IF('Actual Wellpath'!I111="",AC100,'Actual Wellpath'!I111) -> 0 | AD101: =IF(#REF!=0,AD100,#REF!) ->  | AE101: =IF(#REF!=0,AE100,#REF!) ->  | AF101: =IF(#REF!=0,AF100,#REF!) -> 
Z102: =IF('Actual Wellpath'!B112=0,Z101,'Actual Wellpath'!B112) -> 0 | AA102: =IF('Actual Wellpath'!B112=0,AA101,'Actual Wellpath'!C112) -> 0 | AB102: =IF('Actual Wellpath'!B112=0,AB101,'Actual Wellpath'!D112) -> 0 | AC102: =IF('Actual Wellpath'!I112="",AC101,'Actual Wellpath'!I112) -> 0 | AD102: =IF(#REF!=0,AD101,#REF!) ->  | AE102: =IF(#REF!=0,AE101,#REF!) ->  | AF102: =IF(#REF!=0,AF101,#REF!) -> 
Z103: =IF('Actual Wellpath'!B113=0,Z102,'Actual Wellpath'!B113) -> 0 | AA103: =IF('Actual Wellpath'!B113=0,AA102,'Actual Wellpath'!C113) -> 0 | AB103: =IF('Actual Wellpath'!B113=0,AB102,'Actual Wellpath'!D113) -> 0 | AC103: =IF('Actual Wellpath'!I113="",AC102,'Actual Wellpath'!I113) -> 0 | AD103: =IF(#REF!=0,AD102,#REF!) ->  | AE103: =IF(#REF!=0,AE102,#REF!) ->  | AF103: =IF(#REF!=0,AF102,#REF!) -> 
Z104: =IF('Actual Wellpath'!B114=0,Z103,'Actual Wellpath'!B114) -> 0 | AA104: =IF('Actual Wellpath'!B114=0,AA103,'Actual Wellpath'!C114) -> 0 | AB104: =IF('Actual Wellpath'!B114=0,AB103,'Actual Wellpath'!D114) -> 0 | AC104: =IF('Actual Wellpath'!I114="",AC103,'Actual Wellpath'!I114) -> 0 | AD104: =IF(#REF!=0,AD103,#REF!) ->  | AE104: =IF(#REF!=0,AE103,#REF!) ->  | AF104: =IF(#REF!=0,AF103,#REF!) -> 
Z105: =IF('Actual Wellpath'!B115=0,Z104,'Actual Wellpath'!B115) -> 0 | AA105: =IF('Actual Wellpath'!B115=0,AA104,'Actual Wellpath'!C115) -> 0 | AB105: =IF('Actual Wellpath'!B115=0,AB104,'Actual Wellpath'!D115) -> 0 | AC105: =IF('Actual Wellpath'!I115="",AC104,'Actual Wellpath'!I115) -> 0 | AD105: =IF(#REF!=0,AD104,#REF!) ->  | AE105: =IF(#REF!=0,AE104,#REF!) ->  | AF105: =IF(#REF!=0,AF104,#REF!) -> 
Z106: =IF('Actual Wellpath'!B116=0,Z105,'Actual Wellpath'!B116) -> 0 | AA106: =IF('Actual Wellpath'!B116=0,AA105,'Actual Wellpath'!C116) -> 0 | AB106: =IF('Actual Wellpath'!B116=0,AB105,'Actual Wellpath'!D116) -> 0 | AC106: =IF('Actual Wellpath'!I116="",AC105,'Actual Wellpath'!I116) -> 0 | AD106: =IF(#REF!=0,AD105,#REF!) ->  | AE106: =IF(#REF!=0,AE105,#REF!) ->  | AF106: =IF(#REF!=0,AF105,#REF!) -> 
Z107: =IF('Actual Wellpath'!B117=0,Z106,'Actual Wellpath'!B117) -> 0 | AA107: =IF('Actual Wellpath'!B117=0,AA106,'Actual Wellpath'!C117) -> 0 | AB107: =IF('Actual Wellpath'!B117=0,AB106,'Actual Wellpath'!D117) -> 0 | AC107: =IF('Actual Wellpath'!I117="",AC106,'Actual Wellpath'!I117) -> 0 | AD107: =IF(#REF!=0,AD106,#REF!) ->  | AE107: =IF(#REF!=0,AE106,#REF!) ->  | AF107: =IF(#REF!=0,AF106,#REF!) -> 
Z108: =IF('Actual Wellpath'!B118=0,Z107,'Actual Wellpath'!B118) -> 0 | AA108: =IF('Actual Wellpath'!B118=0,AA107,'Actual Wellpath'!C118) -> 0 | AB108: =IF('Actual Wellpath'!B118=0,AB107,'Actual Wellpath'!D118) -> 0 | AC108: =IF('Actual Wellpath'!I118="",AC107,'Actual Wellpath'!I118) -> 0 | AD108: =IF(#REF!=0,AD107,#REF!) ->  | AE108: =IF(#REF!=0,AE107,#REF!) ->  | AF108: =IF(#REF!=0,AF107,#REF!) -> 
Z109: =IF('Actual Wellpath'!B119=0,Z108,'Actual Wellpath'!B119) -> 0 | AA109: =IF('Actual Wellpath'!B119=0,AA108,'Actual Wellpath'!C119) -> 0 | AB109: =IF('Actual Wellpath'!B119=0,AB108,'Actual Wellpath'!D119) -> 0 | AC109: =IF('Actual Wellpath'!I119="",AC108,'Actual Wellpath'!I119) -> 0 | AD109: =IF(#REF!=0,AD108,#REF!) ->  | AE109: =IF(#REF!=0,AE108,#REF!) ->  | AF109: =IF(#REF!=0,AF108,#REF!) -> 
Z110: =IF('Actual Wellpath'!B120=0,Z109,'Actual Wellpath'!B120) -> 0 | AA110: =IF('Actual Wellpath'!B120=0,AA109,'Actual Wellpath'!C120) -> 0 | AB110: =IF('Actual Wellpath'!B120=0,AB109,'Actual Wellpath'!D120) -> 0 | AC110: =IF('Actual Wellpath'!I120="",AC109,'Actual Wellpath'!I120) -> 0 | AD110: =IF(#REF!=0,AD109,#REF!) ->  | AE110: =IF(#REF!=0,AE109,#REF!) ->  | AF110: =IF(#REF!=0,AF109,#REF!) -> 
Z111: =IF('Actual Wellpath'!B121=0,Z110,'Actual Wellpath'!B121) -> 0 | AA111: =IF('Actual Wellpath'!B121=0,AA110,'Actual Wellpath'!C121) -> 0 | AB111: =IF('Actual Wellpath'!B121=0,AB110,'Actual Wellpath'!D121) -> 0 | AC111: =IF('Actual Wellpath'!I121="",AC110,'Actual Wellpath'!I121) -> 0 | AD111: =IF(#REF!=0,AD110,#REF!) ->  | AE111: =IF(#REF!=0,AE110,#REF!) ->  | AF111: =IF(#REF!=0,AF110,#REF!) -> 
Z112: =IF('Actual Wellpath'!B122=0,Z111,'Actual Wellpath'!B122) -> 0 | AA112: =IF('Actual Wellpath'!B122=0,AA111,'Actual Wellpath'!C122) -> 0 | AB112: =IF('Actual Wellpath'!B122=0,AB111,'Actual Wellpath'!D122) -> 0 | AC112: =IF('Actual Wellpath'!I122="",AC111,'Actual Wellpath'!I122) -> 0 | AD112: =IF(#REF!=0,AD111,#REF!) ->  | AE112: =IF(#REF!=0,AE111,#REF!) ->  | AF112: =IF(#REF!=0,AF111,#REF!) -> 
Z113: =IF('Actual Wellpath'!B123=0,Z112,'Actual Wellpath'!B123) -> 0 | AA113: =IF('Actual Wellpath'!B123=0,AA112,'Actual Wellpath'!C123) -> 0 | AB113: =IF('Actual Wellpath'!B123=0,AB112,'Actual Wellpath'!D123) -> 0 | AC113: =IF('Actual Wellpath'!I123="",AC112,'Actual Wellpath'!I123) -> 0 | AD113: =IF(#REF!=0,AD112,#REF!) ->  | AE113: =IF(#REF!=0,AE112,#REF!) ->  | AF113: =IF(#REF!=0,AF112,#REF!) -> 
Z114: =IF('Actual Wellpath'!B124=0,Z113,'Actual Wellpath'!B124) -> 0 | AA114: =IF('Actual Wellpath'!B124=0,AA113,'Actual Wellpath'!C124) -> 0 | AB114: =IF('Actual Wellpath'!B124=0,AB113,'Actual Wellpath'!D124) -> 0 | AC114: =IF('Actual Wellpath'!I124="",AC113,'Actual Wellpath'!I124) -> 0 | AD114: =IF(#REF!=0,AD113,#REF!) ->  | AE114: =IF(#REF!=0,AE113,#REF!) ->  | AF114: =IF(#REF!=0,AF113,#REF!) -> 
Z115: =IF('Actual Wellpath'!B125=0,Z114,'Actual Wellpath'!B125) -> 0 | AA115: =IF('Actual Wellpath'!B125=0,AA114,'Actual Wellpath'!C125) -> 0 | AB115: =IF('Actual Wellpath'!B125=0,AB114,'Actual Wellpath'!D125) -> 0 | AC115: =IF('Actual Wellpath'!I125="",AC114,'Actual Wellpath'!I125) -> 0 | AD115: =IF(#REF!=0,AD114,#REF!) ->  | AE115: =IF(#REF!=0,AE114,#REF!) ->  | AF115: =IF(#REF!=0,AF114,#REF!) -> 
Z116: =IF('Actual Wellpath'!B126=0,Z115,'Actual Wellpath'!B126) -> 0 | AA116: =IF('Actual Wellpath'!B126=0,AA115,'Actual Wellpath'!C126) -> 0 | AB116: =IF('Actual Wellpath'!B126=0,AB115,'Actual Wellpath'!D126) -> 0 | AC116: =IF('Actual Wellpath'!I126="",AC115,'Actual Wellpath'!I126) -> 0 | AD116: =IF(#REF!=0,AD115,#REF!) ->  | AE116: =IF(#REF!=0,AE115,#REF!) ->  | AF116: =IF(#REF!=0,AF115,#REF!) -> 
Z117: =IF('Actual Wellpath'!B127=0,Z116,'Actual Wellpath'!B127) -> 0 | AA117: =IF('Actual Wellpath'!B127=0,AA116,'Actual Wellpath'!C127) -> 0 | AB117: =IF('Actual Wellpath'!B127=0,AB116,'Actual Wellpath'!D127) -> 0 | AC117: =IF('Actual Wellpath'!I127="",AC116,'Actual Wellpath'!I127) -> 0 | AD117: =IF(#REF!=0,AD116,#REF!) ->  | AE117: =IF(#REF!=0,AE116,#REF!) ->  | AF117: =IF(#REF!=0,AF116,#REF!) -> 
Z118: =IF('Actual Wellpath'!B128=0,Z117,'Actual Wellpath'!B128) -> 0 | AA118: =IF('Actual Wellpath'!B128=0,AA117,'Actual Wellpath'!C128) -> 0 | AB118: =IF('Actual Wellpath'!B128=0,AB117,'Actual Wellpath'!D128) -> 0 | AC118: =IF('Actual Wellpath'!I128="",AC117,'Actual Wellpath'!I128) -> 0 | AD118: =IF(#REF!=0,AD117,#REF!) ->  | AE118: =IF(#REF!=0,AE117,#REF!) ->  | AF118: =IF(#REF!=0,AF117,#REF!) -> 
Z119: =IF('Actual Wellpath'!B129=0,Z118,'Actual Wellpath'!B129) -> 0 | AA119: =IF('Actual Wellpath'!B129=0,AA118,'Actual Wellpath'!C129) -> 0 | AB119: =IF('Actual Wellpath'!B129=0,AB118,'Actual Wellpath'!D129) -> 0 | AC119: =IF('Actual Wellpath'!I129="",AC118,'Actual Wellpath'!I129) -> 0 | AD119: =IF(#REF!=0,AD118,#REF!) ->  | AE119: =IF(#REF!=0,AE118,#REF!) ->  | AF119: =IF(#REF!=0,AF118,#REF!) -> 
Z120: =IF('Actual Wellpath'!B130=0,Z119,'Actual Wellpath'!B130) -> 0 | AA120: =IF('Actual Wellpath'!B130=0,AA119,'Actual Wellpath'!C130) -> 0 | AB120: =IF('Actual Wellpath'!B130=0,AB119,'Actual Wellpath'!D130) -> 0 | AC120: =IF('Actual Wellpath'!I130="",AC119,'Actual Wellpath'!I130) -> 0 | AD120: =IF(#REF!=0,AD119,#REF!) ->  | AE120: =IF(#REF!=0,AE119,#REF!) ->  | AF120: =IF(#REF!=0,AF119,#REF!) -> 
Z121: =IF('Actual Wellpath'!B131=0,Z120,'Actual Wellpath'!B131) -> 0 | AA121: =IF('Actual Wellpath'!B131=0,AA120,'Actual Wellpath'!C131) -> 0 | AB121: =IF('Actual Wellpath'!B131=0,AB120,'Actual Wellpath'!D131) -> 0 | AC121: =IF('Actual Wellpath'!I131="",AC120,'Actual Wellpath'!I131) -> 0 | AD121: =IF(#REF!=0,AD120,#REF!) ->  | AE121: =IF(#REF!=0,AE120,#REF!) ->  | AF121: =IF(#REF!=0,AF120,#REF!) -> 
Z122: =IF('Actual Wellpath'!B132=0,Z121,'Actual Wellpath'!B132) -> 0 | AA122: =IF('Actual Wellpath'!B132=0,AA121,'Actual Wellpath'!C132) -> 0 | AB122: =IF('Actual Wellpath'!B132=0,AB121,'Actual Wellpath'!D132) -> 0 | AC122: =IF('Actual Wellpath'!I132="",AC121,'Actual Wellpath'!I132) -> 0 | AD122: =IF(#REF!=0,AD121,#REF!) ->  | AE122: =IF(#REF!=0,AE121,#REF!) ->  | AF122: =IF(#REF!=0,AF121,#REF!) -> 
Z123: =IF('Actual Wellpath'!B133=0,Z122,'Actual Wellpath'!B133) -> 0 | AA123: =IF('Actual Wellpath'!B133=0,AA122,'Actual Wellpath'!C133) -> 0 | AB123: =IF('Actual Wellpath'!B133=0,AB122,'Actual Wellpath'!D133) -> 0 | AC123: =IF('Actual Wellpath'!I133="",AC122,'Actual Wellpath'!I133) -> 0 | AD123: =IF(#REF!=0,AD122,#REF!) ->  | AE123: =IF(#REF!=0,AE122,#REF!) ->  | AF123: =IF(#REF!=0,AF122,#REF!) -> 
Z124: =IF('Actual Wellpath'!B134=0,Z123,'Actual Wellpath'!B134) -> 0 | AA124: =IF('Actual Wellpath'!B134=0,AA123,'Actual Wellpath'!C134) -> 0 | AB124: =IF('Actual Wellpath'!B134=0,AB123,'Actual Wellpath'!D134) -> 0 | AC124: =IF('Actual Wellpath'!I134="",AC123,'Actual Wellpath'!I134) -> 0 | AD124: =IF(#REF!=0,AD123,#REF!) ->  | AE124: =IF(#REF!=0,AE123,#REF!) ->  | AF124: =IF(#REF!=0,AF123,#REF!) -> 
Z125: =IF('Actual Wellpath'!B135=0,Z124,'Actual Wellpath'!B135) -> 0 | AA125: =IF('Actual Wellpath'!B135=0,AA124,'Actual Wellpath'!C135) -> 0 | AB125: =IF('Actual Wellpath'!B135=0,AB124,'Actual Wellpath'!D135) -> 0 | AC125: =IF('Actual Wellpath'!I135="",AC124,'Actual Wellpath'!I135) -> 0 | AD125: =IF(#REF!=0,AD124,#REF!) ->  | AE125: =IF(#REF!=0,AE124,#REF!) ->  | AF125: =IF(#REF!=0,AF124,#REF!) -> 
Z126: =IF('Actual Wellpath'!B136=0,Z125,'Actual Wellpath'!B136) -> 0 | AA126: =IF('Actual Wellpath'!B136=0,AA125,'Actual Wellpath'!C136) -> 0 | AB126: =IF('Actual Wellpath'!B136=0,AB125,'Actual Wellpath'!D136) -> 0 | AC126: =IF('Actual Wellpath'!I136="",AC125,'Actual Wellpath'!I136) -> 0 | AD126: =IF(#REF!=0,AD125,#REF!) ->  | AE126: =IF(#REF!=0,AE125,#REF!) ->  | AF126: =IF(#REF!=0,AF125,#REF!) -> 
Z127: =IF('Actual Wellpath'!B137=0,Z126,'Actual Wellpath'!B137) -> 0 | AA127: =IF('Actual Wellpath'!B137=0,AA126,'Actual Wellpath'!C137) -> 0 | AB127: =IF('Actual Wellpath'!B137=0,AB126,'Actual Wellpath'!D137) -> 0 | AC127: =IF('Actual Wellpath'!I137="",AC126,'Actual Wellpath'!I137) -> 0 | AD127: =IF(#REF!=0,AD126,#REF!) ->  | AE127: =IF(#REF!=0,AE126,#REF!) ->  | AF127: =IF(#REF!=0,AF126,#REF!) -> 
Z128: =IF('Actual Wellpath'!B138=0,Z127,'Actual Wellpath'!B138) -> 0 | AA128: =IF('Actual Wellpath'!B138=0,AA127,'Actual Wellpath'!C138) -> 0 | AB128: =IF('Actual Wellpath'!B138=0,AB127,'Actual Wellpath'!D138) -> 0 | AC128: =IF('Actual Wellpath'!I138="",AC127,'Actual Wellpath'!I138) -> 0 | AD128: =IF(#REF!=0,AD127,#REF!) ->  | AE128: =IF(#REF!=0,AE127,#REF!) ->  | AF128: =IF(#REF!=0,AF127,#REF!) -> 
Z129: =IF('Actual Wellpath'!B139=0,Z128,'Actual Wellpath'!B139) -> 0 | AA129: =IF('Actual Wellpath'!B139=0,AA128,'Actual Wellpath'!C139) -> 0 | AB129: =IF('Actual Wellpath'!B139=0,AB128,'Actual Wellpath'!D139) -> 0 | AC129: =IF('Actual Wellpath'!I139="",AC128,'Actual Wellpath'!I139) -> 0 | AD129: =IF(#REF!=0,AD128,#REF!) ->  | AE129: =IF(#REF!=0,AE128,#REF!) ->  | AF129: =IF(#REF!=0,AF128,#REF!) -> 
Z130: =IF('Actual Wellpath'!B140=0,Z129,'Actual Wellpath'!B140) -> 0 | AA130: =IF('Actual Wellpath'!B140=0,AA129,'Actual Wellpath'!C140) -> 0 | AB130: =IF('Actual Wellpath'!B140=0,AB129,'Actual Wellpath'!D140) -> 0 | AC130: =IF('Actual Wellpath'!I140="",AC129,'Actual Wellpath'!I140) -> 0 | AD130: =IF(#REF!=0,AD129,#REF!) ->  | AE130: =IF(#REF!=0,AE129,#REF!) ->  | AF130: =IF(#REF!=0,AF129,#REF!) -> 
Z131: =IF('Actual Wellpath'!B141=0,Z130,'Actual Wellpath'!B141) -> 0 | AA131: =IF('Actual Wellpath'!B141=0,AA130,'Actual Wellpath'!C141) -> 0 | AB131: =IF('Actual Wellpath'!B141=0,AB130,'Actual Wellpath'!D141) -> 0 | AC131: =IF('Actual Wellpath'!I141="",AC130,'Actual Wellpath'!I141) -> 0 | AD131: =IF(#REF!=0,AD130,#REF!) ->  | AE131: =IF(#REF!=0,AE130,#REF!) ->  | AF131: =IF(#REF!=0,AF130,#REF!) -> 
Z132: =IF('Actual Wellpath'!B142=0,Z131,'Actual Wellpath'!B142) -> 0 | AA132: =IF('Actual Wellpath'!B142=0,AA131,'Actual Wellpath'!C142) -> 0 | AB132: =IF('Actual Wellpath'!B142=0,AB131,'Actual Wellpath'!D142) -> 0 | AC132: =IF('Actual Wellpath'!I142="",AC131,'Actual Wellpath'!I142) -> 0 | AD132: =IF(#REF!=0,AD131,#REF!) ->  | AE132: =IF(#REF!=0,AE131,#REF!) ->  | AF132: =IF(#REF!=0,AF131,#REF!) -> 
Z133: =IF('Actual Wellpath'!B143=0,Z132,'Actual Wellpath'!B143) -> 0 | AA133: =IF('Actual Wellpath'!B143=0,AA132,'Actual Wellpath'!C143) -> 0 | AB133: =IF('Actual Wellpath'!B143=0,AB132,'Actual Wellpath'!D143) -> 0 | AC133: =IF('Actual Wellpath'!I143="",AC132,'Actual Wellpath'!I143) -> 0 | AD133: =IF(#REF!=0,AD132,#REF!) ->  | AE133: =IF(#REF!=0,AE132,#REF!) ->  | AF133: =IF(#REF!=0,AF132,#REF!) -> 
Z134: =IF('Actual Wellpath'!B144=0,Z133,'Actual Wellpath'!B144) -> 0 | AA134: =IF('Actual Wellpath'!B144=0,AA133,'Actual Wellpath'!C144) -> 0 | AB134: =IF('Actual Wellpath'!B144=0,AB133,'Actual Wellpath'!D144) -> 0 | AC134: =IF('Actual Wellpath'!I144="",AC133,'Actual Wellpath'!I144) -> 0 | AD134: =IF(#REF!=0,AD133,#REF!) ->  | AE134: =IF(#REF!=0,AE133,#REF!) ->  | AF134: =IF(#REF!=0,AF133,#REF!) -> 
Z135: =IF('Actual Wellpath'!B145=0,Z134,'Actual Wellpath'!B145) -> 0 | AA135: =IF('Actual Wellpath'!B145=0,AA134,'Actual Wellpath'!C145) -> 0 | AB135: =IF('Actual Wellpath'!B145=0,AB134,'Actual Wellpath'!D145) -> 0 | AC135: =IF('Actual Wellpath'!I145="",AC134,'Actual Wellpath'!I145) -> 0 | AD135: =IF(#REF!=0,AD134,#REF!) ->  | AE135: =IF(#REF!=0,AE134,#REF!) ->  | AF135: =IF(#REF!=0,AF134,#REF!) -> 
Z136: =IF('Actual Wellpath'!B146=0,Z135,'Actual Wellpath'!B146) -> 0 | AA136: =IF('Actual Wellpath'!B146=0,AA135,'Actual Wellpath'!C146) -> 0 | AB136: =IF('Actual Wellpath'!B146=0,AB135,'Actual Wellpath'!D146) -> 0 | AC136: =IF('Actual Wellpath'!I146="",AC135,'Actual Wellpath'!I146) -> 0 | AD136: =IF(#REF!=0,AD135,#REF!) ->  | AE136: =IF(#REF!=0,AE135,#REF!) ->  | AF136: =IF(#REF!=0,AF135,#REF!) -> 
Z137: =IF('Actual Wellpath'!B147=0,Z136,'Actual Wellpath'!B147) -> 0 | AA137: =IF('Actual Wellpath'!B147=0,AA136,'Actual Wellpath'!C147) -> 0 | AB137: =IF('Actual Wellpath'!B147=0,AB136,'Actual Wellpath'!D147) -> 0 | AC137: =IF('Actual Wellpath'!I147="",AC136,'Actual Wellpath'!I147) -> 0 | AD137: =IF(#REF!=0,AD136,#REF!) ->  | AE137: =IF(#REF!=0,AE136,#REF!) ->  | AF137: =IF(#REF!=0,AF136,#REF!) -> 
Z138: =IF('Actual Wellpath'!B148=0,Z137,'Actual Wellpath'!B148) -> 0 | AA138: =IF('Actual Wellpath'!B148=0,AA137,'Actual Wellpath'!C148) -> 0 | AB138: =IF('Actual Wellpath'!B148=0,AB137,'Actual Wellpath'!D148) -> 0 | AC138: =IF('Actual Wellpath'!I148="",AC137,'Actual Wellpath'!I148) -> 0 | AD138: =IF(#REF!=0,AD137,#REF!) ->  | AE138: =IF(#REF!=0,AE137,#REF!) ->  | AF138: =IF(#REF!=0,AF137,#REF!) -> 
Z139: =IF('Actual Wellpath'!B149=0,Z138,'Actual Wellpath'!B149) -> 0 | AA139: =IF('Actual Wellpath'!B149=0,AA138,'Actual Wellpath'!C149) -> 0 | AB139: =IF('Actual Wellpath'!B149=0,AB138,'Actual Wellpath'!D149) -> 0 | AC139: =IF('Actual Wellpath'!I149="",AC138,'Actual Wellpath'!I149) -> 0 | AD139: =IF(#REF!=0,AD138,#REF!) ->  | AE139: =IF(#REF!=0,AE138,#REF!) ->  | AF139: =IF(#REF!=0,AF138,#REF!) -> 
Z140: =IF('Actual Wellpath'!B150=0,Z139,'Actual Wellpath'!B150) -> 0 | AA140: =IF('Actual Wellpath'!B150=0,AA139,'Actual Wellpath'!C150) -> 0 | AB140: =IF('Actual Wellpath'!B150=0,AB139,'Actual Wellpath'!D150) -> 0 | AC140: =IF('Actual Wellpath'!I150="",AC139,'Actual Wellpath'!I150) -> 0 | AD140: =IF(#REF!=0,AD139,#REF!) ->  | AE140: =IF(#REF!=0,AE139,#REF!) ->  | AF140: =IF(#REF!=0,AF139,#REF!) -> 
Z141: =IF('Actual Wellpath'!B151=0,Z140,'Actual Wellpath'!B151) -> 0 | AA141: =IF('Actual Wellpath'!B151=0,AA140,'Actual Wellpath'!C151) -> 0 | AB141: =IF('Actual Wellpath'!B151=0,AB140,'Actual Wellpath'!D151) -> 0 | AC141: =IF('Actual Wellpath'!I151="",AC140,'Actual Wellpath'!I151) -> 0 | AD141: =IF(#REF!=0,AD140,#REF!) ->  | AE141: =IF(#REF!=0,AE140,#REF!) ->  | AF141: =IF(#REF!=0,AF140,#REF!) -> 
Z142: =IF('Actual Wellpath'!B152=0,Z141,'Actual Wellpath'!B152) -> 0 | AA142: =IF('Actual Wellpath'!B152=0,AA141,'Actual Wellpath'!C152) -> 0 | AB142: =IF('Actual Wellpath'!B152=0,AB141,'Actual Wellpath'!D152) -> 0 | AC142: =IF('Actual Wellpath'!I152="",AC141,'Actual Wellpath'!I152) -> 0 | AD142: =IF(#REF!=0,AD141,#REF!) ->  | AE142: =IF(#REF!=0,AE141,#REF!) ->  | AF142: =IF(#REF!=0,AF141,#REF!) -> 
Z143: =IF('Actual Wellpath'!B153=0,Z142,'Actual Wellpath'!B153) -> 0 | AA143: =IF('Actual Wellpath'!B153=0,AA142,'Actual Wellpath'!C153) -> 0 | AB143: =IF('Actual Wellpath'!B153=0,AB142,'Actual Wellpath'!D153) -> 0 | AC143: =IF('Actual Wellpath'!I153="",AC142,'Actual Wellpath'!I153) -> 0 | AD143: =IF(#REF!=0,AD142,#REF!) ->  | AE143: =IF(#REF!=0,AE142,#REF!) ->  | AF143: =IF(#REF!=0,AF142,#REF!) -> 
Z144: =IF('Actual Wellpath'!B154=0,Z143,'Actual Wellpath'!B154) -> 0 | AA144: =IF('Actual Wellpath'!B154=0,AA143,'Actual Wellpath'!C154) -> 0 | AB144: =IF('Actual Wellpath'!B154=0,AB143,'Actual Wellpath'!D154) -> 0 | AC144: =IF('Actual Wellpath'!I154="",AC143,'Actual Wellpath'!I154) -> 0 | AD144: =IF(#REF!=0,AD143,#REF!) ->  | AE144: =IF(#REF!=0,AE143,#REF!) ->  | AF144: =IF(#REF!=0,AF143,#REF!) -> 
Z145: =IF('Actual Wellpath'!B155=0,Z144,'Actual Wellpath'!B155) -> 0 | AA145: =IF('Actual Wellpath'!B155=0,AA144,'Actual Wellpath'!C155) -> 0 | AB145: =IF('Actual Wellpath'!B155=0,AB144,'Actual Wellpath'!D155) -> 0 | AC145: =IF('Actual Wellpath'!I155="",AC144,'Actual Wellpath'!I155) -> 0 | AD145: =IF(#REF!=0,AD144,#REF!) ->  | AE145: =IF(#REF!=0,AE144,#REF!) ->  | AF145: =IF(#REF!=0,AF144,#REF!) -> 
Z146: =IF('Actual Wellpath'!B156=0,Z145,'Actual Wellpath'!B156) -> 0 | AA146: =IF('Actual Wellpath'!B156=0,AA145,'Actual Wellpath'!C156) -> 0 | AB146: =IF('Actual Wellpath'!B156=0,AB145,'Actual Wellpath'!D156) -> 0 | AC146: =IF('Actual Wellpath'!I156="",AC145,'Actual Wellpath'!I156) -> 0 | AD146: =IF(#REF!=0,AD145,#REF!) ->  | AE146: =IF(#REF!=0,AE145,#REF!) ->  | AF146: =IF(#REF!=0,AF145,#REF!) -> 
Z147: =IF('Actual Wellpath'!B157=0,Z146,'Actual Wellpath'!B157) -> 0 | AA147: =IF('Actual Wellpath'!B157=0,AA146,'Actual Wellpath'!C157) -> 0 | AB147: =IF('Actual Wellpath'!B157=0,AB146,'Actual Wellpath'!D157) -> 0 | AC147: =IF('Actual Wellpath'!I157="",AC146,'Actual Wellpath'!I157) -> 0 | AD147: =IF(#REF!=0,AD146,#REF!) ->  | AE147: =IF(#REF!=0,AE146,#REF!) ->  | AF147: =IF(#REF!=0,AF146,#REF!) -> 
Z148: =IF('Actual Wellpath'!B158=0,Z147,'Actual Wellpath'!B158) -> 0 | AA148: =IF('Actual Wellpath'!B158=0,AA147,'Actual Wellpath'!C158) -> 0 | AB148: =IF('Actual Wellpath'!B158=0,AB147,'Actual Wellpath'!D158) -> 0 | AC148: =IF('Actual Wellpath'!I158="",AC147,'Actual Wellpath'!I158) -> 0 | AD148: =IF(#REF!=0,AD147,#REF!) ->  | AE148: =IF(#REF!=0,AE147,#REF!) ->  | AF148: =IF(#REF!=0,AF147,#REF!) -> 
Z149: =IF('Actual Wellpath'!B159=0,Z148,'Actual Wellpath'!B159) -> 0 | AA149: =IF('Actual Wellpath'!B159=0,AA148,'Actual Wellpath'!C159) -> 0 | AB149: =IF('Actual Wellpath'!B159=0,AB148,'Actual Wellpath'!D159) -> 0 | AC149: =IF('Actual Wellpath'!I159="",AC148,'Actual Wellpath'!I159) -> 0 | AD149: =IF(#REF!=0,AD148,#REF!) ->  | AE149: =IF(#REF!=0,AE148,#REF!) ->  | AF149: =IF(#REF!=0,AF148,#REF!) -> 
Z150: =IF('Actual Wellpath'!B160=0,Z149,'Actual Wellpath'!B160) -> 0 | AA150: =IF('Actual Wellpath'!B160=0,AA149,'Actual Wellpath'!C160) -> 0 | AB150: =IF('Actual Wellpath'!B160=0,AB149,'Actual Wellpath'!D160) -> 0 | AC150: =IF('Actual Wellpath'!I160="",AC149,'Actual Wellpath'!I160) -> 0 | AD150: =IF(#REF!=0,AD149,#REF!) ->  | AE150: =IF(#REF!=0,AE149,#REF!) ->  | AF150: =IF(#REF!=0,AF149,#REF!) -> 
Z151: =IF('Actual Wellpath'!B161=0,Z150,'Actual Wellpath'!B161) -> 0 | AA151: =IF('Actual Wellpath'!B161=0,AA150,'Actual Wellpath'!C161) -> 0 | AB151: =IF('Actual Wellpath'!B161=0,AB150,'Actual Wellpath'!D161) -> 0 | AC151: =IF('Actual Wellpath'!I161="",AC150,'Actual Wellpath'!I161) -> 0 | AD151: =IF(#REF!=0,AD150,#REF!) ->  | AE151: =IF(#REF!=0,AE150,#REF!) ->  | AF151: =IF(#REF!=0,AF150,#REF!) -> 
Z152: =IF('Actual Wellpath'!B162=0,Z151,'Actual Wellpath'!B162) -> 0 | AA152: =IF('Actual Wellpath'!B162=0,AA151,'Actual Wellpath'!C162) -> 0 | AB152: =IF('Actual Wellpath'!B162=0,AB151,'Actual Wellpath'!D162) -> 0 | AC152: =IF('Actual Wellpath'!I162="",AC151,'Actual Wellpath'!I162) -> 0 | AD152: =IF(#REF!=0,AD151,#REF!) ->  | AE152: =IF(#REF!=0,AE151,#REF!) ->  | AF152: =IF(#REF!=0,AF151,#REF!) -> 
Z153: =IF('Actual Wellpath'!B163=0,Z152,'Actual Wellpath'!B163) -> 0 | AA153: =IF('Actual Wellpath'!B163=0,AA152,'Actual Wellpath'!C163) -> 0 | AB153: =IF('Actual Wellpath'!B163=0,AB152,'Actual Wellpath'!D163) -> 0 | AC153: =IF('Actual Wellpath'!I163="",AC152,'Actual Wellpath'!I163) -> 0 | AD153: =IF(#REF!=0,AD152,#REF!) ->  | AE153: =IF(#REF!=0,AE152,#REF!) ->  | AF153: =IF(#REF!=0,AF152,#REF!) -> 
Z154: =IF('Actual Wellpath'!B164=0,Z153,'Actual Wellpath'!B164) -> 0 | AA154: =IF('Actual Wellpath'!B164=0,AA153,'Actual Wellpath'!C164) -> 0 | AB154: =IF('Actual Wellpath'!B164=0,AB153,'Actual Wellpath'!D164) -> 0 | AC154: =IF('Actual Wellpath'!I164="",AC153,'Actual Wellpath'!I164) -> 0 | AD154: =IF(#REF!=0,AD153,#REF!) ->  | AE154: =IF(#REF!=0,AE153,#REF!) ->  | AF154: =IF(#REF!=0,AF153,#REF!) -> 
Z155: =IF('Actual Wellpath'!B165=0,Z154,'Actual Wellpath'!B165) -> 0 | AA155: =IF('Actual Wellpath'!B165=0,AA154,'Actual Wellpath'!C165) -> 0 | AB155: =IF('Actual Wellpath'!B165=0,AB154,'Actual Wellpath'!D165) -> 0 | AC155: =IF('Actual Wellpath'!I165="",AC154,'Actual Wellpath'!I165) -> 0 | AD155: =IF(#REF!=0,AD154,#REF!) ->  | AE155: =IF(#REF!=0,AE154,#REF!) ->  | AF155: =IF(#REF!=0,AF154,#REF!) -> 
Z156: =IF('Actual Wellpath'!B166=0,Z155,'Actual Wellpath'!B166) -> 0 | AA156: =IF('Actual Wellpath'!B166=0,AA155,'Actual Wellpath'!C166) -> 0 | AB156: =IF('Actual Wellpath'!B166=0,AB155,'Actual Wellpath'!D166) -> 0 | AC156: =IF('Actual Wellpath'!I166="",AC155,'Actual Wellpath'!I166) -> 0 | AD156: =IF(#REF!=0,AD155,#REF!) ->  | AE156: =IF(#REF!=0,AE155,#REF!) ->  | AF156: =IF(#REF!=0,AF155,#REF!) -> 
Z157: =IF('Actual Wellpath'!B167=0,Z156,'Actual Wellpath'!B167) -> 0 | AA157: =IF('Actual Wellpath'!B167=0,AA156,'Actual Wellpath'!C167) -> 0 | AB157: =IF('Actual Wellpath'!B167=0,AB156,'Actual Wellpath'!D167) -> 0 | AC157: =IF('Actual Wellpath'!I167="",AC156,'Actual Wellpath'!I167) -> 0 | AD157: =IF(#REF!=0,AD156,#REF!) ->  | AE157: =IF(#REF!=0,AE156,#REF!) ->  | AF157: =IF(#REF!=0,AF156,#REF!) -> 
Z158: =IF('Actual Wellpath'!B168=0,Z157,'Actual Wellpath'!B168) -> 0 | AA158: =IF('Actual Wellpath'!B168=0,AA157,'Actual Wellpath'!C168) -> 0 | AB158: =IF('Actual Wellpath'!B168=0,AB157,'Actual Wellpath'!D168) -> 0 | AC158: =IF('Actual Wellpath'!I168="",AC157,'Actual Wellpath'!I168) -> 0 | AD158: =IF(#REF!=0,AD157,#REF!) ->  | AE158: =IF(#REF!=0,AE157,#REF!) ->  | AF158: =IF(#REF!=0,AF157,#REF!) -> 
Z159: =IF('Actual Wellpath'!B169=0,Z158,'Actual Wellpath'!B169) -> 0 | AA159: =IF('Actual Wellpath'!B169=0,AA158,'Actual Wellpath'!C169) -> 0 | AB159: =IF('Actual Wellpath'!B169=0,AB158,'Actual Wellpath'!D169) -> 0 | AC159: =IF('Actual Wellpath'!I169="",AC158,'Actual Wellpath'!I169) -> 0 | AD159: =IF(#REF!=0,AD158,#REF!) ->  | AE159: =IF(#REF!=0,AE158,#REF!) ->  | AF159: =IF(#REF!=0,AF158,#REF!) -> 
Z160: =IF('Actual Wellpath'!B170=0,Z159,'Actual Wellpath'!B170) -> 0 | AA160: =IF('Actual Wellpath'!B170=0,AA159,'Actual Wellpath'!C170) -> 0 | AB160: =IF('Actual Wellpath'!B170=0,AB159,'Actual Wellpath'!D170) -> 0 | AC160: =IF('Actual Wellpath'!I170="",AC159,'Actual Wellpath'!I170) -> 0 | AD160: =IF(#REF!=0,AD159,#REF!) ->  | AE160: =IF(#REF!=0,AE159,#REF!) ->  | AF160: =IF(#REF!=0,AF159,#REF!) -> 
Z161: =IF('Actual Wellpath'!B171=0,Z160,'Actual Wellpath'!B171) -> 0 | AA161: =IF('Actual Wellpath'!B171=0,AA160,'Actual Wellpath'!C171) -> 0 | AB161: =IF('Actual Wellpath'!B171=0,AB160,'Actual Wellpath'!D171) -> 0 | AC161: =IF('Actual Wellpath'!I171="",AC160,'Actual Wellpath'!I171) -> 0 | AD161: =IF(#REF!=0,AD160,#REF!) ->  | AE161: =IF(#REF!=0,AE160,#REF!) ->  | AF161: =IF(#REF!=0,AF160,#REF!) -> 
Z162: =IF('Actual Wellpath'!B172=0,Z161,'Actual Wellpath'!B172) -> 0 | AA162: =IF('Actual Wellpath'!B172=0,AA161,'Actual Wellpath'!C172) -> 0 | AB162: =IF('Actual Wellpath'!B172=0,AB161,'Actual Wellpath'!D172) -> 0 | AC162: =IF('Actual Wellpath'!I172="",AC161,'Actual Wellpath'!I172) -> 0 | AD162: =IF(#REF!=0,AD161,#REF!) ->  | AE162: =IF(#REF!=0,AE161,#REF!) ->  | AF162: =IF(#REF!=0,AF161,#REF!) -> 
Z163: =IF('Actual Wellpath'!B173=0,Z162,'Actual Wellpath'!B173) -> 0 | AA163: =IF('Actual Wellpath'!B173=0,AA162,'Actual Wellpath'!C173) -> 0 | AB163: =IF('Actual Wellpath'!B173=0,AB162,'Actual Wellpath'!D173) -> 0 | AC163: =IF('Actual Wellpath'!I173="",AC162,'Actual Wellpath'!I173) -> 0 | AD163: =IF(#REF!=0,AD162,#REF!) ->  | AE163: =IF(#REF!=0,AE162,#REF!) ->  | AF163: =IF(#REF!=0,AF162,#REF!) -> 
Z164: =IF('Actual Wellpath'!B174=0,Z163,'Actual Wellpath'!B174) -> 0 | AA164: =IF('Actual Wellpath'!B174=0,AA163,'Actual Wellpath'!C174) -> 0 | AB164: =IF('Actual Wellpath'!B174=0,AB163,'Actual Wellpath'!D174) -> 0 | AC164: =IF('Actual Wellpath'!I174="",AC163,'Actual Wellpath'!I174) -> 0 | AD164: =IF(#REF!=0,AD163,#REF!) ->  | AE164: =IF(#REF!=0,AE163,#REF!) ->  | AF164: =IF(#REF!=0,AF163,#REF!) -> 
Z165: =IF('Actual Wellpath'!B175=0,Z164,'Actual Wellpath'!B175) -> 0 | AA165: =IF('Actual Wellpath'!B175=0,AA164,'Actual Wellpath'!C175) -> 0 | AB165: =IF('Actual Wellpath'!B175=0,AB164,'Actual Wellpath'!D175) -> 0 | AC165: =IF('Actual Wellpath'!I175="",AC164,'Actual Wellpath'!I175) -> 0 | AD165: =IF(#REF!=0,AD164,#REF!) ->  | AE165: =IF(#REF!=0,AE164,#REF!) ->  | AF165: =IF(#REF!=0,AF164,#REF!) -> 
Z166: =IF('Actual Wellpath'!B176=0,Z165,'Actual Wellpath'!B176) -> 0 | AA166: =IF('Actual Wellpath'!B176=0,AA165,'Actual Wellpath'!C176) -> 0 | AB166: =IF('Actual Wellpath'!B176=0,AB165,'Actual Wellpath'!D176) -> 0 | AC166: =IF('Actual Wellpath'!I176="",AC165,'Actual Wellpath'!I176) -> 0 | AD166: =IF(#REF!=0,AD165,#REF!) ->  | AE166: =IF(#REF!=0,AE165,#REF!) ->  | AF166: =IF(#REF!=0,AF165,#REF!) -> 
Z167: =IF('Actual Wellpath'!B177=0,Z166,'Actual Wellpath'!B177) -> 0 | AA167: =IF('Actual Wellpath'!B177=0,AA166,'Actual Wellpath'!C177) -> 0 | AB167: =IF('Actual Wellpath'!B177=0,AB166,'Actual Wellpath'!D177) -> 0 | AC167: =IF('Actual Wellpath'!I177="",AC166,'Actual Wellpath'!I177) -> 0 | AD167: =IF(#REF!=0,AD166,#REF!) ->  | AE167: =IF(#REF!=0,AE166,#REF!) ->  | AF167: =IF(#REF!=0,AF166,#REF!) -> 
Z168: =IF('Actual Wellpath'!B178=0,Z167,'Actual Wellpath'!B178) -> 0 | AA168: =IF('Actual Wellpath'!B178=0,AA167,'Actual Wellpath'!C178) -> 0 | AB168: =IF('Actual Wellpath'!B178=0,AB167,'Actual Wellpath'!D178) -> 0 | AC168: =IF('Actual Wellpath'!I178="",AC167,'Actual Wellpath'!I178) -> 0 | AD168: =IF(#REF!=0,AD167,#REF!) ->  | AE168: =IF(#REF!=0,AE167,#REF!) ->  | AF168: =IF(#REF!=0,AF167,#REF!) -> 
Z169: =IF('Actual Wellpath'!B179=0,Z168,'Actual Wellpath'!B179) -> 0 | AA169: =IF('Actual Wellpath'!B179=0,AA168,'Actual Wellpath'!C179) -> 0 | AB169: =IF('Actual Wellpath'!B179=0,AB168,'Actual Wellpath'!D179) -> 0 | AC169: =IF('Actual Wellpath'!I179="",AC168,'Actual Wellpath'!I179) -> 0 | AD169: =IF(#REF!=0,AD168,#REF!) ->  | AE169: =IF(#REF!=0,AE168,#REF!) ->  | AF169: =IF(#REF!=0,AF168,#REF!) -> 
Z170: =IF('Actual Wellpath'!B180=0,Z169,'Actual Wellpath'!B180) -> 0 | AA170: =IF('Actual Wellpath'!B180=0,AA169,'Actual Wellpath'!C180) -> 0 | AB170: =IF('Actual Wellpath'!B180=0,AB169,'Actual Wellpath'!D180) -> 0 | AC170: =IF('Actual Wellpath'!I180="",AC169,'Actual Wellpath'!I180) -> 0 | AD170: =IF(#REF!=0,AD169,#REF!) ->  | AE170: =IF(#REF!=0,AE169,#REF!) ->  | AF170: =IF(#REF!=0,AF169,#REF!) -> 
Z171: =IF('Actual Wellpath'!B181=0,Z170,'Actual Wellpath'!B181) -> 0 | AA171: =IF('Actual Wellpath'!B181=0,AA170,'Actual Wellpath'!C181) -> 0 | AB171: =IF('Actual Wellpath'!B181=0,AB170,'Actual Wellpath'!D181) -> 0 | AC171: =IF('Actual Wellpath'!I181="",AC170,'Actual Wellpath'!I181) -> 0 | AD171: =IF(#REF!=0,AD170,#REF!) ->  | AE171: =IF(#REF!=0,AE170,#REF!) ->  | AF171: =IF(#REF!=0,AF170,#REF!) -> 
Z172: =IF('Actual Wellpath'!B182=0,Z171,'Actual Wellpath'!B182) -> 0 | AA172: =IF('Actual Wellpath'!B182=0,AA171,'Actual Wellpath'!C182) -> 0 | AB172: =IF('Actual Wellpath'!B182=0,AB171,'Actual Wellpath'!D182) -> 0 | AC172: =IF('Actual Wellpath'!I182="",AC171,'Actual Wellpath'!I182) -> 0 | AD172: =IF(#REF!=0,AD171,#REF!) ->  | AE172: =IF(#REF!=0,AE171,#REF!) ->  | AF172: =IF(#REF!=0,AF171,#REF!) -> 
Z173: =IF('Actual Wellpath'!B183=0,Z172,'Actual Wellpath'!B183) -> 0 | AA173: =IF('Actual Wellpath'!B183=0,AA172,'Actual Wellpath'!C183) -> 0 | AB173: =IF('Actual Wellpath'!B183=0,AB172,'Actual Wellpath'!D183) -> 0 | AC173: =IF('Actual Wellpath'!I183="",AC172,'Actual Wellpath'!I183) -> 0 | AD173: =IF(#REF!=0,AD172,#REF!) ->  | AE173: =IF(#REF!=0,AE172,#REF!) ->  | AF173: =IF(#REF!=0,AF172,#REF!) -> 
Z174: =IF('Actual Wellpath'!B184=0,Z173,'Actual Wellpath'!B184) -> 0 | AA174: =IF('Actual Wellpath'!B184=0,AA173,'Actual Wellpath'!C184) -> 0 | AB174: =IF('Actual Wellpath'!B184=0,AB173,'Actual Wellpath'!D184) -> 0 | AC174: =IF('Actual Wellpath'!I184="",AC173,'Actual Wellpath'!I184) -> 0 | AD174: =IF(#REF!=0,AD173,#REF!) ->  | AE174: =IF(#REF!=0,AE173,#REF!) ->  | AF174: =IF(#REF!=0,AF173,#REF!) -> 
Z175: =IF('Actual Wellpath'!B185=0,Z174,'Actual Wellpath'!B185) -> 0 | AA175: =IF('Actual Wellpath'!B185=0,AA174,'Actual Wellpath'!C185) -> 0 | AB175: =IF('Actual Wellpath'!B185=0,AB174,'Actual Wellpath'!D185) -> 0 | AC175: =IF('Actual Wellpath'!I185="",AC174,'Actual Wellpath'!I185) -> 0 | AD175: =IF(#REF!=0,AD174,#REF!) ->  | AE175: =IF(#REF!=0,AE174,#REF!) ->  | AF175: =IF(#REF!=0,AF174,#REF!) -> 
Z176: =IF('Actual Wellpath'!B186=0,Z175,'Actual Wellpath'!B186) -> 0 | AA176: =IF('Actual Wellpath'!B186=0,AA175,'Actual Wellpath'!C186) -> 0 | AB176: =IF('Actual Wellpath'!B186=0,AB175,'Actual Wellpath'!D186) -> 0 | AC176: =IF('Actual Wellpath'!I186="",AC175,'Actual Wellpath'!I186) -> 0 | AD176: =IF(#REF!=0,AD175,#REF!) ->  | AE176: =IF(#REF!=0,AE175,#REF!) ->  | AF176: =IF(#REF!=0,AF175,#REF!) -> 
Z177: =IF('Actual Wellpath'!B187=0,Z176,'Actual Wellpath'!B187) -> 0 | AA177: =IF('Actual Wellpath'!B187=0,AA176,'Actual Wellpath'!C187) -> 0 | AB177: =IF('Actual Wellpath'!B187=0,AB176,'Actual Wellpath'!D187) -> 0 | AC177: =IF('Actual Wellpath'!I187="",AC176,'Actual Wellpath'!I187) -> 0 | AD177: =IF(#REF!=0,AD176,#REF!) ->  | AE177: =IF(#REF!=0,AE176,#REF!) ->  | AF177: =IF(#REF!=0,AF176,#REF!) -> 
Z178: =IF('Actual Wellpath'!B188=0,Z177,'Actual Wellpath'!B188) -> 0 | AA178: =IF('Actual Wellpath'!B188=0,AA177,'Actual Wellpath'!C188) -> 0 | AB178: =IF('Actual Wellpath'!B188=0,AB177,'Actual Wellpath'!D188) -> 0 | AC178: =IF('Actual Wellpath'!I188="",AC177,'Actual Wellpath'!I188) -> 0 | AD178: =IF(#REF!=0,AD177,#REF!) ->  | AE178: =IF(#REF!=0,AE177,#REF!) ->  | AF178: =IF(#REF!=0,AF177,#REF!) -> 
Z179: =IF('Actual Wellpath'!B189=0,Z178,'Actual Wellpath'!B189) -> 0 | AA179: =IF('Actual Wellpath'!B189=0,AA178,'Actual Wellpath'!C189) -> 0 | AB179: =IF('Actual Wellpath'!B189=0,AB178,'Actual Wellpath'!D189) -> 0 | AC179: =IF('Actual Wellpath'!I189="",AC178,'Actual Wellpath'!I189) -> 0 | AD179: =IF(#REF!=0,AD178,#REF!) ->  | AE179: =IF(#REF!=0,AE178,#REF!) ->  | AF179: =IF(#REF!=0,AF178,#REF!) -> 
Z180: =IF('Actual Wellpath'!B190=0,Z179,'Actual Wellpath'!B190) -> 0 | AA180: =IF('Actual Wellpath'!B190=0,AA179,'Actual Wellpath'!C190) -> 0 | AB180: =IF('Actual Wellpath'!B190=0,AB179,'Actual Wellpath'!D190) -> 0 | AC180: =IF('Actual Wellpath'!I190="",AC179,'Actual Wellpath'!I190) -> 0 | AD180: =IF(#REF!=0,AD179,#REF!) ->  | AE180: =IF(#REF!=0,AE179,#REF!) ->  | AF180: =IF(#REF!=0,AF179,#REF!) -> 
Z181: =IF('Actual Wellpath'!B191=0,Z180,'Actual Wellpath'!B191) -> 0 | AA181: =IF('Actual Wellpath'!B191=0,AA180,'Actual Wellpath'!C191) -> 0 | AB181: =IF('Actual Wellpath'!B191=0,AB180,'Actual Wellpath'!D191) -> 0 | AC181: =IF('Actual Wellpath'!I191="",AC180,'Actual Wellpath'!I191) -> 0 | AD181: =IF(#REF!=0,AD180,#REF!) ->  | AE181: =IF(#REF!=0,AE180,#REF!) ->  | AF181: =IF(#REF!=0,AF180,#REF!) -> 
Z182: =IF('Actual Wellpath'!B192=0,Z181,'Actual Wellpath'!B192) -> 0 | AA182: =IF('Actual Wellpath'!B192=0,AA181,'Actual Wellpath'!C192) -> 0 | AB182: =IF('Actual Wellpath'!B192=0,AB181,'Actual Wellpath'!D192) -> 0 | AC182: =IF('Actual Wellpath'!I192="",AC181,'Actual Wellpath'!I192) -> 0 | AD182: =IF(#REF!=0,AD181,#REF!) ->  | AE182: =IF(#REF!=0,AE181,#REF!) ->  | AF182: =IF(#REF!=0,AF181,#REF!) -> 
Z183: =IF('Actual Wellpath'!B193=0,Z182,'Actual Wellpath'!B193) -> 0 | AA183: =IF('Actual Wellpath'!B193=0,AA182,'Actual Wellpath'!C193) -> 0 | AB183: =IF('Actual Wellpath'!B193=0,AB182,'Actual Wellpath'!D193) -> 0 | AC183: =IF('Actual Wellpath'!I193="",AC182,'Actual Wellpath'!I193) -> 0 | AD183: =IF(#REF!=0,AD182,#REF!) ->  | AE183: =IF(#REF!=0,AE182,#REF!) ->  | AF183: =IF(#REF!=0,AF182,#REF!) -> 
Z184: =IF('Actual Wellpath'!B194=0,Z183,'Actual Wellpath'!B194) -> 0 | AA184: =IF('Actual Wellpath'!B194=0,AA183,'Actual Wellpath'!C194) -> 0 | AB184: =IF('Actual Wellpath'!B194=0,AB183,'Actual Wellpath'!D194) -> 0 | AC184: =IF('Actual Wellpath'!I194="",AC183,'Actual Wellpath'!I194) -> 0 | AD184: =IF(#REF!=0,AD183,#REF!) ->  | AE184: =IF(#REF!=0,AE183,#REF!) ->  | AF184: =IF(#REF!=0,AF183,#REF!) -> 
Z185: =IF('Actual Wellpath'!B195=0,Z184,'Actual Wellpath'!B195) -> 0 | AA185: =IF('Actual Wellpath'!B195=0,AA184,'Actual Wellpath'!C195) -> 0 | AB185: =IF('Actual Wellpath'!B195=0,AB184,'Actual Wellpath'!D195) -> 0 | AC185: =IF('Actual Wellpath'!I195="",AC184,'Actual Wellpath'!I195) -> 0 | AD185: =IF(#REF!=0,AD184,#REF!) ->  | AE185: =IF(#REF!=0,AE184,#REF!) ->  | AF185: =IF(#REF!=0,AF184,#REF!) -> 
Z186: =IF('Actual Wellpath'!B196=0,Z185,'Actual Wellpath'!B196) -> 0 | AA186: =IF('Actual Wellpath'!B196=0,AA185,'Actual Wellpath'!C196) -> 0 | AB186: =IF('Actual Wellpath'!B196=0,AB185,'Actual Wellpath'!D196) -> 0 | AC186: =IF('Actual Wellpath'!I196="",AC185,'Actual Wellpath'!I196) -> 0 | AD186: =IF(#REF!=0,AD185,#REF!) ->  | AE186: =IF(#REF!=0,AE185,#REF!) ->  | AF186: =IF(#REF!=0,AF185,#REF!) -> 
Z187: =IF('Actual Wellpath'!B197=0,Z186,'Actual Wellpath'!B197) -> 0 | AA187: =IF('Actual Wellpath'!B197=0,AA186,'Actual Wellpath'!C197) -> 0 | AB187: =IF('Actual Wellpath'!B197=0,AB186,'Actual Wellpath'!D197) -> 0 | AC187: =IF('Actual Wellpath'!I197="",AC186,'Actual Wellpath'!I197) -> 0 | AD187: =IF(#REF!=0,AD186,#REF!) ->  | AE187: =IF(#REF!=0,AE186,#REF!) ->  | AF187: =IF(#REF!=0,AF186,#REF!) -> 
Z188: =IF('Actual Wellpath'!B198=0,Z187,'Actual Wellpath'!B198) -> 0 | AA188: =IF('Actual Wellpath'!B198=0,AA187,'Actual Wellpath'!C198) -> 0 | AB188: =IF('Actual Wellpath'!B198=0,AB187,'Actual Wellpath'!D198) -> 0 | AC188: =IF('Actual Wellpath'!I198="",AC187,'Actual Wellpath'!I198) -> 0 | AD188: =IF(#REF!=0,AD187,#REF!) ->  | AE188: =IF(#REF!=0,AE187,#REF!) ->  | AF188: =IF(#REF!=0,AF187,#REF!) -> 
Z189: =IF('Actual Wellpath'!B199=0,Z188,'Actual Wellpath'!B199) -> 0 | AA189: =IF('Actual Wellpath'!B199=0,AA188,'Actual Wellpath'!C199) -> 0 | AB189: =IF('Actual Wellpath'!B199=0,AB188,'Actual Wellpath'!D199) -> 0 | AC189: =IF('Actual Wellpath'!I199="",AC188,'Actual Wellpath'!I199) -> 0 | AD189: =IF(#REF!=0,AD188,#REF!) ->  | AE189: =IF(#REF!=0,AE188,#REF!) ->  | AF189: =IF(#REF!=0,AF188,#REF!) -> 
Z190: =IF('Actual Wellpath'!B200=0,Z189,'Actual Wellpath'!B200) -> 0 | AA190: =IF('Actual Wellpath'!B200=0,AA189,'Actual Wellpath'!C200) -> 0 | AB190: =IF('Actual Wellpath'!B200=0,AB189,'Actual Wellpath'!D200) -> 0 | AC190: =IF('Actual Wellpath'!I200="",AC189,'Actual Wellpath'!I200) -> 0 | AD190: =IF(#REF!=0,AD189,#REF!) ->  | AE190: =IF(#REF!=0,AE189,#REF!) ->  | AF190: =IF(#REF!=0,AF189,#REF!) -> 
Z191: =IF('Actual Wellpath'!B201=0,Z190,'Actual Wellpath'!B201) -> 0 | AA191: =IF('Actual Wellpath'!B201=0,AA190,'Actual Wellpath'!C201) -> 0 | AB191: =IF('Actual Wellpath'!B201=0,AB190,'Actual Wellpath'!D201) -> 0 | AC191: =IF('Actual Wellpath'!I201="",AC190,'Actual Wellpath'!I201) -> 0 | AD191: =IF(#REF!=0,AD190,#REF!) ->  | AE191: =IF(#REF!=0,AE190,#REF!) ->  | AF191: =IF(#REF!=0,AF190,#REF!) -> 
Z192: =IF('Actual Wellpath'!B202=0,Z191,'Actual Wellpath'!B202) -> 0 | AA192: =IF('Actual Wellpath'!B202=0,AA191,'Actual Wellpath'!C202) -> 0 | AB192: =IF('Actual Wellpath'!B202=0,AB191,'Actual Wellpath'!D202) -> 0 | AC192: =IF('Actual Wellpath'!I202="",AC191,'Actual Wellpath'!I202) -> 0 | AD192: =IF(#REF!=0,AD191,#REF!) ->  | AE192: =IF(#REF!=0,AE191,#REF!) ->  | AF192: =IF(#REF!=0,AF191,#REF!) -> 
Z193: =IF('Actual Wellpath'!B203=0,Z192,'Actual Wellpath'!B203) -> 0 | AA193: =IF('Actual Wellpath'!B203=0,AA192,'Actual Wellpath'!C203) -> 0 | AB193: =IF('Actual Wellpath'!B203=0,AB192,'Actual Wellpath'!D203) -> 0 | AC193: =IF('Actual Wellpath'!I203="",AC192,'Actual Wellpath'!I203) -> 0 | AD193: =IF(#REF!=0,AD192,#REF!) ->  | AE193: =IF(#REF!=0,AE192,#REF!) ->  | AF193: =IF(#REF!=0,AF192,#REF!) -> 
Z194: =IF('Actual Wellpath'!B204=0,Z193,'Actual Wellpath'!B204) -> 0 | AA194: =IF('Actual Wellpath'!B204=0,AA193,'Actual Wellpath'!C204) -> 0 | AB194: =IF('Actual Wellpath'!B204=0,AB193,'Actual Wellpath'!D204) -> 0 | AC194: =IF('Actual Wellpath'!I204="",AC193,'Actual Wellpath'!I204) -> 0 | AD194: =IF(#REF!=0,AD193,#REF!) ->  | AE194: =IF(#REF!=0,AE193,#REF!) ->  | AF194: =IF(#REF!=0,AF193,#REF!) -> 
Z195: =IF('Actual Wellpath'!B205=0,Z194,'Actual Wellpath'!B205) -> 0 | AA195: =IF('Actual Wellpath'!B205=0,AA194,'Actual Wellpath'!C205) -> 0 | AB195: =IF('Actual Wellpath'!B205=0,AB194,'Actual Wellpath'!D205) -> 0 | AC195: =IF('Actual Wellpath'!I205="",AC194,'Actual Wellpath'!I205) -> 0 | AD195: =IF(#REF!=0,AD194,#REF!) ->  | AE195: =IF(#REF!=0,AE194,#REF!) ->  | AF195: =IF(#REF!=0,AF194,#REF!) -> 
Z196: =IF('Actual Wellpath'!B206=0,Z195,'Actual Wellpath'!B206) -> 0 | AA196: =IF('Actual Wellpath'!B206=0,AA195,'Actual Wellpath'!C206) -> 0 | AB196: =IF('Actual Wellpath'!B206=0,AB195,'Actual Wellpath'!D206) -> 0 | AC196: =IF('Actual Wellpath'!I206="",AC195,'Actual Wellpath'!I206) -> 0 | AD196: =IF(#REF!=0,AD195,#REF!) ->  | AE196: =IF(#REF!=0,AE195,#REF!) ->  | AF196: =IF(#REF!=0,AF195,#REF!) -> 
Z197: =IF('Actual Wellpath'!B207=0,Z196,'Actual Wellpath'!B207) -> 0 | AA197: =IF('Actual Wellpath'!B207=0,AA196,'Actual Wellpath'!C207) -> 0 | AB197: =IF('Actual Wellpath'!B207=0,AB196,'Actual Wellpath'!D207) -> 0 | AC197: =IF('Actual Wellpath'!I207="",AC196,'Actual Wellpath'!I207) -> 0 | AD197: =IF(#REF!=0,AD196,#REF!) ->  | AE197: =IF(#REF!=0,AE196,#REF!) ->  | AF197: =IF(#REF!=0,AF196,#REF!) -> 
Z198: =IF('Actual Wellpath'!B208=0,Z197,'Actual Wellpath'!B208) -> 0 | AA198: =IF('Actual Wellpath'!B208=0,AA197,'Actual Wellpath'!C208) -> 0 | AB198: =IF('Actual Wellpath'!B208=0,AB197,'Actual Wellpath'!D208) -> 0 | AC198: =IF('Actual Wellpath'!I208="",AC197,'Actual Wellpath'!I208) -> 0 | AD198: =IF(#REF!=0,AD197,#REF!) ->  | AE198: =IF(#REF!=0,AE197,#REF!) ->  | AF198: =IF(#REF!=0,AF197,#REF!) -> 
Z199: =IF('Actual Wellpath'!B209=0,Z198,'Actual Wellpath'!B209) -> 0 | AA199: =IF('Actual Wellpath'!B209=0,AA198,'Actual Wellpath'!C209) -> 0 | AB199: =IF('Actual Wellpath'!B209=0,AB198,'Actual Wellpath'!D209) -> 0 | AC199: =IF('Actual Wellpath'!I209="",AC198,'Actual Wellpath'!I209) -> 0 | AD199: =IF(#REF!=0,AD198,#REF!) ->  | AE199: =IF(#REF!=0,AE198,#REF!) ->  | AF199: =IF(#REF!=0,AF198,#REF!) -> 
Z200: =IF('Actual Wellpath'!B210=0,Z199,'Actual Wellpath'!B210) -> 0 | AA200: =IF('Actual Wellpath'!B210=0,AA199,'Actual Wellpath'!C210) -> 0 | AB200: =IF('Actual Wellpath'!B210=0,AB199,'Actual Wellpath'!D210) -> 0 | AC200: =IF('Actual Wellpath'!I210="",AC199,'Actual Wellpath'!I210) -> 0 | AD200: =IF(#REF!=0,AD199,#REF!) ->  | AE200: =IF(#REF!=0,AE199,#REF!) ->  | AF200: =IF(#REF!=0,AF199,#REF!) -> 
... 602 more rows

Sheet Lateral Incidence Vector Plot
N1: 15 | Q1: 10 | T1: 5 | W1: 1 | AB1: Incidence Vector
N2: angle | O2: x | P2: y | Q2: angle | R2: x | S2: y | T2: angle | U2: x | V2: y | W2: angle | X2: x | Y2: y | Z2: MD | AA2: MD | AB2: x | AC2: y
N3: 0 | O3: =$N$1*SIN(RADIANS(N3)) -> 0 | P3: =$N$1*COS(RADIANS(N3)) -> 15 | Q3: 0 | R3: =$Q$1*SIN(RADIANS(Q3)) -> 0 | S3: =$Q$1*COS(RADIANS(Q3)) -> 10 | T3: 0 | U3: =$T$1*SIN(RADIANS(T3)) -> 0 | V3: =$T$1*COS(RADIANS(T3)) -> 5 | W3: 0 | X3: =$W$1*SIN(RADIANS(W3)) -> 0 | Y3: =$W$1*COS(RADIANS(W3)) -> 1 | Z3: =IF('Actual Directional Survey Data'!P12="",0,'Actual Directional Survey Data'!P12) -> 0 | AA3: =IF(Z3=Z$801,Z3,"") -> 0 | AB3: =IF('Actual Directional Survey Data'!DQ12="",0,'Actual Directional Survey Data'!DQ12) -> 0 | AC3: =IF('Actual Directional Survey Data'!DR12="",0,'Actual Directional Survey Data'!DR12) -> 0
N4: =N3+10 -> 10 | O4: =$N$1*SIN(RADIANS(N4)) -> 2.604722665 | P4: =$N$1*COS(RADIANS(N4)) -> 14.7721163 | Q4: =Q3+10 -> 10 | R4: =$Q$1*SIN(RADIANS(Q4)) -> 1.736481777 | S4: =$Q$1*COS(RADIANS(Q4)) -> 9.84807753 | T4: =T3+10 -> 10 | U4: =$T$1*SIN(RADIANS(T4)) -> 0.8682408883 | V4: =$T$1*COS(RADIANS(T4)) -> 4.924038765 | W4: =W3+10 -> 10 | X4: =$W$1*SIN(RADIANS(W4)) -> 0.1736481777 | Y4: =$W$1*COS(RADIANS(W4)) -> 0.984807753 | Z4: =IF('Actual Directional Survey Data'!P13="",0,'Actual Directional Survey Data'!P13) -> 0 | AA4: =IF(Z4=Z$801,Z4,"") -> 0 | AB4: =IF('Actual Directional Survey Data'!DQ13="",0,'Actual Directional Survey Data'!DQ13) -> 0 | AC4: =IF('Actual Directional Survey Data'!DR13="",0,'Actual Directional Survey Data'!DR13) -> 0
N5: =N4+10 -> 20 | O5: 5.13030215 | P5: 14.09538931 | Q5: =Q4+10 -> 20 | R5: 3.420201433 | S5: 9.396926208 | T5: =T4+10 -> 20 | U5: 1.710100717 | V5: 4.698463104 | W5: =W4+10 -> 20 | X5: 0.3420201433 | Y5: 0.9396926208 | Z5: =IF('Actual Directional Survey Data'!P14="",0,'Actual Directional Survey Data'!P14) -> 0 | AA5: 0 | AB5: =IF('Actual Directional Survey Data'!DQ14="",0,'Actual Directional Survey Data'!DQ14) -> 0 | AC5: =IF('Actual Directional Survey Data'!DR14="",0,'Actual Directional Survey Data'!DR14) -> 0
N6: 30 | O6: 7.5 | P6: 12.99038106 | Q6: 30 | R6: 5 | S6: 8.660254038 | T6: 30 | U6: 2.5 | V6: 4.330127019 | W6: 30 | X6: 0.5 | Y6: 0.8660254038 | Z6: =IF('Actual Directional Survey Data'!P15="",0,'Actual Directional Survey Data'!P15) -> 0 | AA6: 0 | AB6: =IF('Actual Directional Survey Data'!DQ15="",0,'Actual Directional Survey Data'!DQ15) -> 0 | AC6: =IF('Actual Directional Survey Data'!DR15="",0,'Actual Directional Survey Data'!DR15) -> 0
N7: 40 | O7: 9.641814145 | P7: 11.49066665 | Q7: 40 | R7: 6.427876097 | S7: 7.660444431 | T7: 40 | U7: 3.213938048 | V7: 3.830222216 | W7: 40 | X7: 0.6427876097 | Y7: 0.7660444431 | Z7: =IF('Actual Directional Survey Data'!P16="",0,'Actual Directional Survey Data'!P16) -> 0 | AA7: 0 | AB7: =IF('Actual Directional Survey Data'!DQ16="",0,'Actual Directional Survey Data'!DQ16) -> 0 | AC7: =IF('Actual Directional Survey Data'!DR16="",0,'Actual Directional Survey Data'!DR16) -> 0
N8: 50 | O8: 11.49066665 | P8: 9.641814145 | Q8: 50 | R8: 7.660444431 | S8: 6.427876097 | T8: 50 | U8: 3.830222216 | V8: 3.213938048 | W8: 50 | X8: 0.7660444431 | Y8: 0.6427876097 | Z8: =IF('Actual Directional Survey Data'!P17="",0,'Actual Directional Survey Data'!P17) -> 0 | AA8: 0 | AB8: =IF('Actual Directional Survey Data'!DQ17="",0,'Actual Directional Survey Data'!DQ17) -> 0 | AC8: =IF('Actual Directional Survey Data'!DR17="",0,'Actual Directional Survey Data'!DR17) -> 0
N9: 60 | O9: 12.99038106 | P9: 7.5 | Q9: 60 | R9: 8.660254038 | S9: 5 | T9: 60 | U9: 4.330127019 | V9: 2.5 | W9: 60 | X9: 0.8660254038 | Y9: 0.5 | Z9: =IF('Actual Directional Survey Data'!P18="",0,'Actual Directional Survey Data'!P18) -> 0 | AA9: 0 | AB9: =IF('Actual Directional Survey Data'!DQ18="",0,'Actual Directional Survey Data'!DQ18) -> 0 | AC9: =IF('Actual Directional Survey Data'!DR18="",0,'Actual Directional Survey Data'!DR18) -> 0
N10: 70 | O10: 14.09538931 | P10: 5.13030215 | Q10: 70 | R10: 9.396926208 | S10: 3.420201433 | T10: 70 | U10: 4.698463104 | V10: 1.710100717 | W10: 70 | X10: 0.9396926208 | Y10: 0.3420201433 | Z10: =IF('Actual Directional Survey Data'!P19="",0,'Actual Directional Survey Data'!P19) -> 0 | AA10: 0 | AB10: =IF('Actual Directional Survey Data'!DQ19="",0,'Actual Directional Survey Data'!DQ19) -> 0 | AC10: =IF('Actual Directional Survey Data'!DR19="",0,'Actual Directional Survey Data'!DR19) -> 0
N11: 80 | O11: 14.7721163 | P11: 2.604722665 | Q11: 80 | R11: 9.84807753 | S11: 1.736481777 | T11: 80 | U11: 4.924038765 | V11: 0.8682408883 | W11: 80 | X11: 0.984807753 | Y11: 0.1736481777 | Z11: =IF('Actual Directional Survey Data'!P20="",0,'Actual Directional Survey Data'!P20) -> 0 | AA11: 0 | AB11: =IF('Actual Directional Survey Data'!DQ20="",0,'Actual Directional Survey Data'!DQ20) -> 0 | AC11: =IF('Actual Directional Survey Data'!DR20="",0,'Actual Directional Survey Data'!DR20) -> 0
N12: 90 | O12: 15 | P12: 9.188613412e-16 | Q12: 90 | R12: 10 | S12: 6.125742275e-16 | T12: 90 | U12: 5 | V12: 3.062871137e-16 | W12: 90 | X12: 1 | Y12: 6.125742275e-17 | Z12: =IF('Actual Directional Survey Data'!P21="",0,'Actual Directional Survey Data'!P21) -> 0 | AA12: 0 | AB12: =IF('Actual Directional Survey Data'!DQ21="",0,'Actual Directional Survey Data'!DQ21) -> 0 | AC12: =IF('Actual Directional Survey Data'!DR21="",0,'Actual Directional Survey Data'!DR21) -> 0
N13: 100 | O13: 14.7721163 | P13: -2.604722665 | Q13: 100 | R13: 9.84807753 | S13: -1.736481777 | T13: 100 | U13: 4.924038765 | V13: -0.8682408883 | W13: 100 | X13: 0.984807753 | Y13: -0.1736481777 | Z13: =IF('Actual Directional Survey Data'!P22="",0,'Actual Directional Survey Data'!P22) -> 0 | AA13: 0 | AB13: =IF('Actual Directional Survey Data'!DQ22="",0,'Actual Directional Survey Data'!DQ22) -> 0 | AC13: =IF('Actual Directional Survey Data'!DR22="",0,'Actual Directional Survey Data'!DR22) -> 0
N14: 110 | O14: 14.09538931 | P14: -5.13030215 | Q14: 110 | R14: 9.396926208 | S14: -3.420201433 | T14: 110 | U14: 4.698463104 | V14: -1.710100717 | W14: 110 | X14: 0.9396926208 | Y14: -0.3420201433 | Z14: =IF('Actual Directional Survey Data'!P23="",0,'Actual Directional Survey Data'!P23) -> 0 | AA14: 0 | AB14: =IF('Actual Directional Survey Data'!DQ23="",0,'Actual Directional Survey Data'!DQ23) -> 0 | AC14: =IF('Actual Directional Survey Data'!DR23="",0,'Actual Directional Survey Data'!DR23) -> 0
N15: 120 | O15: 12.99038106 | P15: -7.5 | Q15: 120 | R15: 8.660254038 | S15: -5 | T15: 120 | U15: 4.330127019 | V15: -2.5 | W15: 120 | X15: 0.8660254038 | Y15: -0.5 | Z15: =IF('Actual Directional Survey Data'!P24="",0,'Actual Directional Survey Data'!P24) -> 0 | AA15: 0 | AB15: =IF('Actual Directional Survey Data'!DQ24="",0,'Actual Directional Survey Data'!DQ24) -> 0 | AC15: =IF('Actual Directional Survey Data'!DR24="",0,'Actual Directional Survey Data'!DR24) -> 0
N16: 130 | O16: 11.49066665 | P16: -9.641814145 | Q16: 130 | R16: 7.660444431 | S16: -6.427876097 | T16: 130 | U16: 3.830222216 | V16: -3.213938048 | W16: 130 | X16: 0.7660444431 | Y16: -0.6427876097 | Z16: =IF('Actual Directional Survey Data'!P25="",0,'Actual Directional Survey Data'!P25) -> 0 | AA16: 0 | AB16: =IF('Actual Directional Survey Data'!DQ25="",0,'Actual Directional Survey Data'!DQ25) -> 0 | AC16: =IF('Actual Directional Survey Data'!DR25="",0,'Actual Directional Survey Data'!DR25) -> 0
N17: 140 | O17: 9.641814145 | P17: -11.49066665 | Q17: 140 | R17: 6.427876097 | S17: -7.660444431 | T17: 140 | U17: 3.213938048 | V17: -3.830222216 | W17: 140 | X17: 0.6427876097 | Y17: -0.7660444431 | Z17: =IF('Actual Directional Survey Data'!P26="",0,'Actual Directional Survey Data'!P26) -> 0 | AA17: 0 | AB17: =IF('Actual Directional Survey Data'!DQ26="",0,'Actual Directional Survey Data'!DQ26) -> 0 | AC17: =IF('Actual Directional Survey Data'!DR26="",0,'Actual Directional Survey Data'!DR26) -> 0
N18: 150 | O18: 7.5 | P18: -12.99038106 | Q18: 150 | R18: 5 | S18: -8.660254038 | T18: 150 | U18: 2.5 | V18: -4.330127019 | W18: 150 | X18: 0.5 | Y18: -0.8660254038 | Z18: =IF('Actual Directional Survey Data'!P27="",0,'Actual Directional Survey Data'!P27) -> 0 | AA18: 0 | AB18: =IF('Actual Directional Survey Data'!DQ27="",0,'Actual Directional Survey Data'!DQ27) -> 0 | AC18: =IF('Actual Directional Survey Data'!DR27="",0,'Actual Directional Survey Data'!DR27) -> 0
N19: 160 | O19: 5.13030215 | P19: -14.09538931 | Q19: 160 | R19: 3.420201433 | S19: -9.396926208 | T19: 160 | U19: 1.710100717 | V19: -4.698463104 | W19: 160 | X19: 0.3420201433 | Y19: -0.9396926208 | Z19: =IF('Actual Directional Survey Data'!P28="",0,'Actual Directional Survey Data'!P28) -> 0 | AA19: 0 | AB19: =IF('Actual Directional Survey Data'!DQ28="",0,'Actual Directional Survey Data'!DQ28) -> 0 | AC19: =IF('Actual Directional Survey Data'!DR28="",0,'Actual Directional Survey Data'!DR28) -> 0
N20: 170 | O20: 2.604722665 | P20: -14.7721163 | Q20: 170 | R20: 1.736481777 | S20: -9.84807753 | T20: 170 | U20: 0.8682408883 | V20: -4.924038765 | W20: 170 | X20: 0.1736481777 | Y20: -0.984807753 | Z20: =IF('Actual Directional Survey Data'!P29="",0,'Actual Directional Survey Data'!P29) -> 0 | AA20: 0 | AB20: =IF('Actual Directional Survey Data'!DQ29="",0,'Actual Directional Survey Data'!DQ29) -> 0 | AC20: =IF('Actual Directional Survey Data'!DR29="",0,'Actual Directional Survey Data'!DR29) -> 0
N21: 180 | O21: 1.837722682e-15 | P21: -15 | Q21: 180 | R21: 1.225148455e-15 | S21: -10 | T21: 180 | U21: 6.125742275e-16 | V21: -5 | W21: 180 | X21: 1.225148455e-16 | Y21: -1 | Z21: =IF('Actual Directional Survey Data'!P30="",0,'Actual Directional Survey Data'!P30) -> 0 | AA21: 0 | AB21: =IF('Actual Directional Survey Data'!DQ30="",0,'Actual Directional Survey Data'!DQ30) -> 0 | AC21: =IF('Actual Directional Survey Data'!DR30="",0,'Actual Directional Survey Data'!DR30) -> 0
N22: 190 | O22: -2.604722665 | P22: -14.7721163 | Q22: 190 | R22: -1.736481777 | S22: -9.84807753 | T22: 190 | U22: -0.8682408883 | V22: -4.924038765 | W22: 190 | X22: -0.1736481777 | Y22: -0.984807753 | Z22: =IF('Actual Directional Survey Data'!P31="",0,'Actual Directional Survey Data'!P31) -> 0 | AA22: 0 | AB22: =IF('Actual Directional Survey Data'!DQ31="",0,'Actual Directional Survey Data'!DQ31) -> 0 | AC22: =IF('Actual Directional Survey Data'!DR31="",0,'Actual Directional Survey Data'!DR31) -> 0
N23: 200 | O23: -5.13030215 | P23: -14.09538931 | Q23: 200 | R23: -3.420201433 | S23: -9.396926208 | T23: 200 | U23: -1.710100717 | V23: -4.698463104 | W23: 200 | X23: -0.3420201433 | Y23: -0.9396926208 | Z23: =IF('Actual Directional Survey Data'!P32="",0,'Actual Directional Survey Data'!P32) -> 0 | AA23: 0 | AB23: =IF('Actual Directional Survey Data'!DQ32="",0,'Actual Directional Survey Data'!DQ32) -> 0 | AC23: =IF('Actual Directional Survey Data'!DR32="",0,'Actual Directional Survey Data'!DR32) -> 0
N24: 210 | O24: -7.5 | P24: -12.99038106 | Q24: 210 | R24: -5 | S24: -8.660254038 | T24: 210 | U24: -2.5 | V24: -4.330127019 | W24: 210 | X24: -0.5 | Y24: -0.8660254038 | Z24: =IF('Actual Directional Survey Data'!P33="",0,'Actual Directional Survey Data'!P33) -> 0 | AA24: 0 | AB24: =IF('Actual Directional Survey Data'!DQ33="",0,'Actual Directional Survey Data'!DQ33) -> 0 | AC24: =IF('Actual Directional Survey Data'!DR33="",0,'Actual Directional Survey Data'!DR33) -> 0
N25: 220 | O25: -9.641814145 | P25: -11.49066665 | Q25: 220 | R25: -6.427876097 | S25: -7.660444431 | T25: 220 | U25: -3.213938048 | V25: -3.830222216 | W25: 220 | X25: -0.6427876097 | Y25: -0.7660444431 | Z25: =IF('Actual Directional Survey Data'!P34="",0,'Actual Directional Survey Data'!P34) -> 0 | AA25: 0 | AB25: =IF('Actual Directional Survey Data'!DQ34="",0,'Actual Directional Survey Data'!DQ34) -> 0 | AC25: =IF('Actual Directional Survey Data'!DR34="",0,'Actual Directional Survey Data'!DR34) -> 0
N26: 230 | O26: -11.49066665 | P26: -9.641814145 | Q26: 230 | R26: -7.660444431 | S26: -6.427876097 | T26: 230 | U26: -3.830222216 | V26: -3.213938048 | W26: 230 | X26: -0.7660444431 | Y26: -0.6427876097 | Z26: =IF('Actual Directional Survey Data'!P35="",0,'Actual Directional Survey Data'!P35) -> 0 | AA26: 0 | AB26: =IF('Actual Directional Survey Data'!DQ35="",0,'Actual Directional Survey Data'!DQ35) -> 0 | AC26: =IF('Actual Directional Survey Data'!DR35="",0,'Actual Directional Survey Data'!DR35) -> 0
N27: 240 | O27: -12.99038106 | P27: -7.5 | Q27: 240 | R27: -8.660254038 | S27: -5 | T27: 240 | U27: -4.330127019 | V27: -2.5 | W27: 240 | X27: -0.8660254038 | Y27: -0.5 | Z27: =IF('Actual Directional Survey Data'!P36="",0,'Actual Directional Survey Data'!P36) -> 0 | AA27: 0 | AB27: =IF('Actual Directional Survey Data'!DQ36="",0,'Actual Directional Survey Data'!DQ36) -> 0 | AC27: =IF('Actual Directional Survey Data'!DR36="",0,'Actual Directional Survey Data'!DR36) -> 0
N28: 250 | O28: -14.09538931 | P28: -5.13030215 | Q28: 250 | R28: -9.396926208 | S28: -3.420201433 | T28: 250 | U28: -4.698463104 | V28: -1.710100717 | W28: 250 | X28: -0.9396926208 | Y28: -0.3420201433 | Z28: =IF('Actual Directional Survey Data'!P37="",0,'Actual Directional Survey Data'!P37) -> 0 | AA28: 0 | AB28: =IF('Actual Directional Survey Data'!DQ37="",0,'Actual Directional Survey Data'!DQ37) -> 0 | AC28: =IF('Actual Directional Survey Data'!DR37="",0,'Actual Directional Survey Data'!DR37) -> 0
N29: 260 | O29: -14.7721163 | P29: -2.604722665 | Q29: 260 | R29: -9.84807753 | S29: -1.736481777 | T29: 260 | U29: -4.924038765 | V29: -0.8682408883 | W29: 260 | X29: -0.984807753 | Y29: -0.1736481777 | Z29: =IF('Actual Directional Survey Data'!P38="",0,'Actual Directional Survey Data'!P38) -> 0 | AA29: 0 | AB29: =IF('Actual Directional Survey Data'!DQ38="",0,'Actual Directional Survey Data'!DQ38) -> 0 | AC29: =IF('Actual Directional Survey Data'!DR38="",0,'Actual Directional Survey Data'!DR38) -> 0
N30: 270 | O30: -15 | P30: -2.756584024e-15 | Q30: 270 | R30: -10 | S30: -1.837722682e-15 | T30: 270 | U30: -5 | V30: -9.188613412e-16 | W30: 270 | X30: -1 | Y30: -1.837722682e-16 | Z30: =IF('Actual Directional Survey Data'!P39="",0,'Actual Directional Survey Data'!P39) -> 0 | AA30: 0 | AB30: =IF('Actual Directional Survey Data'!DQ39="",0,'Actual Directional Survey Data'!DQ39) -> 0 | AC30: =IF('Actual Directional Survey Data'!DR39="",0,'Actual Directional Survey Data'!DR39) -> 0
N31: 280 | O31: -14.7721163 | P31: 2.604722665 | Q31: 280 | R31: -9.84807753 | S31: 1.736481777 | T31: 280 | U31: -4.924038765 | V31: 0.8682408883 | W31: 280 | X31: -0.984807753 | Y31: 0.1736481777 | Z31: =IF('Actual Directional Survey Data'!P40="",0,'Actual Directional Survey Data'!P40) -> 0 | AA31: 0 | AB31: =IF('Actual Directional Survey Data'!DQ40="",0,'Actual Directional Survey Data'!DQ40) -> 0 | AC31: =IF('Actual Directional Survey Data'!DR40="",0,'Actual Directional Survey Data'!DR40) -> 0
N32: 290 | O32: -14.09538931 | P32: 5.13030215 | Q32: 290 | R32: -9.396926208 | S32: 3.420201433 | T32: 290 | U32: -4.698463104 | V32: 1.710100717 | W32: 290 | X32: -0.9396926208 | Y32: 0.3420201433 | Z32: =IF('Actual Directional Survey Data'!P41="",0,'Actual Directional Survey Data'!P41) -> 0 | AA32: 0 | AB32: =IF('Actual Directional Survey Data'!DQ41="",0,'Actual Directional Survey Data'!DQ41) -> 0 | AC32: =IF('Actual Directional Survey Data'!DR41="",0,'Actual Directional Survey Data'!DR41) -> 0
N33: 300 | O33: -12.99038106 | P33: 7.5 | Q33: 300 | R33: -8.660254038 | S33: 5 | T33: 300 | U33: -4.330127019 | V33: 2.5 | W33: 300 | X33: -0.8660254038 | Y33: 0.5 | Z33: =IF('Actual Directional Survey Data'!P42="",0,'Actual Directional Survey Data'!P42) -> 0 | AA33: 0 | AB33: =IF('Actual Directional Survey Data'!DQ42="",0,'Actual Directional Survey Data'!DQ42) -> 0 | AC33: =IF('Actual Directional Survey Data'!DR42="",0,'Actual Directional Survey Data'!DR42) -> 0
N34: 310 | O34: -11.49066665 | P34: 9.641814145 | Q34: 310 | R34: -7.660444431 | S34: 6.427876097 | T34: 310 | U34: -3.830222216 | V34: 3.213938048 | W34: 310 | X34: -0.7660444431 | Y34: 0.6427876097 | Z34: =IF('Actual Directional Survey Data'!P43="",0,'Actual Directional Survey Data'!P43) -> 0 | AA34: 0 | AB34: =IF('Actual Directional Survey Data'!DQ43="",0,'Actual Directional Survey Data'!DQ43) -> 0 | AC34: =IF('Actual Directional Survey Data'!DR43="",0,'Actual Directional Survey Data'!DR43) -> 0
N35: 320 | O35: -9.641814145 | P35: 11.49066665 | Q35: 320 | R35: -6.427876097 | S35: 7.660444431 | T35: 320 | U35: -3.213938048 | V35: 3.830222216 | W35: 320 | X35: -0.6427876097 | Y35: 0.7660444431 | Z35: =IF('Actual Directional Survey Data'!P44="",0,'Actual Directional Survey Data'!P44) -> 0 | AA35: 0 | AB35: =IF('Actual Directional Survey Data'!DQ44="",0,'Actual Directional Survey Data'!DQ44) -> 0 | AC35: =IF('Actual Directional Survey Data'!DR44="",0,'Actual Directional Survey Data'!DR44) -> 0
N36: 330 | O36: -7.5 | P36: 12.99038106 | Q36: 330 | R36: -5 | S36: 8.660254038 | T36: 330 | U36: -2.5 | V36: 4.330127019 | W36: 330 | X36: -0.5 | Y36: 0.8660254038 | Z36: =IF('Actual Directional Survey Data'!P45="",0,'Actual Directional Survey Data'!P45) -> 0 | AA36: 0 | AB36: =IF('Actual Directional Survey Data'!DQ45="",0,'Actual Directional Survey Data'!DQ45) -> 0 | AC36: =IF('Actual Directional Survey Data'!DR45="",0,'Actual Directional Survey Data'!DR45) -> 0
N37: 340 | O37: -5.13030215 | P37: 14.09538931 | Q37: 340 | R37: -3.420201433 | S37: 9.396926208 | T37: 340 | U37: -1.710100717 | V37: 4.698463104 | W37: 340 | X37: -0.3420201433 | Y37: 0.9396926208 | Z37: =IF('Actual Directional Survey Data'!P46="",0,'Actual Directional Survey Data'!P46) -> 0 | AA37: 0 | AB37: =IF('Actual Directional Survey Data'!DQ46="",0,'Actual Directional Survey Data'!DQ46) -> 0 | AC37: =IF('Actual Directional Survey Data'!DR46="",0,'Actual Directional Survey Data'!DR46) -> 0
N38: 350 | O38: -2.604722665 | P38: 14.7721163 | Q38: 350 | R38: -1.736481777 | S38: 9.84807753 | T38: 350 | U38: -0.8682408883 | V38: 4.924038765 | W38: 350 | X38: -0.1736481777 | Y38: 0.984807753 | Z38: =IF('Actual Directional Survey Data'!P47="",0,'Actual Directional Survey Data'!P47) -> 0 | AA38: 0 | AB38: =IF('Actual Directional Survey Data'!DQ47="",0,'Actual Directional Survey Data'!DQ47) -> 0 | AC38: =IF('Actual Directional Survey Data'!DR47="",0,'Actual Directional Survey Data'!DR47) -> 0
N39: 360 | O39: -3.675445365e-15 | P39: 15 | Q39: 360 | R39: -2.45029691e-15 | S39: 10 | T39: 360 | U39: -1.225148455e-15 | V39: 5 | W39: 360 | X39: -2.45029691e-16 | Y39: 1 | Z39: =IF('Actual Directional Survey Data'!P48="",0,'Actual Directional Survey Data'!P48) -> 0 | AA39: 0 | AB39: =IF('Actual Directional Survey Data'!DQ48="",0,'Actual Directional Survey Data'!DQ48) -> 0 | AC39: =IF('Actual Directional Survey Data'!DR48="",0,'Actual Directional Survey Data'!DR48) -> 0
Z40: =IF('Actual Directional Survey Data'!P49="",0,'Actual Directional Survey Data'!P49) -> 0 | AA40: 0 | AB40: =IF('Actual Directional Survey Data'!DQ49="",0,'Actual Directional Survey Data'!DQ49) -> 0 | AC40: =IF('Actual Directional Survey Data'!DR49="",0,'Actual Directional Survey Data'!DR49) -> 0
Z41: =IF('Actual Directional Survey Data'!P50="",0,'Actual Directional Survey Data'!P50) -> 0 | AA41: 0 | AB41: =IF('Actual Directional Survey Data'!DQ50="",0,'Actual Directional Survey Data'!DQ50) -> 0 | AC41: =IF('Actual Directional Survey Data'!DR50="",0,'Actual Directional Survey Data'!DR50) -> 0
Z42: =IF('Actual Directional Survey Data'!P51="",0,'Actual Directional Survey Data'!P51) -> 0 | AA42: 0 | AB42: =IF('Actual Directional Survey Data'!DQ51="",0,'Actual Directional Survey Data'!DQ51) -> 0 | AC42: =IF('Actual Directional Survey Data'!DR51="",0,'Actual Directional Survey Data'!DR51) -> 0
Z43: =IF('Actual Directional Survey Data'!P52="",0,'Actual Directional Survey Data'!P52) -> 0 | AA43: 0 | AB43: =IF('Actual Directional Survey Data'!DQ52="",0,'Actual Directional Survey Data'!DQ52) -> 0 | AC43: =IF('Actual Directional Survey Data'!DR52="",0,'Actual Directional Survey Data'!DR52) -> 0
Z44: =IF('Actual Directional Survey Data'!P53="",0,'Actual Directional Survey Data'!P53) -> 0 | AA44: 0 | AB44: =IF('Actual Directional Survey Data'!DQ53="",0,'Actual Directional Survey Data'!DQ53) -> 0 | AC44: =IF('Actual Directional Survey Data'!DR53="",0,'Actual Directional Survey Data'!DR53) -> 0
Z45: =IF('Actual Directional Survey Data'!P54="",0,'Actual Directional Survey Data'!P54) -> 0 | AA45: 0 | AB45: =IF('Actual Directional Survey Data'!DQ54="",0,'Actual Directional Survey Data'!DQ54) -> 0 | AC45: =IF('Actual Directional Survey Data'!DR54="",0,'Actual Directional Survey Data'!DR54) -> 0
Z46: =IF('Actual Directional Survey Data'!P55="",0,'Actual Directional Survey Data'!P55) -> 0 | AA46: 0 | AB46: =IF('Actual Directional Survey Data'!DQ55="",0,'Actual Directional Survey Data'!DQ55) -> 0 | AC46: =IF('Actual Directional Survey Data'!DR55="",0,'Actual Directional Survey Data'!DR55) -> 0
Z47: =IF('Actual Directional Survey Data'!P56="",0,'Actual Directional Survey Data'!P56) -> 0 | AA47: 0 | AB47: =IF('Actual Directional Survey Data'!DQ56="",0,'Actual Directional Survey Data'!DQ56) -> 0 | AC47: =IF('Actual Directional Survey Data'!DR56="",0,'Actual Directional Survey Data'!DR56) -> 0
Z48: =IF('Actual Directional Survey Data'!P57="",0,'Actual Directional Survey Data'!P57) -> 0 | AA48: 0 | AB48: =IF('Actual Directional Survey Data'!DQ57="",0,'Actual Directional Survey Data'!DQ57) -> 0 | AC48: =IF('Actual Directional Survey Data'!DR57="",0,'Actual Directional Survey Data'!DR57) -> 0
Z49: =IF('Actual Directional Survey Data'!P58="",0,'Actual Directional Survey Data'!P58) -> 0 | AA49: 0 | AB49: =IF('Actual Directional Survey Data'!DQ58="",0,'Actual Directional Survey Data'!DQ58) -> 0 | AC49: =IF('Actual Directional Survey Data'!DR58="",0,'Actual Directional Survey Data'!DR58) -> 0
Z50: =IF('Actual Directional Survey Data'!P59="",0,'Actual Directional Survey Data'!P59) -> 0 | AA50: 0 | AB50: =IF('Actual Directional Survey Data'!DQ59="",0,'Actual Directional Survey Data'!DQ59) -> 0 | AC50: =IF('Actual Directional Survey Data'!DR59="",0,'Actual Directional Survey Data'!DR59) -> 0
Z51: =IF('Actual Directional Survey Data'!P60="",0,'Actual Directional Survey Data'!P60) -> 0 | AA51: 0 | AB51: =IF('Actual Directional Survey Data'!DQ60="",0,'Actual Directional Survey Data'!DQ60) -> 0 | AC51: =IF('Actual Directional Survey Data'!DR60="",0,'Actual Directional Survey Data'!DR60) -> 0
Z52: =IF('Actual Directional Survey Data'!P61="",0,'Actual Directional Survey Data'!P61) -> 0 | AA52: 0 | AB52: =IF('Actual Directional Survey Data'!DQ61="",0,'Actual Directional Survey Data'!DQ61) -> 0 | AC52: =IF('Actual Directional Survey Data'!DR61="",0,'Actual Directional Survey Data'!DR61) -> 0
Z53: =IF('Actual Directional Survey Data'!P62="",0,'Actual Directional Survey Data'!P62) -> 0 | AA53: 0 | AB53: =IF('Actual Directional Survey Data'!DQ62="",0,'Actual Directional Survey Data'!DQ62) -> 0 | AC53: =IF('Actual Directional Survey Data'!DR62="",0,'Actual Directional Survey Data'!DR62) -> 0
Z54: =IF('Actual Directional Survey Data'!P63="",0,'Actual Directional Survey Data'!P63) -> 0 | AA54: 0 | AB54: =IF('Actual Directional Survey Data'!DQ63="",0,'Actual Directional Survey Data'!DQ63) -> 0 | AC54: =IF('Actual Directional Survey Data'!DR63="",0,'Actual Directional Survey Data'!DR63) -> 0
Z55: =IF('Actual Directional Survey Data'!P64="",0,'Actual Directional Survey Data'!P64) -> 0 | AA55: 0 | AB55: =IF('Actual Directional Survey Data'!DQ64="",0,'Actual Directional Survey Data'!DQ64) -> 0 | AC55: =IF('Actual Directional Survey Data'!DR64="",0,'Actual Directional Survey Data'!DR64) -> 0
Z56: =IF('Actual Directional Survey Data'!P65="",0,'Actual Directional Survey Data'!P65) -> 0 | AA56: 0 | AB56: =IF('Actual Directional Survey Data'!DQ65="",0,'Actual Directional Survey Data'!DQ65) -> 0 | AC56: =IF('Actual Directional Survey Data'!DR65="",0,'Actual Directional Survey Data'!DR65) -> 0
Z57: =IF('Actual Directional Survey Data'!P66="",0,'Actual Directional Survey Data'!P66) -> 0 | AA57: 0 | AB57: =IF('Actual Directional Survey Data'!DQ66="",0,'Actual Directional Survey Data'!DQ66) -> 0 | AC57: =IF('Actual Directional Survey Data'!DR66="",0,'Actual Directional Survey Data'!DR66) -> 0
Z58: =IF('Actual Directional Survey Data'!P67="",0,'Actual Directional Survey Data'!P67) -> 0 | AA58: 0 | AB58: =IF('Actual Directional Survey Data'!DQ67="",0,'Actual Directional Survey Data'!DQ67) -> 0 | AC58: =IF('Actual Directional Survey Data'!DR67="",0,'Actual Directional Survey Data'!DR67) -> 0
Z59: =IF('Actual Directional Survey Data'!P68="",0,'Actual Directional Survey Data'!P68) -> 0 | AA59: 0 | AB59: =IF('Actual Directional Survey Data'!DQ68="",0,'Actual Directional Survey Data'!DQ68) -> 0 | AC59: =IF('Actual Directional Survey Data'!DR68="",0,'Actual Directional Survey Data'!DR68) -> 0
Z60: =IF('Actual Directional Survey Data'!P69="",0,'Actual Directional Survey Data'!P69) -> 0 | AA60: 0 | AB60: =IF('Actual Directional Survey Data'!DQ69="",0,'Actual Directional Survey Data'!DQ69) -> 0 | AC60: =IF('Actual Directional Survey Data'!DR69="",0,'Actual Directional Survey Data'!DR69) -> 0
Z61: =IF('Actual Directional Survey Data'!P70="",0,'Actual Directional Survey Data'!P70) -> 0 | AA61: 0 | AB61: =IF('Actual Directional Survey Data'!DQ70="",0,'Actual Directional Survey Data'!DQ70) -> 0 | AC61: =IF('Actual Directional Survey Data'!DR70="",0,'Actual Directional Survey Data'!DR70) -> 0
Z62: =IF('Actual Directional Survey Data'!P71="",0,'Actual Directional Survey Data'!P71) -> 0 | AA62: 0 | AB62: =IF('Actual Directional Survey Data'!DQ71="",0,'Actual Directional Survey Data'!DQ71) -> 0 | AC62: =IF('Actual Directional Survey Data'!DR71="",0,'Actual Directional Survey Data'!DR71) -> 0
Z63: =IF('Actual Directional Survey Data'!P72="",0,'Actual Directional Survey Data'!P72) -> 0 | AA63: 0 | AB63: =IF('Actual Directional Survey Data'!DQ72="",0,'Actual Directional Survey Data'!DQ72) -> 0 | AC63: =IF('Actual Directional Survey Data'!DR72="",0,'Actual Directional Survey Data'!DR72) -> 0
Z64: =IF('Actual Directional Survey Data'!P73="",0,'Actual Directional Survey Data'!P73) -> 0 | AA64: 0 | AB64: =IF('Actual Directional Survey Data'!DQ73="",0,'Actual Directional Survey Data'!DQ73) -> 0 | AC64: =IF('Actual Directional Survey Data'!DR73="",0,'Actual Directional Survey Data'!DR73) -> 0
Z65: =IF('Actual Directional Survey Data'!P74="",0,'Actual Directional Survey Data'!P74) -> 0 | AA65: 0 | AB65: =IF('Actual Directional Survey Data'!DQ74="",0,'Actual Directional Survey Data'!DQ74) -> 0 | AC65: =IF('Actual Directional Survey Data'!DR74="",0,'Actual Directional Survey Data'!DR74) -> 0
Z66: =IF('Actual Directional Survey Data'!P75="",0,'Actual Directional Survey Data'!P75) -> 0 | AA66: 0 | AB66: =IF('Actual Directional Survey Data'!DQ75="",0,'Actual Directional Survey Data'!DQ75) -> 0 | AC66: =IF('Actual Directional Survey Data'!DR75="",0,'Actual Directional Survey Data'!DR75) -> 0
Z67: =IF('Actual Directional Survey Data'!P76="",0,'Actual Directional Survey Data'!P76) -> 0 | AA67: 0 | AB67: =IF('Actual Directional Survey Data'!DQ76="",0,'Actual Directional Survey Data'!DQ76) -> 0 | AC67: =IF('Actual Directional Survey Data'!DR76="",0,'Actual Directional Survey Data'!DR76) -> 0
Z68: =IF('Actual Directional Survey Data'!P77="",0,'Actual Directional Survey Data'!P77) -> 0 | AA68: =IF(Z68=Z$801,Z68,"") -> 0 | AB68: =IF('Actual Directional Survey Data'!DQ77="",0,'Actual Directional Survey Data'!DQ77) -> 0 | AC68: =IF('Actual Directional Survey Data'!DR77="",0,'Actual Directional Survey Data'!DR77) -> 0
Z69: =IF('Actual Directional Survey Data'!P78="",0,'Actual Directional Survey Data'!P78) -> 0 | AA69: 0 | AB69: =IF('Actual Directional Survey Data'!DQ78="",0,'Actual Directional Survey Data'!DQ78) -> 0 | AC69: =IF('Actual Directional Survey Data'!DR78="",0,'Actual Directional Survey Data'!DR78) -> 0
Z70: =IF('Actual Directional Survey Data'!P79="",0,'Actual Directional Survey Data'!P79) -> 0 | AA70: 0 | AB70: =IF('Actual Directional Survey Data'!DQ79="",0,'Actual Directional Survey Data'!DQ79) -> 0 | AC70: =IF('Actual Directional Survey Data'!DR79="",0,'Actual Directional Survey Data'!DR79) -> 0
Z71: =IF('Actual Directional Survey Data'!P80="",0,'Actual Directional Survey Data'!P80) -> 0 | AA71: 0 | AB71: =IF('Actual Directional Survey Data'!DQ80="",0,'Actual Directional Survey Data'!DQ80) -> 0 | AC71: =IF('Actual Directional Survey Data'!DR80="",0,'Actual Directional Survey Data'!DR80) -> 0
Z72: =IF('Actual Directional Survey Data'!P81="",0,'Actual Directional Survey Data'!P81) -> 0 | AA72: 0 | AB72: =IF('Actual Directional Survey Data'!DQ81="",0,'Actual Directional Survey Data'!DQ81) -> 0 | AC72: =IF('Actual Directional Survey Data'!DR81="",0,'Actual Directional Survey Data'!DR81) -> 0
Z73: =IF('Actual Directional Survey Data'!P82="",0,'Actual Directional Survey Data'!P82) -> 0 | AA73: 0 | AB73: =IF('Actual Directional Survey Data'!DQ82="",0,'Actual Directional Survey Data'!DQ82) -> 0 | AC73: =IF('Actual Directional Survey Data'!DR82="",0,'Actual Directional Survey Data'!DR82) -> 0
Z74: =IF('Actual Directional Survey Data'!P83="",0,'Actual Directional Survey Data'!P83) -> 0 | AA74: 0 | AB74: =IF('Actual Directional Survey Data'!DQ83="",0,'Actual Directional Survey Data'!DQ83) -> 0 | AC74: =IF('Actual Directional Survey Data'!DR83="",0,'Actual Directional Survey Data'!DR83) -> 0
Z75: =IF('Actual Directional Survey Data'!P84="",0,'Actual Directional Survey Data'!P84) -> 0 | AA75: 0 | AB75: =IF('Actual Directional Survey Data'!DQ84="",0,'Actual Directional Survey Data'!DQ84) -> 0 | AC75: =IF('Actual Directional Survey Data'!DR84="",0,'Actual Directional Survey Data'!DR84) -> 0
Z76: =IF('Actual Directional Survey Data'!P85="",0,'Actual Directional Survey Data'!P85) -> 0 | AA76: 0 | AB76: =IF('Actual Directional Survey Data'!DQ85="",0,'Actual Directional Survey Data'!DQ85) -> 0 | AC76: =IF('Actual Directional Survey Data'!DR85="",0,'Actual Directional Survey Data'!DR85) -> 0
Z77: =IF('Actual Directional Survey Data'!P86="",0,'Actual Directional Survey Data'!P86) -> 0 | AA77: 0 | AB77: =IF('Actual Directional Survey Data'!DQ86="",0,'Actual Directional Survey Data'!DQ86) -> 0 | AC77: =IF('Actual Directional Survey Data'!DR86="",0,'Actual Directional Survey Data'!DR86) -> 0
Z78: =IF('Actual Directional Survey Data'!P87="",0,'Actual Directional Survey Data'!P87) -> 0 | AA78: 0 | AB78: =IF('Actual Directional Survey Data'!DQ87="",0,'Actual Directional Survey Data'!DQ87) -> 0 | AC78: =IF('Actual Directional Survey Data'!DR87="",0,'Actual Directional Survey Data'!DR87) -> 0
Z79: =IF('Actual Directional Survey Data'!P88="",0,'Actual Directional Survey Data'!P88) -> 0 | AA79: 0 | AB79: =IF('Actual Directional Survey Data'!DQ88="",0,'Actual Directional Survey Data'!DQ88) -> 0 | AC79: =IF('Actual Directional Survey Data'!DR88="",0,'Actual Directional Survey Data'!DR88) -> 0
Z80: =IF('Actual Directional Survey Data'!P89="",0,'Actual Directional Survey Data'!P89) -> 0 | AA80: 0 | AB80: =IF('Actual Directional Survey Data'!DQ89="",0,'Actual Directional Survey Data'!DQ89) -> 0 | AC80: =IF('Actual Directional Survey Data'!DR89="",0,'Actual Directional Survey Data'!DR89) -> 0
Z81: =IF('Actual Directional Survey Data'!P90="",0,'Actual Directional Survey Data'!P90) -> 0 | AA81: 0 | AB81: =IF('Actual Directional Survey Data'!DQ90="",0,'Actual Directional Survey Data'!DQ90) -> 0 | AC81: =IF('Actual Directional Survey Data'!DR90="",0,'Actual Directional Survey Data'!DR90) -> 0
Z82: =IF('Actual Directional Survey Data'!P91="",0,'Actual Directional Survey Data'!P91) -> 0 | AA82: 0 | AB82: =IF('Actual Directional Survey Data'!DQ91="",0,'Actual Directional Survey Data'!DQ91) -> 0 | AC82: =IF('Actual Directional Survey Data'!DR91="",0,'Actual Directional Survey Data'!DR91) -> 0
Z83: =IF('Actual Directional Survey Data'!P92="",0,'Actual Directional Survey Data'!P92) -> 0 | AA83: 0 | AB83: =IF('Actual Directional Survey Data'!DQ92="",0,'Actual Directional Survey Data'!DQ92) -> 0 | AC83: =IF('Actual Directional Survey Data'!DR92="",0,'Actual Directional Survey Data'!DR92) -> 0
Z84: =IF('Actual Directional Survey Data'!P93="",0,'Actual Directional Survey Data'!P93) -> 0 | AA84: 0 | AB84: =IF('Actual Directional Survey Data'!DQ93="",0,'Actual Directional Survey Data'!DQ93) -> 0 | AC84: =IF('Actual Directional Survey Data'!DR93="",0,'Actual Directional Survey Data'!DR93) -> 0
Z85: =IF('Actual Directional Survey Data'!P94="",0,'Actual Directional Survey Data'!P94) -> 0 | AA85: 0 | AB85: =IF('Actual Directional Survey Data'!DQ94="",0,'Actual Directional Survey Data'!DQ94) -> 0 | AC85: =IF('Actual Directional Survey Data'!DR94="",0,'Actual Directional Survey Data'!DR94) -> 0
Z86: =IF('Actual Directional Survey Data'!P95="",0,'Actual Directional Survey Data'!P95) -> 0 | AA86: 0 | AB86: =IF('Actual Directional Survey Data'!DQ95="",0,'Actual Directional Survey Data'!DQ95) -> 0 | AC86: =IF('Actual Directional Survey Data'!DR95="",0,'Actual Directional Survey Data'!DR95) -> 0
Z87: =IF('Actual Directional Survey Data'!P96="",0,'Actual Directional Survey Data'!P96) -> 0 | AA87: 0 | AB87: =IF('Actual Directional Survey Data'!DQ96="",0,'Actual Directional Survey Data'!DQ96) -> 0 | AC87: =IF('Actual Directional Survey Data'!DR96="",0,'Actual Directional Survey Data'!DR96) -> 0
Z88: =IF('Actual Directional Survey Data'!P97="",0,'Actual Directional Survey Data'!P97) -> 0 | AA88: 0 | AB88: =IF('Actual Directional Survey Data'!DQ97="",0,'Actual Directional Survey Data'!DQ97) -> 0 | AC88: =IF('Actual Directional Survey Data'!DR97="",0,'Actual Directional Survey Data'!DR97) -> 0
Z89: =IF('Actual Directional Survey Data'!P98="",0,'Actual Directional Survey Data'!P98) -> 0 | AA89: 0 | AB89: =IF('Actual Directional Survey Data'!DQ98="",0,'Actual Directional Survey Data'!DQ98) -> 0 | AC89: =IF('Actual Directional Survey Data'!DR98="",0,'Actual Directional Survey Data'!DR98) -> 0
Z90: =IF('Actual Directional Survey Data'!P99="",0,'Actual Directional Survey Data'!P99) -> 0 | AA90: 0 | AB90: =IF('Actual Directional Survey Data'!DQ99="",0,'Actual Directional Survey Data'!DQ99) -> 0 | AC90: =IF('Actual Directional Survey Data'!DR99="",0,'Actual Directional Survey Data'!DR99) -> 0
Z91: =IF('Actual Directional Survey Data'!P100="",0,'Actual Directional Survey Data'!P100) -> 0 | AA91: 0 | AB91: =IF('Actual Directional Survey Data'!DQ100="",0,'Actual Directional Survey Data'!DQ100) -> 0 | AC91: =IF('Actual Directional Survey Data'!DR100="",0,'Actual Directional Survey Data'!DR100) -> 0
Z92: =IF('Actual Directional Survey Data'!P101="",0,'Actual Directional Survey Data'!P101) -> 0 | AA92: 0 | AB92: =IF('Actual Directional Survey Data'!DQ101="",0,'Actual Directional Survey Data'!DQ101) -> 0 | AC92: =IF('Actual Directional Survey Data'!DR101="",0,'Actual Directional Survey Data'!DR101) -> 0
Z93: =IF('Actual Directional Survey Data'!P102="",0,'Actual Directional Survey Data'!P102) -> 0 | AA93: 0 | AB93: =IF('Actual Directional Survey Data'!DQ102="",0,'Actual Directional Survey Data'!DQ102) -> 0 | AC93: =IF('Actual Directional Survey Data'!DR102="",0,'Actual Directional Survey Data'!DR102) -> 0
Z94: =IF('Actual Directional Survey Data'!P103="",0,'Actual Directional Survey Data'!P103) -> 0 | AA94: 0 | AB94: =IF('Actual Directional Survey Data'!DQ103="",0,'Actual Directional Survey Data'!DQ103) -> 0 | AC94: =IF('Actual Directional Survey Data'!DR103="",0,'Actual Directional Survey Data'!DR103) -> 0
Z95: =IF('Actual Directional Survey Data'!P104="",0,'Actual Directional Survey Data'!P104) -> 0 | AA95: 0 | AB95: =IF('Actual Directional Survey Data'!DQ104="",0,'Actual Directional Survey Data'!DQ104) -> 0 | AC95: =IF('Actual Directional Survey Data'!DR104="",0,'Actual Directional Survey Data'!DR104) -> 0
Z96: =IF('Actual Directional Survey Data'!P105="",0,'Actual Directional Survey Data'!P105) -> 0 | AA96: 0 | AB96: =IF('Actual Directional Survey Data'!DQ105="",0,'Actual Directional Survey Data'!DQ105) -> 0 | AC96: =IF('Actual Directional Survey Data'!DR105="",0,'Actual Directional Survey Data'!DR105) -> 0
Z97: =IF('Actual Directional Survey Data'!P106="",0,'Actual Directional Survey Data'!P106) -> 0 | AA97: 0 | AB97: =IF('Actual Directional Survey Data'!DQ106="",0,'Actual Directional Survey Data'!DQ106) -> 0 | AC97: =IF('Actual Directional Survey Data'!DR106="",0,'Actual Directional Survey Data'!DR106) -> 0
Z98: =IF('Actual Directional Survey Data'!P107="",0,'Actual Directional Survey Data'!P107) -> 0 | AA98: 0 | AB98: =IF('Actual Directional Survey Data'!DQ107="",0,'Actual Directional Survey Data'!DQ107) -> 0 | AC98: =IF('Actual Directional Survey Data'!DR107="",0,'Actual Directional Survey Data'!DR107) -> 0
Z99: =IF('Actual Directional Survey Data'!P108="",0,'Actual Directional Survey Data'!P108) -> 0 | AA99: 0 | AB99: =IF('Actual Directional Survey Data'!DQ108="",0,'Actual Directional Survey Data'!DQ108) -> 0 | AC99: =IF('Actual Directional Survey Data'!DR108="",0,'Actual Directional Survey Data'!DR108) -> 0
Z100: =IF('Actual Directional Survey Data'!P109="",0,'Actual Directional Survey Data'!P109) -> 0 | AA100: 0 | AB100: =IF('Actual Directional Survey Data'!DQ109="",0,'Actual Directional Survey Data'!DQ109) -> 0 | AC100: =IF('Actual Directional Survey Data'!DR109="",0,'Actual Directional Survey Data'!DR109) -> 0
Z101: =IF('Actual Directional Survey Data'!P110="",0,'Actual Directional Survey Data'!P110) -> 0 | AA101: 0 | AB101: =IF('Actual Directional Survey Data'!DQ110="",0,'Actual Directional Survey Data'!DQ110) -> 0 | AC101: =IF('Actual Directional Survey Data'!DR110="",0,'Actual Directional Survey Data'!DR110) -> 0
Z102: =IF('Actual Directional Survey Data'!P111="",0,'Actual Directional Survey Data'!P111) -> 0 | AA102: 0 | AB102: =IF('Actual Directional Survey Data'!DQ111="",0,'Actual Directional Survey Data'!DQ111) -> 0 | AC102: =IF('Actual Directional Survey Data'!DR111="",0,'Actual Directional Survey Data'!DR111) -> 0
Z103: =IF('Actual Directional Survey Data'!P112="",0,'Actual Directional Survey Data'!P112) -> 0 | AA103: 0 | AB103: =IF('Actual Directional Survey Data'!DQ112="",0,'Actual Directional Survey Data'!DQ112) -> 0 | AC103: =IF('Actual Directional Survey Data'!DR112="",0,'Actual Directional Survey Data'!DR112) -> 0
Z104: =IF('Actual Directional Survey Data'!P113="",0,'Actual Directional Survey Data'!P113) -> 0 | AA104: 0 | AB104: =IF('Actual Directional Survey Data'!DQ113="",0,'Actual Directional Survey Data'!DQ113) -> 0 | AC104: =IF('Actual Directional Survey Data'!DR113="",0,'Actual Directional Survey Data'!DR113) -> 0
Z105: =IF('Actual Directional Survey Data'!P114="",0,'Actual Directional Survey Data'!P114) -> 0 | AA105: 0 | AB105: =IF('Actual Directional Survey Data'!DQ114="",0,'Actual Directional Survey Data'!DQ114) -> 0 | AC105: =IF('Actual Directional Survey Data'!DR114="",0,'Actual Directional Survey Data'!DR114) -> 0
Z106: =IF('Actual Directional Survey Data'!P115="",0,'Actual Directional Survey Data'!P115) -> 0 | AA106: 0 | AB106: =IF('Actual Directional Survey Data'!DQ115="",0,'Actual Directional Survey Data'!DQ115) -> 0 | AC106: =IF('Actual Directional Survey Data'!DR115="",0,'Actual Directional Survey Data'!DR115) -> 0
Z107: =IF('Actual Directional Survey Data'!P116="",0,'Actual Directional Survey Data'!P116) -> 0 | AA107: 0 | AB107: =IF('Actual Directional Survey Data'!DQ116="",0,'Actual Directional Survey Data'!DQ116) -> 0 | AC107: =IF('Actual Directional Survey Data'!DR116="",0,'Actual Directional Survey Data'!DR116) -> 0
Z108: =IF('Actual Directional Survey Data'!P117="",0,'Actual Directional Survey Data'!P117) -> 0 | AA108: 0 | AB108: =IF('Actual Directional Survey Data'!DQ117="",0,'Actual Directional Survey Data'!DQ117) -> 0 | AC108: =IF('Actual Directional Survey Data'!DR117="",0,'Actual Directional Survey Data'!DR117) -> 0
Z109: =IF('Actual Directional Survey Data'!P118="",0,'Actual Directional Survey Data'!P118) -> 0 | AA109: 0 | AB109: =IF('Actual Directional Survey Data'!DQ118="",0,'Actual Directional Survey Data'!DQ118) -> 0 | AC109: =IF('Actual Directional Survey Data'!DR118="",0,'Actual Directional Survey Data'!DR118) -> 0
Z110: =IF('Actual Directional Survey Data'!P119="",0,'Actual Directional Survey Data'!P119) -> 0 | AA110: 0 | AB110: =IF('Actual Directional Survey Data'!DQ119="",0,'Actual Directional Survey Data'!DQ119) -> 0 | AC110: =IF('Actual Directional Survey Data'!DR119="",0,'Actual Directional Survey Data'!DR119) -> 0
Z111: =IF('Actual Directional Survey Data'!P120="",0,'Actual Directional Survey Data'!P120) -> 0 | AA111: 0 | AB111: =IF('Actual Directional Survey Data'!DQ120="",0,'Actual Directional Survey Data'!DQ120) -> 0 | AC111: =IF('Actual Directional Survey Data'!DR120="",0,'Actual Directional Survey Data'!DR120) -> 0
Z112: =IF('Actual Directional Survey Data'!P121="",0,'Actual Directional Survey Data'!P121) -> 0 | AA112: 0 | AB112: =IF('Actual Directional Survey Data'!DQ121="",0,'Actual Directional Survey Data'!DQ121) -> 0 | AC112: =IF('Actual Directional Survey Data'!DR121="",0,'Actual Directional Survey Data'!DR121) -> 0
Z113: =IF('Actual Directional Survey Data'!P122="",0,'Actual Directional Survey Data'!P122) -> 0 | AA113: 0 | AB113: =IF('Actual Directional Survey Data'!DQ122="",0,'Actual Directional Survey Data'!DQ122) -> 0 | AC113: =IF('Actual Directional Survey Data'!DR122="",0,'Actual Directional Survey Data'!DR122) -> 0
Z114: =IF('Actual Directional Survey Data'!P123="",0,'Actual Directional Survey Data'!P123) -> 0 | AA114: 0 | AB114: =IF('Actual Directional Survey Data'!DQ123="",0,'Actual Directional Survey Data'!DQ123) -> 0 | AC114: =IF('Actual Directional Survey Data'!DR123="",0,'Actual Directional Survey Data'!DR123) -> 0
Z115: =IF('Actual Directional Survey Data'!P124="",0,'Actual Directional Survey Data'!P124) -> 0 | AA115: 0 | AB115: =IF('Actual Directional Survey Data'!DQ124="",0,'Actual Directional Survey Data'!DQ124) -> 0 | AC115: =IF('Actual Directional Survey Data'!DR124="",0,'Actual Directional Survey Data'!DR124) -> 0
Z116: =IF('Actual Directional Survey Data'!P125="",0,'Actual Directional Survey Data'!P125) -> 0 | AA116: 0 | AB116: =IF('Actual Directional Survey Data'!DQ125="",0,'Actual Directional Survey Data'!DQ125) -> 0 | AC116: =IF('Actual Directional Survey Data'!DR125="",0,'Actual Directional Survey Data'!DR125) -> 0
Z117: =IF('Actual Directional Survey Data'!P126="",0,'Actual Directional Survey Data'!P126) -> 0 | AA117: 0 | AB117: =IF('Actual Directional Survey Data'!DQ126="",0,'Actual Directional Survey Data'!DQ126) -> 0 | AC117: =IF('Actual Directional Survey Data'!DR126="",0,'Actual Directional Survey Data'!DR126) -> 0
Z118: =IF('Actual Directional Survey Data'!P127="",0,'Actual Directional Survey Data'!P127) -> 0 | AA118: 0 | AB118: =IF('Actual Directional Survey Data'!DQ127="",0,'Actual Directional Survey Data'!DQ127) -> 0 | AC118: =IF('Actual Directional Survey Data'!DR127="",0,'Actual Directional Survey Data'!DR127) -> 0
Z119: =IF('Actual Directional Survey Data'!P128="",0,'Actual Directional Survey Data'!P128) -> 0 | AA119: 0 | AB119: =IF('Actual Directional Survey Data'!DQ128="",0,'Actual Directional Survey Data'!DQ128) -> 0 | AC119: =IF('Actual Directional Survey Data'!DR128="",0,'Actual Directional Survey Data'!DR128) -> 0
Z120: =IF('Actual Directional Survey Data'!P129="",0,'Actual Directional Survey Data'!P129) -> 0 | AA120: 0 | AB120: =IF('Actual Directional Survey Data'!DQ129="",0,'Actual Directional Survey Data'!DQ129) -> 0 | AC120: =IF('Actual Directional Survey Data'!DR129="",0,'Actual Directional Survey Data'!DR129) -> 0
Z121: =IF('Actual Directional Survey Data'!P130="",0,'Actual Directional Survey Data'!P130) -> 0 | AA121: 0 | AB121: =IF('Actual Directional Survey Data'!DQ130="",0,'Actual Directional Survey Data'!DQ130) -> 0 | AC121: =IF('Actual Directional Survey Data'!DR130="",0,'Actual Directional Survey Data'!DR130) -> 0
Z122: =IF('Actual Directional Survey Data'!P131="",0,'Actual Directional Survey Data'!P131) -> 0 | AA122: 0 | AB122: =IF('Actual Directional Survey Data'!DQ131="",0,'Actual Directional Survey Data'!DQ131) -> 0 | AC122: =IF('Actual Directional Survey Data'!DR131="",0,'Actual Directional Survey Data'!DR131) -> 0
Z123: =IF('Actual Directional Survey Data'!P132="",0,'Actual Directional Survey Data'!P132) -> 0 | AA123: 0 | AB123: =IF('Actual Directional Survey Data'!DQ132="",0,'Actual Directional Survey Data'!DQ132) -> 0 | AC123: =IF('Actual Directional Survey Data'!DR132="",0,'Actual Directional Survey Data'!DR132) -> 0
Z124: =IF('Actual Directional Survey Data'!P133="",0,'Actual Directional Survey Data'!P133) -> 0 | AA124: 0 | AB124: =IF('Actual Directional Survey Data'!DQ133="",0,'Actual Directional Survey Data'!DQ133) -> 0 | AC124: =IF('Actual Directional Survey Data'!DR133="",0,'Actual Directional Survey Data'!DR133) -> 0
Z125: =IF('Actual Directional Survey Data'!P134="",0,'Actual Directional Survey Data'!P134) -> 0 | AA125: 0 | AB125: =IF('Actual Directional Survey Data'!DQ134="",0,'Actual Directional Survey Data'!DQ134) -> 0 | AC125: =IF('Actual Directional Survey Data'!DR134="",0,'Actual Directional Survey Data'!DR134) -> 0
Z126: =IF('Actual Directional Survey Data'!P135="",0,'Actual Directional Survey Data'!P135) -> 0 | AA126: 0 | AB126: =IF('Actual Directional Survey Data'!DQ135="",0,'Actual Directional Survey Data'!DQ135) -> 0 | AC126: =IF('Actual Directional Survey Data'!DR135="",0,'Actual Directional Survey Data'!DR135) -> 0
Z127: =IF('Actual Directional Survey Data'!P136="",0,'Actual Directional Survey Data'!P136) -> 0 | AA127: 0 | AB127: =IF('Actual Directional Survey Data'!DQ136="",0,'Actual Directional Survey Data'!DQ136) -> 0 | AC127: =IF('Actual Directional Survey Data'!DR136="",0,'Actual Directional Survey Data'!DR136) -> 0
Z128: =IF('Actual Directional Survey Data'!P137="",0,'Actual Directional Survey Data'!P137) -> 0 | AA128: 0 | AB128: =IF('Actual Directional Survey Data'!DQ137="",0,'Actual Directional Survey Data'!DQ137) -> 0 | AC128: =IF('Actual Directional Survey Data'!DR137="",0,'Actual Directional Survey Data'!DR137) -> 0
Z129: =IF('Actual Directional Survey Data'!P138="",0,'Actual Directional Survey Data'!P138) -> 0 | AA129: 0 | AB129: =IF('Actual Directional Survey Data'!DQ138="",0,'Actual Directional Survey Data'!DQ138) -> 0 | AC129: =IF('Actual Directional Survey Data'!DR138="",0,'Actual Directional Survey Data'!DR138) -> 0
Z130: =IF('Actual Directional Survey Data'!P139="",0,'Actual Directional Survey Data'!P139) -> 0 | AA130: 0 | AB130: =IF('Actual Directional Survey Data'!DQ139="",0,'Actual Directional Survey Data'!DQ139) -> 0 | AC130: =IF('Actual Directional Survey Data'!DR139="",0,'Actual Directional Survey Data'!DR139) -> 0
Z131: =IF('Actual Directional Survey Data'!P140="",0,'Actual Directional Survey Data'!P140) -> 0 | AA131: 0 | AB131: =IF('Actual Directional Survey Data'!DQ140="",0,'Actual Directional Survey Data'!DQ140) -> 0 | AC131: =IF('Actual Directional Survey Data'!DR140="",0,'Actual Directional Survey Data'!DR140) -> 0
Z132: =IF('Actual Directional Survey Data'!P141="",0,'Actual Directional Survey Data'!P141) -> 0 | AA132: =IF(Z132=Z$801,Z132,"") -> 0 | AB132: =IF('Actual Directional Survey Data'!DQ141="",0,'Actual Directional Survey Data'!DQ141) -> 0 | AC132: =IF('Actual Directional Survey Data'!DR141="",0,'Actual Directional Survey Data'!DR141) -> 0
Z133: =IF('Actual Directional Survey Data'!P142="",0,'Actual Directional Survey Data'!P142) -> 0 | AA133: 0 | AB133: =IF('Actual Directional Survey Data'!DQ142="",0,'Actual Directional Survey Data'!DQ142) -> 0 | AC133: =IF('Actual Directional Survey Data'!DR142="",0,'Actual Directional Survey Data'!DR142) -> 0
Z134: =IF('Actual Directional Survey Data'!P143="",0,'Actual Directional Survey Data'!P143) -> 0 | AA134: 0 | AB134: =IF('Actual Directional Survey Data'!DQ143="",0,'Actual Directional Survey Data'!DQ143) -> 0 | AC134: =IF('Actual Directional Survey Data'!DR143="",0,'Actual Directional Survey Data'!DR143) -> 0
Z135: =IF('Actual Directional Survey Data'!P144="",0,'Actual Directional Survey Data'!P144) -> 0 | AA135: 0 | AB135: =IF('Actual Directional Survey Data'!DQ144="",0,'Actual Directional Survey Data'!DQ144) -> 0 | AC135: =IF('Actual Directional Survey Data'!DR144="",0,'Actual Directional Survey Data'!DR144) -> 0
Z136: =IF('Actual Directional Survey Data'!P145="",0,'Actual Directional Survey Data'!P145) -> 0 | AA136: 0 | AB136: =IF('Actual Directional Survey Data'!DQ145="",0,'Actual Directional Survey Data'!DQ145) -> 0 | AC136: =IF('Actual Directional Survey Data'!DR145="",0,'Actual Directional Survey Data'!DR145) -> 0
Z137: =IF('Actual Directional Survey Data'!P146="",0,'Actual Directional Survey Data'!P146) -> 0 | AA137: 0 | AB137: =IF('Actual Directional Survey Data'!DQ146="",0,'Actual Directional Survey Data'!DQ146) -> 0 | AC137: =IF('Actual Directional Survey Data'!DR146="",0,'Actual Directional Survey Data'!DR146) -> 0
Z138: =IF('Actual Directional Survey Data'!P147="",0,'Actual Directional Survey Data'!P147) -> 0 | AA138: 0 | AB138: =IF('Actual Directional Survey Data'!DQ147="",0,'Actual Directional Survey Data'!DQ147) -> 0 | AC138: =IF('Actual Directional Survey Data'!DR147="",0,'Actual Directional Survey Data'!DR147) -> 0
Z139: =IF('Actual Directional Survey Data'!P148="",0,'Actual Directional Survey Data'!P148) -> 0 | AA139: 0 | AB139: =IF('Actual Directional Survey Data'!DQ148="",0,'Actual Directional Survey Data'!DQ148) -> 0 | AC139: =IF('Actual Directional Survey Data'!DR148="",0,'Actual Directional Survey Data'!DR148) -> 0
Z140: =IF('Actual Directional Survey Data'!P149="",0,'Actual Directional Survey Data'!P149) -> 0 | AA140: 0 | AB140: =IF('Actual Directional Survey Data'!DQ149="",0,'Actual Directional Survey Data'!DQ149) -> 0 | AC140: =IF('Actual Directional Survey Data'!DR149="",0,'Actual Directional Survey Data'!DR149) -> 0
Z141: =IF('Actual Directional Survey Data'!P150="",0,'Actual Directional Survey Data'!P150) -> 0 | AA141: 0 | AB141: =IF('Actual Directional Survey Data'!DQ150="",0,'Actual Directional Survey Data'!DQ150) -> 0 | AC141: =IF('Actual Directional Survey Data'!DR150="",0,'Actual Directional Survey Data'!DR150) -> 0
Z142: =IF('Actual Directional Survey Data'!P151="",0,'Actual Directional Survey Data'!P151) -> 0 | AA142: 0 | AB142: =IF('Actual Directional Survey Data'!DQ151="",0,'Actual Directional Survey Data'!DQ151) -> 0 | AC142: =IF('Actual Directional Survey Data'!DR151="",0,'Actual Directional Survey Data'!DR151) -> 0
Z143: =IF('Actual Directional Survey Data'!P152="",0,'Actual Directional Survey Data'!P152) -> 0 | AA143: 0 | AB143: =IF('Actual Directional Survey Data'!DQ152="",0,'Actual Directional Survey Data'!DQ152) -> 0 | AC143: =IF('Actual Directional Survey Data'!DR152="",0,'Actual Directional Survey Data'!DR152) -> 0
Z144: =IF('Actual Directional Survey Data'!P153="",0,'Actual Directional Survey Data'!P153) -> 0 | AA144: 0 | AB144: =IF('Actual Directional Survey Data'!DQ153="",0,'Actual Directional Survey Data'!DQ153) -> 0 | AC144: =IF('Actual Directional Survey Data'!DR153="",0,'Actual Directional Survey Data'!DR153) -> 0
Z145: =IF('Actual Directional Survey Data'!P154="",0,'Actual Directional Survey Data'!P154) -> 0 | AA145: 0 | AB145: =IF('Actual Directional Survey Data'!DQ154="",0,'Actual Directional Survey Data'!DQ154) -> 0 | AC145: =IF('Actual Directional Survey Data'!DR154="",0,'Actual Directional Survey Data'!DR154) -> 0
Z146: =IF('Actual Directional Survey Data'!P155="",0,'Actual Directional Survey Data'!P155) -> 0 | AA146: 0 | AB146: =IF('Actual Directional Survey Data'!DQ155="",0,'Actual Directional Survey Data'!DQ155) -> 0 | AC146: =IF('Actual Directional Survey Data'!DR155="",0,'Actual Directional Survey Data'!DR155) -> 0
Z147: =IF('Actual Directional Survey Data'!P156="",0,'Actual Directional Survey Data'!P156) -> 0 | AA147: 0 | AB147: =IF('Actual Directional Survey Data'!DQ156="",0,'Actual Directional Survey Data'!DQ156) -> 0 | AC147: =IF('Actual Directional Survey Data'!DR156="",0,'Actual Directional Survey Data'!DR156) -> 0
Z148: =IF('Actual Directional Survey Data'!P157="",0,'Actual Directional Survey Data'!P157) -> 0 | AA148: 0 | AB148: =IF('Actual Directional Survey Data'!DQ157="",0,'Actual Directional Survey Data'!DQ157) -> 0 | AC148: =IF('Actual Directional Survey Data'!DR157="",0,'Actual Directional Survey Data'!DR157) -> 0
Z149: =IF('Actual Directional Survey Data'!P158="",0,'Actual Directional Survey Data'!P158) -> 0 | AA149: 0 | AB149: =IF('Actual Directional Survey Data'!DQ158="",0,'Actual Directional Survey Data'!DQ158) -> 0 | AC149: =IF('Actual Directional Survey Data'!DR158="",0,'Actual Directional Survey Data'!DR158) -> 0
Z150: =IF('Actual Directional Survey Data'!P159="",0,'Actual Directional Survey Data'!P159) -> 0 | AA150: 0 | AB150: =IF('Actual Directional Survey Data'!DQ159="",0,'Actual Directional Survey Data'!DQ159) -> 0 | AC150: =IF('Actual Directional Survey Data'!DR159="",0,'Actual Directional Survey Data'!DR159) -> 0
Z151: =IF('Actual Directional Survey Data'!P160="",0,'Actual Directional Survey Data'!P160) -> 0 | AA151: 0 | AB151: =IF('Actual Directional Survey Data'!DQ160="",0,'Actual Directional Survey Data'!DQ160) -> 0 | AC151: =IF('Actual Directional Survey Data'!DR160="",0,'Actual Directional Survey Data'!DR160) -> 0
Z152: =IF('Actual Directional Survey Data'!P161="",0,'Actual Directional Survey Data'!P161) -> 0 | AA152: 0 | AB152: =IF('Actual Directional Survey Data'!DQ161="",0,'Actual Directional Survey Data'!DQ161) -> 0 | AC152: =IF('Actual Directional Survey Data'!DR161="",0,'Actual Directional Survey Data'!DR161) -> 0
Z153: =IF('Actual Directional Survey Data'!P162="",0,'Actual Directional Survey Data'!P162) -> 0 | AA153: 0 | AB153: =IF('Actual Directional Survey Data'!DQ162="",0,'Actual Directional Survey Data'!DQ162) -> 0 | AC153: =IF('Actual Directional Survey Data'!DR162="",0,'Actual Directional Survey Data'!DR162) -> 0
Z154: =IF('Actual Directional Survey Data'!P163="",0,'Actual Directional Survey Data'!P163) -> 0 | AA154: 0 | AB154: =IF('Actual Directional Survey Data'!DQ163="",0,'Actual Directional Survey Data'!DQ163) -> 0 | AC154: =IF('Actual Directional Survey Data'!DR163="",0,'Actual Directional Survey Data'!DR163) -> 0
Z155: =IF('Actual Directional Survey Data'!P164="",0,'Actual Directional Survey Data'!P164) -> 0 | AA155: 0 | AB155: =IF('Actual Directional Survey Data'!DQ164="",0,'Actual Directional Survey Data'!DQ164) -> 0 | AC155: =IF('Actual Directional Survey Data'!DR164="",0,'Actual Directional Survey Data'!DR164) -> 0
Z156: =IF('Actual Directional Survey Data'!P165="",0,'Actual Directional Survey Data'!P165) -> 0 | AA156: 0 | AB156: =IF('Actual Directional Survey Data'!DQ165="",0,'Actual Directional Survey Data'!DQ165) -> 0 | AC156: =IF('Actual Directional Survey Data'!DR165="",0,'Actual Directional Survey Data'!DR165) -> 0
Z157: =IF('Actual Directional Survey Data'!P166="",0,'Actual Directional Survey Data'!P166) -> 0 | AA157: 0 | AB157: =IF('Actual Directional Survey Data'!DQ166="",0,'Actual Directional Survey Data'!DQ166) -> 0 | AC157: =IF('Actual Directional Survey Data'!DR166="",0,'Actual Directional Survey Data'!DR166) -> 0
Z158: =IF('Actual Directional Survey Data'!P167="",0,'Actual Directional Survey Data'!P167) -> 0 | AA158: 0 | AB158: =IF('Actual Directional Survey Data'!DQ167="",0,'Actual Directional Survey Data'!DQ167) -> 0 | AC158: =IF('Actual Directional Survey Data'!DR167="",0,'Actual Directional Survey Data'!DR167) -> 0
Z159: =IF('Actual Directional Survey Data'!P168="",0,'Actual Directional Survey Data'!P168) -> 0 | AA159: 0 | AB159: =IF('Actual Directional Survey Data'!DQ168="",0,'Actual Directional Survey Data'!DQ168) -> 0 | AC159: =IF('Actual Directional Survey Data'!DR168="",0,'Actual Directional Survey Data'!DR168) -> 0
Z160: =IF('Actual Directional Survey Data'!P169="",0,'Actual Directional Survey Data'!P169) -> 0 | AA160: 0 | AB160: =IF('Actual Directional Survey Data'!DQ169="",0,'Actual Directional Survey Data'!DQ169) -> 0 | AC160: =IF('Actual Directional Survey Data'!DR169="",0,'Actual Directional Survey Data'!DR169) -> 0
Z161: =IF('Actual Directional Survey Data'!P170="",0,'Actual Directional Survey Data'!P170) -> 0 | AA161: 0 | AB161: =IF('Actual Directional Survey Data'!DQ170="",0,'Actual Directional Survey Data'!DQ170) -> 0 | AC161: =IF('Actual Directional Survey Data'!DR170="",0,'Actual Directional Survey Data'!DR170) -> 0
Z162: =IF('Actual Directional Survey Data'!P171="",0,'Actual Directional Survey Data'!P171) -> 0 | AA162: 0 | AB162: =IF('Actual Directional Survey Data'!DQ171="",0,'Actual Directional Survey Data'!DQ171) -> 0 | AC162: =IF('Actual Directional Survey Data'!DR171="",0,'Actual Directional Survey Data'!DR171) -> 0
Z163: =IF('Actual Directional Survey Data'!P172="",0,'Actual Directional Survey Data'!P172) -> 0 | AA163: 0 | AB163: =IF('Actual Directional Survey Data'!DQ172="",0,'Actual Directional Survey Data'!DQ172) -> 0 | AC163: =IF('Actual Directional Survey Data'!DR172="",0,'Actual Directional Survey Data'!DR172) -> 0
Z164: =IF('Actual Directional Survey Data'!P173="",0,'Actual Directional Survey Data'!P173) -> 0 | AA164: 0 | AB164: =IF('Actual Directional Survey Data'!DQ173="",0,'Actual Directional Survey Data'!DQ173) -> 0 | AC164: =IF('Actual Directional Survey Data'!DR173="",0,'Actual Directional Survey Data'!DR173) -> 0
Z165: =IF('Actual Directional Survey Data'!P174="",0,'Actual Directional Survey Data'!P174) -> 0 | AA165: 0 | AB165: =IF('Actual Directional Survey Data'!DQ174="",0,'Actual Directional Survey Data'!DQ174) -> 0 | AC165: =IF('Actual Directional Survey Data'!DR174="",0,'Actual Directional Survey Data'!DR174) -> 0
Z166: =IF('Actual Directional Survey Data'!P175="",0,'Actual Directional Survey Data'!P175) -> 0 | AA166: 0 | AB166: =IF('Actual Directional Survey Data'!DQ175="",0,'Actual Directional Survey Data'!DQ175) -> 0 | AC166: =IF('Actual Directional Survey Data'!DR175="",0,'Actual Directional Survey Data'!DR175) -> 0
Z167: =IF('Actual Directional Survey Data'!P176="",0,'Actual Directional Survey Data'!P176) -> 0 | AA167: 0 | AB167: =IF('Actual Directional Survey Data'!DQ176="",0,'Actual Directional Survey Data'!DQ176) -> 0 | AC167: =IF('Actual Directional Survey Data'!DR176="",0,'Actual Directional Survey Data'!DR176) -> 0
Z168: =IF('Actual Directional Survey Data'!P177="",0,'Actual Directional Survey Data'!P177) -> 0 | AA168: 0 | AB168: =IF('Actual Directional Survey Data'!DQ177="",0,'Actual Directional Survey Data'!DQ177) -> 0 | AC168: =IF('Actual Directional Survey Data'!DR177="",0,'Actual Directional Survey Data'!DR177) -> 0
Z169: =IF('Actual Directional Survey Data'!P178="",0,'Actual Directional Survey Data'!P178) -> 0 | AA169: 0 | AB169: =IF('Actual Directional Survey Data'!DQ178="",0,'Actual Directional Survey Data'!DQ178) -> 0 | AC169: =IF('Actual Directional Survey Data'!DR178="",0,'Actual Directional Survey Data'!DR178) -> 0
Z170: =IF('Actual Directional Survey Data'!P179="",0,'Actual Directional Survey Data'!P179) -> 0 | AA170: 0 | AB170: =IF('Actual Directional Survey Data'!DQ179="",0,'Actual Directional Survey Data'!DQ179) -> 0 | AC170: =IF('Actual Directional Survey Data'!DR179="",0,'Actual Directional Survey Data'!DR179) -> 0
Z171: =IF('Actual Directional Survey Data'!P180="",0,'Actual Directional Survey Data'!P180) -> 0 | AA171: 0 | AB171: =IF('Actual Directional Survey Data'!DQ180="",0,'Actual Directional Survey Data'!DQ180) -> 0 | AC171: =IF('Actual Directional Survey Data'!DR180="",0,'Actual Directional Survey Data'!DR180) -> 0
Z172: =IF('Actual Directional Survey Data'!P181="",0,'Actual Directional Survey Data'!P181) -> 0 | AA172: 0 | AB172: =IF('Actual Directional Survey Data'!DQ181="",0,'Actual Directional Survey Data'!DQ181) -> 0 | AC172: =IF('Actual Directional Survey Data'!DR181="",0,'Actual Directional Survey Data'!DR181) -> 0
Z173: =IF('Actual Directional Survey Data'!P182="",0,'Actual Directional Survey Data'!P182) -> 0 | AA173: 0 | AB173: =IF('Actual Directional Survey Data'!DQ182="",0,'Actual Directional Survey Data'!DQ182) -> 0 | AC173: =IF('Actual Directional Survey Data'!DR182="",0,'Actual Directional Survey Data'!DR182) -> 0
Z174: =IF('Actual Directional Survey Data'!P183="",0,'Actual Directional Survey Data'!P183) -> 0 | AA174: 0 | AB174: =IF('Actual Directional Survey Data'!DQ183="",0,'Actual Directional Survey Data'!DQ183) -> 0 | AC174: =IF('Actual Directional Survey Data'!DR183="",0,'Actual Directional Survey Data'!DR183) -> 0
Z175: =IF('Actual Directional Survey Data'!P184="",0,'Actual Directional Survey Data'!P184) -> 0 | AA175: 0 | AB175: =IF('Actual Directional Survey Data'!DQ184="",0,'Actual Directional Survey Data'!DQ184) -> 0 | AC175: =IF('Actual Directional Survey Data'!DR184="",0,'Actual Directional Survey Data'!DR184) -> 0
Z176: =IF('Actual Directional Survey Data'!P185="",0,'Actual Directional Survey Data'!P185) -> 0 | AA176: 0 | AB176: =IF('Actual Directional Survey Data'!DQ185="",0,'Actual Directional Survey Data'!DQ185) -> 0 | AC176: =IF('Actual Directional Survey Data'!DR185="",0,'Actual Directional Survey Data'!DR185) -> 0
Z177: =IF('Actual Directional Survey Data'!P186="",0,'Actual Directional Survey Data'!P186) -> 0 | AA177: 0 | AB177: =IF('Actual Directional Survey Data'!DQ186="",0,'Actual Directional Survey Data'!DQ186) -> 0 | AC177: =IF('Actual Directional Survey Data'!DR186="",0,'Actual Directional Survey Data'!DR186) -> 0
Z178: =IF('Actual Directional Survey Data'!P187="",0,'Actual Directional Survey Data'!P187) -> 0 | AA178: 0 | AB178: =IF('Actual Directional Survey Data'!DQ187="",0,'Actual Directional Survey Data'!DQ187) -> 0 | AC178: =IF('Actual Directional Survey Data'!DR187="",0,'Actual Directional Survey Data'!DR187) -> 0
Z179: =IF('Actual Directional Survey Data'!P188="",0,'Actual Directional Survey Data'!P188) -> 0 | AA179: 0 | AB179: =IF('Actual Directional Survey Data'!DQ188="",0,'Actual Directional Survey Data'!DQ188) -> 0 | AC179: =IF('Actual Directional Survey Data'!DR188="",0,'Actual Directional Survey Data'!DR188) -> 0
Z180: =IF('Actual Directional Survey Data'!P189="",0,'Actual Directional Survey Data'!P189) -> 0 | AA180: 0 | AB180: =IF('Actual Directional Survey Data'!DQ189="",0,'Actual Directional Survey Data'!DQ189) -> 0 | AC180: =IF('Actual Directional Survey Data'!DR189="",0,'Actual Directional Survey Data'!DR189) -> 0
Z181: =IF('Actual Directional Survey Data'!P190="",0,'Actual Directional Survey Data'!P190) -> 0 | AA181: 0 | AB181: =IF('Actual Directional Survey Data'!DQ190="",0,'Actual Directional Survey Data'!DQ190) -> 0 | AC181: =IF('Actual Directional Survey Data'!DR190="",0,'Actual Directional Survey Data'!DR190) -> 0
Z182: =IF('Actual Directional Survey Data'!P191="",0,'Actual Directional Survey Data'!P191) -> 0 | AA182: 0 | AB182: =IF('Actual Directional Survey Data'!DQ191="",0,'Actual Directional Survey Data'!DQ191) -> 0 | AC182: =IF('Actual Directional Survey Data'!DR191="",0,'Actual Directional Survey Data'!DR191) -> 0
Z183: =IF('Actual Directional Survey Data'!P192="",0,'Actual Directional Survey Data'!P192) -> 0 | AA183: 0 | AB183: =IF('Actual Directional Survey Data'!DQ192="",0,'Actual Directional Survey Data'!DQ192) -> 0 | AC183: =IF('Actual Directional Survey Data'!DR192="",0,'Actual Directional Survey Data'!DR192) -> 0
Z184: =IF('Actual Directional Survey Data'!P193="",0,'Actual Directional Survey Data'!P193) -> 0 | AA184: 0 | AB184: =IF('Actual Directional Survey Data'!DQ193="",0,'Actual Directional Survey Data'!DQ193) -> 0 | AC184: =IF('Actual Directional Survey Data'!DR193="",0,'Actual Directional Survey Data'!DR193) -> 0
Z185: =IF('Actual Directional Survey Data'!P194="",0,'Actual Directional Survey Data'!P194) -> 0 | AA185: 0 | AB185: =IF('Actual Directional Survey Data'!DQ194="",0,'Actual Directional Survey Data'!DQ194) -> 0 | AC185: =IF('Actual Directional Survey Data'!DR194="",0,'Actual Directional Survey Data'!DR194) -> 0
Z186: =IF('Actual Directional Survey Data'!P195="",0,'Actual Directional Survey Data'!P195) -> 0 | AA186: 0 | AB186: =IF('Actual Directional Survey Data'!DQ195="",0,'Actual Directional Survey Data'!DQ195) -> 0 | AC186: =IF('Actual Directional Survey Data'!DR195="",0,'Actual Directional Survey Data'!DR195) -> 0
Z187: =IF('Actual Directional Survey Data'!P196="",0,'Actual Directional Survey Data'!P196) -> 0 | AA187: 0 | AB187: =IF('Actual Directional Survey Data'!DQ196="",0,'Actual Directional Survey Data'!DQ196) -> 0 | AC187: =IF('Actual Directional Survey Data'!DR196="",0,'Actual Directional Survey Data'!DR196) -> 0
Z188: =IF('Actual Directional Survey Data'!P197="",0,'Actual Directional Survey Data'!P197) -> 0 | AA188: 0 | AB188: =IF('Actual Directional Survey Data'!DQ197="",0,'Actual Directional Survey Data'!DQ197) -> 0 | AC188: =IF('Actual Directional Survey Data'!DR197="",0,'Actual Directional Survey Data'!DR197) -> 0
Z189: =IF('Actual Directional Survey Data'!P198="",0,'Actual Directional Survey Data'!P198) -> 0 | AA189: 0 | AB189: =IF('Actual Directional Survey Data'!DQ198="",0,'Actual Directional Survey Data'!DQ198) -> 0 | AC189: =IF('Actual Directional Survey Data'!DR198="",0,'Actual Directional Survey Data'!DR198) -> 0
Z190: =IF('Actual Directional Survey Data'!P199="",0,'Actual Directional Survey Data'!P199) -> 0 | AA190: 0 | AB190: =IF('Actual Directional Survey Data'!DQ199="",0,'Actual Directional Survey Data'!DQ199) -> 0 | AC190: =IF('Actual Directional Survey Data'!DR199="",0,'Actual Directional Survey Data'!DR199) -> 0
Z191: =IF('Actual Directional Survey Data'!P200="",0,'Actual Directional Survey Data'!P200) -> 0 | AA191: 0 | AB191: =IF('Actual Directional Survey Data'!DQ200="",0,'Actual Directional Survey Data'!DQ200) -> 0 | AC191: =IF('Actual Directional Survey Data'!DR200="",0,'Actual Directional Survey Data'!DR200) -> 0
Z192: =IF('Actual Directional Survey Data'!P201="",0,'Actual Directional Survey Data'!P201) -> 0 | AA192: 0 | AB192: =IF('Actual Directional Survey Data'!DQ201="",0,'Actual Directional Survey Data'!DQ201) -> 0 | AC192: =IF('Actual Directional Survey Data'!DR201="",0,'Actual Directional Survey Data'!DR201) -> 0
Z193: =IF('Actual Directional Survey Data'!P202="",0,'Actual Directional Survey Data'!P202) -> 0 | AA193: 0 | AB193: =IF('Actual Directional Survey Data'!DQ202="",0,'Actual Directional Survey Data'!DQ202) -> 0 | AC193: =IF('Actual Directional Survey Data'!DR202="",0,'Actual Directional Survey Data'!DR202) -> 0
Z194: =IF('Actual Directional Survey Data'!P203="",0,'Actual Directional Survey Data'!P203) -> 0 | AA194: 0 | AB194: =IF('Actual Directional Survey Data'!DQ203="",0,'Actual Directional Survey Data'!DQ203) -> 0 | AC194: =IF('Actual Directional Survey Data'!DR203="",0,'Actual Directional Survey Data'!DR203) -> 0
Z195: =IF('Actual Directional Survey Data'!P204="",0,'Actual Directional Survey Data'!P204) -> 0 | AA195: 0 | AB195: =IF('Actual Directional Survey Data'!DQ204="",0,'Actual Directional Survey Data'!DQ204) -> 0 | AC195: =IF('Actual Directional Survey Data'!DR204="",0,'Actual Directional Survey Data'!DR204) -> 0
Z196: =IF('Actual Directional Survey Data'!P205="",0,'Actual Directional Survey Data'!P205) -> 0 | AA196: =IF(Z196=Z$801,Z196,"") -> 0 | AB196: =IF('Actual Directional Survey Data'!DQ205="",0,'Actual Directional Survey Data'!DQ205) -> 0 | AC196: =IF('Actual Directional Survey Data'!DR205="",0,'Actual Directional Survey Data'!DR205) -> 0
Z197: =IF('Actual Directional Survey Data'!P206="",0,'Actual Directional Survey Data'!P206) -> 0 | AA197: 0 | AB197: =IF('Actual Directional Survey Data'!DQ206="",0,'Actual Directional Survey Data'!DQ206) -> 0 | AC197: =IF('Actual Directional Survey Data'!DR206="",0,'Actual Directional Survey Data'!DR206) -> 0
Z198: =IF('Actual Directional Survey Data'!P207="",0,'Actual Directional Survey Data'!P207) -> 0 | AA198: 0 | AB198: =IF('Actual Directional Survey Data'!DQ207="",0,'Actual Directional Survey Data'!DQ207) -> 0 | AC198: =IF('Actual Directional Survey Data'!DR207="",0,'Actual Directional Survey Data'!DR207) -> 0
Z199: =IF('Actual Directional Survey Data'!P208="",0,'Actual Directional Survey Data'!P208) -> 0 | AA199: 0 | AB199: =IF('Actual Directional Survey Data'!DQ208="",0,'Actual Directional Survey Data'!DQ208) -> 0 | AC199: =IF('Actual Directional Survey Data'!DR208="",0,'Actual Directional Survey Data'!DR208) -> 0
Z200: =IF('Actual Directional Survey Data'!P209="",0,'Actual Directional Survey Data'!P209) -> 0 | AA200: 0 | AB200: =IF('Actual Directional Survey Data'!DQ209="",0,'Actual Directional Survey Data'!DQ209) -> 0 | AC200: =IF('Actual Directional Survey Data'!DR209="",0,'Actual Directional Survey Data'!DR209) -> 0
... 601 more rows

Sheet Lateral DLS & TF Plot
N1: 5 | Q1: 4 | T1: 3 | W1: 2 | Z1: 1 | AD1: DLS Vector | AI1: Count | AJ1: Total Variance | AK1: Avg DLS | AL1: DLS StdDev | AM1: Avg TF
N2: angle | O2: x | P2: y | Q2: angle | R2: x | S2: y | T2: angle | U2: x | V2: y | W2: angle | X2: x | Y2: y | Z2: angle | AA2: x | AB2: y | AC2: MD | AD2: x | AE2: y | AF2: Resultant TF | AG2: +TF | AH2: +TF*CL | AI2: 0 | AJ2: 0 | AK2: ='Actual Directional Survey Data'!$CG$810*'Actual Directional Survey Data'!$BP$7/'Actual Directional Survey Data'!$CJ$810 ->  | AL2: =SQRT(AJ$801)/AI801 ->  | AM2: =SUM(AH3:AH801)/'Actual Directional Survey Data'!$CJ$810 -> 
N3: 0 | O3: =$N$1*SIN(RADIANS(N3)) -> 0 | P3: =$N$1*COS(RADIANS(N3)) -> 5 | Q3: 0 | R3: =$Q$1*SIN(RADIANS(Q3)) -> 0 | S3: =$Q$1*COS(RADIANS(Q3)) -> 4 | T3: 0 | U3: =$T$1*SIN(RADIANS(T3)) -> 0 | V3: =$T$1*COS(RADIANS(T3)) -> 3 | W3: 0 | X3: =$W$1*SIN(RADIANS(W3)) -> 0 | Y3: =$W$1*COS(RADIANS(W3)) -> 2 | Z3: 0 | AA3: =$Z$1*SIN(RADIANS(Z3)) -> 0 | AB3: =$Z$1*COS(RADIANS(Z3)) -> 1 | AC3: =IF('Actual Directional Survey Data'!P12="",0,'Actual Directional Survey Data'!P12) -> 0 | AD3: =IF('Actual Directional Survey Data'!DV12="",0,'Actual Directional Survey Data'!DV12) -> 0 | AE3: =IF('Actual Directional Survey Data'!DW12="",0,'Actual Directional Survey Data'!DW12) -> 0 | AF3: =IF('Actual Directional Survey Data'!$DU12=0,"",'Actual Directional Survey Data'!$DU12) ->  | AG3: =IF(AF3="","",IF(AF3<0,AF3+180,IF(AF3>180,AF3-180,AF3))) ->  | AH3: =IF(AG3="","",AG3*(AC3-AC2)) ->  | AI3: =IF(AF3="",AI2,IF(AF3=0,AI2,AI2+1)) -> 0 | AJ3: =IF(AF3="",AJ2,IF(AF3=0,AJ2,AJ2+((SQRT(AD3^2+AE3^2)-AK$2)^2))) -> 0 | AK3: x | AL3: y
N4: =N3+10 -> 10 | O4: =$N$1*SIN(RADIANS(N4)) -> 0.8682408883 | P4: =$N$1*COS(RADIANS(N4)) -> 4.924038765 | Q4: =Q3+10 -> 10 | R4: =$Q$1*SIN(RADIANS(Q4)) -> 0.6945927107 | S4: =$Q$1*COS(RADIANS(Q4)) -> 3.939231012 | T4: =T3+10 -> 10 | U4: =$T$1*SIN(RADIANS(T4)) -> 0.520944533 | V4: =$T$1*COS(RADIANS(T4)) -> 2.954423259 | W4: =W3+10 -> 10 | X4: =$W$1*SIN(RADIANS(W4)) -> 0.3472963553 | Y4: =$W$1*COS(RADIANS(W4)) -> 1.969615506 | Z4: =Z3+10 -> 10 | AA4: =$Z$1*SIN(RADIANS(Z4)) -> 0.1736481777 | AB4: =$Z$1*COS(RADIANS(Z4)) -> 0.984807753 | AC4: =IF('Actual Directional Survey Data'!P13="",0,'Actual Directional Survey Data'!P13) -> 0 | AD4: =IF('Actual Directional Survey Data'!DV13="",0,'Actual Directional Survey Data'!DV13) -> 0 | AE4: =IF('Actual Directional Survey Data'!DW13="",0,'Actual Directional Survey Data'!DW13) -> 0 | AF4: =IF('Actual Directional Survey Data'!$DU13=0,"",'Actual Directional Survey Data'!$DU13) ->  | AG4: =IF(AF4="","",IF(AF4<0,AF4+180,IF(AF4>180,AF4-180,AF4))) ->  | AI4: =IF(AF4="",AI3,IF(AF4=0,AI3,AI3+1)) -> 0 | AJ4: 0 | AK4: =$AK$2*SIN(RADIANS($AM$2)) ->  | AL4: =$AK$2*COS(RADIANS($AM$2)) -> 
N5: =N4+10 -> 20 | O5: 1.710100717 | P5: 4.698463104 | Q5: =Q4+10 -> 20 | R5: 1.368080573 | S5: 3.758770483 | T5: =T4+10 -> 20 | U5: 1.02606043 | V5: 2.819077862 | W5: =W4+10 -> 20 | X5: 0.6840402867 | Y5: 1.879385242 | Z5: =Z4+10 -> 20 | AA5: 0.3420201433 | AB5: 0.9396926208 | AC5: =IF('Actual Directional Survey Data'!P14="",0,'Actual Directional Survey Data'!P14) -> 0 | AD5: =IF('Actual Directional Survey Data'!DV14="",0,'Actual Directional Survey Data'!DV14) -> 0 | AE5: =IF('Actual Directional Survey Data'!DW14="",0,'Actual Directional Survey Data'!DW14) -> 0 | AF5: =IF('Actual Directional Survey Data'!$DU14=0,"",'Actual Directional Survey Data'!$DU14) ->  | AI5: 0 | AJ5: 0
N6: 30 | O6: 2.5 | P6: 4.330127019 | Q6: 30 | R6: 2 | S6: 3.464101615 | T6: 30 | U6: 1.5 | V6: 2.598076211 | W6: 30 | X6: 1 | Y6: 1.732050808 | Z6: 30 | AA6: 0.5 | AB6: 0.8660254038 | AC6: =IF('Actual Directional Survey Data'!P15="",0,'Actual Directional Survey Data'!P15) -> 0 | AD6: =IF('Actual Directional Survey Data'!DV15="",0,'Actual Directional Survey Data'!DV15) -> 0 | AE6: =IF('Actual Directional Survey Data'!DW15="",0,'Actual Directional Survey Data'!DW15) -> 0 | AF6: =IF('Actual Directional Survey Data'!$DU15=0,"",'Actual Directional Survey Data'!$DU15) ->  | AI6: 0 | AJ6: 0
N7: 40 | O7: 3.213938048 | P7: 3.830222216 | Q7: 40 | R7: 2.571150439 | S7: 3.064177772 | T7: 40 | U7: 1.928362829 | V7: 2.298133329 | W7: 40 | X7: 1.285575219 | Y7: 1.532088886 | Z7: 40 | AA7: 0.6427876097 | AB7: 0.7660444431 | AC7: =IF('Actual Directional Survey Data'!P16="",0,'Actual Directional Survey Data'!P16) -> 0 | AD7: =IF('Actual Directional Survey Data'!DV16="",0,'Actual Directional Survey Data'!DV16) -> 0 | AE7: =IF('Actual Directional Survey Data'!DW16="",0,'Actual Directional Survey Data'!DW16) -> 0 | AF7: =IF('Actual Directional Survey Data'!$DU16=0,"",'Actual Directional Survey Data'!$DU16) ->  | AI7: 0 | AJ7: 0
N8: 50 | O8: 3.830222216 | P8: 3.213938048 | Q8: 50 | R8: 3.064177772 | S8: 2.571150439 | T8: 50 | U8: 2.298133329 | V8: 1.928362829 | W8: 50 | X8: 1.532088886 | Y8: 1.285575219 | Z8: 50 | AA8: 0.7660444431 | AB8: 0.6427876097 | AC8: =IF('Actual Directional Survey Data'!P17="",0,'Actual Directional Survey Data'!P17) -> 0 | AD8: =IF('Actual Directional Survey Data'!DV17="",0,'Actual Directional Survey Data'!DV17) -> 0 | AE8: =IF('Actual Directional Survey Data'!DW17="",0,'Actual Directional Survey Data'!DW17) -> 0 | AF8: =IF('Actual Directional Survey Data'!$DU17=0,"",'Actual Directional Survey Data'!$DU17) ->  | AI8: 0 | AJ8: 0
N9: 60 | O9: 4.330127019 | P9: 2.5 | Q9: 60 | R9: 3.464101615 | S9: 2 | T9: 60 | U9: 2.598076211 | V9: 1.5 | W9: 60 | X9: 1.732050808 | Y9: 1 | Z9: 60 | AA9: 0.8660254038 | AB9: 0.5 | AC9: =IF('Actual Directional Survey Data'!P18="",0,'Actual Directional Survey Data'!P18) -> 0 | AD9: =IF('Actual Directional Survey Data'!DV18="",0,'Actual Directional Survey Data'!DV18) -> 0 | AE9: =IF('Actual Directional Survey Data'!DW18="",0,'Actual Directional Survey Data'!DW18) -> 0 | AF9: =IF('Actual Directional Survey Data'!$DU18=0,"",'Actual Directional Survey Data'!$DU18) ->  | AI9: 0 | AJ9: 0
N10: 70 | O10: 4.698463104 | P10: 1.710100717 | Q10: 70 | R10: 3.758770483 | S10: 1.368080573 | T10: 70 | U10: 2.819077862 | V10: 1.02606043 | W10: 70 | X10: 1.879385242 | Y10: 0.6840402867 | Z10: 70 | AA10: 0.9396926208 | AB10: 0.3420201433 | AC10: =IF('Actual Directional Survey Data'!P19="",0,'Actual Directional Survey Data'!P19) -> 0 | AD10: =IF('Actual Directional Survey Data'!DV19="",0,'Actual Directional Survey Data'!DV19) -> 0 | AE10: =IF('Actual Directional Survey Data'!DW19="",0,'Actual Directional Survey Data'!DW19) -> 0 | AF10: =IF('Actual Directional Survey Data'!$DU19=0,"",'Actual Directional Survey Data'!$DU19) ->  | AI10: 0 | AJ10: 0
N11: 80 | O11: 4.924038765 | P11: 0.8682408883 | Q11: 80 | R11: 3.939231012 | S11: 0.6945927107 | T11: 80 | U11: 2.954423259 | V11: 0.520944533 | W11: 80 | X11: 1.969615506 | Y11: 0.3472963553 | Z11: 80 | AA11: 0.984807753 | AB11: 0.1736481777 | AC11: =IF('Actual Directional Survey Data'!P20="",0,'Actual Directional Survey Data'!P20) -> 0 | AD11: =IF('Actual Directional Survey Data'!DV20="",0,'Actual Directional Survey Data'!DV20) -> 0 | AE11: =IF('Actual Directional Survey Data'!DW20="",0,'Actual Directional Survey Data'!DW20) -> 0 | AF11: =IF('Actual Directional Survey Data'!$DU20=0,"",'Actual Directional Survey Data'!$DU20) ->  | AI11: 0 | AJ11: 0
N12: 90 | O12: 5 | P12: 3.062871137e-16 | Q12: 90 | R12: 4 | S12: 2.45029691e-16 | T12: 90 | U12: 3 | V12: 1.837722682e-16 | W12: 90 | X12: 2 | Y12: 1.225148455e-16 | Z12: 90 | AA12: 1 | AB12: 6.125742275e-17 | AC12: =IF('Actual Directional Survey Data'!P21="",0,'Actual Directional Survey Data'!P21) -> 0 | AD12: =IF('Actual Directional Survey Data'!DV21="",0,'Actual Directional Survey Data'!DV21) -> 0 | AE12: =IF('Actual Directional Survey Data'!DW21="",0,'Actual Directional Survey Data'!DW21) -> 0 | AF12: =IF('Actual Directional Survey Data'!$DU21=0,"",'Actual Directional Survey Data'!$DU21) ->  | AI12: 0 | AJ12: 0
N13: 100 | O13: 4.924038765 | P13: -0.8682408883 | Q13: 100 | R13: 3.939231012 | S13: -0.6945927107 | T13: 100 | U13: 2.954423259 | V13: -0.520944533 | W13: 100 | X13: 1.969615506 | Y13: -0.3472963553 | Z13: 100 | AA13: 0.984807753 | AB13: -0.1736481777 | AC13: =IF('Actual Directional Survey Data'!P22="",0,'Actual Directional Survey Data'!P22) -> 0 | AD13: =IF('Actual Directional Survey Data'!DV22="",0,'Actual Directional Survey Data'!DV22) -> 0 | AE13: =IF('Actual Directional Survey Data'!DW22="",0,'Actual Directional Survey Data'!DW22) -> 0 | AF13: =IF('Actual Directional Survey Data'!$DU22=0,"",'Actual Directional Survey Data'!$DU22) ->  | AI13: 0 | AJ13: 0
N14: 110 | O14: 4.698463104 | P14: -1.710100717 | Q14: 110 | R14: 3.758770483 | S14: -1.368080573 | T14: 110 | U14: 2.819077862 | V14: -1.02606043 | W14: 110 | X14: 1.879385242 | Y14: -0.6840402867 | Z14: 110 | AA14: 0.9396926208 | AB14: -0.3420201433 | AC14: =IF('Actual Directional Survey Data'!P23="",0,'Actual Directional Survey Data'!P23) -> 0 | AD14: =IF('Actual Directional Survey Data'!DV23="",0,'Actual Directional Survey Data'!DV23) -> 0 | AE14: =IF('Actual Directional Survey Data'!DW23="",0,'Actual Directional Survey Data'!DW23) -> 0 | AF14: =IF('Actual Directional Survey Data'!$DU23=0,"",'Actual Directional Survey Data'!$DU23) ->  | AI14: 0 | AJ14: 0
N15: 120 | O15: 4.330127019 | P15: -2.5 | Q15: 120 | R15: 3.464101615 | S15: -2 | T15: 120 | U15: 2.598076211 | V15: -1.5 | W15: 120 | X15: 1.732050808 | Y15: -1 | Z15: 120 | AA15: 0.8660254038 | AB15: -0.5 | AC15: =IF('Actual Directional Survey Data'!P24="",0,'Actual Directional Survey Data'!P24) -> 0 | AD15: =IF('Actual Directional Survey Data'!DV24="",0,'Actual Directional Survey Data'!DV24) -> 0 | AE15: =IF('Actual Directional Survey Data'!DW24="",0,'Actual Directional Survey Data'!DW24) -> 0 | AF15: =IF('Actual Directional Survey Data'!$DU24=0,"",'Actual Directional Survey Data'!$DU24) ->  | AI15: 0 | AJ15: 0
N16: 130 | O16: 3.830222216 | P16: -3.213938048 | Q16: 130 | R16: 3.064177772 | S16: -2.571150439 | T16: 130 | U16: 2.298133329 | V16: -1.928362829 | W16: 130 | X16: 1.532088886 | Y16: -1.285575219 | Z16: 130 | AA16: 0.7660444431 | AB16: -0.6427876097 | AC16: =IF('Actual Directional Survey Data'!P25="",0,'Actual Directional Survey Data'!P25) -> 0 | AD16: =IF('Actual Directional Survey Data'!DV25="",0,'Actual Directional Survey Data'!DV25) -> 0 | AE16: =IF('Actual Directional Survey Data'!DW25="",0,'Actual Directional Survey Data'!DW25) -> 0 | AF16: =IF('Actual Directional Survey Data'!$DU25=0,"",'Actual Directional Survey Data'!$DU25) ->  | AI16: 0 | AJ16: 0
N17: 140 | O17: 3.213938048 | P17: -3.830222216 | Q17: 140 | R17: 2.571150439 | S17: -3.064177772 | T17: 140 | U17: 1.928362829 | V17: -2.298133329 | W17: 140 | X17: 1.285575219 | Y17: -1.532088886 | Z17: 140 | AA17: 0.6427876097 | AB17: -0.7660444431 | AC17: =IF('Actual Directional Survey Data'!P26="",0,'Actual Directional Survey Data'!P26) -> 0 | AD17: =IF('Actual Directional Survey Data'!DV26="",0,'Actual Directional Survey Data'!DV26) -> 0 | AE17: =IF('Actual Directional Survey Data'!DW26="",0,'Actual Directional Survey Data'!DW26) -> 0 | AF17: =IF('Actual Directional Survey Data'!$DU26=0,"",'Actual Directional Survey Data'!$DU26) ->  | AI17: 0 | AJ17: 0
N18: 150 | O18: 2.5 | P18: -4.330127019 | Q18: 150 | R18: 2 | S18: -3.464101615 | T18: 150 | U18: 1.5 | V18: -2.598076211 | W18: 150 | X18: 1 | Y18: -1.732050808 | Z18: 150 | AA18: 0.5 | AB18: -0.8660254038 | AC18: =IF('Actual Directional Survey Data'!P27="",0,'Actual Directional Survey Data'!P27) -> 0 | AD18: =IF('Actual Directional Survey Data'!DV27="",0,'Actual Directional Survey Data'!DV27) -> 0 | AE18: =IF('Actual Directional Survey Data'!DW27="",0,'Actual Directional Survey Data'!DW27) -> 0 | AF18: =IF('Actual Directional Survey Data'!$DU27=0,"",'Actual Directional Survey Data'!$DU27) ->  | AI18: 0 | AJ18: 0
N19: 160 | O19: 1.710100717 | P19: -4.698463104 | Q19: 160 | R19: 1.368080573 | S19: -3.758770483 | T19: 160 | U19: 1.02606043 | V19: -2.819077862 | W19: 160 | X19: 0.6840402867 | Y19: -1.879385242 | Z19: 160 | AA19: 0.3420201433 | AB19: -0.9396926208 | AC19: =IF('Actual Directional Survey Data'!P28="",0,'Actual Directional Survey Data'!P28) -> 0 | AD19: =IF('Actual Directional Survey Data'!DV28="",0,'Actual Directional Survey Data'!DV28) -> 0 | AE19: =IF('Actual Directional Survey Data'!DW28="",0,'Actual Directional Survey Data'!DW28) -> 0 | AF19: =IF('Actual Directional Survey Data'!$DU28=0,"",'Actual Directional Survey Data'!$DU28) ->  | AI19: 0 | AJ19: 0
N20: 170 | O20: 0.8682408883 | P20: -4.924038765 | Q20: 170 | R20: 0.6945927107 | S20: -3.939231012 | T20: 170 | U20: 0.520944533 | V20: -2.954423259 | W20: 170 | X20: 0.3472963553 | Y20: -1.969615506 | Z20: 170 | AA20: 0.1736481777 | AB20: -0.984807753 | AC20: =IF('Actual Directional Survey Data'!P29="",0,'Actual Directional Survey Data'!P29) -> 0 | AD20: =IF('Actual Directional Survey Data'!DV29="",0,'Actual Directional Survey Data'!DV29) -> 0 | AE20: =IF('Actual Directional Survey Data'!DW29="",0,'Actual Directional Survey Data'!DW29) -> 0 | AF20: =IF('Actual Directional Survey Data'!$DU29=0,"",'Actual Directional Survey Data'!$DU29) ->  | AI20: 0 | AJ20: 0
N21: 180 | O21: 6.125742275e-16 | P21: -5 | Q21: 180 | R21: 4.90059382e-16 | S21: -4 | T21: 180 | U21: 3.675445365e-16 | V21: -3 | W21: 180 | X21: 2.45029691e-16 | Y21: -2 | Z21: 180 | AA21: 1.225148455e-16 | AB21: -1 | AC21: =IF('Actual Directional Survey Data'!P30="",0,'Actual Directional Survey Data'!P30) -> 0 | AD21: =IF('Actual Directional Survey Data'!DV30="",0,'Actual Directional Survey Data'!DV30) -> 0 | AE21: =IF('Actual Directional Survey Data'!DW30="",0,'Actual Directional Survey Data'!DW30) -> 0 | AF21: =IF('Actual Directional Survey Data'!$DU30=0,"",'Actual Directional Survey Data'!$DU30) ->  | AI21: 0 | AJ21: 0
N22: 190 | O22: -0.8682408883 | P22: -4.924038765 | Q22: 190 | R22: -0.6945927107 | S22: -3.939231012 | T22: 190 | U22: -0.520944533 | V22: -2.954423259 | W22: 190 | X22: -0.3472963553 | Y22: -1.969615506 | Z22: 190 | AA22: -0.1736481777 | AB22: -0.984807753 | AC22: =IF('Actual Directional Survey Data'!P31="",0,'Actual Directional Survey Data'!P31) -> 0 | AD22: =IF('Actual Directional Survey Data'!DV31="",0,'Actual Directional Survey Data'!DV31) -> 0 | AE22: =IF('Actual Directional Survey Data'!DW31="",0,'Actual Directional Survey Data'!DW31) -> 0 | AF22: =IF('Actual Directional Survey Data'!$DU31=0,"",'Actual Directional Survey Data'!$DU31) ->  | AI22: 0 | AJ22: 0
N23: 200 | O23: -1.710100717 | P23: -4.698463104 | Q23: 200 | R23: -1.368080573 | S23: -3.758770483 | T23: 200 | U23: -1.02606043 | V23: -2.819077862 | W23: 200 | X23: -0.6840402867 | Y23: -1.879385242 | Z23: 200 | AA23: -0.3420201433 | AB23: -0.9396926208 | AC23: =IF('Actual Directional Survey Data'!P32="",0,'Actual Directional Survey Data'!P32) -> 0 | AD23: =IF('Actual Directional Survey Data'!DV32="",0,'Actual Directional Survey Data'!DV32) -> 0 | AE23: =IF('Actual Directional Survey Data'!DW32="",0,'Actual Directional Survey Data'!DW32) -> 0 | AF23: =IF('Actual Directional Survey Data'!$DU32=0,"",'Actual Directional Survey Data'!$DU32) ->  | AI23: 0 | AJ23: 0
N24: 210 | O24: -2.5 | P24: -4.330127019 | Q24: 210 | R24: -2 | S24: -3.464101615 | T24: 210 | U24: -1.5 | V24: -2.598076211 | W24: 210 | X24: -1 | Y24: -1.732050808 | Z24: 210 | AA24: -0.5 | AB24: -0.8660254038 | AC24: =IF('Actual Directional Survey Data'!P33="",0,'Actual Directional Survey Data'!P33) -> 0 | AD24: =IF('Actual Directional Survey Data'!DV33="",0,'Actual Directional Survey Data'!DV33) -> 0 | AE24: =IF('Actual Directional Survey Data'!DW33="",0,'Actual Directional Survey Data'!DW33) -> 0 | AF24: =IF('Actual Directional Survey Data'!$DU33=0,"",'Actual Directional Survey Data'!$DU33) ->  | AI24: 0 | AJ24: 0
N25: 220 | O25: -3.213938048 | P25: -3.830222216 | Q25: 220 | R25: -2.571150439 | S25: -3.064177772 | T25: 220 | U25: -1.928362829 | V25: -2.298133329 | W25: 220 | X25: -1.285575219 | Y25: -1.532088886 | Z25: 220 | AA25: -0.6427876097 | AB25: -0.7660444431 | AC25: =IF('Actual Directional Survey Data'!P34="",0,'Actual Directional Survey Data'!P34) -> 0 | AD25: =IF('Actual Directional Survey Data'!DV34="",0,'Actual Directional Survey Data'!DV34) -> 0 | AE25: =IF('Actual Directional Survey Data'!DW34="",0,'Actual Directional Survey Data'!DW34) -> 0 | AF25: =IF('Actual Directional Survey Data'!$DU34=0,"",'Actual Directional Survey Data'!$DU34) ->  | AI25: 0 | AJ25: 0
N26: 230 | O26: -3.830222216 | P26: -3.213938048 | Q26: 230 | R26: -3.064177772 | S26: -2.571150439 | T26: 230 | U26: -2.298133329 | V26: -1.928362829 | W26: 230 | X26: -1.532088886 | Y26: -1.285575219 | Z26: 230 | AA26: -0.7660444431 | AB26: -0.6427876097 | AC26: =IF('Actual Directional Survey Data'!P35="",0,'Actual Directional Survey Data'!P35) -> 0 | AD26: =IF('Actual Directional Survey Data'!DV35="",0,'Actual Directional Survey Data'!DV35) -> 0 | AE26: =IF('Actual Directional Survey Data'!DW35="",0,'Actual Directional Survey Data'!DW35) -> 0 | AF26: =IF('Actual Directional Survey Data'!$DU35=0,"",'Actual Directional Survey Data'!$DU35) ->  | AI26: 0 | AJ26: 0
N27: 240 | O27: -4.330127019 | P27: -2.5 | Q27: 240 | R27: -3.464101615 | S27: -2 | T27: 240 | U27: -2.598076211 | V27: -1.5 | W27: 240 | X27: -1.732050808 | Y27: -1 | Z27: 240 | AA27: -0.8660254038 | AB27: -0.5 | AC27: =IF('Actual Directional Survey Data'!P36="",0,'Actual Directional Survey Data'!P36) -> 0 | AD27: =IF('Actual Directional Survey Data'!DV36="",0,'Actual Directional Survey Data'!DV36) -> 0 | AE27: =IF('Actual Directional Survey Data'!DW36="",0,'Actual Directional Survey Data'!DW36) -> 0 | AF27: =IF('Actual Directional Survey Data'!$DU36=0,"",'Actual Directional Survey Data'!$DU36) ->  | AI27: 0 | AJ27: 0
N28: 250 | O28: -4.698463104 | P28: -1.710100717 | Q28: 250 | R28: -3.758770483 | S28: -1.368080573 | T28: 250 | U28: -2.819077862 | V28: -1.02606043 | W28: 250 | X28: -1.879385242 | Y28: -0.6840402867 | Z28: 250 | AA28: -0.9396926208 | AB28: -0.3420201433 | AC28: =IF('Actual Directional Survey Data'!P37="",0,'Actual Directional Survey Data'!P37) -> 0 | AD28: =IF('Actual Directional Survey Data'!DV37="",0,'Actual Directional Survey Data'!DV37) -> 0 | AE28: =IF('Actual Directional Survey Data'!DW37="",0,'Actual Directional Survey Data'!DW37) -> 0 | AF28: =IF('Actual Directional Survey Data'!$DU37=0,"",'Actual Directional Survey Data'!$DU37) ->  | AI28: 0 | AJ28: 0
N29: 260 | O29: -4.924038765 | P29: -0.8682408883 | Q29: 260 | R29: -3.939231012 | S29: -0.6945927107 | T29: 260 | U29: -2.954423259 | V29: -0.520944533 | W29: 260 | X29: -1.969615506 | Y29: -0.3472963553 | Z29: 260 | AA29: -0.984807753 | AB29: -0.1736481777 | AC29: =IF('Actual Directional Survey Data'!P38="",0,'Actual Directional Survey Data'!P38) -> 0 | AD29: =IF('Actual Directional Survey Data'!DV38="",0,'Actual Directional Survey Data'!DV38) -> 0 | AE29: =IF('Actual Directional Survey Data'!DW38="",0,'Actual Directional Survey Data'!DW38) -> 0 | AF29: =IF('Actual Directional Survey Data'!$DU38=0,"",'Actual Directional Survey Data'!$DU38) ->  | AI29: 0 | AJ29: 0
N30: 270 | O30: -5 | P30: -9.188613412e-16 | Q30: 270 | R30: -4 | S30: -7.350890729e-16 | T30: 270 | U30: -3 | V30: -5.513168047e-16 | W30: 270 | X30: -2 | Y30: -3.675445365e-16 | Z30: 270 | AA30: -1 | AB30: -1.837722682e-16 | AC30: =IF('Actual Directional Survey Data'!P39="",0,'Actual Directional Survey Data'!P39) -> 0 | AD30: =IF('Actual Directional Survey Data'!DV39="",0,'Actual Directional Survey Data'!DV39) -> 0 | AE30: =IF('Actual Directional Survey Data'!DW39="",0,'Actual Directional Survey Data'!DW39) -> 0 | AF30: =IF('Actual Directional Survey Data'!$DU39=0,"",'Actual Directional Survey Data'!$DU39) ->  | AI30: 0 | AJ30: 0
N31: 280 | O31: -4.924038765 | P31: 0.8682408883 | Q31: 280 | R31: -3.939231012 | S31: 0.6945927107 | T31: 280 | U31: -2.954423259 | V31: 0.520944533 | W31: 280 | X31: -1.969615506 | Y31: 0.3472963553 | Z31: 280 | AA31: -0.984807753 | AB31: 0.1736481777 | AC31: =IF('Actual Directional Survey Data'!P40="",0,'Actual Directional Survey Data'!P40) -> 0 | AD31: =IF('Actual Directional Survey Data'!DV40="",0,'Actual Directional Survey Data'!DV40) -> 0 | AE31: =IF('Actual Directional Survey Data'!DW40="",0,'Actual Directional Survey Data'!DW40) -> 0 | AF31: =IF('Actual Directional Survey Data'!$DU40=0,"",'Actual Directional Survey Data'!$DU40) ->  | AI31: 0 | AJ31: 0
N32: 290 | O32: -4.698463104 | P32: 1.710100717 | Q32: 290 | R32: -3.758770483 | S32: 1.368080573 | T32: 290 | U32: -2.819077862 | V32: 1.02606043 | W32: 290 | X32: -1.879385242 | Y32: 0.6840402867 | Z32: 290 | AA32: -0.9396926208 | AB32: 0.3420201433 | AC32: =IF('Actual Directional Survey Data'!P41="",0,'Actual Directional Survey Data'!P41) -> 0 | AD32: =IF('Actual Directional Survey Data'!DV41="",0,'Actual Directional Survey Data'!DV41) -> 0 | AE32: =IF('Actual Directional Survey Data'!DW41="",0,'Actual Directional Survey Data'!DW41) -> 0 | AF32: =IF('Actual Directional Survey Data'!$DU41=0,"",'Actual Directional Survey Data'!$DU41) ->  | AI32: 0 | AJ32: 0
N33: 300 | O33: -4.330127019 | P33: 2.5 | Q33: 300 | R33: -3.464101615 | S33: 2 | T33: 300 | U33: -2.598076211 | V33: 1.5 | W33: 300 | X33: -1.732050808 | Y33: 1 | Z33: 300 | AA33: -0.8660254038 | AB33: 0.5 | AC33: =IF('Actual Directional Survey Data'!P42="",0,'Actual Directional Survey Data'!P42) -> 0 | AD33: =IF('Actual Directional Survey Data'!DV42="",0,'Actual Directional Survey Data'!DV42) -> 0 | AE33: =IF('Actual Directional Survey Data'!DW42="",0,'Actual Directional Survey Data'!DW42) -> 0 | AF33: =IF('Actual Directional Survey Data'!$DU42=0,"",'Actual Directional Survey Data'!$DU42) ->  | AI33: 0 | AJ33: 0
N34: 310 | O34: -3.830222216 | P34: 3.213938048 | Q34: 310 | R34: -3.064177772 | S34: 2.571150439 | T34: 310 | U34: -2.298133329 | V34: 1.928362829 | W34: 310 | X34: -1.532088886 | Y34: 1.285575219 | Z34: 310 | AA34: -0.7660444431 | AB34: 0.6427876097 | AC34: =IF('Actual Directional Survey Data'!P43="",0,'Actual Directional Survey Data'!P43) -> 0 | AD34: =IF('Actual Directional Survey Data'!DV43="",0,'Actual Directional Survey Data'!DV43) -> 0 | AE34: =IF('Actual Directional Survey Data'!DW43="",0,'Actual Directional Survey Data'!DW43) -> 0 | AF34: =IF('Actual Directional Survey Data'!$DU43=0,"",'Actual Directional Survey Data'!$DU43) ->  | AI34: 0 | AJ34: 0
N35: 320 | O35: -3.213938048 | P35: 3.830222216 | Q35: 320 | R35: -2.571150439 | S35: 3.064177772 | T35: 320 | U35: -1.928362829 | V35: 2.298133329 | W35: 320 | X35: -1.285575219 | Y35: 1.532088886 | Z35: 320 | AA35: -0.6427876097 | AB35: 0.7660444431 | AC35: =IF('Actual Directional Survey Data'!P44="",0,'Actual Directional Survey Data'!P44) -> 0 | AD35: =IF('Actual Directional Survey Data'!DV44="",0,'Actual Directional Survey Data'!DV44) -> 0 | AE35: =IF('Actual Directional Survey Data'!DW44="",0,'Actual Directional Survey Data'!DW44) -> 0 | AF35: =IF('Actual Directional Survey Data'!$DU44=0,"",'Actual Directional Survey Data'!$DU44) ->  | AI35: 0 | AJ35: 0
N36: 330 | O36: -2.5 | P36: 4.330127019 | Q36: 330 | R36: -2 | S36: 3.464101615 | T36: 330 | U36: -1.5 | V36: 2.598076211 | W36: 330 | X36: -1 | Y36: 1.732050808 | Z36: 330 | AA36: -0.5 | AB36: 0.8660254038 | AC36: =IF('Actual Directional Survey Data'!P45="",0,'Actual Directional Survey Data'!P45) -> 0 | AD36: =IF('Actual Directional Survey Data'!DV45="",0,'Actual Directional Survey Data'!DV45) -> 0 | AE36: =IF('Actual Directional Survey Data'!DW45="",0,'Actual Directional Survey Data'!DW45) -> 0 | AF36: =IF('Actual Directional Survey Data'!$DU45=0,"",'Actual Directional Survey Data'!$DU45) ->  | AI36: 0 | AJ36: 0
N37: 340 | O37: -1.710100717 | P37: 4.698463104 | Q37: 340 | R37: -1.368080573 | S37: 3.758770483 | T37: 340 | U37: -1.02606043 | V37: 2.819077862 | W37: 340 | X37: -0.6840402867 | Y37: 1.879385242 | Z37: 340 | AA37: -0.3420201433 | AB37: 0.9396926208 | AC37: =IF('Actual Directional Survey Data'!P46="",0,'Actual Directional Survey Data'!P46) -> 0 | AD37: =IF('Actual Directional Survey Data'!DV46="",0,'Actual Directional Survey Data'!DV46) -> 0 | AE37: =IF('Actual Directional Survey Data'!DW46="",0,'Actual Directional Survey Data'!DW46) -> 0 | AF37: =IF('Actual Directional Survey Data'!$DU46=0,"",'Actual Directional Survey Data'!$DU46) ->  | AI37: 0 | AJ37: 0
N38: 350 | O38: -0.8682408883 | P38: 4.924038765 | Q38: 350 | R38: -0.6945927107 | S38: 3.939231012 | T38: 350 | U38: -0.520944533 | V38: 2.954423259 | W38: 350 | X38: -0.3472963553 | Y38: 1.969615506 | Z38: 350 | AA38: -0.1736481777 | AB38: 0.984807753 | AC38: =IF('Actual Directional Survey Data'!P47="",0,'Actual Directional Survey Data'!P47) -> 0 | AD38: =IF('Actual Directional Survey Data'!DV47="",0,'Actual Directional Survey Data'!DV47) -> 0 | AE38: =IF('Actual Directional Survey Data'!DW47="",0,'Actual Directional Survey Data'!DW47) -> 0 | AF38: =IF('Actual Directional Survey Data'!$DU47=0,"",'Actual Directional Survey Data'!$DU47) ->  | AI38: 0 | AJ38: 0
N39: 360 | O39: -1.225148455e-15 | P39: 5 | Q39: 360 | R39: -9.801187639e-16 | S39: 4 | T39: 360 | U39: -7.350890729e-16 | V39: 3 | W39: 360 | X39: -4.90059382e-16 | Y39: 2 | Z39: 360 | AA39: -2.45029691e-16 | AB39: 1 | AC39: =IF('Actual Directional Survey Data'!P48="",0,'Actual Directional Survey Data'!P48) -> 0 | AD39: =IF('Actual Directional Survey Data'!DV48="",0,'Actual Directional Survey Data'!DV48) -> 0 | AE39: =IF('Actual Directional Survey Data'!DW48="",0,'Actual Directional Survey Data'!DW48) -> 0 | AF39: =IF('Actual Directional Survey Data'!$DU48=0,"",'Actual Directional Survey Data'!$DU48) ->  | AI39: 0 | AJ39: 0
AC40: =IF('Actual Directional Survey Data'!P49="",0,'Actual Directional Survey Data'!P49) -> 0 | AD40: =IF('Actual Directional Survey Data'!DV49="",0,'Actual Directional Survey Data'!DV49) -> 0 | AE40: =IF('Actual Directional Survey Data'!DW49="",0,'Actual Directional Survey Data'!DW49) -> 0 | AF40: =IF('Actual Directional Survey Data'!$DU49=0,"",'Actual Directional Survey Data'!$DU49) ->  | AI40: 0 | AJ40: 0
AC41: =IF('Actual Directional Survey Data'!P50="",0,'Actual Directional Survey Data'!P50) -> 0 | AD41: =IF('Actual Directional Survey Data'!DV50="",0,'Actual Directional Survey Data'!DV50) -> 0 | AE41: =IF('Actual Directional Survey Data'!DW50="",0,'Actual Directional Survey Data'!DW50) -> 0 | AF41: =IF('Actual Directional Survey Data'!$DU50=0,"",'Actual Directional Survey Data'!$DU50) ->  | AI41: 0 | AJ41: 0
AC42: =IF('Actual Directional Survey Data'!P51="",0,'Actual Directional Survey Data'!P51) -> 0 | AD42: =IF('Actual Directional Survey Data'!DV51="",0,'Actual Directional Survey Data'!DV51) -> 0 | AE42: =IF('Actual Directional Survey Data'!DW51="",0,'Actual Directional Survey Data'!DW51) -> 0 | AF42: =IF('Actual Directional Survey Data'!$DU51=0,"",'Actual Directional Survey Data'!$DU51) ->  | AI42: 0 | AJ42: 0
AC43: =IF('Actual Directional Survey Data'!P52="",0,'Actual Directional Survey Data'!P52) -> 0 | AD43: =IF('Actual Directional Survey Data'!DV52="",0,'Actual Directional Survey Data'!DV52) -> 0 | AE43: =IF('Actual Directional Survey Data'!DW52="",0,'Actual Directional Survey Data'!DW52) -> 0 | AF43: =IF('Actual Directional Survey Data'!$DU52=0,"",'Actual Directional Survey Data'!$DU52) ->  | AI43: 0 | AJ43: 0
AC44: =IF('Actual Directional Survey Data'!P53="",0,'Actual Directional Survey Data'!P53) -> 0 | AD44: =IF('Actual Directional Survey Data'!DV53="",0,'Actual Directional Survey Data'!DV53) -> 0 | AE44: =IF('Actual Directional Survey Data'!DW53="",0,'Actual Directional Survey Data'!DW53) -> 0 | AF44: =IF('Actual Directional Survey Data'!$DU53=0,"",'Actual Directional Survey Data'!$DU53) ->  | AI44: 0 | AJ44: 0
AC45: =IF('Actual Directional Survey Data'!P54="",0,'Actual Directional Survey Data'!P54) -> 0 | AD45: =IF('Actual Directional Survey Data'!DV54="",0,'Actual Directional Survey Data'!DV54) -> 0 | AE45: =IF('Actual Directional Survey Data'!DW54="",0,'Actual Directional Survey Data'!DW54) -> 0 | AF45: =IF('Actual Directional Survey Data'!$DU54=0,"",'Actual Directional Survey Data'!$DU54) ->  | AI45: 0 | AJ45: 0
AC46: =IF('Actual Directional Survey Data'!P55="",0,'Actual Directional Survey Data'!P55) -> 0 | AD46: =IF('Actual Directional Survey Data'!DV55="",0,'Actual Directional Survey Data'!DV55) -> 0 | AE46: =IF('Actual Directional Survey Data'!DW55="",0,'Actual Directional Survey Data'!DW55) -> 0 | AF46: =IF('Actual Directional Survey Data'!$DU55=0,"",'Actual Directional Survey Data'!$DU55) ->  | AI46: 0 | AJ46: 0
AC47: =IF('Actual Directional Survey Data'!P56="",0,'Actual Directional Survey Data'!P56) -> 0 | AD47: =IF('Actual Directional Survey Data'!DV56="",0,'Actual Directional Survey Data'!DV56) -> 0 | AE47: =IF('Actual Directional Survey Data'!DW56="",0,'Actual Directional Survey Data'!DW56) -> 0 | AF47: =IF('Actual Directional Survey Data'!$DU56=0,"",'Actual Directional Survey Data'!$DU56) ->  | AI47: 0 | AJ47: 0
AC48: =IF('Actual Directional Survey Data'!P57="",0,'Actual Directional Survey Data'!P57) -> 0 | AD48: =IF('Actual Directional Survey Data'!DV57="",0,'Actual Directional Survey Data'!DV57) -> 0 | AE48: =IF('Actual Directional Survey Data'!DW57="",0,'Actual Directional Survey Data'!DW57) -> 0 | AF48: =IF('Actual Directional Survey Data'!$DU57=0,"",'Actual Directional Survey Data'!$DU57) ->  | AI48: 0 | AJ48: 0
AC49: =IF('Actual Directional Survey Data'!P58="",0,'Actual Directional Survey Data'!P58) -> 0 | AD49: =IF('Actual Directional Survey Data'!DV58="",0,'Actual Directional Survey Data'!DV58) -> 0 | AE49: =IF('Actual Directional Survey Data'!DW58="",0,'Actual Directional Survey Data'!DW58) -> 0 | AF49: =IF('Actual Directional Survey Data'!$DU58=0,"",'Actual Directional Survey Data'!$DU58) ->  | AI49: 0 | AJ49: 0
AC50: =IF('Actual Directional Survey Data'!P59="",0,'Actual Directional Survey Data'!P59) -> 0 | AD50: =IF('Actual Directional Survey Data'!DV59="",0,'Actual Directional Survey Data'!DV59) -> 0 | AE50: =IF('Actual Directional Survey Data'!DW59="",0,'Actual Directional Survey Data'!DW59) -> 0 | AF50: =IF('Actual Directional Survey Data'!$DU59=0,"",'Actual Directional Survey Data'!$DU59) ->  | AI50: 0 | AJ50: 0
AC51: =IF('Actual Directional Survey Data'!P60="",0,'Actual Directional Survey Data'!P60) -> 0 | AD51: =IF('Actual Directional Survey Data'!DV60="",0,'Actual Directional Survey Data'!DV60) -> 0 | AE51: =IF('Actual Directional Survey Data'!DW60="",0,'Actual Directional Survey Data'!DW60) -> 0 | AF51: =IF('Actual Directional Survey Data'!$DU60=0,"",'Actual Directional Survey Data'!$DU60) ->  | AI51: 0 | AJ51: 0
AC52: =IF('Actual Directional Survey Data'!P61="",0,'Actual Directional Survey Data'!P61) -> 0 | AD52: =IF('Actual Directional Survey Data'!DV61="",0,'Actual Directional Survey Data'!DV61) -> 0 | AE52: =IF('Actual Directional Survey Data'!DW61="",0,'Actual Directional Survey Data'!DW61) -> 0 | AF52: =IF('Actual Directional Survey Data'!$DU61=0,"",'Actual Directional Survey Data'!$DU61) ->  | AI52: 0 | AJ52: 0
AC53: =IF('Actual Directional Survey Data'!P62="",0,'Actual Directional Survey Data'!P62) -> 0 | AD53: =IF('Actual Directional Survey Data'!DV62="",0,'Actual Directional Survey Data'!DV62) -> 0 | AE53: =IF('Actual Directional Survey Data'!DW62="",0,'Actual Directional Survey Data'!DW62) -> 0 | AF53: =IF('Actual Directional Survey Data'!$DU62=0,"",'Actual Directional Survey Data'!$DU62) ->  | AI53: 0 | AJ53: 0
AC54: =IF('Actual Directional Survey Data'!P63="",0,'Actual Directional Survey Data'!P63) -> 0 | AD54: =IF('Actual Directional Survey Data'!DV63="",0,'Actual Directional Survey Data'!DV63) -> 0 | AE54: =IF('Actual Directional Survey Data'!DW63="",0,'Actual Directional Survey Data'!DW63) -> 0 | AF54: =IF('Actual Directional Survey Data'!$DU63=0,"",'Actual Directional Survey Data'!$DU63) ->  | AI54: 0 | AJ54: 0
AC55: =IF('Actual Directional Survey Data'!P64="",0,'Actual Directional Survey Data'!P64) -> 0 | AD55: =IF('Actual Directional Survey Data'!DV64="",0,'Actual Directional Survey Data'!DV64) -> 0 | AE55: =IF('Actual Directional Survey Data'!DW64="",0,'Actual Directional Survey Data'!DW64) -> 0 | AF55: =IF('Actual Directional Survey Data'!$DU64=0,"",'Actual Directional Survey Data'!$DU64) ->  | AI55: 0 | AJ55: 0
AC56: =IF('Actual Directional Survey Data'!P65="",0,'Actual Directional Survey Data'!P65) -> 0 | AD56: =IF('Actual Directional Survey Data'!DV65="",0,'Actual Directional Survey Data'!DV65) -> 0 | AE56: =IF('Actual Directional Survey Data'!DW65="",0,'Actual Directional Survey Data'!DW65) -> 0 | AF56: =IF('Actual Directional Survey Data'!$DU65=0,"",'Actual Directional Survey Data'!$DU65) ->  | AI56: 0 | AJ56: 0
AC57: =IF('Actual Directional Survey Data'!P66="",0,'Actual Directional Survey Data'!P66) -> 0 | AD57: =IF('Actual Directional Survey Data'!DV66="",0,'Actual Directional Survey Data'!DV66) -> 0 | AE57: =IF('Actual Directional Survey Data'!DW66="",0,'Actual Directional Survey Data'!DW66) -> 0 | AF57: =IF('Actual Directional Survey Data'!$DU66=0,"",'Actual Directional Survey Data'!$DU66) ->  | AI57: 0 | AJ57: 0
AC58: =IF('Actual Directional Survey Data'!P67="",0,'Actual Directional Survey Data'!P67) -> 0 | AD58: =IF('Actual Directional Survey Data'!DV67="",0,'Actual Directional Survey Data'!DV67) -> 0 | AE58: =IF('Actual Directional Survey Data'!DW67="",0,'Actual Directional Survey Data'!DW67) -> 0 | AF58: =IF('Actual Directional Survey Data'!$DU67=0,"",'Actual Directional Survey Data'!$DU67) ->  | AI58: 0 | AJ58: 0
AC59: =IF('Actual Directional Survey Data'!P68="",0,'Actual Directional Survey Data'!P68) -> 0 | AD59: =IF('Actual Directional Survey Data'!DV68="",0,'Actual Directional Survey Data'!DV68) -> 0 | AE59: =IF('Actual Directional Survey Data'!DW68="",0,'Actual Directional Survey Data'!DW68) -> 0 | AF59: =IF('Actual Directional Survey Data'!$DU68=0,"",'Actual Directional Survey Data'!$DU68) ->  | AI59: 0 | AJ59: 0
AC60: =IF('Actual Directional Survey Data'!P69="",0,'Actual Directional Survey Data'!P69) -> 0 | AD60: =IF('Actual Directional Survey Data'!DV69="",0,'Actual Directional Survey Data'!DV69) -> 0 | AE60: =IF('Actual Directional Survey Data'!DW69="",0,'Actual Directional Survey Data'!DW69) -> 0 | AF60: =IF('Actual Directional Survey Data'!$DU69=0,"",'Actual Directional Survey Data'!$DU69) ->  | AI60: 0 | AJ60: 0
AC61: =IF('Actual Directional Survey Data'!P70="",0,'Actual Directional Survey Data'!P70) -> 0 | AD61: =IF('Actual Directional Survey Data'!DV70="",0,'Actual Directional Survey Data'!DV70) -> 0 | AE61: =IF('Actual Directional Survey Data'!DW70="",0,'Actual Directional Survey Data'!DW70) -> 0 | AF61: =IF('Actual Directional Survey Data'!$DU70=0,"",'Actual Directional Survey Data'!$DU70) ->  | AI61: 0 | AJ61: 0
AC62: =IF('Actual Directional Survey Data'!P71="",0,'Actual Directional Survey Data'!P71) -> 0 | AD62: =IF('Actual Directional Survey Data'!DV71="",0,'Actual Directional Survey Data'!DV71) -> 0 | AE62: =IF('Actual Directional Survey Data'!DW71="",0,'Actual Directional Survey Data'!DW71) -> 0 | AF62: =IF('Actual Directional Survey Data'!$DU71=0,"",'Actual Directional Survey Data'!$DU71) ->  | AI62: 0 | AJ62: 0
AC63: =IF('Actual Directional Survey Data'!P72="",0,'Actual Directional Survey Data'!P72) -> 0 | AD63: =IF('Actual Directional Survey Data'!DV72="",0,'Actual Directional Survey Data'!DV72) -> 0 | AE63: =IF('Actual Directional Survey Data'!DW72="",0,'Actual Directional Survey Data'!DW72) -> 0 | AF63: =IF('Actual Directional Survey Data'!$DU72=0,"",'Actual Directional Survey Data'!$DU72) ->  | AI63: 0 | AJ63: 0
AC64: =IF('Actual Directional Survey Data'!P73="",0,'Actual Directional Survey Data'!P73) -> 0 | AD64: =IF('Actual Directional Survey Data'!DV73="",0,'Actual Directional Survey Data'!DV73) -> 0 | AE64: =IF('Actual Directional Survey Data'!DW73="",0,'Actual Directional Survey Data'!DW73) -> 0 | AF64: =IF('Actual Directional Survey Data'!$DU73=0,"",'Actual Directional Survey Data'!$DU73) ->  | AI64: 0 | AJ64: 0
AC65: =IF('Actual Directional Survey Data'!P74="",0,'Actual Directional Survey Data'!P74) -> 0 | AD65: =IF('Actual Directional Survey Data'!DV74="",0,'Actual Directional Survey Data'!DV74) -> 0 | AE65: =IF('Actual Directional Survey Data'!DW74="",0,'Actual Directional Survey Data'!DW74) -> 0 | AF65: =IF('Actual Directional Survey Data'!$DU74=0,"",'Actual Directional Survey Data'!$DU74) ->  | AI65: 0 | AJ65: 0
AC66: =IF('Actual Directional Survey Data'!P75="",0,'Actual Directional Survey Data'!P75) -> 0 | AD66: =IF('Actual Directional Survey Data'!DV75="",0,'Actual Directional Survey Data'!DV75) -> 0 | AE66: =IF('Actual Directional Survey Data'!DW75="",0,'Actual Directional Survey Data'!DW75) -> 0 | AF66: =IF('Actual Directional Survey Data'!$DU75=0,"",'Actual Directional Survey Data'!$DU75) ->  | AI66: 0 | AJ66: 0
AC67: =IF('Actual Directional Survey Data'!P76="",0,'Actual Directional Survey Data'!P76) -> 0 | AD67: =IF('Actual Directional Survey Data'!DV76="",0,'Actual Directional Survey Data'!DV76) -> 0 | AE67: =IF('Actual Directional Survey Data'!DW76="",0,'Actual Directional Survey Data'!DW76) -> 0 | AF67: =IF('Actual Directional Survey Data'!$DU76=0,"",'Actual Directional Survey Data'!$DU76) ->  | AH67: =IF(AG67="","",AG67*(AC67-AC66)) ->  | AI67: 0 | AJ67: =IF(AF67="",AJ66,IF(AF67=0,AJ66,AJ66+((SQRT(AD67^2+AE67^2)-AK$2)^2))) -> 0
AC68: =IF('Actual Directional Survey Data'!P77="",0,'Actual Directional Survey Data'!P77) -> 0 | AD68: =IF('Actual Directional Survey Data'!DV77="",0,'Actual Directional Survey Data'!DV77) -> 0 | AE68: =IF('Actual Directional Survey Data'!DW77="",0,'Actual Directional Survey Data'!DW77) -> 0 | AF68: =IF('Actual Directional Survey Data'!$DU77=0,"",'Actual Directional Survey Data'!$DU77) ->  | AG68: =IF(AF68="","",IF(AF68<0,AF68+180,IF(AF68>180,AF68-180,AF68))) ->  | AI68: =IF(AF68="",AI67,IF(AF68=0,AI67,AI67+1)) -> 0 | AJ68: 0
AC69: =IF('Actual Directional Survey Data'!P78="",0,'Actual Directional Survey Data'!P78) -> 0 | AD69: =IF('Actual Directional Survey Data'!DV78="",0,'Actual Directional Survey Data'!DV78) -> 0 | AE69: =IF('Actual Directional Survey Data'!DW78="",0,'Actual Directional Survey Data'!DW78) -> 0 | AF69: =IF('Actual Directional Survey Data'!$DU78=0,"",'Actual Directional Survey Data'!$DU78) ->  | AI69: 0 | AJ69: 0
AC70: =IF('Actual Directional Survey Data'!P79="",0,'Actual Directional Survey Data'!P79) -> 0 | AD70: =IF('Actual Directional Survey Data'!DV79="",0,'Actual Directional Survey Data'!DV79) -> 0 | AE70: =IF('Actual Directional Survey Data'!DW79="",0,'Actual Directional Survey Data'!DW79) -> 0 | AF70: =IF('Actual Directional Survey Data'!$DU79=0,"",'Actual Directional Survey Data'!$DU79) ->  | AI70: 0 | AJ70: 0
AC71: =IF('Actual Directional Survey Data'!P80="",0,'Actual Directional Survey Data'!P80) -> 0 | AD71: =IF('Actual Directional Survey Data'!DV80="",0,'Actual Directional Survey Data'!DV80) -> 0 | AE71: =IF('Actual Directional Survey Data'!DW80="",0,'Actual Directional Survey Data'!DW80) -> 0 | AF71: =IF('Actual Directional Survey Data'!$DU80=0,"",'Actual Directional Survey Data'!$DU80) ->  | AI71: 0 | AJ71: 0
AC72: =IF('Actual Directional Survey Data'!P81="",0,'Actual Directional Survey Data'!P81) -> 0 | AD72: =IF('Actual Directional Survey Data'!DV81="",0,'Actual Directional Survey Data'!DV81) -> 0 | AE72: =IF('Actual Directional Survey Data'!DW81="",0,'Actual Directional Survey Data'!DW81) -> 0 | AF72: =IF('Actual Directional Survey Data'!$DU81=0,"",'Actual Directional Survey Data'!$DU81) ->  | AI72: 0 | AJ72: 0
AC73: =IF('Actual Directional Survey Data'!P82="",0,'Actual Directional Survey Data'!P82) -> 0 | AD73: =IF('Actual Directional Survey Data'!DV82="",0,'Actual Directional Survey Data'!DV82) -> 0 | AE73: =IF('Actual Directional Survey Data'!DW82="",0,'Actual Directional Survey Data'!DW82) -> 0 | AF73: =IF('Actual Directional Survey Data'!$DU82=0,"",'Actual Directional Survey Data'!$DU82) ->  | AI73: 0 | AJ73: 0
AC74: =IF('Actual Directional Survey Data'!P83="",0,'Actual Directional Survey Data'!P83) -> 0 | AD74: =IF('Actual Directional Survey Data'!DV83="",0,'Actual Directional Survey Data'!DV83) -> 0 | AE74: =IF('Actual Directional Survey Data'!DW83="",0,'Actual Directional Survey Data'!DW83) -> 0 | AF74: =IF('Actual Directional Survey Data'!$DU83=0,"",'Actual Directional Survey Data'!$DU83) ->  | AI74: 0 | AJ74: 0
AC75: =IF('Actual Directional Survey Data'!P84="",0,'Actual Directional Survey Data'!P84) -> 0 | AD75: =IF('Actual Directional Survey Data'!DV84="",0,'Actual Directional Survey Data'!DV84) -> 0 | AE75: =IF('Actual Directional Survey Data'!DW84="",0,'Actual Directional Survey Data'!DW84) -> 0 | AF75: =IF('Actual Directional Survey Data'!$DU84=0,"",'Actual Directional Survey Data'!$DU84) ->  | AI75: 0 | AJ75: 0
AC76: =IF('Actual Directional Survey Data'!P85="",0,'Actual Directional Survey Data'!P85) -> 0 | AD76: =IF('Actual Directional Survey Data'!DV85="",0,'Actual Directional Survey Data'!DV85) -> 0 | AE76: =IF('Actual Directional Survey Data'!DW85="",0,'Actual Directional Survey Data'!DW85) -> 0 | AF76: =IF('Actual Directional Survey Data'!$DU85=0,"",'Actual Directional Survey Data'!$DU85) ->  | AI76: 0 | AJ76: 0
AC77: =IF('Actual Directional Survey Data'!P86="",0,'Actual Directional Survey Data'!P86) -> 0 | AD77: =IF('Actual Directional Survey Data'!DV86="",0,'Actual Directional Survey Data'!DV86) -> 0 | AE77: =IF('Actual Directional Survey Data'!DW86="",0,'Actual Directional Survey Data'!DW86) -> 0 | AF77: =IF('Actual Directional Survey Data'!$DU86=0,"",'Actual Directional Survey Data'!$DU86) ->  | AI77: 0 | AJ77: 0
AC78: =IF('Actual Directional Survey Data'!P87="",0,'Actual Directional Survey Data'!P87) -> 0 | AD78: =IF('Actual Directional Survey Data'!DV87="",0,'Actual Directional Survey Data'!DV87) -> 0 | AE78: =IF('Actual Directional Survey Data'!DW87="",0,'Actual Directional Survey Data'!DW87) -> 0 | AF78: =IF('Actual Directional Survey Data'!$DU87=0,"",'Actual Directional Survey Data'!$DU87) ->  | AI78: 0 | AJ78: 0
AC79: =IF('Actual Directional Survey Data'!P88="",0,'Actual Directional Survey Data'!P88) -> 0 | AD79: =IF('Actual Directional Survey Data'!DV88="",0,'Actual Directional Survey Data'!DV88) -> 0 | AE79: =IF('Actual Directional Survey Data'!DW88="",0,'Actual Directional Survey Data'!DW88) -> 0 | AF79: =IF('Actual Directional Survey Data'!$DU88=0,"",'Actual Directional Survey Data'!$DU88) ->  | AI79: 0 | AJ79: 0
AC80: =IF('Actual Directional Survey Data'!P89="",0,'Actual Directional Survey Data'!P89) -> 0 | AD80: =IF('Actual Directional Survey Data'!DV89="",0,'Actual Directional Survey Data'!DV89) -> 0 | AE80: =IF('Actual Directional Survey Data'!DW89="",0,'Actual Directional Survey Data'!DW89) -> 0 | AF80: =IF('Actual Directional Survey Data'!$DU89=0,"",'Actual Directional Survey Data'!$DU89) ->  | AI80: 0 | AJ80: 0
AC81: =IF('Actual Directional Survey Data'!P90="",0,'Actual Directional Survey Data'!P90) -> 0 | AD81: =IF('Actual Directional Survey Data'!DV90="",0,'Actual Directional Survey Data'!DV90) -> 0 | AE81: =IF('Actual Directional Survey Data'!DW90="",0,'Actual Directional Survey Data'!DW90) -> 0 | AF81: =IF('Actual Directional Survey Data'!$DU90=0,"",'Actual Directional Survey Data'!$DU90) ->  | AI81: 0 | AJ81: 0
AC82: =IF('Actual Directional Survey Data'!P91="",0,'Actual Directional Survey Data'!P91) -> 0 | AD82: =IF('Actual Directional Survey Data'!DV91="",0,'Actual Directional Survey Data'!DV91) -> 0 | AE82: =IF('Actual Directional Survey Data'!DW91="",0,'Actual Directional Survey Data'!DW91) -> 0 | AF82: =IF('Actual Directional Survey Data'!$DU91=0,"",'Actual Directional Survey Data'!$DU91) ->  | AI82: 0 | AJ82: 0
AC83: =IF('Actual Directional Survey Data'!P92="",0,'Actual Directional Survey Data'!P92) -> 0 | AD83: =IF('Actual Directional Survey Data'!DV92="",0,'Actual Directional Survey Data'!DV92) -> 0 | AE83: =IF('Actual Directional Survey Data'!DW92="",0,'Actual Directional Survey Data'!DW92) -> 0 | AF83: =IF('Actual Directional Survey Data'!$DU92=0,"",'Actual Directional Survey Data'!$DU92) ->  | AI83: 0 | AJ83: 0
AC84: =IF('Actual Directional Survey Data'!P93="",0,'Actual Directional Survey Data'!P93) -> 0 | AD84: =IF('Actual Directional Survey Data'!DV93="",0,'Actual Directional Survey Data'!DV93) -> 0 | AE84: =IF('Actual Directional Survey Data'!DW93="",0,'Actual Directional Survey Data'!DW93) -> 0 | AF84: =IF('Actual Directional Survey Data'!$DU93=0,"",'Actual Directional Survey Data'!$DU93) ->  | AI84: 0 | AJ84: 0
AC85: =IF('Actual Directional Survey Data'!P94="",0,'Actual Directional Survey Data'!P94) -> 0 | AD85: =IF('Actual Directional Survey Data'!DV94="",0,'Actual Directional Survey Data'!DV94) -> 0 | AE85: =IF('Actual Directional Survey Data'!DW94="",0,'Actual Directional Survey Data'!DW94) -> 0 | AF85: =IF('Actual Directional Survey Data'!$DU94=0,"",'Actual Directional Survey Data'!$DU94) ->  | AI85: 0 | AJ85: 0
AC86: =IF('Actual Directional Survey Data'!P95="",0,'Actual Directional Survey Data'!P95) -> 0 | AD86: =IF('Actual Directional Survey Data'!DV95="",0,'Actual Directional Survey Data'!DV95) -> 0 | AE86: =IF('Actual Directional Survey Data'!DW95="",0,'Actual Directional Survey Data'!DW95) -> 0 | AF86: =IF('Actual Directional Survey Data'!$DU95=0,"",'Actual Directional Survey Data'!$DU95) ->  | AI86: 0 | AJ86: 0
AC87: =IF('Actual Directional Survey Data'!P96="",0,'Actual Directional Survey Data'!P96) -> 0 | AD87: =IF('Actual Directional Survey Data'!DV96="",0,'Actual Directional Survey Data'!DV96) -> 0 | AE87: =IF('Actual Directional Survey Data'!DW96="",0,'Actual Directional Survey Data'!DW96) -> 0 | AF87: =IF('Actual Directional Survey Data'!$DU96=0,"",'Actual Directional Survey Data'!$DU96) ->  | AI87: 0 | AJ87: 0
AC88: =IF('Actual Directional Survey Data'!P97="",0,'Actual Directional Survey Data'!P97) -> 0 | AD88: =IF('Actual Directional Survey Data'!DV97="",0,'Actual Directional Survey Data'!DV97) -> 0 | AE88: =IF('Actual Directional Survey Data'!DW97="",0,'Actual Directional Survey Data'!DW97) -> 0 | AF88: =IF('Actual Directional Survey Data'!$DU97=0,"",'Actual Directional Survey Data'!$DU97) ->  | AI88: 0 | AJ88: 0
AC89: =IF('Actual Directional Survey Data'!P98="",0,'Actual Directional Survey Data'!P98) -> 0 | AD89: =IF('Actual Directional Survey Data'!DV98="",0,'Actual Directional Survey Data'!DV98) -> 0 | AE89: =IF('Actual Directional Survey Data'!DW98="",0,'Actual Directional Survey Data'!DW98) -> 0 | AF89: =IF('Actual Directional Survey Data'!$DU98=0,"",'Actual Directional Survey Data'!$DU98) ->  | AI89: 0 | AJ89: 0
AC90: =IF('Actual Directional Survey Data'!P99="",0,'Actual Directional Survey Data'!P99) -> 0 | AD90: =IF('Actual Directional Survey Data'!DV99="",0,'Actual Directional Survey Data'!DV99) -> 0 | AE90: =IF('Actual Directional Survey Data'!DW99="",0,'Actual Directional Survey Data'!DW99) -> 0 | AF90: =IF('Actual Directional Survey Data'!$DU99=0,"",'Actual Directional Survey Data'!$DU99) ->  | AI90: 0 | AJ90: 0
AC91: =IF('Actual Directional Survey Data'!P100="",0,'Actual Directional Survey Data'!P100) -> 0 | AD91: =IF('Actual Directional Survey Data'!DV100="",0,'Actual Directional Survey Data'!DV100) -> 0 | AE91: =IF('Actual Directional Survey Data'!DW100="",0,'Actual Directional Survey Data'!DW100) -> 0 | AF91: =IF('Actual Directional Survey Data'!$DU100=0,"",'Actual Directional Survey Data'!$DU100) ->  | AI91: 0 | AJ91: 0
AC92: =IF('Actual Directional Survey Data'!P101="",0,'Actual Directional Survey Data'!P101) -> 0 | AD92: =IF('Actual Directional Survey Data'!DV101="",0,'Actual Directional Survey Data'!DV101) -> 0 | AE92: =IF('Actual Directional Survey Data'!DW101="",0,'Actual Directional Survey Data'!DW101) -> 0 | AF92: =IF('Actual Directional Survey Data'!$DU101=0,"",'Actual Directional Survey Data'!$DU101) ->  | AI92: 0 | AJ92: 0
AC93: =IF('Actual Directional Survey Data'!P102="",0,'Actual Directional Survey Data'!P102) -> 0 | AD93: =IF('Actual Directional Survey Data'!DV102="",0,'Actual Directional Survey Data'!DV102) -> 0 | AE93: =IF('Actual Directional Survey Data'!DW102="",0,'Actual Directional Survey Data'!DW102) -> 0 | AF93: =IF('Actual Directional Survey Data'!$DU102=0,"",'Actual Directional Survey Data'!$DU102) ->  | AI93: 0 | AJ93: 0
AC94: =IF('Actual Directional Survey Data'!P103="",0,'Actual Directional Survey Data'!P103) -> 0 | AD94: =IF('Actual Directional Survey Data'!DV103="",0,'Actual Directional Survey Data'!DV103) -> 0 | AE94: =IF('Actual Directional Survey Data'!DW103="",0,'Actual Directional Survey Data'!DW103) -> 0 | AF94: =IF('Actual Directional Survey Data'!$DU103=0,"",'Actual Directional Survey Data'!$DU103) ->  | AI94: 0 | AJ94: 0
AC95: =IF('Actual Directional Survey Data'!P104="",0,'Actual Directional Survey Data'!P104) -> 0 | AD95: =IF('Actual Directional Survey Data'!DV104="",0,'Actual Directional Survey Data'!DV104) -> 0 | AE95: =IF('Actual Directional Survey Data'!DW104="",0,'Actual Directional Survey Data'!DW104) -> 0 | AF95: =IF('Actual Directional Survey Data'!$DU104=0,"",'Actual Directional Survey Data'!$DU104) ->  | AI95: 0 | AJ95: 0
AC96: =IF('Actual Directional Survey Data'!P105="",0,'Actual Directional Survey Data'!P105) -> 0 | AD96: =IF('Actual Directional Survey Data'!DV105="",0,'Actual Directional Survey Data'!DV105) -> 0 | AE96: =IF('Actual Directional Survey Data'!DW105="",0,'Actual Directional Survey Data'!DW105) -> 0 | AF96: =IF('Actual Directional Survey Data'!$DU105=0,"",'Actual Directional Survey Data'!$DU105) ->  | AI96: 0 | AJ96: 0
AC97: =IF('Actual Directional Survey Data'!P106="",0,'Actual Directional Survey Data'!P106) -> 0 | AD97: =IF('Actual Directional Survey Data'!DV106="",0,'Actual Directional Survey Data'!DV106) -> 0 | AE97: =IF('Actual Directional Survey Data'!DW106="",0,'Actual Directional Survey Data'!DW106) -> 0 | AF97: =IF('Actual Directional Survey Data'!$DU106=0,"",'Actual Directional Survey Data'!$DU106) ->  | AI97: 0 | AJ97: 0
AC98: =IF('Actual Directional Survey Data'!P107="",0,'Actual Directional Survey Data'!P107) -> 0 | AD98: =IF('Actual Directional Survey Data'!DV107="",0,'Actual Directional Survey Data'!DV107) -> 0 | AE98: =IF('Actual Directional Survey Data'!DW107="",0,'Actual Directional Survey Data'!DW107) -> 0 | AF98: =IF('Actual Directional Survey Data'!$DU107=0,"",'Actual Directional Survey Data'!$DU107) ->  | AI98: 0 | AJ98: 0
AC99: =IF('Actual Directional Survey Data'!P108="",0,'Actual Directional Survey Data'!P108) -> 0 | AD99: =IF('Actual Directional Survey Data'!DV108="",0,'Actual Directional Survey Data'!DV108) -> 0 | AE99: =IF('Actual Directional Survey Data'!DW108="",0,'Actual Directional Survey Data'!DW108) -> 0 | AF99: =IF('Actual Directional Survey Data'!$DU108=0,"",'Actual Directional Survey Data'!$DU108) ->  | AI99: 0 | AJ99: 0
AC100: =IF('Actual Directional Survey Data'!P109="",0,'Actual Directional Survey Data'!P109) -> 0 | AD100: =IF('Actual Directional Survey Data'!DV109="",0,'Actual Directional Survey Data'!DV109) -> 0 | AE100: =IF('Actual Directional Survey Data'!DW109="",0,'Actual Directional Survey Data'!DW109) -> 0 | AF100: =IF('Actual Directional Survey Data'!$DU109=0,"",'Actual Directional Survey Data'!$DU109) ->  | AI100: 0 | AJ100: 0
AC101: =IF('Actual Directional Survey Data'!P110="",0,'Actual Directional Survey Data'!P110) -> 0 | AD101: =IF('Actual Directional Survey Data'!DV110="",0,'Actual Directional Survey Data'!DV110) -> 0 | AE101: =IF('Actual Directional Survey Data'!DW110="",0,'Actual Directional Survey Data'!DW110) -> 0 | AF101: =IF('Actual Directional Survey Data'!$DU110=0,"",'Actual Directional Survey Data'!$DU110) ->  | AI101: 0 | AJ101: 0
AC102: =IF('Actual Directional Survey Data'!P111="",0,'Actual Directional Survey Data'!P111) -> 0 | AD102: =IF('Actual Directional Survey Data'!DV111="",0,'Actual Directional Survey Data'!DV111) -> 0 | AE102: =IF('Actual Directional Survey Data'!DW111="",0,'Actual Directional Survey Data'!DW111) -> 0 | AF102: =IF('Actual Directional Survey Data'!$DU111=0,"",'Actual Directional Survey Data'!$DU111) ->  | AI102: 0 | AJ102: 0
AC103: =IF('Actual Directional Survey Data'!P112="",0,'Actual Directional Survey Data'!P112) -> 0 | AD103: =IF('Actual Directional Survey Data'!DV112="",0,'Actual Directional Survey Data'!DV112) -> 0 | AE103: =IF('Actual Directional Survey Data'!DW112="",0,'Actual Directional Survey Data'!DW112) -> 0 | AF103: =IF('Actual Directional Survey Data'!$DU112=0,"",'Actual Directional Survey Data'!$DU112) ->  | AI103: 0 | AJ103: 0
AC104: =IF('Actual Directional Survey Data'!P113="",0,'Actual Directional Survey Data'!P113) -> 0 | AD104: =IF('Actual Directional Survey Data'!DV113="",0,'Actual Directional Survey Data'!DV113) -> 0 | AE104: =IF('Actual Directional Survey Data'!DW113="",0,'Actual Directional Survey Data'!DW113) -> 0 | AF104: =IF('Actual Directional Survey Data'!$DU113=0,"",'Actual Directional Survey Data'!$DU113) ->  | AI104: 0 | AJ104: 0
AC105: =IF('Actual Directional Survey Data'!P114="",0,'Actual Directional Survey Data'!P114) -> 0 | AD105: =IF('Actual Directional Survey Data'!DV114="",0,'Actual Directional Survey Data'!DV114) -> 0 | AE105: =IF('Actual Directional Survey Data'!DW114="",0,'Actual Directional Survey Data'!DW114) -> 0 | AF105: =IF('Actual Directional Survey Data'!$DU114=0,"",'Actual Directional Survey Data'!$DU114) ->  | AI105: 0 | AJ105: 0
AC106: =IF('Actual Directional Survey Data'!P115="",0,'Actual Directional Survey Data'!P115) -> 0 | AD106: =IF('Actual Directional Survey Data'!DV115="",0,'Actual Directional Survey Data'!DV115) -> 0 | AE106: =IF('Actual Directional Survey Data'!DW115="",0,'Actual Directional Survey Data'!DW115) -> 0 | AF106: =IF('Actual Directional Survey Data'!$DU115=0,"",'Actual Directional Survey Data'!$DU115) ->  | AI106: 0 | AJ106: 0
AC107: =IF('Actual Directional Survey Data'!P116="",0,'Actual Directional Survey Data'!P116) -> 0 | AD107: =IF('Actual Directional Survey Data'!DV116="",0,'Actual Directional Survey Data'!DV116) -> 0 | AE107: =IF('Actual Directional Survey Data'!DW116="",0,'Actual Directional Survey Data'!DW116) -> 0 | AF107: =IF('Actual Directional Survey Data'!$DU116=0,"",'Actual Directional Survey Data'!$DU116) ->  | AI107: 0 | AJ107: =IF(AF107="",AJ106,IF(AF107=0,AJ106,AJ106+((SQRT(AD107^2+AE107^2)-AK$2)^2))) -> 0
AC108: =IF('Actual Directional Survey Data'!P117="",0,'Actual Directional Survey Data'!P117) -> 0 | AD108: =IF('Actual Directional Survey Data'!DV117="",0,'Actual Directional Survey Data'!DV117) -> 0 | AE108: =IF('Actual Directional Survey Data'!DW117="",0,'Actual Directional Survey Data'!DW117) -> 0 | AF108: =IF('Actual Directional Survey Data'!$DU117=0,"",'Actual Directional Survey Data'!$DU117) ->  | AI108: 0 | AJ108: =IF(AF108="",AJ107,IF(AF108=0,AJ107,AJ107+((SQRT(AD108^2+AE108^2)-AK$2)^2))) -> 0
AC109: =IF('Actual Directional Survey Data'!P118="",0,'Actual Directional Survey Data'!P118) -> 0 | AD109: =IF('Actual Directional Survey Data'!DV118="",0,'Actual Directional Survey Data'!DV118) -> 0 | AE109: =IF('Actual Directional Survey Data'!DW118="",0,'Actual Directional Survey Data'!DW118) -> 0 | AF109: =IF('Actual Directional Survey Data'!$DU118=0,"",'Actual Directional Survey Data'!$DU118) ->  | AI109: 0 | AJ109: 0
AC110: =IF('Actual Directional Survey Data'!P119="",0,'Actual Directional Survey Data'!P119) -> 0 | AD110: =IF('Actual Directional Survey Data'!DV119="",0,'Actual Directional Survey Data'!DV119) -> 0 | AE110: =IF('Actual Directional Survey Data'!DW119="",0,'Actual Directional Survey Data'!DW119) -> 0 | AF110: =IF('Actual Directional Survey Data'!$DU119=0,"",'Actual Directional Survey Data'!$DU119) ->  | AI110: 0 | AJ110: 0
AC111: =IF('Actual Directional Survey Data'!P120="",0,'Actual Directional Survey Data'!P120) -> 0 | AD111: =IF('Actual Directional Survey Data'!DV120="",0,'Actual Directional Survey Data'!DV120) -> 0 | AE111: =IF('Actual Directional Survey Data'!DW120="",0,'Actual Directional Survey Data'!DW120) -> 0 | AF111: =IF('Actual Directional Survey Data'!$DU120=0,"",'Actual Directional Survey Data'!$DU120) ->  | AI111: 0 | AJ111: 0
AC112: =IF('Actual Directional Survey Data'!P121="",0,'Actual Directional Survey Data'!P121) -> 0 | AD112: =IF('Actual Directional Survey Data'!DV121="",0,'Actual Directional Survey Data'!DV121) -> 0 | AE112: =IF('Actual Directional Survey Data'!DW121="",0,'Actual Directional Survey Data'!DW121) -> 0 | AF112: =IF('Actual Directional Survey Data'!$DU121=0,"",'Actual Directional Survey Data'!$DU121) ->  | AI112: 0 | AJ112: 0
AC113: =IF('Actual Directional Survey Data'!P122="",0,'Actual Directional Survey Data'!P122) -> 0 | AD113: =IF('Actual Directional Survey Data'!DV122="",0,'Actual Directional Survey Data'!DV122) -> 0 | AE113: =IF('Actual Directional Survey Data'!DW122="",0,'Actual Directional Survey Data'!DW122) -> 0 | AF113: =IF('Actual Directional Survey Data'!$DU122=0,"",'Actual Directional Survey Data'!$DU122) ->  | AI113: 0 | AJ113: 0
AC114: =IF('Actual Directional Survey Data'!P123="",0,'Actual Directional Survey Data'!P123) -> 0 | AD114: =IF('Actual Directional Survey Data'!DV123="",0,'Actual Directional Survey Data'!DV123) -> 0 | AE114: =IF('Actual Directional Survey Data'!DW123="",0,'Actual Directional Survey Data'!DW123) -> 0 | AF114: =IF('Actual Directional Survey Data'!$DU123=0,"",'Actual Directional Survey Data'!$DU123) ->  | AI114: 0 | AJ114: 0
AC115: =IF('Actual Directional Survey Data'!P124="",0,'Actual Directional Survey Data'!P124) -> 0 | AD115: =IF('Actual Directional Survey Data'!DV124="",0,'Actual Directional Survey Data'!DV124) -> 0 | AE115: =IF('Actual Directional Survey Data'!DW124="",0,'Actual Directional Survey Data'!DW124) -> 0 | AF115: =IF('Actual Directional Survey Data'!$DU124=0,"",'Actual Directional Survey Data'!$DU124) ->  | AI115: 0 | AJ115: 0
AC116: =IF('Actual Directional Survey Data'!P125="",0,'Actual Directional Survey Data'!P125) -> 0 | AD116: =IF('Actual Directional Survey Data'!DV125="",0,'Actual Directional Survey Data'!DV125) -> 0 | AE116: =IF('Actual Directional Survey Data'!DW125="",0,'Actual Directional Survey Data'!DW125) -> 0 | AF116: =IF('Actual Directional Survey Data'!$DU125=0,"",'Actual Directional Survey Data'!$DU125) ->  | AI116: 0 | AJ116: 0
AC117: =IF('Actual Directional Survey Data'!P126="",0,'Actual Directional Survey Data'!P126) -> 0 | AD117: =IF('Actual Directional Survey Data'!DV126="",0,'Actual Directional Survey Data'!DV126) -> 0 | AE117: =IF('Actual Directional Survey Data'!DW126="",0,'Actual Directional Survey Data'!DW126) -> 0 | AF117: =IF('Actual Directional Survey Data'!$DU126=0,"",'Actual Directional Survey Data'!$DU126) ->  | AI117: 0 | AJ117: 0
AC118: =IF('Actual Directional Survey Data'!P127="",0,'Actual Directional Survey Data'!P127) -> 0 | AD118: =IF('Actual Directional Survey Data'!DV127="",0,'Actual Directional Survey Data'!DV127) -> 0 | AE118: =IF('Actual Directional Survey Data'!DW127="",0,'Actual Directional Survey Data'!DW127) -> 0 | AF118: =IF('Actual Directional Survey Data'!$DU127=0,"",'Actual Directional Survey Data'!$DU127) ->  | AI118: 0 | AJ118: 0
AC119: =IF('Actual Directional Survey Data'!P128="",0,'Actual Directional Survey Data'!P128) -> 0 | AD119: =IF('Actual Directional Survey Data'!DV128="",0,'Actual Directional Survey Data'!DV128) -> 0 | AE119: =IF('Actual Directional Survey Data'!DW128="",0,'Actual Directional Survey Data'!DW128) -> 0 | AF119: =IF('Actual Directional Survey Data'!$DU128=0,"",'Actual Directional Survey Data'!$DU128) ->  | AI119: 0 | AJ119: 0
AC120: =IF('Actual Directional Survey Data'!P129="",0,'Actual Directional Survey Data'!P129) -> 0 | AD120: =IF('Actual Directional Survey Data'!DV129="",0,'Actual Directional Survey Data'!DV129) -> 0 | AE120: =IF('Actual Directional Survey Data'!DW129="",0,'Actual Directional Survey Data'!DW129) -> 0 | AF120: =IF('Actual Directional Survey Data'!$DU129=0,"",'Actual Directional Survey Data'!$DU129) ->  | AI120: 0 | AJ120: 0
AC121: =IF('Actual Directional Survey Data'!P130="",0,'Actual Directional Survey Data'!P130) -> 0 | AD121: =IF('Actual Directional Survey Data'!DV130="",0,'Actual Directional Survey Data'!DV130) -> 0 | AE121: =IF('Actual Directional Survey Data'!DW130="",0,'Actual Directional Survey Data'!DW130) -> 0 | AF121: =IF('Actual Directional Survey Data'!$DU130=0,"",'Actual Directional Survey Data'!$DU130) ->  | AI121: 0 | AJ121: 0
AC122: =IF('Actual Directional Survey Data'!P131="",0,'Actual Directional Survey Data'!P131) -> 0 | AD122: =IF('Actual Directional Survey Data'!DV131="",0,'Actual Directional Survey Data'!DV131) -> 0 | AE122: =IF('Actual Directional Survey Data'!DW131="",0,'Actual Directional Survey Data'!DW131) -> 0 | AF122: =IF('Actual Directional Survey Data'!$DU131=0,"",'Actual Directional Survey Data'!$DU131) ->  | AI122: 0 | AJ122: 0
AC123: =IF('Actual Directional Survey Data'!P132="",0,'Actual Directional Survey Data'!P132) -> 0 | AD123: =IF('Actual Directional Survey Data'!DV132="",0,'Actual Directional Survey Data'!DV132) -> 0 | AE123: =IF('Actual Directional Survey Data'!DW132="",0,'Actual Directional Survey Data'!DW132) -> 0 | AF123: =IF('Actual Directional Survey Data'!$DU132=0,"",'Actual Directional Survey Data'!$DU132) ->  | AI123: 0 | AJ123: 0
